Workbook

Sheet __snloffice (hidden)
A1: 允䅁䅁䅕䅁坁䅁䅁杓乂䙁䅍兒㙁䕁䄴睑䍂䕁䅙睒䅁䅁䅁䅁祁䅁䅁兓剂䙁䄸村䉂䙁䅍兓䑂䙁䄸兒兂䙁䅍睘䉂䕁䅙䅖䙂䙁䅉睘䙂䙁䅧䅖卂䕁䅅䅁䉁䅁䅁䅃䅁䕁䅙兗睁䅁䅁杁䅁䍁䅉䅁呂䙁䅁睘䵂䕁䅅睕啂䙁䅍兑䵂䕁䅕䅕卂䕁䅫睑䙂䅁䅁䅂䅁䉁䄴䅁呂䙁䅁睘兂䙁䅉兓䑂䕁䅕睘䑂䕁䅷睔呂䕁䅕䅁䑁䅁䅁䅁䅁䅁㴽

Sheet Contents
C2: Enforcement and Acquisition Model for ABC Financial Group
D8: Contents | G8: Colour Codes | L8: File Name: | N8: =IFERROR(File_name(),"") -> 
H9: Colour of Input Cells | J9: 1234567890
D10: Log | L10: Last Save Date | N10: =IFERROR(lastsaved(),"") -> 
H11: Section Titles | J11: TITLE ROW
D12: Summary | H12: Column Letter of Title | J12: B | L12: Last Save By | N12: =IFERROR(last_save_by(),"") -> 
E13: Transaction
E14: Valuation | H14: Colour for Sum Column | J14: 1000000000
E15: Returns | H15: Column Letter for Sum | J15: A
D17: Sensitivity Table | H17: True or 1 Colour | J17: TRUE
H18: False or 0 Colour | J18: FALSE
D19: Tab 1 - Assumptions
E20: Scenario | H20: Links from Other Sheets | J20: 999999999
E21: Timing and Dates | H21: Start Column for Link Colour | J21: E
E22: Debt and Enforcement
E23: Partner Contribution
E24: Liquidity and Expenses for SPV
E25: Distribution To Partners
E26: Generic
D28: Tab 1a - Benchmarks
E29: Valuation Scenario
E30: Timing Sensitivity Assumptions
E31: Cash Flow and Income Assumtions - with Holding Period
E32: Exit Multiples
D34: Tab 1b - Multiples Sensitivity
D36: Tab 2 Debt Stack Reconstruction
E37: Timeline
E38: Debt Balance
E39: Cash Inflow and Outflow from Enforcement
E40: Include Assumptions:
E41: Total outstanding: ~US$375M
E42: Weighted coupon (estimate if unavailable): 6–9% range
E43: Noteholder composition: >50% locally clustered institutional holders
E44: (CapIQ not needed here.)
E45: Break out:
E46: AIC Barbados
E47: Portland Barbados
E48: Specialty Coffee (Belize/Jamaica structure)
E49: Date
E50: Uses of Funds
E51: Sources
D53: Tab 3 Accumulation Curve
D55: Tab 4 Enforcement Model
E56: Time Line
E57: Cost of Enforcment
D59: Tab 4a Enforcement Heatmap
D61: Tab 5 Post Platform Financials
D63: Tab 5a Post Platform Graps
E64: ROE/ROA over time
E65: EBITDA (Equity) bridge
E66: Capital adequacy trajectory (CET1/CAR)
D68: Tab 6 Sum of Parts Valuation
E69: Bank: US$120–160M (midpoint US$140M)
E70: Wealth/IB: US$40–60M (midpoint US$50M)
E71: AM: US$30–50M (midpoint US$40M)
E72: Insurance: US$25–40M (midpoint US$32M)
E73: SOTP pie chart
E74: Peer multiple distribution
D76: Tab 6a Value Graphs
D78: Tab 7 Carve Out Monetization
E79: Base: 2 carve-outs → US$105M
E80: Bull: 3 carve-outs → US$175M
E81: Bear: 1 carve-out → US$50M
E82: Tax leakage: 3–6%
E83: Separation costs: US$1.5–2.5M per unit
E84: CapIQ Required Inputs:
E85: Comparable divestiture multiples
E86: Buyer universe transaction comps
D88: Tab 7a Carve Out Graphs
E89: Tornado chart (timing effects)
E90: Net proceeds waterfall
D92: Tab 8 Mayberry Econ
E93: Assumed Values:
E94: Enforcement fee: US$18.75M
E95: Management fee: 5% of platform value = US$13.1M/year, across 2.5 years → US$32.8M
D97: Tab 8a Mayberry Graphs
D99: Tab 9 Partner Returns
D101: Tab 9a Partner Graphs
D103: Tab 10 Waterfall
D105: Tab 10a Waterfall Graphs
D107: Tab 11 Scenario Manager
E108: Assumptions:
E109: Low: 70¢ entry, US$200M valuation, slow enforcement
E110: Base: 65¢ entry, US$262M valuation, 9-month enforcement
E111: High: 60¢ entry, US$325M valuation, 6-month enforcement
E112: Graph: scenario comparison charts.
D114: Tab 12 Dashboard
D116: Analysis of Multiples
E117: Multiples
D119: DCF with Terminal Value
E120: Income Statement (Cash Flow and Income for Illustration)
E121: Balance Sheet
E122: Cash Flow
D124: SPV Module and Waterfall
E125: Time Line
E126: Cash Flow Statement for SPV
E127: Balance Sheet for SPV
E128: Partner 1 - Senior Up to Hudle Rate
E129: Hurdle Assumption
E130: Partner 2 - Senior Up to Hudle Rate
E131: Partner 3 - Senior Up to Hudle Rate

Sheet Dashboard
C2: =Contents!C2 -> Enforcement and Acquisition Model for ABC Financial Group | G2: =MATCH(I2,V5:V6,0) -> 1 | H2: Currency -> | I2: USD | J2: Live Case -> | K2: ='Tab 1 - Assumptions'!F4 -> Base | N2: Overall IRR (annual basis) | O2: ='Tab 9 Partner Returns'!F53 -> 0.2498782098 | P2: Cash-on-Cash -> | Q2: 9.556480296
B4: . | C4: Transaction Drivers | H4: Sources & Uses - USD
C5: Target 1 Name | F5: ABC | H5: Limited Partner 1 | I5: ='Tab 1 - Assumptions'!F250 -> 0.3333333333 | J5: =$M$11*I5 -> 108568941 | K5: Payment for Debt with Pledge | M5: ='Tab 1 - Assumptions'!F71/CHOOSE(G2,1,'Tab 1 - Assumptions'!F92) -> 252000000 | V5: USD
C6: Target 1 Share Price | F6: ='Tab 1 - Assumptions'!F107/CHOOSE(G2,1,'Tab 1 - Assumptions'!F92) -> 0.26 | H6: Limited Partner 2 | I6: ='Tab 1 - Assumptions'!F251 -> 0.3333333333 | J6: =$M$11*I6 -> 108568941 | K6: Payment of Enforcement Costs incl tax | M6: ='Tab 2 Debt Stack Reconstruction'!H39/CHOOSE(G2,1,'Tab 1 - Assumptions'!F92) -> 23402000 | V6: JMD
C7: Shares Outstanding | F7: ='Tab 1 - Assumptions'!F106 -> 2418501109 | H7: Limited Partner 3 | I7: ='Tab 1 - Assumptions'!F252 -> 0.3333333333 | J7: =$M$11*I7 -> 108568941 | K7: Payment for Share Accumulation | M7: ='Tab 3b Accumulation Curve'!H23/CHOOSE(G2,1,'Tab 1 - Assumptions'!F92) -> 50304823.07
C8: Market Capitalization | F8: =CHOOSE(G2,'Tab 1 - Assumptions'!F108,'Tab 1 - Assumptions'!F109) -> 628810288.3 | H8: General Partner | I8: =1-I7-I6-I5 -> 0 | J8: =$M$11*I8 -> 0
C9: Debt Purchase End Date | F9: ='Tab 1 - Assumptions'!F8 -> 2025-12-31
C10: Start of Equity Accumulation | F10: ='Tab 1 - Assumptions'!F21 -> 2026-02-28 | K10: Other Closing Costs
C11: Final Purchase of ABC | F11: ='Tab 1 - Assumptions'!F29 -> 2026-07-31 | H11: Total Sources | J11: =SUM(J5:J10) -> 325706823.1 | K11: Total Uses | M11: =SUM(M5:M10) -> 325706823.1
C12: Final Exit | F12: ='Tab 1 - Assumptions'!F35 -> 2031-07-31
H14: Proceeds from Exit TOTAL company | J14: Investment | K14: Exit | L14: IRR | M14: MOIC
H15: Limited Partner 1 | J15: =J5 -> 108568941 | K15: ='Tab 9 Partner Returns'!$I$21*'Tab 9 Partner Returns'!$F$24*I5/CHOOSE(G2,1,'Tab 1 - Assumptions'!F92) -> 200301146.4 | L15: =$J$33 -> 0.2284929093 | M15: ='Tab 10 Waterfall'!$G$68 -> 2.727141102
C16: Debt Enforcement with Pledge of Shares | H16: Limited Partner 2 | J16: =J6 -> 108568941 | K16: ='Tab 9 Partner Returns'!$I$21*'Tab 9 Partner Returns'!$F$24*I6/CHOOSE(G2,1,'Tab 1 - Assumptions'!F92) -> 200301146.4 | L16: =$J$33 -> 0.2284929093 | M16: ='Tab 10 Waterfall'!$G$68 -> 2.727141102
C17: Nominal Value of Debt | F17: ='Tab 1 - Assumptions'!F59/CHOOSE($G$2,1,'Tab 1 - Assumptions'!$F$92) -> 360000000 | H17: Limited Partner 3 | J17: =J7 -> 108568941 | K17: ='Tab 9 Partner Returns'!$I$21*'Tab 9 Partner Returns'!$F$24*I7/CHOOSE(G2,1,'Tab 1 - Assumptions'!F92) -> 200301146.4 | L17: =$J$33 -> 0.2284929093 | M17: ='Tab 10 Waterfall'!$G$68 -> 2.727141102
C18: Cents on Dollar | F18: ='Tab 1 - Assumptions'!F69 -> 70
C19: Purchase Cost of Debt | F19: ='Tab 1 - Assumptions'!F71/CHOOSE($G$2,1,'Tab 1 - Assumptions'!$F$92) -> 252000000 | H19: Total | J19: =SUM(J15:J18) -> 325706823.1 | K19: =SUM(K15:K18) -> 600903439.2 | L19: =J33 -> 0.2284929093 | M19: ='Tab 10 Waterfall'!$G$68 -> 2.727141102
C20: Pledged Shares as Percent of Total ABC Shares | F20: ='Tab 1 - Assumptions'!F111 -> 0.43
C21: Value of Pledged Shares at Current Price | F21: ='Tab 1 - Assumptions'!F113/CHOOSE($G$2,1,'Tab 1 - Assumptions'!$F$92) -> 270388424 | H21: Projected Investor IRR (USD) | J21: Exit Year | K21: =HOLDING_PERIOD -> 5 | L21: P/B Multiple | M21: =E25 -> 0.65
K22: =J22+1 -> 1 | L22: 2 | M22: 3 | N22: 4 | O22: 5 | P22: 6 | Q22: 7 | R22: 8
J23: IRR p,a. | K23: =YEAR(F9) -> 2025 | L23: =K23+1 -> 2026 | M23: 2027 | N23: 2028 | O23: 2029 | P23: 2030 | Q23: 2031 | R23: 2032
C24: PF Summary | D24: Base 2025 | E24: Multiple | F24: Current Value | H24: Purchase of Debt | K24: =-'Tab 10a Waterfall Graphs'!H15/CHOOSE(G2,1,'Tab 1 - Assumptions'!F92) -> -252000000 | L24: =-'Tab 10a Waterfall Graphs'!I15 -> 0 | M24: =-'Tab 10a Waterfall Graphs'!J15 -> 0 | N24: =-'Tab 10a Waterfall Graphs'!K15 -> 0 | O24: =-'Tab 10a Waterfall Graphs'!L15 -> 0 | P24: =-'Tab 10a Waterfall Graphs'!M15 -> 0 | Q24: =-'Tab 10a Waterfall Graphs'!O15 -> 0 | R24: =-'Tab 10a Waterfall Graphs'!P15 -> 0
C25: ABC Consol - PB | D25: =Reconciliation!Y141 -> 1244699.836 | E25: ='Tab 1 - Assumptions'!F318 -> 0.65 | F25: =D25*E25 -> 809054.8935 | H25: Enforcement Costs | K25: =-'Tab 10a Waterfall Graphs'!H16/CHOOSE(G2,1,'Tab 1 - Assumptions'!F92) -> -23402000 | L25: =-'Tab 10a Waterfall Graphs'!I16/CHOOSE($G$2,1,'Tab 1 - Assumptions'!$F$92) -> -3144051.442 | M25: =-'Tab 10a Waterfall Graphs'!J16/CHOOSE($G$2,1,'Tab 1 - Assumptions'!$F$92) -> -3144051.442 | N25: =-'Tab 10a Waterfall Graphs'!K16/CHOOSE($G$2,1,'Tab 1 - Assumptions'!$F$92) -> 0 | O25: =-'Tab 10a Waterfall Graphs'!L16/CHOOSE($G$2,1,'Tab 1 - Assumptions'!$F$92) -> 0 | P25: =-'Tab 10a Waterfall Graphs'!M16/CHOOSE($G$2,1,'Tab 1 - Assumptions'!$F$92) -> 0 | Q25: =-'Tab 10a Waterfall Graphs'!N16/CHOOSE($G$2,1,'Tab 1 - Assumptions'!$F$92) -> 0 | R25: =-'Tab 10a Waterfall Graphs'!O16/CHOOSE($G$2,1,'Tab 1 - Assumptions'!$F$92) -> 0
C26: ABC Consol - PE | D26: =L42 -> 230802.0457 | E26: ='Tab 1 - Assumptions'!F135 -> 7.630528 | F26: =E26*D26 -> 1761141.472 | H26: Payment for Added Shares | K26: =-'Tab 10a Waterfall Graphs'!H17/CHOOSE(G2,1,'Tab 1 - Assumptions'!F92) -> 0 | L26: =-'Tab 10a Waterfall Graphs'!I17/CHOOSE($G$2,1,'Tab 1 - Assumptions'!$F$92) -> -50304823.07 | M26: =-'Tab 10a Waterfall Graphs'!J17/CHOOSE($G$2,1,'Tab 1 - Assumptions'!$F$92) -> 0 | N26: =-'Tab 10a Waterfall Graphs'!K17/CHOOSE($G$2,1,'Tab 1 - Assumptions'!$F$92) -> 0 | O26: =-'Tab 10a Waterfall Graphs'!L17/CHOOSE($G$2,1,'Tab 1 - Assumptions'!$F$92) -> 0 | P26: =-'Tab 10a Waterfall Graphs'!M17/CHOOSE($G$2,1,'Tab 1 - Assumptions'!$F$92) -> 0 | Q26: =-'Tab 10a Waterfall Graphs'!N17/CHOOSE($G$2,1,'Tab 1 - Assumptions'!$F$92) -> 0 | R26: =-'Tab 10a Waterfall Graphs'!O17/CHOOSE($G$2,1,'Tab 1 - Assumptions'!$F$92) -> 0
C27: Banking - P/E | D27: =Q63 -> 70591.63661 | E27: ='Tab 1 - Assumptions'!H330 -> 7.84 | F27: =E27*D27 -> 553438.431 | H27: Fees for Transaction and Separation Cost | K27: =-'Tab 10a Waterfall Graphs'!H18/CHOOSE(G2,1,'Tab 1 - Assumptions'!F92) -> 0 | L27: =-'Tab 10a Waterfall Graphs'!I18/CHOOSE($G$2,1,'Tab 1 - Assumptions'!$F$92) -> -523795.082 | M27: =-'Tab 10a Waterfall Graphs'!J18/CHOOSE($G$2,1,'Tab 1 - Assumptions'!$F$92) -> -639590.1639 | N27: =-'Tab 10a Waterfall Graphs'!K18/CHOOSE($G$2,1,'Tab 1 - Assumptions'!$F$92) -> -639590.1639 | O27: =-'Tab 10a Waterfall Graphs'!L18/CHOOSE($G$2,1,'Tab 1 - Assumptions'!$F$92) -> -639590.1639 | P27: =-'Tab 10a Waterfall Graphs'!M18/CHOOSE($G$2,1,'Tab 1 - Assumptions'!$F$92) -> -639590.1639 | Q27: =-'Tab 10a Waterfall Graphs'!N18/CHOOSE($G$2,1,'Tab 1 - Assumptions'!$F$92) -> -1928594.262 | R27: =-'Tab 10a Waterfall Graphs'!O18/CHOOSE($G$2,1,'Tab 1 - Assumptions'!$F$92) -> 0
C28: Wealth Mgmt - P/E | D28: =Q134 -> 19720.02241 | E28: ='Tab 1 - Assumptions'!$H$354 -> 6.95 | F28: =E28*D28 -> 137054.1558 | H28: Cash Received from Ownership | K28: ='Tab 10a Waterfall Graphs'!H19/CHOOSE(G2,1,'Tab 1 - Assumptions'!F92) -> 0 | L28: ='Tab 10a Waterfall Graphs'!I19/CHOOSE($G$2,1,'Tab 1 - Assumptions'!$F$92) -> 20828919.27 | M28: ='Tab 10a Waterfall Graphs'!J19/CHOOSE($G$2,1,'Tab 1 - Assumptions'!$F$92) -> 58842921.12 | N28: ='Tab 10a Waterfall Graphs'!K19/CHOOSE($G$2,1,'Tab 1 - Assumptions'!$F$92) -> 62630260.34 | O28: ='Tab 10a Waterfall Graphs'!L19/CHOOSE($G$2,1,'Tab 1 - Assumptions'!$F$92) -> 66664984.24 | P28: ='Tab 10a Waterfall Graphs'!M19/CHOOSE($G$2,1,'Tab 1 - Assumptions'!$F$92) -> 70963512.24 | Q28: ='Tab 10a Waterfall Graphs'!N19/CHOOSE($G$2,1,'Tab 1 - Assumptions'!$F$92) -> 644970401.7 | R28: ='Tab 10a Waterfall Graphs'!O19/CHOOSE($G$2,1,'Tab 1 - Assumptions'!$F$92) -> 0
C29: Insurance - P/B | D29: =Q190 -> 140490.3804 | E29: ='Tab 1 - Assumptions'!H369 -> 5.85 | F29: =E29*D29 -> 821868.7255 | H29: Net Cash Flow to Investors | J29: =IRR(K29:R29) -> 0.2357273205 | K29: ='Tab 10a Waterfall Graphs'!H23/CHOOSE(G2,1,'Tab 1 - Assumptions'!F92) -> -275402000 | L29: ='Tab 10a Waterfall Graphs'!I23/CHOOSE(G2,1,'Tab 1 - Assumptions'!F92) -> -33143750.32 | M29: ='Tab 10a Waterfall Graphs'!J23/CHOOSE($G$2,1,'Tab 1 - Assumptions'!$F$92) -> 55059279.51 | N29: ='Tab 10a Waterfall Graphs'!K23/CHOOSE($G$2,1,'Tab 1 - Assumptions'!$F$92) -> 61990670.18 | O29: ='Tab 10a Waterfall Graphs'!L23/CHOOSE($G$2,1,'Tab 1 - Assumptions'!$F$92) -> 66025394.07 | P29: ='Tab 10a Waterfall Graphs'!M23/CHOOSE($G$2,1,'Tab 1 - Assumptions'!$F$92) -> 70323922.08 | Q29: ='Tab 10a Waterfall Graphs'!N23/CHOOSE($G$2,1,'Tab 1 - Assumptions'!$F$92) -> 643041807.5 | R29: ='Tab 10a Waterfall Graphs'!O23/CHOOSE($G$2,1,'Tab 1 - Assumptions'!$F$92) -> 0
C30: Total Segments | D30: =SUM(D27:D29) -> 230802.0394 | F30: =F27+F28+F29 -> 1512361.312
H31: Preferred Cash Flow | J31: ='Tab 10 Waterfall'!G49 -> 0.15 | K31: ='Tab 10a Waterfall Graphs'!H24/CHOOSE($G$2,1,'Tab 1 - Assumptions'!$F$92) -> -275402000 | L31: ='Tab 10a Waterfall Graphs'!I24/CHOOSE($G$2,1,'Tab 1 - Assumptions'!$F$92) -> -80758394.59 | M31: ='Tab 10a Waterfall Graphs'!J24/CHOOSE($G$2,1,'Tab 1 - Assumptions'!$F$92) -> 55059279.51 | N31: ='Tab 10a Waterfall Graphs'!K24/CHOOSE($G$2,1,'Tab 1 - Assumptions'!$F$92) -> 61990670.18 | O31: ='Tab 10a Waterfall Graphs'!L24/CHOOSE($G$2,1,'Tab 1 - Assumptions'!$F$92) -> 66025394.07 | P31: ='Tab 10a Waterfall Graphs'!M24/CHOOSE($G$2,1,'Tab 1 - Assumptions'!$F$92) -> 70323922.08 | Q31: ='Tab 10a Waterfall Graphs'!N24/CHOOSE($G$2,1,'Tab 1 - Assumptions'!$F$92) -> 406516599.4 | R31: ='Tab 10a Waterfall Graphs'!O24/CHOOSE($G$2,1,'Tab 1 - Assumptions'!$F$92) -> 0
H32: Promote and Carve-out | K32: ='Tab 10a Waterfall Graphs'!H25 -> 0 | L32: ='Tab 10a Waterfall Graphs'!I25 -> 0 | M32: ='Tab 10a Waterfall Graphs'!J25 -> 0 | N32: ='Tab 10a Waterfall Graphs'!K25 -> 0 | O32: ='Tab 10a Waterfall Graphs'!L25 -> 0 | P32: ='Tab 10a Waterfall Graphs'!M25 -> 0 | Q32: ='Tab 10a Waterfall Graphs'!N25 -> 30000000 | R32: ='Tab 10a Waterfall Graphs'!O25 -> 0
H33: Remaining Cash Flow to Investors | J33: =IRR(K33:R33) -> 0.2284929093 | K33: ='Tab 10a Waterfall Graphs'!H26/CHOOSE($G$2,1,'Tab 1 - Assumptions'!$F$92) -> -275402000 | L33: ='Tab 10a Waterfall Graphs'!I26/CHOOSE($G$2,1,'Tab 1 - Assumptions'!$F$92) -> -33143750.32 | M33: ='Tab 10a Waterfall Graphs'!J26/CHOOSE($G$2,1,'Tab 1 - Assumptions'!$F$92) -> 55059279.51 | N33: ='Tab 10a Waterfall Graphs'!K26/CHOOSE($G$2,1,'Tab 1 - Assumptions'!$F$92) -> 61990670.18 | O33: ='Tab 10a Waterfall Graphs'!L26/CHOOSE($G$2,1,'Tab 1 - Assumptions'!$F$92) -> 66025394.07 | P33: ='Tab 10a Waterfall Graphs'!M26/CHOOSE($G$2,1,'Tab 1 - Assumptions'!$F$92) -> 70323922.08 | Q33: ='Tab 10a Waterfall Graphs'!N26/CHOOSE($G$2,1,'Tab 1 - Assumptions'!$F$92) -> 613041807.5 | R33: ='Tab 10a Waterfall Graphs'!O26/CHOOSE($G$2,1,'Tab 1 - Assumptions'!$F$92) -> 0
H34: MOIC | J34: ='Tab 10 Waterfall'!G68 -> 2.727141102 | L34: Payback Date | M34: ='Tab 10 Waterfall'!F76 -> 2030-02-28
J36: 2025 Operating | K36: 2025 Pre-tax | L36: 2025 Net Income | M36: 2025 Assets | N36: 2025 Equity | O36: Equity % | P36: ROE
H37: Banking Segment | J37: =Q59 -> 156709.4753 | K37: =Q61 -> 87021.81079 | L37: =Q63 -> 70591.63661 | M37: =Q68 -> 7664000.282 | N37: =Q73 -> 314888.4184 | O37: =N37/M37 -> 0.04108669192 | P37: =L37/N37 -> 0.2241798443
H38: Wealth Mgmt and IB | J38: =Q130 -> 43777.3441 | K38: =Q132 -> 24309.84946 | L38: =Q134 -> 19720.02241 | M38: =Q139 -> 2607254.549 | N38: =Q144 -> 224485.991 | O38: =N38/M38 -> 0.08610052713 | P38: =L38/N38 -> 0.0878452251
H39: Insurance | J39: =Q186 -> 311880.7675 | K39: =Q188 -> 173189.4583 | L39: =Q190 -> 140490.3804 | M39: =Q195 -> 4771868.15 | N39: =Q200 -> 1050817.932 | O39: =N39/M39 -> 0.2202110157 | P39: =L39/N39 -> 0.1336962153
H40: Total | J40: =SUM(J37:J39) -> 512367.587 | K40: =SUM(K37:K39) -> 284521.1185 | L40: =SUM(L37:L39) -> 230802.0394 | M40: =SUM(M37:M39) -> 15043122.98 | N40: =SUM(N37:N39) -> 1590192.341 | O40: =N40/M40 -> 0.1057089238 | P40: =L40/N40 -> 0.1451409578
H42: Total ABC Financial | K42: =Reconciliation!X17 -> 284521.1185 | L42: =Reconciliation!T77 -> 230802.0457 | M42: =Reconciliation!Y145 -> 15043122.98 | N42: =Reconciliation!Y143 -> 1591880.475 | O42: =N42/M42 -> 0.1058211434 | P42: =L42/N42 -> 0.1449870448
H43: Non-Controlling Interest | L43: =Reconciliation!T76 -> 86174.85193 | N43: =Reconciliation!Y142 -> 347180.6383 | P43: =L43/N43 -> 0.2482133
H44: Stockholders | L44: =Reconciliation!T75 -> 144627.1938 | N44: =Reconciliation!Y141 -> 1244699.836 | P44: =L44/N44 -> 0.1161944346
B50: Banking Segment
H51: 2016 | I51: =H51+1 -> 2017 | J51: =I51+1 -> 2018 | K51: 2019 | L51: 2020 | M51: 2021 | N51: 2022 | O51: 2023 | P51: 2024 | Q51: 2025 | R51: 2026 | S51: 2027 | T51: 2028 | U51: 2029 | V51: 2030 | W51: 2031 | X51: 2032 | Y51: 2033 | Z51: 2034
C52: Terminal Year | F52: =YEAR('Tab 1 - Assumptions'!F44) -> 2031 | H52: =H51=$F$52 -> FALSE | I52: =I51=$F$52 -> FALSE | J52: FALSE | K52: FALSE | L52: FALSE | M52: FALSE | N52: FALSE | O52: FALSE | P52: FALSE | Q52: FALSE | R52: FALSE | S52: FALSE | T52: FALSE | U52: FALSE | V52: FALSE | W52: TRUE | X52: FALSE | Y52: FALSE | Z52: FALSE
C53: Explicit Period | F53: =YEAR('Tab 1 - Assumptions'!F26) -> 2026 | H53: =AND(H51>=$F$53,H51<=$F$52) -> FALSE | I53: =AND(I51>=$F$53,I51<=$F$52) -> FALSE | J53: FALSE | K53: FALSE | L53: FALSE | M53: FALSE | N53: FALSE | O53: FALSE | P53: FALSE | Q53: FALSE | R53: TRUE | S53: TRUE | T53: TRUE | U53: TRUE | V53: TRUE | W53: TRUE | X53: FALSE | Y53: FALSE | Z53: FALSE
C55: Net Margin, Fee and Other Revenue | H55: ='Tab 5d Segment Hist and Proj'!L14 -> 263696.918 | I55: ='Tab 5d Segment Hist and Proj'!M14 -> 310156.8735 | J55: ='Tab 5d Segment Hist and Proj'!N14 -> 364239.6938 | K55: ='Tab 5d Segment Hist and Proj'!O14 -> 394958.7693 | L55: ='Tab 5d Segment Hist and Proj'!P14 -> 340391.1077 | M55: ='Tab 5d Segment Hist and Proj'!Q14 -> 428207.416 | N55: ='Tab 5d Segment Hist and Proj'!R14 -> 462746.3826 | O55: ='Tab 5d Segment Hist and Proj'!S14 -> 459483.3128 | P55: ='Tab 5d Segment Hist and Proj'!T14 -> 469174.0697 | Q55: ='Tab 5d Segment Hist and Proj'!U14 -> 501259.7521
C56: Credit Impairment | H56: ='Tab 5d Segment Hist and Proj'!L15 -> -2236.022827 | I56: ='Tab 5d Segment Hist and Proj'!M15 -> -220.4618821 | J56: ='Tab 5d Segment Hist and Proj'!N15 -> -12112.02793 | K56: ='Tab 5d Segment Hist and Proj'!O15 -> -34380.65527 | L56: ='Tab 5d Segment Hist and Proj'!P15 -> -54529.39689 | M56: ='Tab 5d Segment Hist and Proj'!Q15 -> -19157.68435 | N56: ='Tab 5d Segment Hist and Proj'!R15 -> -13878.19128 | O56: ='Tab 5d Segment Hist and Proj'!S15 -> -28296.58447 | P56: ='Tab 5d Segment Hist and Proj'!T15 -> -37666.06731 | Q56: ='Tab 5d Segment Hist and Proj'!U15 -> -39311.33158
C57: Direct Operating Expenses | H57: ='Tab 5d Segment Hist and Proj'!L16 -> -108750.1573 | I57: ='Tab 5d Segment Hist and Proj'!M16 -> -122746.2753 | J57: ='Tab 5d Segment Hist and Proj'!N16 -> -145491.5534 | K57: ='Tab 5d Segment Hist and Proj'!O16 -> -132244.4922 | L57: ='Tab 5d Segment Hist and Proj'!P16 -> -127107.6001 | M57: ='Tab 5d Segment Hist and Proj'!Q16 -> -154793.1797 | N57: ='Tab 5d Segment Hist and Proj'!R16 -> -186311.1944 | O57: ='Tab 5d Segment Hist and Proj'!S16 -> -183476.0724 | P57: ='Tab 5d Segment Hist and Proj'!T16 -> -151305.6015 | Q57: ='Tab 5d Segment Hist and Proj'!U16 -> -158989.4992
C58: Allocated Operating Expenses | H58: ='Tab 5d Segment Hist and Proj'!L17 -> -57312.4345 | I58: ='Tab 5d Segment Hist and Proj'!M17 -> -61835.90897 | J58: ='Tab 5d Segment Hist and Proj'!N17 -> -68201.69763 | K58: ='Tab 5d Segment Hist and Proj'!O17 -> -91689.37566 | L58: ='Tab 5d Segment Hist and Proj'!P17 -> -80384.82836 | M58: ='Tab 5d Segment Hist and Proj'!Q17 -> -115499.2937 | N58: ='Tab 5d Segment Hist and Proj'!R17 -> -121482.7187 | O58: ='Tab 5d Segment Hist and Proj'!S17 -> -139136.7938 | P58: ='Tab 5d Segment Hist and Proj'!T17 -> -138095.5298 | Q58: ='Tab 5d Segment Hist and Proj'!U17 -> -146249.446
C59: Net Before Adjustments | H59: =SUM(H55:H58) -> 95398.3033 | I59: =SUM(I55:I58) -> 125354.2274 | J59: 138434.4148 | K59: 136644.2461 | L59: 78369.28238 | M59: 138757.2583 | N59: 141074.2783 | O59: 108573.8621 | P59: 142106.8711 | Q59: 156709.4753
C60: Adjustment for Double Counting of Income and Allocated Exp | F60: ='Tab 1 - Assumptions'!F205 -> 0.444693369 | H60: =H59*$F$60 -> 42422.99289 | I60: =I59*$F$60 -> 55744.1937 | J60: 61560.86633 | K60: 60764.79018 | L60: 34850.30021 | M60: 61704.43268 | N60: 62734.79608 | O60: 48282.07654 | P60: 63193.98326 | Q60: 69687.66455
C61: Pre-Tax Income After Adjustment | H61: =H59-H60 -> 52975.31041 | I61: =I59-I60 -> 69610.03369 | J61: 76873.54852 | K61: 75879.45597 | L61: 43518.98217 | M61: 77052.82564 | N61: 78339.48217 | O61: 60291.78559 | P61: 78912.88781 | Q61: 87021.81079
C62: Taxes | F62: ='Tab 1 - Assumptions'!F204 -> 0.1888052436 | H62: =H61*$F$62 -> 10002.01638 | I62: =I61*$F$62 -> 13142.73937 | J62: 14514.12905 | K62: 14326.43917 | L62: 8216.612029 | M62: 14547.97751 | N62: 14790.90501 | O62: 11383.40526 | P62: 14899.16701 | Q62: 16430.17418
C63: Net Income | H63: =H61-H62 -> 42973.29402 | I63: =I61-I62 -> 56467.29433 | J63: 62359.41946 | K63: 61553.0168 | L63: 35302.37014 | M63: 62504.84813 | N63: 63548.57716 | O63: 48908.38033 | P63: 64013.72081 | Q63: 70591.63661 | R63: =AVERAGE(Q68:R68)*R75 -> 71045.28262 | S63: =AVERAGE(R68:S68)*S75 -> 75307.99958 | T63: 79826.47955 | U63: 84616.06832 | V63: 89693.03242 | W63: 95074.61437 | X63: 100779.0912 | Y63: 106825.8367 | Z63: 113235.3869
C64: Non-Control Percent | F64: ='Tab 1 - Assumptions'!F208 -> 0.3733712657 | H64: =$F$64*H63 -> 16044.99318 | I64: =$F$64*I63 -> 21083.26515 | J64: 23283.21537 | K64: 22982.12779 | L64: 13180.89062 | M64: 23337.51426 | N64: 23727.21269 | O64: 18260.98387 | P64: 23900.88396 | Q64: 26356.88871 | R64: 26526.26709 | S64: 28117.84312 | T64: 29804.91371 | U64: 31593.20853 | V64: 33488.80104 | W64: 35498.1291 | X64: 37628.01685 | Y64: 39885.69786 | Z64: 42278.83973
C65: Income to Shareholders | H65: =H63-H64 -> 26928.30084 | I65: =I63-I64 -> 35384.02917 | J65: 39076.20409 | K65: 38570.88901 | L65: 22121.47952 | M65: 39167.33387 | N65: 39821.36447 | O65: 30647.39646 | P65: 40112.83685 | Q65: 44234.7479 | R65: 44519.01553 | S65: 47190.15646 | T65: 50021.56584 | U65: 53022.85979 | V65: 56204.23138 | W65: 59576.48527 | X65: 63151.07438 | Y65: 66940.13884 | Z65: 70956.54718
C67: Segment Assets | H67: ='Tab 5d Segment Hist and Proj'!L$21 -> 4170358.052 | I67: ='Tab 5d Segment Hist and Proj'!M$21 -> 4523106.258 | J67: ='Tab 5d Segment Hist and Proj'!N$21 -> 6062307.446 | K67: ='Tab 5d Segment Hist and Proj'!O$21 -> 6750356.662 | L67: ='Tab 5d Segment Hist and Proj'!P$21 -> 7057488.734 | M67: ='Tab 5d Segment Hist and Proj'!Q$21 -> 7444084.35 | N67: ='Tab 5d Segment Hist and Proj'!R$21 -> 7545933.365 | O67: ='Tab 5d Segment Hist and Proj'!S$21 -> 7787200.113 | P67: ='Tab 5d Segment Hist and Proj'!T$21 -> 7737050.518 | Q67: ='Tab 5d Segment Hist and Proj'!U$21 -> 8472038.442
C68: Adjusted Segment Assets | F68: ='Tab 1 - Assumptions'!F206 -> 0.9046229352 | H68: =H67*$F$68 -> 3772601.542 | I68: =I67*$F$68 -> 4091705.66 | J68: 5484102.356 | K68: 6106527.458 | L68: 6384366.174 | M68: 6734089.435 | N68: 6826224.39 | O68: 7044479.823 | P68: 6999113.35 | Q68: 7664000.282 | R68: =Q68*(1+$F$69) -> 8123840.299 | S68: =R68*(1+$F$69) -> 8611270.717 | T68: 9127946.96 | U68: 9675623.778 | V68: 10256161.2 | W68: 10871530.88 | X68: 11523822.73 | Y68: 12215252.09 | Z68: 12948167.22
C69: Asset Growth | F69: 0.06 | I69: =I68/H68-1 -> 0.08458463315 | J69: =J68/I68-1 -> 0.3402973754 | K69: 0.113496259 | L69: 0.04549864361 | M69: 0.05477807049 | N69: 0.01368187285 | O69: 0.03197308215 | P69: -0.006440003342 | Q69: 0.09499588015 | R69: =R68/Q68-1 -> 0.06 | S69: =S68/R68-1 -> 0.06 | T69: 0.06 | U69: 0.06 | V69: 0.06 | W69: 0.06 | X69: 0.06 | Y69: 0.06 | Z69: 0.06
C70: Segment Liabilities | H70: ='Tab 5d Segment Hist and Proj'!L$22 -> 3713680.21 | I70: ='Tab 5d Segment Hist and Proj'!M$22 -> 4063850.031 | J70: ='Tab 5d Segment Hist and Proj'!N$22 -> 5479971.09 | K70: ='Tab 5d Segment Hist and Proj'!O$22 -> 6020794.829 | L70: ='Tab 5d Segment Hist and Proj'!P$22 -> 6459634.106 | M70: ='Tab 5d Segment Hist and Proj'!Q$22 -> 6817193.804 | N70: ='Tab 5d Segment Hist and Proj'!R$22 -> 7002164.216 | O70: ='Tab 5d Segment Hist and Proj'!S$22 -> 7201927.176 | P70: ='Tab 5d Segment Hist and Proj'!T$22 -> 7136543.993 | Q70: ='Tab 5d Segment Hist and Proj'!U$22 -> 7904704.083
C71: Liabilities | F71: ='Tab 1 - Assumptions'!F207 -> 0.9297137233 | H71: =H70*$F$71 -> 3452659.455 | I71: =I70*$F$71 -> 3778217.143 | J71: 5094804.326 | K71: 5597615.577 | L71: 6005610.475 | M71: 6338038.633 | N71: 6510008.164 | O71: 6695730.53 | P71: 6634942.887 | Q71: 7349111.864 | R71: =R68-R84 -> 7717648.284 | S71: =S68-S84 -> 8180707.181 | T71: 8671549.612 | U71: 9191842.589 | V71: 9743353.144 | W71: 10327954.33 | X71: 10947631.59 | Y71: 11604489.49 | Z71: 12300758.86
C72: Implied Equity - No Adjustment | H72: =H67-H70 -> 456677.8419 | I72: =I67-I70 -> 459256.2267 | J72: 582336.3558 | K72: 729561.8336 | L72: 597854.6287 | M72: 626890.5461 | N72: 543769.1497 | O72: 585272.9366 | P72: 600506.5244 | Q72: 567334.359 | R72: 0 | S72: 0 | T72: 0 | U72: 0 | V72: 0 | W72: 0 | X72: 0 | Y72: 0 | Z72: 0
C73: Implied Equity - Adjusted | H73: =H68-H71 -> 319942.0868 | I73: =I68-I71 -> 313488.516 | J73: 389298.0304 | K73: 508911.8804 | L73: 378755.6988 | M73: 396050.8011 | N73: 316216.2262 | O73: 348749.2935 | P73: 364170.4621 | Q73: 314888.4184 | R73: =R78*R68 -> 406192.015 | S73: =S78*S68 -> 430563.5359 | T73: 456397.348 | U73: 483781.1889 | V73: 512808.0602 | W73: 543576.5438 | X73: 576191.1365 | Y73: 610762.6047 | Z73: 647408.3609
C75: Operating Income/Average Assets | F75: 0.009 | H75: =H63/AVERAGE(G68:H68) -> 0.01139089128 | I75: 0.01436039892 | J75: 0.01302436711 | K75: 0.01062116861 | L75: 0.00565249712 | M75: 0.009529299789 | N75: 0.009372729567 | O75: 0.007052039979 | P75: 0.009116430535 | Q75: 0.009628464783 | R75: =$F$75 -> 0.009 | S75: =$F$75 -> 0.009 | T75: 0.009 | U75: 0.009 | V75: 0.009 | W75: 0.009 | X75: 0.009 | Y75: 0.009 | Z75: 0.009
C76: Operating Income/Average Equity | H76: =H63/AVERAGE(G72:H72) -> 0.09409980094 | I76: 0.1232999105 | J76: 0.1197386013 | K76: 0.09383810009 | L76: 0.05318959219 | M76: 0.1020699643 | N76: 0.1085688307 | O76: 0.08663694812 | P76: 0.107969016 | Q76: 0.1208925593 | R76: =R63/AVERAGE(Q73:R73) -> 0.1970523102 | S76: =S63/AVERAGE(R73:S73) -> 0.18 | T76: 0.18 | U76: 0.18 | V76: 0.18 | W76: 0.18 | X76: 0.18 | Y76: 0.18 | Z76: 0.18
C77: Equity to Assets - No Adjustment | H77: =H72/H67 -> 0.1095056674 | I77: =I72/I67 -> 0.1015355821 | J77: 0.09605853234 | K77: 0.1080775239 | L77: 0.08471209111 | M77: 0.0842132513 | N77: 0.07206121806 | O77: 0.07515832752 | P77: 0.0776143988 | Q77: 0.06696550812
C78: Equity to Assets | F78: 0.05 | H78: =H73/H68 -> 0.08480675291 | I78: =I73/I68 -> 0.0766156078 | J78: 0.07098664561 | K78: 0.08333899814 | L78: 0.0593254974 | M78: 0.05881282168 | N78: 0.04632373741 | O78: 0.04950674887 | P78: 0.05203094219 | Q78: 0.04108669192 | R78: =$F$78 -> 0.05 | S78: =$F$78 -> 0.05 | T78: 0.05 | U78: 0.05 | V78: 0.05 | W78: 0.05 | X78: 0.05 | Y78: 0.05 | Z78: 0.05
C81: Opening Equity | I81: =H84 -> 319942.0868 | J81: =I84 -> 313488.516 | K81: 389298.0304 | L81: 508911.8804 | M81: 378755.6988 | N81: 396050.8011 | O81: 316216.2262 | P81: 348749.2935 | Q81: 364170.4621 | R81: 314888.4184 | S81: 406192.015 | T81: 430563.5359 | U81: 456397.348 | V81: 483781.1889 | W81: 512808.0602 | X81: 543576.5438 | Y81: 576191.1365 | Z81: 610762.6047
C82: Add: Net Income | I82: =I63 -> 56467.29433 | J82: 62359.41946 | K82: 61553.0168 | L82: 35302.37014 | M82: 62504.84813 | N82: 63548.57716 | O82: 48908.38033 | P82: 64013.72081 | Q82: 70591.63661 | R82: 71045.28262 | S82: 75307.99958 | T82: 79826.47955 | U82: 84616.06832 | V82: 89693.03242 | W82: 95074.61437 | X82: 100779.0912 | Y82: 106825.8367 | Z82: 113235.3869
C83: Less: Equity Cash Flow (Negative is Dividend) | I83: =I84-(I81+I82) -> -62920.86511 | J83: =J84-(J81+J82) -> 13450.09493 | K83: 58060.83321 | L83: -165458.5517 | M83: -45209.74588 | N83: -143383.1521 | O83: -16375.31296 | P83: -48592.55225 | Q83: -119873.6802 | R83: 20258.31391 | S83: -50936.47868 | T83: -53992.6674 | U83: -57232.22744 | V83: -60666.16109 | W83: -64306.13075 | X83: -68164.4986 | Y83: -72254.36851 | Z83: -76589.63063
C84: Closing Equity | H84: =H73 -> 319942.0868 | I84: =I73 -> 313488.516 | J84: 389298.0304 | K84: 508911.8804 | L84: 378755.6988 | M84: 396050.8011 | N84: 316216.2262 | O84: 348749.2935 | P84: 364170.4621 | Q84: 314888.4184 | R84: 406192.015 | S84: 430563.5359 | T84: 456397.348 | U84: 483781.1889 | V84: 512808.0602 | W84: 543576.5438 | X84: 576191.1365 | Y84: 610762.6047 | Z84: 647408.3609
C85: Non-Controlling Equity | F85: ='Tab 1 - Assumptions'!F209 -> 0.2180946647 | H85: =$F$85*H84 -> 69777.66214 | I85: =$F$85*I84 -> 68370.17279 | J85: 84903.82341 | K85: 110990.9659 | L85: 82604.59714 | M85: 86376.56666 | N85: 68965.07181 | O85: 76060.36023 | P85: 79423.63481 | Q85: 68675.48404 | R85: 88588.3113 | S85: 93903.60998 | T85: 99537.82658 | U85: 105510.0962 | V85: 111840.7019 | W85: 118551.1441 | X85: 125664.2127 | Y85: 133204.0655 | Z85: 141196.3094
C86: Equity to Shareholders | H86: =H84-H85 -> 250164.4247 | I86: =I84-I85 -> 245118.3432 | J86: 304394.207 | K86: 397920.9145 | L86: 296151.1017 | M86: 309674.2344 | N86: 247251.1543 | O86: 272688.9333 | P86: 284746.8273 | Q86: 246212.9344 | R86: 317603.7037 | S86: 336659.9259 | T86: 356859.5214 | U86: 378271.0927 | V86: 400967.3583 | W86: 425025.3998 | X86: 450526.9238 | Y86: 477558.5392 | Z86: 506212.0516
C88: Cash Flow to Equity | H88: =-H83*H53*(1-$F$85) -> 0 | I88: =-I83*I53*(1-$F$85) -> 0 | J88: 0 | K88: 0 | L88: 0 | M88: 0 | N88: 0 | O88: 0 | P88: 0 | Q88: 0 | R88: -15840.08373 | S88: 39827.50444 | T88: 42217.15471 | U88: 44750.18399 | V88: 47435.19503 | W88: 50281.30673 | X88: 0 | Y88: 0 | Z88: 0
C89: Earnings Multiple | E89: =SUM(H89:XFD89) -> 467079.6445 | F89: ='Tab 1 - Assumptions'!H330 -> 7.84 | H89: =$F$89*H65*H52 -> 0 | I89: =$F$89*I65*I52 -> 0 | J89: 0 | K89: 0 | L89: 0 | M89: 0 | N89: 0 | O89: 0 | P89: 0 | Q89: 0 | R89: 0 | S89: 0 | T89: 0 | U89: 0 | V89: 0 | W89: 467079.6445 | X89: 0 | Y89: 0 | Z89: 0
C90: PB Multiple | E90: =SUM(H90:XFD90) -> 276266.5099 | F90: =Price_to_Book -> 0.65 | H90: =H86*$F$90*H52 -> 0 | I90: =I86*$F$90*I52 -> 0 | J90: 0 | K90: 0 | L90: 0 | M90: 0 | N90: 0 | O90: 0 | P90: 0 | Q90: 0 | R90: 0 | S90: 0 | T90: 0 | U90: 0 | V90: 0 | W90: 276266.5099 | X90: 0 | Y90: 0 | Z90: 0
C92: Credit Impairment to Assets | H92: ='Tab 5d Segment Hist and Proj'!L29 -> 0.0005361704676 | I92: ='Tab 5d Segment Hist and Proj'!M29 -> 4.874125646e-05 | J92: ='Tab 5d Segment Hist and Proj'!N29 -> 0.001997923733 | K92: ='Tab 5d Segment Hist and Proj'!O29 -> 0.005093161294 | L92: ='Tab 5d Segment Hist and Proj'!P29 -> 0.007726458935 | M92: ='Tab 5d Segment Hist and Proj'!Q29 -> 0.00257354477 | N92: ='Tab 5d Segment Hist and Proj'!R29 -> 0.001839161653 | O92: ='Tab 5d Segment Hist and Proj'!S29 -> 0.003633730232 | P92: ='Tab 5d Segment Hist and Proj'!T29 -> 0.004868272118 | Q92: ='Tab 5d Segment Hist and Proj'!U29 -> 0.004640126677
C94: Total Operating Costs Including Allocated Costs | H94: ='Tab 5d Segment Hist and Proj'!L31 -> 166062.5918 | I94: ='Tab 5d Segment Hist and Proj'!M31 -> 184582.1842 | J94: ='Tab 5d Segment Hist and Proj'!N31 -> 213693.251 | K94: ='Tab 5d Segment Hist and Proj'!O31 -> 223933.8679 | L94: ='Tab 5d Segment Hist and Proj'!P31 -> 207492.4284 | M94: ='Tab 5d Segment Hist and Proj'!Q31 -> 270292.4733 | N94: ='Tab 5d Segment Hist and Proj'!R31 -> 307793.9131 | O94: ='Tab 5d Segment Hist and Proj'!S31 -> 322612.8662 | P94: ='Tab 5d Segment Hist and Proj'!T31 -> 289401.1313 | Q94: ='Tab 5d Segment Hist and Proj'!U31 -> 305238.9452
C96: Cost to Income Without Allocated Cost | H96: ='Tab 5d Segment Hist and Proj'!L33 -> 0.4124058718 | I96: ='Tab 5d Segment Hist and Proj'!M33 -> 0.3957554571 | J96: ='Tab 5d Segment Hist and Proj'!N33 -> 0.3994390394 | K96: ='Tab 5d Segment Hist and Proj'!O33 -> 0.334831133 | L96: ='Tab 5d Segment Hist and Proj'!P33 -> 0.3734163355 | M96: ='Tab 5d Segment Hist and Proj'!Q33 -> 0.3614911229 | N96: ='Tab 5d Segment Hist and Proj'!R33 -> 0.4026205311 | O96: ='Tab 5d Segment Hist and Proj'!S33 -> 0.3993095446 | P96: ='Tab 5d Segment Hist and Proj'!T33 -> 0.3224935291 | Q96: ='Tab 5d Segment Hist and Proj'!U33 -> 0.3171798625
C97: Cost to Income With Allocated Cost | H97: ='Tab 5d Segment Hist and Proj'!L34 -> 0.6297479437 | I97: ='Tab 5d Segment Hist and Proj'!M34 -> 0.5951252414 | J97: ='Tab 5d Segment Hist and Proj'!N34 -> 0.5866830405 | K97: ='Tab 5d Segment Hist and Proj'!O34 -> 0.5669803668 | L97: ='Tab 5d Segment Hist and Proj'!P34 -> 0.609570649 | M97: ='Tab 5d Segment Hist and Proj'!Q34 -> 0.6312185713 | N97: ='Tab 5d Segment Hist and Proj'!R34 -> 0.6651460166 | O97: ='Tab 5d Segment Hist and Proj'!S34 -> 0.7021209633 | P97: ='Tab 5d Segment Hist and Proj'!T34 -> 0.6168310441 | Q97: ='Tab 5d Segment Hist and Proj'!U34 -> 0.6089436543 | R97: =Q97 -> 0.6089436543 | S97: =R97 -> 0.6089436543 | T97: 0.6089436543 | U97: 0.6089436543 | V97: 0.6089436543 | W97: 0.6089436543 | X97: 0.6089436543 | Y97: 0.6089436543 | Z97: 0.6089436543
C99: Net Margin, Fee and Other Revenue | H99: ='Tab 5d Segment Hist and Proj'!L36 -> 263696.918 | I99: ='Tab 5d Segment Hist and Proj'!M36 -> 310156.8735 | J99: ='Tab 5d Segment Hist and Proj'!N36 -> 364239.6938 | K99: ='Tab 5d Segment Hist and Proj'!O36 -> 394958.7693 | L99: ='Tab 5d Segment Hist and Proj'!P36 -> 340391.1077 | M99: ='Tab 5d Segment Hist and Proj'!Q36 -> 428207.416 | N99: ='Tab 5d Segment Hist and Proj'!R36 -> 462746.3826 | O99: ='Tab 5d Segment Hist and Proj'!S36 -> 459483.3128 | P99: ='Tab 5d Segment Hist and Proj'!T36 -> 469174.0697 | Q99: ='Tab 5d Segment Hist and Proj'!U36 -> 501259.7521
C100: Growth in Net Margin, Fee and Other Revenue | H100: ='Tab 5d Segment Hist and Proj'!L37 -> 0.3245661858 | I100: ='Tab 5d Segment Hist and Proj'!M37 -> 0.1761869494 | J100: ='Tab 5d Segment Hist and Proj'!N37 -> 0.1743724706 | K100: ='Tab 5d Segment Hist and Proj'!O37 -> 0.08433752837 | L100: ='Tab 5d Segment Hist and Proj'!P37 -> -0.1381604001 | M100: ='Tab 5d Segment Hist and Proj'!Q37 -> 0.2579864935 | N100: ='Tab 5d Segment Hist and Proj'!R37 -> 0.08065943124 | O100: ='Tab 5d Segment Hist and Proj'!S37 -> -0.007051529644 | P100: ='Tab 5d Segment Hist and Proj'!T37 -> 0.02109055232 | Q100: ='Tab 5d Segment Hist and Proj'!U37 -> 0.0683875869
C101: Index of Income Growth | H101: ='Tab 5d Segment Hist and Proj'!L38 -> 1 | I101: ='Tab 5d Segment Hist and Proj'!M38 -> 1.176186949 | J101: ='Tab 5d Segment Hist and Proj'!N38 -> 1.381281574 | K101: ='Tab 5d Segment Hist and Proj'!O38 -> 1.497775447 | L101: ='Tab 5d Segment Hist and Proj'!P38 -> 1.290842192 | M101: ='Tab 5d Segment Hist and Proj'!Q38 -> 1.623862043 | N101: ='Tab 5d Segment Hist and Proj'!R38 -> 1.754841832 | O101: ='Tab 5d Segment Hist and Proj'!S38 -> 1.742467513 | P101: ='Tab 5d Segment Hist and Proj'!T38 -> 1.779217115 | Q101: ='Tab 5d Segment Hist and Proj'!U38 -> 1.90089348
C103: Total Operating Expense | H103: ='Tab 5d Segment Hist and Proj'!L40 -> 166062.5918 | I103: ='Tab 5d Segment Hist and Proj'!M40 -> 184582.1842 | J103: ='Tab 5d Segment Hist and Proj'!N40 -> 213693.251 | K103: ='Tab 5d Segment Hist and Proj'!O40 -> 223933.8679 | L103: ='Tab 5d Segment Hist and Proj'!P40 -> 207492.4284 | M103: ='Tab 5d Segment Hist and Proj'!Q40 -> 270292.4733 | N103: ='Tab 5d Segment Hist and Proj'!R40 -> 307793.9131 | O103: ='Tab 5d Segment Hist and Proj'!S40 -> 322612.8662 | P103: ='Tab 5d Segment Hist and Proj'!T40 -> 289401.1313 | Q103: ='Tab 5d Segment Hist and Proj'!U40 -> 305238.9452
C104: Growth Rate | H104: ='Tab 5d Segment Hist and Proj'!L41 -> FALSE | I104: ='Tab 5d Segment Hist and Proj'!M41 -> 0.1115217592 | J104: ='Tab 5d Segment Hist and Proj'!N41 -> 0.1577133076 | K104: ='Tab 5d Segment Hist and Proj'!O41 -> 0.04792204158 | L104: ='Tab 5d Segment Hist and Proj'!P41 -> -0.07342095951 | M104: ='Tab 5d Segment Hist and Proj'!Q41 -> 0.3026618627 | N104: ='Tab 5d Segment Hist and Proj'!R41 -> 0.1387439292 | O104: ='Tab 5d Segment Hist and Proj'!S41 -> 0.048145699 | P104: ='Tab 5d Segment Hist and Proj'!T41 -> -0.1029460955 | Q104: ='Tab 5d Segment Hist and Proj'!U41 -> 0.05472616453
C105: Index of Expense Growth | H105: ='Tab 5d Segment Hist and Proj'!L42 -> 0 | I105: ='Tab 5d Segment Hist and Proj'!M42 -> 0 | J105: ='Tab 5d Segment Hist and Proj'!N42 -> 0 | K105: ='Tab 5d Segment Hist and Proj'!O42 -> 0 | L105: ='Tab 5d Segment Hist and Proj'!P42 -> 0 | M105: ='Tab 5d Segment Hist and Proj'!Q42 -> 0 | N105: ='Tab 5d Segment Hist and Proj'!R42 -> 0 | O105: ='Tab 5d Segment Hist and Proj'!S42 -> 0 | P105: ='Tab 5d Segment Hist and Proj'!T42 -> 0 | Q105: ='Tab 5d Segment Hist and Proj'!U42 -> 0
C107: Expenses Including Impairment from Summary | H107: ='Tab 5d Segment Hist and Proj'!L44 -> 157704.0647 | I107: ='Tab 5d Segment Hist and Proj'!M44 -> 173056.1879 | J107: ='Tab 5d Segment Hist and Proj'!N44 -> 213271.7645 | K107: ='Tab 5d Segment Hist and Proj'!O44 -> 244062.6114 | L107: ='Tab 5d Segment Hist and Proj'!P44 -> 247222.4309 | M107: ='Tab 5d Segment Hist and Proj'!Q44 -> 273392.5623 | N107: ='Tab 5d Segment Hist and Proj'!R44 -> 305113.8077 | O107: ='Tab 5d Segment Hist and Proj'!S44 -> 329228.2873 | P107: ='Tab 5d Segment Hist and Proj'!T44 -> 306153.1768 | Q107: ='Tab 5d Segment Hist and Proj'!U44 -> 0
C108: Expenses Including Impairment from Detail | H108: ='Tab 5d Segment Hist and Proj'!L45 -> 168298.6147 | I108: ='Tab 5d Segment Hist and Proj'!M45 -> 184802.6461 | J108: ='Tab 5d Segment Hist and Proj'!N45 -> 225805.279 | K108: ='Tab 5d Segment Hist and Proj'!O45 -> 258314.5232 | L108: ='Tab 5d Segment Hist and Proj'!P45 -> 262021.8253 | M108: ='Tab 5d Segment Hist and Proj'!Q45 -> 289450.1577 | N108: ='Tab 5d Segment Hist and Proj'!R45 -> 321672.1044 | O108: ='Tab 5d Segment Hist and Proj'!S45 -> 350909.4507 | P108: ='Tab 5d Segment Hist and Proj'!T45 -> 327067.1986 | Q108: ='Tab 5d Segment Hist and Proj'!U45 -> 344550.2768
C109: Growth Rate | H109: ='Tab 5d Segment Hist and Proj'!L46 -> 0.05486562268 | I109: ='Tab 5d Segment Hist and Proj'!M46 -> 0.09806397676 | J109: ='Tab 5d Segment Hist and Proj'!N46 -> 0.2218725419 | K109: ='Tab 5d Segment Hist and Proj'!O46 -> 0.1439702577 | L109: ='Tab 5d Segment Hist and Proj'!P46 -> 0.01435189214 | M109: ='Tab 5d Segment Hist and Proj'!Q46 -> 0.1046795713 | N109: ='Tab 5d Segment Hist and Proj'!R46 -> 0.111321227 | O109: ='Tab 5d Segment Hist and Proj'!S46 -> 0.09089176801 | P109: ='Tab 5d Segment Hist and Proj'!T46 -> -0.06794417207 | Q109: ='Tab 5d Segment Hist and Proj'!U46 -> 0.0534540861
C110: Index of Expense with Impairment Growth | H110: ='Tab 5d Segment Hist and Proj'!L47 -> 1.054865623 | I110: ='Tab 5d Segment Hist and Proj'!M47 -> 1.158309941 | J110: ='Tab 5d Segment Hist and Proj'!N47 -> 1.415307111 | K110: ='Tab 5d Segment Hist and Proj'!O47 -> 1.619069241 | L110: ='Tab 5d Segment Hist and Proj'!P47 -> 1.642305948 | M110: ='Tab 5d Segment Hist and Proj'!Q47 -> 1.814221831 | N110: ='Tab 5d Segment Hist and Proj'!R47 -> 2.016183231 | O110: ='Tab 5d Segment Hist and Proj'!S47 -> 2.199437689 | P110: ='Tab 5d Segment Hist and Proj'!T47 -> 2.049998717 | Q110: ='Tab 5d Segment Hist and Proj'!U47 -> 2.159579525
C112: Loans | H112: ='Tab 5d Segment Hist and Proj'!L49 ->  | I112: ='Tab 5d Segment Hist and Proj'!M49 -> 1682950.073 | J112: ='Tab 5d Segment Hist and Proj'!N49 -> 2775264.01 | K112: ='Tab 5d Segment Hist and Proj'!O49 -> 3153951.481 | L112: ='Tab 5d Segment Hist and Proj'!P49 -> 3230085.968 | M112: ='Tab 5d Segment Hist and Proj'!Q49 -> 3576965.559 | N112: ='Tab 5d Segment Hist and Proj'!R49 -> 3833637.633 | O112: ='Tab 5d Segment Hist and Proj'!S49 -> 3940122.914 | P112: ='Tab 5d Segment Hist and Proj'!T49 -> 3976631.735 | Q112: ='Tab 5d Segment Hist and Proj'!U49 -> 3866046.54
C113: Other Assets | H113: ='Tab 5d Segment Hist and Proj'!L50 ->  | I113: ='Tab 5d Segment Hist and Proj'!M50 -> 2840156.185 | J113: ='Tab 5d Segment Hist and Proj'!N50 -> 3287043.436 | K113: ='Tab 5d Segment Hist and Proj'!O50 -> 3596405.181 | L113: ='Tab 5d Segment Hist and Proj'!P50 -> 3827402.766 | M113: ='Tab 5d Segment Hist and Proj'!Q50 -> 3867118.791 | N113: ='Tab 5d Segment Hist and Proj'!R50 -> 3712295.732 | O113: ='Tab 5d Segment Hist and Proj'!S50 -> 3847077.199 | P113: ='Tab 5d Segment Hist and Proj'!T50 -> 3760418.783 | Q113: ='Tab 5d Segment Hist and Proj'!U50 -> 4605991.901
C115: Deposits | H115: ='Tab 5d Segment Hist and Proj'!L52 -> 2148246.526 | I115: ='Tab 5d Segment Hist and Proj'!M52 -> 2220662.03 | J115: ='Tab 5d Segment Hist and Proj'!N52 -> 3610991.189 | K115: ='Tab 5d Segment Hist and Proj'!O52 -> 3762046.407 | L115: ='Tab 5d Segment Hist and Proj'!P52 -> 4093053.63 | M115: ='Tab 5d Segment Hist and Proj'!Q52 -> 4421492.478 | N115: ='Tab 5d Segment Hist and Proj'!R52 -> 4719740.311 | O115: ='Tab 5d Segment Hist and Proj'!S52 -> 4809466.885 | P115: ='Tab 5d Segment Hist and Proj'!T52 -> 4978200.489 | Q115: ='Tab 5d Segment Hist and Proj'!U52 -> 5060704.533
C116: Deposit Growth | I116: =I115/H115-1 -> 0.03370912212 | J116: =J115/I115-1 -> 0.6260876889 | K116: 0.04183206518 | L116: 0.08798594871 | M116: 0.08024298671 | N116: 0.06745410855 | O116: 0.0190109132 | P116: 0.03508363996 | Q116: 0.0165730657
C117: Other Liabilities | H117: ='Tab 5d Segment Hist and Proj'!L53 -> 1565433.684 | I117: ='Tab 5d Segment Hist and Proj'!M53 -> 1843188.001 | J117: ='Tab 5d Segment Hist and Proj'!N53 -> 1868979.902 | K117: ='Tab 5d Segment Hist and Proj'!O53 -> 2258748.421 | L117: ='Tab 5d Segment Hist and Proj'!P53 -> 2366580.476 | M117: ='Tab 5d Segment Hist and Proj'!Q53 -> 2395701.326 | N117: ='Tab 5d Segment Hist and Proj'!R53 -> 2282423.904 | O117: ='Tab 5d Segment Hist and Proj'!S53 -> 2392460.291 | P117: ='Tab 5d Segment Hist and Proj'!T53 -> 2158343.504 | Q117: ='Tab 5d Segment Hist and Proj'!U53 -> 2843999.55
C119: Loan to Deposits | H119: ='Tab 5d Segment Hist and Proj'!L55 -> FALSE | I119: ='Tab 5d Segment Hist and Proj'!M55 -> 0.7578596156 | J119: ='Tab 5d Segment Hist and Proj'!N55 -> 0.7685601723 | K119: ='Tab 5d Segment Hist and Proj'!O55 -> 0.8383605995 | L119: ='Tab 5d Segment Hist and Proj'!P55 -> 0.7891628746 | M119: ='Tab 5d Segment Hist and Proj'!Q55 -> 0.8089950569 | N119: ='Tab 5d Segment Hist and Proj'!R55 -> 0.8122560523 | O119: ='Tab 5d Segment Hist and Proj'!S55 -> 0.8192431736 | P119: ='Tab 5d Segment Hist and Proj'!T55 -> 0.7988090764 | Q119: ='Tab 5d Segment Hist and Proj'!U55 -> 0.7639344513
B121: Wealth Management
H122: =H51 -> 2016 | I122: 2017 | J122: 2018 | K122: 2019 | L122: 2020 | M122: 2021 | N122: 2022 | O122: 2023 | P122: 2024 | Q122: 2025 | R122: 2026 | S122: 2027 | T122: 2028 | U122: 2029 | V122: 2030 | W122: 2031 | X122: 2032 | Y122: 2033 | Z122: 2034
C123: Terminal Period | F123: =YEAR('Tab 1 - Assumptions'!F45) -> 2031 | H123: =H122=$F$123 -> FALSE | I123: =I122=$F$123 -> FALSE | J123: FALSE | K123: FALSE | L123: FALSE | M123: FALSE | N123: FALSE | O123: FALSE | P123: FALSE | Q123: FALSE | R123: FALSE | S123: FALSE | T123: FALSE | U123: FALSE | V123: FALSE | W123: TRUE | X123: FALSE | Y123: FALSE | Z123: FALSE
C124: Explicit Period | F124: =F53 -> 2026 | H124: =AND(H122>=$F$124,H122<=$F$123) -> FALSE | I124: =AND(I122>=$F$124,I122<=$F$123) -> FALSE | J124: FALSE | K124: FALSE | L124: FALSE | M124: FALSE | N124: FALSE | O124: FALSE | P124: FALSE | Q124: FALSE | R124: TRUE | S124: TRUE | T124: TRUE | U124: TRUE | V124: TRUE | W124: TRUE | X124: FALSE | Y124: FALSE | Z124: FALSE
C126: Net Margin, Fee and Other Revenue | H126: ='Tab 5d Segment Hist and Proj'!L59 -> 59159.22343 | I126: ='Tab 5d Segment Hist and Proj'!M59 -> 64539.31914 | J126: ='Tab 5d Segment Hist and Proj'!N59 -> 93422.1488 | K126: ='Tab 5d Segment Hist and Proj'!O59 -> 104951.6117 | L126: ='Tab 5d Segment Hist and Proj'!P59 -> 79718.56576 | M126: ='Tab 5d Segment Hist and Proj'!Q59 -> 116861.2138 | N126: ='Tab 5d Segment Hist and Proj'!R59 -> 105631.9443 | O126: ='Tab 5d Segment Hist and Proj'!S59 -> 100587.3607 | P126: ='Tab 5d Segment Hist and Proj'!T59 -> 62546.15485 | Q126: ='Tab 5d Segment Hist and Proj'!U59 -> 93024.00827 | R126: ='Tab 5d Segment Hist and Proj'!V59 -> 0 | S126: ='Tab 5d Segment Hist and Proj'!W59 -> 0 | T126: ='Tab 5d Segment Hist and Proj'!X59 -> 0 | U126: ='Tab 5d Segment Hist and Proj'!Y59 -> 0 | V126: ='Tab 5d Segment Hist and Proj'!Z59 -> 0 | W126: ='Tab 5d Segment Hist and Proj'!AA59 -> 0 | X126: ='Tab 5d Segment Hist and Proj'!AB59 -> 0 | Y126: ='Tab 5d Segment Hist and Proj'!AC59 -> 0 | Z126: ='Tab 5d Segment Hist and Proj'!AD59 -> 0
C127: Credit Impairment | H127: ='Tab 5d Segment Hist and Proj'!L60 -> 167.1449803 | I127: ='Tab 5d Segment Hist and Proj'!M60 -> -55.62740275 | J127: ='Tab 5d Segment Hist and Proj'!N60 -> -2107.685992 | K127: ='Tab 5d Segment Hist and Proj'!O60 -> 2457.428201 | L127: ='Tab 5d Segment Hist and Proj'!P60 -> 2227.932777 | M127: ='Tab 5d Segment Hist and Proj'!Q60 -> -1539.808735 | N127: ='Tab 5d Segment Hist and Proj'!R60 -> 3800.626655 | O127: ='Tab 5d Segment Hist and Proj'!S60 -> 588.6302098 | P127: ='Tab 5d Segment Hist and Proj'!T60 -> -2931.458101 | Q127: ='Tab 5d Segment Hist and Proj'!U60 -> -5777.416874 | R127: ='Tab 5d Segment Hist and Proj'!V60 -> 0 | S127: ='Tab 5d Segment Hist and Proj'!W60 -> 0 | T127: ='Tab 5d Segment Hist and Proj'!X60 -> 0 | U127: ='Tab 5d Segment Hist and Proj'!Y60 -> 0 | V127: ='Tab 5d Segment Hist and Proj'!Z60 -> 0 | W127: ='Tab 5d Segment Hist and Proj'!AA60 -> 0 | X127: ='Tab 5d Segment Hist and Proj'!AB60 -> 0 | Y127: ='Tab 5d Segment Hist and Proj'!AC60 -> 0 | Z127: ='Tab 5d Segment Hist and Proj'!AD60 -> 0
C128: Direct Operating Expenses | H128: ='Tab 5d Segment Hist and Proj'!L61 -> -18418.6617 | I128: ='Tab 5d Segment Hist and Proj'!M61 -> -18600.64567 | J128: ='Tab 5d Segment Hist and Proj'!N61 -> -22935.42847 | K128: ='Tab 5d Segment Hist and Proj'!O61 -> -33660.29002 | L128: ='Tab 5d Segment Hist and Proj'!P61 -> -38217.08071 | M128: ='Tab 5d Segment Hist and Proj'!Q61 -> -39010.66766 | N128: ='Tab 5d Segment Hist and Proj'!R61 -> -49053.17457 | O128: ='Tab 5d Segment Hist and Proj'!S61 -> -46777.70296 | P128: ='Tab 5d Segment Hist and Proj'!T61 -> -47217.68702 | Q128: ='Tab 5d Segment Hist and Proj'!U61 -> -43469.24729 | R128: ='Tab 5d Segment Hist and Proj'!V61 -> 0 | S128: ='Tab 5d Segment Hist and Proj'!W61 -> 0 | T128: ='Tab 5d Segment Hist and Proj'!X61 -> 0 | U128: ='Tab 5d Segment Hist and Proj'!Y61 -> 0 | V128: ='Tab 5d Segment Hist and Proj'!Z61 -> 0 | W128: ='Tab 5d Segment Hist and Proj'!AA61 -> 0 | X128: ='Tab 5d Segment Hist and Proj'!AB61 -> 0 | Y128: ='Tab 5d Segment Hist and Proj'!AC61 -> 0 | Z128: ='Tab 5d Segment Hist and Proj'!AD61 -> 0
C129: Allocated Operating Expenses | H129: ='Tab 5d Segment Hist and Proj'!L62 -> 0 | I129: ='Tab 5d Segment Hist and Proj'!M62 -> 0 | J129: ='Tab 5d Segment Hist and Proj'!N62 -> 0 | K129: ='Tab 5d Segment Hist and Proj'!O62 -> 0 | L129: ='Tab 5d Segment Hist and Proj'!P62 -> 0 | M129: ='Tab 5d Segment Hist and Proj'!Q62 -> 0 | N129: ='Tab 5d Segment Hist and Proj'!R62 -> 0 | O129: ='Tab 5d Segment Hist and Proj'!S62 -> 0 | P129: ='Tab 5d Segment Hist and Proj'!T62 -> 0 | Q129: ='Tab 5d Segment Hist and Proj'!U62 -> 0 | R129: ='Tab 5d Segment Hist and Proj'!V62 -> 0 | S129: ='Tab 5d Segment Hist and Proj'!W62 -> 0 | T129: ='Tab 5d Segment Hist and Proj'!X62 -> 0 | U129: ='Tab 5d Segment Hist and Proj'!Y62 -> 0 | V129: ='Tab 5d Segment Hist and Proj'!Z62 -> 0 | W129: ='Tab 5d Segment Hist and Proj'!AA62 -> 0 | X129: ='Tab 5d Segment Hist and Proj'!AB62 -> 0 | Y129: ='Tab 5d Segment Hist and Proj'!AC62 -> 0 | Z129: ='Tab 5d Segment Hist and Proj'!AD62 -> 0
C130: Unadjusted Operating Income | H130: =SUM(H126:H129) -> 40907.70671 | I130: =SUM(I126:I129) -> 45883.04607 | J130: 68379.03434 | K130: 73748.74987 | L130: 43729.41782 | M130: 76310.73738 | N130: 60379.39634 | O130: 54398.28797 | P130: 12397.00973 | Q130: 43777.3441 | R130: 0 | S130: 0 | T130: 0 | U130: 0 | V130: 0 | W130: 0 | X130: 0 | Y130: 0 | Z130: 0
C131: Adjustment for Double Counting Etc | F131: ='Tab 1 - Assumptions'!F205 -> 0.444693369 | H131: =H130*$F$131 -> 18191.38592 | I131: =I130*$F$131 -> 20403.88634 | J131: 30407.70315 | K131: 32795.58004 | L131: 19446.18214 | M131: 33934.8789 | N131: 26850.31718 | O131: 24190.55795 | P131: 5512.868023 | Q131: 19467.49463 | R131: 0 | S131: 0 | T131: 0 | U131: 0 | V131: 0 | W131: 0 | X131: 0 | Y131: 0 | Z131: 0
C132: Net After Double Counting Adj | H132: =H130-H131 -> 22716.32079 | I132: =I130-I131 -> 25479.15973 | J132: 37971.33119 | K132: 40953.16983 | L132: 24283.23569 | M132: 42375.85848 | N132: 33529.07916 | O132: 30207.73003 | P132: 6884.141707 | Q132: 24309.84946 | R132: 0 | S132: 0 | T132: 0 | U132: 0 | V132: 0 | W132: 0 | X132: 0 | Y132: 0 | Z132: 0
C133: Income Tax | F133: ='Tab 1 - Assumptions'!F204 -> 0.1888052436 | H133: =H132*$F$133 -> 4288.960481 | I133: =I132*$F$133 -> 4810.59896 | J133: 7169.186434 | K133: 7732.173205 | L133: 4584.802229 | M133: 8000.784283 | N133: 6330.465959 | O133: 5703.377826 | P133: 1299.762052 | Q133: 4589.82705 | R133: 0 | S133: 0 | T133: 0 | U133: 0 | V133: 0 | W133: 0 | X133: 0 | Y133: 0 | Z133: 0
C134: Net Income | H134: =H132-H133 -> 18427.36031 | I134: 20668.56077 | J134: 30802.14476 | K134: 33220.99662 | L134: 19698.43346 | M134: 34375.0742 | N134: 27198.61321 | O134: 24504.3522 | P134: 5584.379655 | Q134: 19720.02241 | R134: =R158*AVERAGE(Q139:R139) -> 19847.72525 | S134: 20443.15701 | T134: 21056.45172 | U134: 21688.14527 | V134: 22338.78963 | W134: 23008.95332 | X134: 23699.22192 | Y134: 24410.19858 | Z134: 25142.50454
C135: Non-Controlling Interest | F135: ='Tab 1 - Assumptions'!F208 -> 0.3733712657 | H135: =H134*$F$135 -> 6880.246844 | I135: =I134*$F$135 -> 7717.046696 | J135: 11500.63577 | K135: 12403.76556 | L135: 7354.829032 | M135: 12834.66496 | N135: 10155.18064 | O135: 9149.220996 | P135: 2085.0469 | Q135: 7362.889729 | R135: 7410.5703 | S135: 7632.887408 | T135: 7861.874031 | U135: 8097.730252 | V135: 8340.662159 | W135: 8590.882024 | X135: 8848.608485 | Y135: 9114.066739 | Z135: 9387.488741
C136: Final Net Income to Shareholders | H136: =H134-H135 -> 11547.11347 | I136: =I134-I135 -> 12951.51408 | J136: 19301.50898 | K136: 20817.23107 | L136: 12343.60443 | M136: 21540.40924 | N136: 17043.43257 | O136: 15355.1312 | P136: 3499.332755 | Q136: 12357.13269 | R136: 12437.15496 | S136: 12810.2696 | T136: 13194.57769 | U136: 13590.41502 | V136: 13998.12747 | W136: 14418.0713 | X136: 14850.61344 | Y136: 15296.13184 | Z136: 15755.01579
C138: Segment Assets | H138: ='Tab 5d Segment Hist and Proj'!L$66 -> 1229877.833 | I138: ='Tab 5d Segment Hist and Proj'!M$66 -> 1461091.739 | J138: ='Tab 5d Segment Hist and Proj'!N$66 -> 1614872.649 | K138: ='Tab 5d Segment Hist and Proj'!O$66 -> 2005566.705 | L138: ='Tab 5d Segment Hist and Proj'!P$66 -> 2471678.748 | M138: ='Tab 5d Segment Hist and Proj'!Q$66 -> 2633950.703 | N138: ='Tab 5d Segment Hist and Proj'!R$66 -> 2756794.727 | O138: ='Tab 5d Segment Hist and Proj'!S$66 -> 2898263.127 | P138: ='Tab 5d Segment Hist and Proj'!T$66 -> 2874081.473 | Q138: ='Tab 5d Segment Hist and Proj'!U$66 -> 2882145.088
C139: Adjusted Segment Assets | F139: =Reconciliation!R39 -> 0.9046229352 | H139: =H138*$F$139 -> 1112575.696 | I139: =I138*$F$139 -> 1321737.098 | J139: 1460850.836 | K139: 1814281.639 | L139: 2235937.284 | M139: 2382732.216 | N139: 2493859.738 | O139: 2621835.297 | P139: 2599960.018 | Q139: 2607254.549 | R139: =Q139*(1+R140) -> 2685472.186 | S139: 2766036.351 | T139: 2849017.442 | U139: 2934487.965 | V139: 3022522.604 | W139: 3113198.282 | X139: 3206594.23 | Y139: 3302792.057 | Z139: 3401875.819
C140: Asset Growth | F140: 0.03 | I140: =I139/H139-1 -> 0.1879974578 | J140: 0.1052506873 | K140: 0.2419349016 | L140: 0.232409145 | M140: 0.06565252677 | N140: 0.04663869532 | O140: 0.05131626185 | P140: -0.008343498527 | Q140: 0.002805631902 | R140: =$F$140 -> 0.03 | S140: =$F$140 -> 0.03 | T140: 0.03 | U140: 0.03 | V140: 0.03 | W140: 0.03 | X140: 0.03 | Y140: 0.03 | Z140: 0.03
C141: Segment Liabilities | H141: ='Tab 5d Segment Hist and Proj'!L$67 -> 1010258.292 | I141: ='Tab 5d Segment Hist and Proj'!M$67 -> 1211550.49 | J141: ='Tab 5d Segment Hist and Proj'!N$67 -> 1365921.649 | K141: ='Tab 5d Segment Hist and Proj'!O$67 -> 1666785.623 | L141: ='Tab 5d Segment Hist and Proj'!P$67 -> 2136671.281 | M141: ='Tab 5d Segment Hist and Proj'!Q$67 -> 2265922.066 | N141: ='Tab 5d Segment Hist and Proj'!R$67 -> 2475507.451 | O141: ='Tab 5d Segment Hist and Proj'!S$67 -> 2582226.653 | P141: ='Tab 5d Segment Hist and Proj'!T$67 -> 2636515.009 | Q141: ='Tab 5d Segment Hist and Proj'!U$67 -> 2562905.654
C142: Adjusted Segment Liabilities | F142: ='Tab 1 - Assumptions'!F207 -> 0.9297137233 | H142: =H141*$F$142 -> 939250.9981 | I142: =I141*$F$142 -> 1126395.117 | J142: 1269916.102 | K142: 1549633.468 | L142: 1986492.612 | M142: 2106658.841 | N142: 2301513.249 | O142: 2400731.556 | P142: 2451204.185 | Q142: 2382768.558 | R142: =R139-R143 -> 2685472.186 | S142: 2766036.351 | T142: 2849017.442 | U142: 2934487.965 | V142: 3022522.604 | W142: 3113198.282 | X142: 3206594.23 | Y142: 3302792.057 | Z142: 3401875.819
C143: Segment Equity | H143: ='Tab 5d Segment Hist and Proj'!L68 -> 219619.5415 | I143: ='Tab 5d Segment Hist and Proj'!M68 -> 249541.2493 | J143: ='Tab 5d Segment Hist and Proj'!N68 -> 248951.0001 | K143: ='Tab 5d Segment Hist and Proj'!O68 -> 338781.0813 | L143: ='Tab 5d Segment Hist and Proj'!P68 -> 335007.4663 | M143: ='Tab 5d Segment Hist and Proj'!Q68 -> 368028.6369 | N143: ='Tab 5d Segment Hist and Proj'!R68 -> 281287.2764 | O143: ='Tab 5d Segment Hist and Proj'!S68 -> 316036.4741 | P143: ='Tab 5d Segment Hist and Proj'!T68 -> 237566.4641 | Q143: ='Tab 5d Segment Hist and Proj'!U68 -> 319239.4337
C144: Implied Equity | H144: =H139-H142 -> 173324.6976 | I144: =I139-I142 -> 195341.9809 | J144: 190934.7339 | K144: 264648.1714 | L144: 249444.6713 | M144: 276073.3755 | N144: 192346.4889 | O144: 221103.7412 | P144: 148755.8328 | Q144: 224485.991 | R144: =R139*R160 -> 295401.9404 | S144: =S139*S160 -> 304263.9986 | T144: 313391.9186 | U144: 322793.6761 | V144: 332477.4864 | W144: 342451.811 | X144: 352725.3653 | Y144: 363307.1263 | Z144: 374206.3401
C146: Opening Equity | H146: =G149 -> 0 | I146: =H149 -> 173324.6976 | J146: 195341.9809 | K146: 190934.7339 | L146: 264648.1714 | M146: 249444.6713 | N146: 276073.3755 | O146: 192346.4889 | P146: 221103.7412 | Q146: 148755.8328 | R146: 224485.991 | S146: 295401.9404 | T146: 304263.9986 | U146: 313391.9186 | V146: 322793.6761 | W146: 332477.4864 | X146: 342451.811 | Y146: 352725.3653 | Z146: 363307.1263
C147: Add: Income | H147: =H134 -> 18427.36031 | I147: =I134 -> 20668.56077 | J147: 30802.14476 | K147: 33220.99662 | L147: 19698.43346 | M147: 34375.0742 | N147: 27198.61321 | O147: 24504.3522 | P147: 5584.379655 | Q147: 19720.02241 | R147: 19847.72525 | S147: 20443.15701 | T147: 21056.45172 | U147: 21688.14527 | V147: 22338.78963 | W147: 23008.95332 | X147: 23699.22192 | Y147: 24410.19858 | Z147: 25142.50454
C148: Less: Net Dividend | H148: =H149-H146-H147 -> 154897.3373 | I148: =I149-I146-I147 -> 1348.72251 | J148: -35209.39174 | K148: 40492.4409 | L148: -34901.93357 | M148: -7746.370024 | N148: -110925.4997 | O148: 4252.900092 | P148: -77932.28805 | Q148: 56010.1358 | R148: 51068.22412 | S148: -11581.0988 | T148: -11928.53176 | U148: -12286.38772 | V148: -12654.97935 | W148: -13034.62873 | X148: -13425.66759 | Y148: -13828.43762 | Z148: -14243.29075
C149: Closing | H149: =H144 -> 173324.6976 | I149: =I144 -> 195341.9809 | J149: 190934.7339 | K149: 264648.1714 | L149: 249444.6713 | M149: 276073.3755 | N149: 192346.4889 | O149: 221103.7412 | P149: 148755.8328 | Q149: 224485.991 | R149: 295401.9404 | S149: 304263.9986 | T149: 313391.9186 | U149: 322793.6761 | V149: 332477.4864 | W149: 342451.811 | X149: 352725.3653 | Y149: 363307.1263 | Z149: 374206.3401
C150: Non-Controlling Equity | F150: ='Tab 1 - Assumptions'!F209 -> 0.2180946647 | H150: =H149*$F$150 -> 37801.1918 | I150: =I149*$F$150 -> 42603.04382 | J150: 41641.84676 | K150: 57718.3542 | L150: 54402.55194 | M150: 60210.13025 | N150: 41949.743 | O150: 48221.5463 | P150: 32442.85348 | Q150: 48959.19694 | R150: 64425.58714 | S150: 66358.35476 | T150: 68349.1054 | U150: 70399.57856 | V150: 72511.56592 | W150: 74686.91289 | X150: 76927.52028 | Y150: 79235.34589 | Z150: 81612.40627
C151: Common Equity to Shareholders | H151: =H149-H150 -> 135523.5058 | I151: =I149-I150 -> 152738.937 | J151: 149292.8871 | K151: 206929.8172 | L151: 195042.1193 | M151: 215863.2452 | N151: 150396.7459 | O151: 172882.1949 | P151: 116312.9793 | Q151: 175526.7941 | R151: 230976.3533 | S151: 237905.6439 | T151: 245042.8132 | U151: 252394.0976 | V151: 259965.9205 | W151: 267764.8981 | X151: 275797.8451 | Y151: 284071.7804 | Z151: 292593.9338
C153: Cash Flow over Explicit Period | H153: =H148*-1*H124*(1-$F$150) -> 0 | I153: =I148*-1*I124*(1-$F$150) -> 0 | J153: 0 | K153: 0 | L153: 0 | M153: 0 | N153: 0 | O153: 0 | P153: 0 | Q153: 0 | R153: -39930.51691 | S153: 9055.322941 | T153: 9326.982629 | U153: 9606.792108 | V153: 9894.995871 | W153: 10191.84575 | X153: 0 | Y153: 0 | Z153: 0
C154: Exit Period with Earnings Multiple | E154: =SUM(H154:XFD154) -> 100205.5955 | F154: ='Tab 1 - Assumptions'!H354 -> 6.95 | H154: =H123*$F$154*H136 -> 0 | I154: =I123*$F$154*I136 -> 0 | J154: 0 | K154: 0 | L154: 0 | M154: 0 | N154: 0 | O154: 0 | P154: 0 | Q154: 0 | R154: 0 | S154: 0 | T154: 0 | U154: 0 | V154: 0 | W154: 100205.5955 | X154: 0 | Y154: 0 | Z154: 0
C155: Exit Period with P/B Multiple | E155: =SUM(H155:XFD155) -> 174047.1838 | F155: =F90 -> 0.65 | H155: =H151*$F$155*H123 -> 0 | I155: =I151*$F$155*I123 -> 0 | J155: 0 | K155: 0 | L155: 0 | M155: 0 | N155: 0 | O155: 0 | P155: 0 | Q155: 0 | R155: 0 | S155: 0 | T155: 0 | U155: 0 | V155: 0 | W155: 174047.1838 | X155: 0 | Y155: 0 | Z155: 0
C158: Operating Income/Average Assets | F158: 0.0075 | H158: =H134/AVERAGE(G138:H138) -> 0.01498308191 | I158: =I134/AVERAGE(H139:I139) -> 0.016981023 | J158: 0.02213920673 | K158: 0.02028681092 | L158: 0.009727095662 | M158: 0.01488527127 | N158: 0.01115476278 | O158: 0.009580067628 | P158: 0.00213887344 | Q158: 0.007574115551 | R158: =$F$158 -> 0.0075 | S158: =$F$158 -> 0.0075 | T158: 0.0075 | U158: 0.0075 | V158: 0.0075 | W158: 0.0075 | X158: 0.0075 | Y158: 0.0075 | Z158: 0.0075
C159: Operating Income/Average Equity | H159: =H134/AVERAGE(G144:H144) -> 0.106316991 | I159: =I134/AVERAGE(H143:I143) -> 0.08810864496 | J159: 0.1235812384 | K159: 0.1130480968 | L159: 0.05847066866 | M159: 0.09779035257 | N159: 0.08377621015 | O159: 0.08204713835 | P159: 0.02017467492 | Q159: 0.07083266356 | R159: =R134/AVERAGE(Q144:R144) -> 0.07635386034 | S159: =S134/AVERAGE(R144:S144) -> 0.06818181818 | T159: 0.06818181818 | U159: 0.06818181818 | V159: 0.06818181818 | W159: 0.06818181818 | X159: 0.06818181818 | Y159: 0.06818181818 | Z159: 0.06818181818
C160: Equity to Assets | F160: 0.11 | H160: ='Tab 5d Segment Hist and Proj'!L72 -> 0.1785702088 | I160: ='Tab 5d Segment Hist and Proj'!M72 -> 0.1707909521 | J160: ='Tab 5d Segment Hist and Proj'!N72 -> 0.1541613825 | K160: ='Tab 5d Segment Hist and Proj'!O72 -> 0.1689203757 | L160: ='Tab 5d Segment Hist and Proj'!P72 -> 0.1355384338 | M160: ='Tab 5d Segment Hist and Proj'!Q72 -> 0.1397249525 | N160: ='Tab 5d Segment Hist and Proj'!R72 -> 0.1020341753 | O160: ='Tab 5d Segment Hist and Proj'!S72 -> 0.109043403 | P160: ='Tab 5d Segment Hist and Proj'!T72 -> 0.08265822188 | Q160: ='Tab 5d Segment Hist and Proj'!U72 -> 0.1107645257 | R160: =$F$160 -> 0.11 | S160: =$F$160 -> 0.11 | T160: 0.11 | U160: 0.11 | V160: 0.11 | W160: 0.11 | X160: 0.11 | Y160: 0.11 | Z160: 0.11
C162: Credit Impairment to Assets | H162: ='Tab 5d Segment Hist and Proj'!L74 -> -0.0001359037261 | I162: ='Tab 5d Segment Hist and Proj'!M74 -> 3.807249145e-05 | J162: ='Tab 5d Segment Hist and Proj'!N74 -> 0.001305171645 | K162: ='Tab 5d Segment Hist and Proj'!O74 -> -0.001225303649 | L162: ='Tab 5d Segment Hist and Proj'!P74 -> -0.0009013844454 | M162: ='Tab 5d Segment Hist and Proj'!Q74 -> 0.0005846004382 | N162: ='Tab 5d Segment Hist and Proj'!R74 -> -0.0013786397 | O162: ='Tab 5d Segment Hist and Proj'!S74 -> -0.0002030975739 | P162: ='Tab 5d Segment Hist and Proj'!T74 -> 0.001019963466 | Q162: ='Tab 5d Segment Hist and Proj'!U74 -> 0.002004554489 | R162: ='Tab 5d Segment Hist and Proj'!V74 -> 0 | S162: ='Tab 5d Segment Hist and Proj'!W74 -> 0 | T162: ='Tab 5d Segment Hist and Proj'!X74 -> 0 | U162: ='Tab 5d Segment Hist and Proj'!Y74 -> 0 | V162: ='Tab 5d Segment Hist and Proj'!Z74 -> 0 | W162: ='Tab 5d Segment Hist and Proj'!AA74 -> 0 | X162: ='Tab 5d Segment Hist and Proj'!AB74 -> 0 | Y162: ='Tab 5d Segment Hist and Proj'!AC74 -> 0 | Z162: ='Tab 5d Segment Hist and Proj'!AD74 -> 0
C164: Total Operating Costs Including Allocated Costs | H164: ='Tab 5d Segment Hist and Proj'!L76 -> 18418.6617 | I164: ='Tab 5d Segment Hist and Proj'!M76 -> 18600.64567 | J164: ='Tab 5d Segment Hist and Proj'!N76 -> 22935.42847 | K164: ='Tab 5d Segment Hist and Proj'!O76 -> 33660.29002 | L164: ='Tab 5d Segment Hist and Proj'!P76 -> 38217.08071 | M164: ='Tab 5d Segment Hist and Proj'!Q76 -> 39010.66766 | N164: ='Tab 5d Segment Hist and Proj'!R76 -> 49053.17457 | O164: ='Tab 5d Segment Hist and Proj'!S76 -> 46777.70296 | P164: ='Tab 5d Segment Hist and Proj'!T76 -> 47217.68702 | Q164: ='Tab 5d Segment Hist and Proj'!U76 -> 43469.24729 | R164: ='Tab 5d Segment Hist and Proj'!V76 -> 0 | S164: ='Tab 5d Segment Hist and Proj'!W76 -> 0 | T164: ='Tab 5d Segment Hist and Proj'!X76 -> 0 | U164: ='Tab 5d Segment Hist and Proj'!Y76 -> 0 | V164: ='Tab 5d Segment Hist and Proj'!Z76 -> 0 | W164: ='Tab 5d Segment Hist and Proj'!AA76 -> 0 | X164: ='Tab 5d Segment Hist and Proj'!AB76 -> 0 | Y164: ='Tab 5d Segment Hist and Proj'!AC76 -> 0 | Z164: ='Tab 5d Segment Hist and Proj'!AD76 -> 0
C166: Cost to Income Without Allocated Cost | H166: ='Tab 5d Segment Hist and Proj'!L78 -> 0.3113404915 | I166: ='Tab 5d Segment Hist and Proj'!M78 -> 0.288206413 | J166: ='Tab 5d Segment Hist and Proj'!N78 -> 0.2455031142 | K166: ='Tab 5d Segment Hist and Proj'!O78 -> 0.3207219925 | L166: ='Tab 5d Segment Hist and Proj'!P78 -> 0.4794000036 | M166: ='Tab 5d Segment Hist and Proj'!Q78 -> 0.3338204901 | N166: ='Tab 5d Segment Hist and Proj'!R78 -> 0.464378223 | O166: ='Tab 5d Segment Hist and Proj'!S78 -> 0.4650455348 | P166: ='Tab 5d Segment Hist and Proj'!T78 -> 0.7549254967 | Q166: ='Tab 5d Segment Hist and Proj'!U78 -> 0.4672906286 | R166: ='Tab 5d Segment Hist and Proj'!V78 -> 0 | S166: ='Tab 5d Segment Hist and Proj'!W78 -> 0 | T166: ='Tab 5d Segment Hist and Proj'!X78 -> 0 | U166: ='Tab 5d Segment Hist and Proj'!Y78 -> 0 | V166: ='Tab 5d Segment Hist and Proj'!Z78 -> 0 | W166: ='Tab 5d Segment Hist and Proj'!AA78 -> 0 | X166: ='Tab 5d Segment Hist and Proj'!AB78 -> 0 | Y166: ='Tab 5d Segment Hist and Proj'!AC78 -> 0 | Z166: ='Tab 5d Segment Hist and Proj'!AD78 -> 0
C167: Cost to Income With Allocated Cost | H167: ='Tab 5d Segment Hist and Proj'!L79 -> 0.3113404915 | I167: ='Tab 5d Segment Hist and Proj'!M79 -> 0.288206413 | J167: ='Tab 5d Segment Hist and Proj'!N79 -> 0.2455031142 | K167: ='Tab 5d Segment Hist and Proj'!O79 -> 0.3207219925 | L167: ='Tab 5d Segment Hist and Proj'!P79 -> 0.4794000036 | M167: ='Tab 5d Segment Hist and Proj'!Q79 -> 0.3338204901 | N167: ='Tab 5d Segment Hist and Proj'!R79 -> 0.464378223 | O167: ='Tab 5d Segment Hist and Proj'!S79 -> 0.4650455348 | P167: ='Tab 5d Segment Hist and Proj'!T79 -> 0.7549254967 | Q167: ='Tab 5d Segment Hist and Proj'!U79 -> 0.4672906286 | R167: ='Tab 5d Segment Hist and Proj'!V79 -> 0 | S167: ='Tab 5d Segment Hist and Proj'!W79 -> 0 | T167: ='Tab 5d Segment Hist and Proj'!X79 -> 0 | U167: ='Tab 5d Segment Hist and Proj'!Y79 -> 0 | V167: ='Tab 5d Segment Hist and Proj'!Z79 -> 0 | W167: ='Tab 5d Segment Hist and Proj'!AA79 -> 0 | X167: ='Tab 5d Segment Hist and Proj'!AB79 -> 0 | Y167: ='Tab 5d Segment Hist and Proj'!AC79 -> 0 | Z167: ='Tab 5d Segment Hist and Proj'!AD79 -> 0
H168: ='Tab 5d Segment Hist and Proj'!L80 -> 0 | I168: ='Tab 5d Segment Hist and Proj'!M80 -> 0 | J168: ='Tab 5d Segment Hist and Proj'!N80 -> 0 | K168: ='Tab 5d Segment Hist and Proj'!O80 -> 0 | L168: ='Tab 5d Segment Hist and Proj'!P80 -> 0 | M168: ='Tab 5d Segment Hist and Proj'!Q80 -> 0 | N168: ='Tab 5d Segment Hist and Proj'!R80 -> 0 | O168: ='Tab 5d Segment Hist and Proj'!S80 -> 0 | P168: ='Tab 5d Segment Hist and Proj'!T80 -> 0 | Q168: ='Tab 5d Segment Hist and Proj'!U80 -> 0 | R168: ='Tab 5d Segment Hist and Proj'!V80 -> 0 | S168: ='Tab 5d Segment Hist and Proj'!W80 -> 0 | T168: ='Tab 5d Segment Hist and Proj'!X80 -> 0 | U168: ='Tab 5d Segment Hist and Proj'!Y80 -> 0 | V168: ='Tab 5d Segment Hist and Proj'!Z80 -> 0 | W168: ='Tab 5d Segment Hist and Proj'!AA80 -> 0 | X168: ='Tab 5d Segment Hist and Proj'!AB80 -> 0 | Y168: ='Tab 5d Segment Hist and Proj'!AC80 -> 0 | Z168: ='Tab 5d Segment Hist and Proj'!AD80 -> 0
C169: Net Margin, Fee and Other Revenue | H169: ='Tab 5d Segment Hist and Proj'!L81 -> 59159.22343 | I169: ='Tab 5d Segment Hist and Proj'!M81 -> 64539.31914 | J169: ='Tab 5d Segment Hist and Proj'!N81 -> 93422.1488 | K169: ='Tab 5d Segment Hist and Proj'!O81 -> 104951.6117 | L169: ='Tab 5d Segment Hist and Proj'!P81 -> 79718.56576 | M169: ='Tab 5d Segment Hist and Proj'!Q81 -> 116861.2138 | N169: ='Tab 5d Segment Hist and Proj'!R81 -> 105631.9443 | O169: ='Tab 5d Segment Hist and Proj'!S81 -> 100587.3607 | P169: ='Tab 5d Segment Hist and Proj'!T81 -> 62546.15485 | Q169: ='Tab 5d Segment Hist and Proj'!U81 -> 93024.00827 | R169: ='Tab 5d Segment Hist and Proj'!V81 -> 0 | S169: ='Tab 5d Segment Hist and Proj'!W81 -> 0 | T169: ='Tab 5d Segment Hist and Proj'!X81 -> 0 | U169: ='Tab 5d Segment Hist and Proj'!Y81 -> 0 | V169: ='Tab 5d Segment Hist and Proj'!Z81 -> 0 | W169: ='Tab 5d Segment Hist and Proj'!AA81 -> 0 | X169: ='Tab 5d Segment Hist and Proj'!AB81 -> 0 | Y169: ='Tab 5d Segment Hist and Proj'!AC81 -> 0 | Z169: ='Tab 5d Segment Hist and Proj'!AD81 -> 0
C170: Growth in Net Margin, Fee and Other Revenue | I170: ='Tab 5d Segment Hist and Proj'!M82 -> 0.09094263578 | J170: ='Tab 5d Segment Hist and Proj'!N82 -> 0.4475229991 | K170: ='Tab 5d Segment Hist and Proj'!O82 -> 0.1234125209 | L170: ='Tab 5d Segment Hist and Proj'!P82 -> -0.2404255211 | M170: ='Tab 5d Segment Hist and Proj'!Q82 -> 0.4659221809 | N170: ='Tab 5d Segment Hist and Proj'!R82 -> -0.09609064595 | O170: ='Tab 5d Segment Hist and Proj'!S82 -> -0.04775623103 | P170: ='Tab 5d Segment Hist and Proj'!T82 -> -0.3781907151 | Q170: ='Tab 5d Segment Hist and Proj'!U82 -> 0.4872858051 | R170: ='Tab 5d Segment Hist and Proj'!V82 -> 0 | S170: ='Tab 5d Segment Hist and Proj'!W82 -> 0 | T170: ='Tab 5d Segment Hist and Proj'!X82 -> 0 | U170: ='Tab 5d Segment Hist and Proj'!Y82 -> 0 | V170: ='Tab 5d Segment Hist and Proj'!Z82 -> 0 | W170: ='Tab 5d Segment Hist and Proj'!AA82 -> 0 | X170: ='Tab 5d Segment Hist and Proj'!AB82 -> 0 | Y170: ='Tab 5d Segment Hist and Proj'!AC82 -> 0 | Z170: ='Tab 5d Segment Hist and Proj'!AD82 -> 0
C171: Index of Income Growth | H171: ='Tab 5d Segment Hist and Proj'!L83 -> 1 | I171: ='Tab 5d Segment Hist and Proj'!M83 -> 1.090942636 | J171: ='Tab 5d Segment Hist and Proj'!N83 -> 1.579164556 | K171: ='Tab 5d Segment Hist and Proj'!O83 -> 1.774053235 | L171: ='Tab 5d Segment Hist and Proj'!P83 -> 1.347525561 | M171: ='Tab 5d Segment Hist and Proj'!Q83 -> 1.97536761 | N171: ='Tab 5d Segment Hist and Proj'!R83 -> 1.78555326 | O171: ='Tab 5d Segment Hist and Proj'!S83 -> 1.700281966 | P171: ='Tab 5d Segment Hist and Proj'!T83 -> 1.057251113 | Q171: ='Tab 5d Segment Hist and Proj'!U83 -> 1.572434574 | R171: ='Tab 5d Segment Hist and Proj'!V83 -> 0 | S171: ='Tab 5d Segment Hist and Proj'!W83 -> 0 | T171: ='Tab 5d Segment Hist and Proj'!X83 -> 0 | U171: ='Tab 5d Segment Hist and Proj'!Y83 -> 0 | V171: ='Tab 5d Segment Hist and Proj'!Z83 -> 0 | W171: ='Tab 5d Segment Hist and Proj'!AA83 -> 0 | X171: ='Tab 5d Segment Hist and Proj'!AB83 -> 0 | Y171: ='Tab 5d Segment Hist and Proj'!AC83 -> 0 | Z171: ='Tab 5d Segment Hist and Proj'!AD83 -> 0
H172: ='Tab 5d Segment Hist and Proj'!L84 -> 0 | I172: ='Tab 5d Segment Hist and Proj'!M84 -> 0 | J172: ='Tab 5d Segment Hist and Proj'!N84 -> 0 | K172: ='Tab 5d Segment Hist and Proj'!O84 -> 0 | L172: ='Tab 5d Segment Hist and Proj'!P84 -> 0 | M172: ='Tab 5d Segment Hist and Proj'!Q84 -> 0 | N172: ='Tab 5d Segment Hist and Proj'!R84 -> 0 | O172: ='Tab 5d Segment Hist and Proj'!S84 -> 0 | P172: ='Tab 5d Segment Hist and Proj'!T84 -> 0 | Q172: ='Tab 5d Segment Hist and Proj'!U84 -> 0 | R172: ='Tab 5d Segment Hist and Proj'!V84 -> 0 | S172: ='Tab 5d Segment Hist and Proj'!W84 -> 0 | T172: ='Tab 5d Segment Hist and Proj'!X84 -> 0 | U172: ='Tab 5d Segment Hist and Proj'!Y84 -> 0 | V172: ='Tab 5d Segment Hist and Proj'!Z84 -> 0 | W172: ='Tab 5d Segment Hist and Proj'!AA84 -> 0 | X172: ='Tab 5d Segment Hist and Proj'!AB84 -> 0 | Y172: ='Tab 5d Segment Hist and Proj'!AC84 -> 0 | Z172: ='Tab 5d Segment Hist and Proj'!AD84 -> 0
C173: Total Operating Expense | H173: ='Tab 5d Segment Hist and Proj'!L85 -> 18418.6617 | I173: ='Tab 5d Segment Hist and Proj'!M85 -> 18600.64567 | J173: ='Tab 5d Segment Hist and Proj'!N85 -> 22935.42847 | K173: ='Tab 5d Segment Hist and Proj'!O85 -> 33660.29002 | L173: ='Tab 5d Segment Hist and Proj'!P85 -> 38217.08071 | M173: ='Tab 5d Segment Hist and Proj'!Q85 -> 39010.66766 | N173: ='Tab 5d Segment Hist and Proj'!R85 -> 49053.17457 | O173: ='Tab 5d Segment Hist and Proj'!S85 -> 46777.70296 | P173: ='Tab 5d Segment Hist and Proj'!T85 -> 47217.68702 | Q173: ='Tab 5d Segment Hist and Proj'!U85 -> 43469.24729 | R173: ='Tab 5d Segment Hist and Proj'!V85 -> 8 | S173: ='Tab 5d Segment Hist and Proj'!W85 -> 0 | T173: ='Tab 5d Segment Hist and Proj'!X85 -> 0 | U173: ='Tab 5d Segment Hist and Proj'!Y85 -> 0 | V173: ='Tab 5d Segment Hist and Proj'!Z85 -> 0 | W173: ='Tab 5d Segment Hist and Proj'!AA85 -> 0 | X173: ='Tab 5d Segment Hist and Proj'!AB85 -> 0 | Y173: ='Tab 5d Segment Hist and Proj'!AC85 -> 0 | Z173: ='Tab 5d Segment Hist and Proj'!AD85 -> 0
C174: Growth Rate | H174: ='Tab 5d Segment Hist and Proj'!L86 -> FALSE | I174: ='Tab 5d Segment Hist and Proj'!M86 -> 0.009880412058 | J174: ='Tab 5d Segment Hist and Proj'!N86 -> 0.233044749 | K174: ='Tab 5d Segment Hist and Proj'!O86 -> 0.4676111271 | L174: ='Tab 5d Segment Hist and Proj'!P86 -> 0.1353758595 | M174: ='Tab 5d Segment Hist and Proj'!Q86 -> 0.02076524252 | N174: ='Tab 5d Segment Hist and Proj'!R86 -> 0.2574297625 | O174: ='Tab 5d Segment Hist and Proj'!S86 -> -0.04638785624 | P174: ='Tab 5d Segment Hist and Proj'!T86 -> 0.009405849886 | Q174: ='Tab 5d Segment Hist and Proj'!U86 -> -0.07938634775 | R174: ='Tab 5d Segment Hist and Proj'!V86 -> 0 | S174: ='Tab 5d Segment Hist and Proj'!W86 -> 0 | T174: ='Tab 5d Segment Hist and Proj'!X86 -> 0 | U174: ='Tab 5d Segment Hist and Proj'!Y86 -> 0 | V174: ='Tab 5d Segment Hist and Proj'!Z86 -> 0 | W174: ='Tab 5d Segment Hist and Proj'!AA86 -> 0 | X174: ='Tab 5d Segment Hist and Proj'!AB86 -> 0 | Y174: ='Tab 5d Segment Hist and Proj'!AC86 -> 0 | Z174: ='Tab 5d Segment Hist and Proj'!AD86 -> 0
C175: Index of Expense Growth | H175: ='Tab 5d Segment Hist and Proj'!L87 -> 0 | I175: ='Tab 5d Segment Hist and Proj'!M87 -> 0 | J175: ='Tab 5d Segment Hist and Proj'!N87 -> 0 | K175: ='Tab 5d Segment Hist and Proj'!O87 -> 0 | L175: ='Tab 5d Segment Hist and Proj'!P87 -> 0 | M175: ='Tab 5d Segment Hist and Proj'!Q87 -> 0 | N175: ='Tab 5d Segment Hist and Proj'!R87 -> 0 | O175: ='Tab 5d Segment Hist and Proj'!S87 -> 0 | P175: ='Tab 5d Segment Hist and Proj'!T87 -> 0 | Q175: ='Tab 5d Segment Hist and Proj'!U87 -> 0 | R175: ='Tab 5d Segment Hist and Proj'!V87 -> 0 | S175: ='Tab 5d Segment Hist and Proj'!W87 -> 0 | T175: ='Tab 5d Segment Hist and Proj'!X87 -> 0 | U175: ='Tab 5d Segment Hist and Proj'!Y87 -> 0 | V175: ='Tab 5d Segment Hist and Proj'!Z87 -> 0
B177: Insurance Segment
H178: =H122 -> 2016 | I178: 2017 | J178: 2018 | K178: 2019 | L178: 2020 | M178: 2021 | N178: 2022 | O178: 2023 | P178: 2024 | Q178: 2025 | R178: 2026 | S178: 2027 | T178: 2028 | U178: 2029 | V178: 2030 | W178: 2031 | X178: 2032 | Y178: 2033 | Z178: 2034
C179: Terminal Period | F179: =YEAR('Tab 1 - Assumptions'!F47) -> 2031 | H179: =H178=$F$179 -> FALSE | I179: =I178=$F$179 -> FALSE | J179: FALSE | K179: FALSE | L179: FALSE | M179: FALSE | N179: FALSE | O179: FALSE | P179: FALSE | Q179: FALSE | R179: FALSE | S179: FALSE | T179: FALSE | U179: FALSE | V179: FALSE | W179: TRUE | X179: FALSE | Y179: FALSE | Z179: FALSE
C180: Explicit Period | F180: =F124 -> 2026 | H180: =AND(H178>=$F$180,H178<=$F$179) -> FALSE | I180: =AND(I178>=$F$180,I178<=$F$179) -> FALSE | J180: FALSE | K180: FALSE | L180: FALSE | M180: FALSE | N180: FALSE | O180: FALSE | P180: FALSE | Q180: FALSE | R180: TRUE | S180: TRUE | T180: TRUE | U180: TRUE | V180: TRUE | W180: TRUE | X180: FALSE | Y180: FALSE | Z180: FALSE
C182: Net Margin, Fee and Other Revenue | H182: ='Tab 5d Segment Hist and Proj'!L96 -> 100565.9421 | I182: ='Tab 5d Segment Hist and Proj'!M96 -> 103773.7974 | J182: ='Tab 5d Segment Hist and Proj'!N96 -> 103639.3007 | K182: ='Tab 5d Segment Hist and Proj'!O96 -> 251030.3862 | L182: ='Tab 5d Segment Hist and Proj'!P96 -> 386208.1602 | M182: ='Tab 5d Segment Hist and Proj'!Q96 -> 360250.3858 | N182: ='Tab 5d Segment Hist and Proj'!R96 -> 502267.1328 | O182: ='Tab 5d Segment Hist and Proj'!S96 -> 270069.8837 | P182: ='Tab 5d Segment Hist and Proj'!T96 -> 314139.023 | Q182: ='Tab 5d Segment Hist and Proj'!U96 -> 398230.435 | R182: ='Tab 5d Segment Hist and Proj'!V96 -> 0 | S182: ='Tab 5d Segment Hist and Proj'!W96 -> 0 | T182: ='Tab 5d Segment Hist and Proj'!X96 -> 0 | U182: ='Tab 5d Segment Hist and Proj'!Y96 -> 0 | V182: ='Tab 5d Segment Hist and Proj'!Z96 -> 0 | W182: ='Tab 5d Segment Hist and Proj'!AA96 -> 0 | X182: ='Tab 5d Segment Hist and Proj'!AB96 -> 0 | Y182: ='Tab 5d Segment Hist and Proj'!AC96 -> 0 | Z182: ='Tab 5d Segment Hist and Proj'!AD96 -> 0
C183: Credit Impairment | H183: ='Tab 5d Segment Hist and Proj'!L97 -> 0 | I183: ='Tab 5d Segment Hist and Proj'!M97 -> 0 | J183: ='Tab 5d Segment Hist and Proj'!N97 -> 0 | K183: ='Tab 5d Segment Hist and Proj'!O97 -> 0 | L183: ='Tab 5d Segment Hist and Proj'!P97 -> 0 | M183: ='Tab 5d Segment Hist and Proj'!Q97 -> 0 | N183: ='Tab 5d Segment Hist and Proj'!R97 -> 0 | O183: ='Tab 5d Segment Hist and Proj'!S97 -> 0 | P183: ='Tab 5d Segment Hist and Proj'!T97 -> 0 | Q183: ='Tab 5d Segment Hist and Proj'!U97 -> 0 | R183: ='Tab 5d Segment Hist and Proj'!V97 -> 0 | S183: ='Tab 5d Segment Hist and Proj'!W97 -> 0 | T183: ='Tab 5d Segment Hist and Proj'!X97 -> 0 | U183: ='Tab 5d Segment Hist and Proj'!Y97 -> 0 | V183: ='Tab 5d Segment Hist and Proj'!Z97 -> 0 | W183: ='Tab 5d Segment Hist and Proj'!AA97 -> 0 | X183: ='Tab 5d Segment Hist and Proj'!AB97 -> 0 | Y183: ='Tab 5d Segment Hist and Proj'!AC97 -> 0 | Z183: ='Tab 5d Segment Hist and Proj'!AD97 -> 0
C184: Direct Operating Expenses | H184: ='Tab 5d Segment Hist and Proj'!L98 -> -55904.02868 | I184: ='Tab 5d Segment Hist and Proj'!M98 -> -58397.29483 | J184: ='Tab 5d Segment Hist and Proj'!N98 -> -24550.8675 | K184: ='Tab 5d Segment Hist and Proj'!O98 -> -93945.24591 | L184: ='Tab 5d Segment Hist and Proj'!P98 -> -172727.9686 | M184: ='Tab 5d Segment Hist and Proj'!Q98 -> -193240.9091 | N184: ='Tab 5d Segment Hist and Proj'!R98 -> -219343.1623 | O184: ='Tab 5d Segment Hist and Proj'!S98 -> -114663.817 | P184: ='Tab 5d Segment Hist and Proj'!T98 -> -113258.0508 | Q184: ='Tab 5d Segment Hist and Proj'!U98 -> -86349.66749 | R184: ='Tab 5d Segment Hist and Proj'!V98 -> 0 | S184: ='Tab 5d Segment Hist and Proj'!W98 -> 0 | T184: ='Tab 5d Segment Hist and Proj'!X98 -> 0 | U184: ='Tab 5d Segment Hist and Proj'!Y98 -> 0 | V184: ='Tab 5d Segment Hist and Proj'!Z98 -> 0 | W184: ='Tab 5d Segment Hist and Proj'!AA98 -> 0 | X184: ='Tab 5d Segment Hist and Proj'!AB98 -> 0 | Y184: ='Tab 5d Segment Hist and Proj'!AC98 -> 0 | Z184: ='Tab 5d Segment Hist and Proj'!AD98 -> 0
C185: Allocated Operating Expenses | H185: ='Tab 5d Segment Hist and Proj'!L99 -> 0 | I185: ='Tab 5d Segment Hist and Proj'!M99 -> 0 | J185: ='Tab 5d Segment Hist and Proj'!N99 -> 0 | K185: ='Tab 5d Segment Hist and Proj'!O99 -> 0 | L185: ='Tab 5d Segment Hist and Proj'!P99 -> 0 | M185: ='Tab 5d Segment Hist and Proj'!Q99 -> 0 | N185: ='Tab 5d Segment Hist and Proj'!R99 -> 0 | O185: ='Tab 5d Segment Hist and Proj'!S99 -> 0 | P185: ='Tab 5d Segment Hist and Proj'!T99 -> 0 | Q185: ='Tab 5d Segment Hist and Proj'!U99 -> 0 | R185: ='Tab 5d Segment Hist and Proj'!V99 -> 0 | S185: ='Tab 5d Segment Hist and Proj'!W99 -> 0 | T185: ='Tab 5d Segment Hist and Proj'!X99 -> 0 | U185: ='Tab 5d Segment Hist and Proj'!Y99 -> 0 | V185: ='Tab 5d Segment Hist and Proj'!Z99 -> 0 | W185: ='Tab 5d Segment Hist and Proj'!AA99 -> 0 | X185: ='Tab 5d Segment Hist and Proj'!AB99 -> 0 | Y185: ='Tab 5d Segment Hist and Proj'!AC99 -> 0 | Z185: ='Tab 5d Segment Hist and Proj'!AD99 -> 0
C186: Net Before Adjustments | H186: =SUM(H182:H185) -> 44661.91345 | I186: =SUM(I182:I185) -> 45376.5026 | J186: 79088.43325 | K186: 157085.1402 | L186: 213480.1917 | M186: 167009.4767 | N186: 282923.9705 | O186: 155406.0667 | P186: 200880.9722 | Q186: 311880.7675 | R186: 0 | S186: 0 | T186: 0 | U186: 0 | V186: 0 | W186: 0 | X186: 0 | Y186: 0 | Z186: 0
C187: Adjustment for Double Counting Etc. | F187: ='Tab 1 - Assumptions'!F205 -> 0.444693369 | H187: =H186*$F$187 -> 19860.85676 | I187: =I186*$F$187 -> 20178.62982 | J187: 35170.10183 | K187: 69854.72024 | L187: 94933.22565 | M187: 74268.00684 | N187: 125814.4136 | O187: 69108.04737 | P187: 89330.43628 | Q187: 138691.3092 | R187: 0 | S187: 0 | T187: 0 | U187: 0 | V187: 0 | W187: 0 | X187: 0 | Y187: 0 | Z187: 0
C188: Before Tax Income | H188: =H186-H187 -> 24801.05669 | I188: =I186-I187 -> 25197.87279 | J188: 43918.33141 | K188: 87230.42 | L188: 118546.966 | M188: 92741.46983 | N188: 157109.5569 | O188: 86298.01933 | P188: 111550.5359 | Q188: 173189.4583 | R188: 0 | S188: 0 | T188: 0 | U188: 0 | V188: 0 | W188: 0 | X188: 0 | Y188: 0 | Z188: 0
C189: Income Tax | F189: ='Tab 1 - Assumptions'!F204 -> 0.1888052436 | H189: =H188*$F$189 -> 4682.569549 | I189: =I188*$F$189 -> 4757.490509 | J189: 8292.01126 | K189: 16469.5607 | L189: 22382.28879 | M189: 17510.0758 | N189: 29663.10816 | O189: 16293.51856 | P189: 21061.3261 | Q189: 32699.07786 | R189: 0 | S189: 0 | T189: 0 | U189: 0 | V189: 0 | W189: 0 | X189: 0 | Y189: 0 | Z189: 0
C190: Net Income Before Non-Controlling Interest | H190: =H188-H189 -> 20118.48714 | I190: =I188-I189 -> 20440.38228 | J190: 35626.32015 | K190: 70760.85931 | L190: 96164.67722 | M190: 75231.39403 | N190: 127446.4487 | O190: 70004.50077 | P190: 90489.20977 | Q190: 140490.3804 | R190: =AVERAGE(Q195:R195)*R209 -> 148166.5061 | S190: =AVERAGE(R195:S195)*S209 -> 158538.1615 | T190: 169635.8328 | U190: 181510.3411 | V190: 194216.065 | W190: 207811.1895 | X190: 222357.9728 | Y190: 237923.0309 | Z190: 254577.643
C191: Non-Controlling Interest | F191: ='Tab 1 - Assumptions'!F208 -> 0.3733712657 | H191: =$F$191*H190 -> 7511.665007 | I191: =$F$191*I190 -> 7631.851402 | J191: 13301.84425 | K191: 26420.0716 | L191: 35905.12725 | M191: 28089.24081 | N191: 47584.84187 | O191: 26137.66906 | P191: 33786.07079 | Q191: 52455.07116 | R191: 55321.1159 | S191: 59193.59401 | T191: 63337.1456 | U191: 67770.74579 | V191: 72514.69799 | W191: 77590.72685 | X191: 83022.07773 | Y191: 88833.62317 | Z191: 95051.9768
C192: Net Income to Shareholders | H192: =H190-H191 -> 12606.82213 | I192: =I190-I191 -> 12808.53087 | J192: 22324.47591 | K192: 44340.78771 | L192: 60259.54997 | M192: 47142.15322 | N192: 79861.60686 | O192: 43866.83171 | P192: 56703.13899 | Q192: 88035.30927 | R192: 92845.39016 | S192: 99344.56747 | T192: 106298.6872 | U192: 113739.5953 | V192: 121701.367 | W192: 130220.4627 | X192: 139335.895 | Y192: 149089.4077 | Z192: 159525.6662
C194: Segment Assets | H194: ='Tab 5d Segment Hist and Proj'!L$102 -> 440196.0499 | I194: ='Tab 5d Segment Hist and Proj'!M$102 -> 468830.2754 | J194: ='Tab 5d Segment Hist and Proj'!N$102 -> 510154.8861 | K194: ='Tab 5d Segment Hist and Proj'!O$102 -> 4140315.568 | L194: ='Tab 5d Segment Hist and Proj'!P$102 -> 4729905.115 | M194: ='Tab 5d Segment Hist and Proj'!Q$102 -> 4008055.933 | N194: ='Tab 5d Segment Hist and Proj'!R$102 -> 4875017.822 | O194: ='Tab 5d Segment Hist and Proj'!S$102 -> 4736206.861 | P194: ='Tab 5d Segment Hist and Proj'!T$102 -> 4775819.847 | Q194: ='Tab 5d Segment Hist and Proj'!U$102 -> 5274980.287
C195: Adjusted Assets | F195: ='Tab 1 - Assumptions'!F206 -> 0.9046229352 | H195: =H194*$F$195 -> 398211.4428 | I195: =I194*$F$195 -> 424114.6199 | J195: 461497.8105 | K195: 3745424.422 | L195: 4278780.649 | M195: 3625779.323 | N195: 4410052.931 | O195: 4284481.352 | P195: 4320316.168 | Q195: 4771868.15 | R195: =Q195*(1+R196) -> 5105898.921 | S195: =R195*(1+S196) -> 5463311.845 | T195: 5845743.674 | U195: 6254945.731 | V195: 6692791.933 | W195: 7161287.368 | X195: 7662577.484 | Y195: 8198957.907 | Z195: 8772884.961
C196: Asset Growth | F196: 0.07 | I196: =I195/H195-1 -> 0.06504880159 | J196: =J195/I195-1 -> 0.08814407446 | K196: 7.115801065 | L196: 0.1424020795 | M196: -0.1526138821 | N196: 0.2163048378 | O196: -0.02847393922 | P196: 0.00836386322 | Q196: 0.1045182723 | R196: =$F$196 -> 0.07 | S196: =$F$196 -> 0.07 | T196: 0.07 | U196: 0.07 | V196: 0.07 | W196: 0.07 | X196: 0.07 | Y196: 0.07 | Z196: 0.07
C197: Segment Liabilities | H197: ='Tab 5d Segment Hist and Proj'!L$103 -> 287841.0715 | I197: ='Tab 5d Segment Hist and Proj'!M$103 -> 300305.7732 | J197: ='Tab 5d Segment Hist and Proj'!N$103 -> 318097.8158 | K197: ='Tab 5d Segment Hist and Proj'!O$103 -> 3131807.956 | L197: ='Tab 5d Segment Hist and Proj'!P$103 -> 3547190.539 | M197: ='Tab 5d Segment Hist and Proj'!Q$103 -> 3330005.529 | N197: ='Tab 5d Segment Hist and Proj'!R$103 -> 3561693.932 | O197: ='Tab 5d Segment Hist and Proj'!S$103 -> 3737382.707 | P197: ='Tab 5d Segment Hist and Proj'!T$103 -> 3995675.348 | Q197: ='Tab 5d Segment Hist and Proj'!U$103 -> 4002361.291
C198: Liabilities | F198: ='Tab 1 - Assumptions'!F207 -> 0.9297137233 | H198: =H197*$F$198 -> 267609.7943 | I198: =I197*$F$198 -> 279198.3985 | J198: 295739.9047 | K198: 2911684.835 | L198: 3297871.723 | M198: 3095951.839 | N198: 3311355.727 | O198: 3474695.992 | P198: 3714834.204 | Q198: 3721050.218 | R198: =R195-R200 -> 4084719.136 | S198: =S195-S200 -> 4370649.476 | T198: 4676594.939 | U198: 5003956.585 | V198: 5354233.546 | W198: 5729029.894 | X198: 6130061.987 | Y198: 6559166.326 | Z198: 7018307.969
C199: Segment Equity | H199: ='Tab 5d Segment Hist and Proj'!L$104 -> 152354.9784 | I199: ='Tab 5d Segment Hist and Proj'!M$104 -> 168524.5022 | J199: ='Tab 5d Segment Hist and Proj'!N$104 -> 192057.0703 | K199: ='Tab 5d Segment Hist and Proj'!O$104 -> 1008507.612 | L199: ='Tab 5d Segment Hist and Proj'!P$104 -> 1182714.577 | M199: ='Tab 5d Segment Hist and Proj'!Q$104 -> 678050.4045 | N199: ='Tab 5d Segment Hist and Proj'!R$104 -> 1313323.89 | O199: ='Tab 5d Segment Hist and Proj'!S$104 -> 998824.1541 | P199: ='Tab 5d Segment Hist and Proj'!T$104 -> 780144.4996 | Q199: ='Tab 5d Segment Hist and Proj'!U$104 -> 1272618.995
C200: Implied Equity | H200: =H195-H198 -> 130601.6484 | I200: =I195-I198 -> 144916.2214 | J200: 165757.9058 | K200: 833739.5869 | L200: 980908.9259 | M200: 529827.4842 | N200: 1098697.204 | O200: 809785.3607 | P200: 605481.9639 | Q200: 1050817.932 | R200: =R195*R211 -> 1021179.784 | S200: =S195*S211 -> 1092662.369 | T200: 1169148.735 | U200: 1250989.146 | V200: 1338558.387 | W200: 1432257.474 | X200: 1532515.497 | Y200: 1639791.581 | Z200: 1754576.992
C202: Opening Equity | I202: =H205 -> 152354.9784 | J202: =I205 -> 144916.2214 | K202: 165757.9058 | L202: 833739.5869 | M202: 980908.9259 | N202: 529827.4842 | O202: 1098697.204 | P202: 809785.3607 | Q202: 605481.9639 | R202: 1050817.932 | S202: 1021179.784 | T202: 1092662.369 | U202: 1169148.735 | V202: 1250989.146 | W202: 1338558.387 | X202: 1432257.474 | Y202: 1532515.497 | Z202: 1639791.581
C203: Add: Income | I203: =I190 -> 20440.38228 | J203: =J190 -> 35626.32015 | K203: 70760.85931 | L203: 96164.67722 | M203: 75231.39403 | N203: 127446.4487 | O203: 70004.50077 | P203: 90489.20977 | Q203: 140490.3804 | R203: 148166.5061 | S203: 158538.1615 | T203: 169635.8328 | U203: 181510.3411 | V203: 194216.065 | W203: 207811.1895 | X203: 222357.9728 | Y203: 237923.0309 | Z203: 254577.643
C204: Less: Dividends (Pos is Issue) | I204: =I205-I202-I203 -> -27879.13928 | J204: =J205-J202-J203 -> -14784.6357 | K204: 597220.8218 | L204: 51004.66176 | M204: -526312.8357 | N204: 441423.2714 | O204: -358916.3444 | P204: -294792.6066 | Q204: 304845.5875 | R204: -177804.6539 | S204: -87055.5766 | T204: -93149.46696 | U204: -99669.92965 | V204: -106646.8247 | W204: -114112.1025 | X204: -122099.9496 | Y204: -130646.9461 | Z204: -139792.2323
C205: Closing | H205: =H199 -> 152354.9784 | I205: =I200 -> 144916.2214 | J205: =J200 -> 165757.9058 | K205: 833739.5869 | L205: 980908.9259 | M205: 529827.4842 | N205: 1098697.204 | O205: 809785.3607 | P205: 605481.9639 | Q205: 1050817.932 | R205: 1021179.784 | S205: 1092662.369 | T205: 1169148.735 | U205: 1250989.146 | V205: 1338558.387 | W205: 1432257.474 | X205: 1532515.497 | Y205: 1639791.581 | Z205: 1754576.992
C206: Equity to Non-Controlling Interest | F206: ='Tab 1 - Assumptions'!F209 -> 0.2180946647 | H206: =$F$206*H205 -> 33227.80792 | I206: =$F$206*I205 -> 31605.45471 | J206: 36150.91489 | K206: 181834.1556 | L206: 213931.0033 | M206: 115552.5475 | N206: 239619.9984 | O206: 176609.8667 | P206: 132052.3859 | Q206: 229177.7845 | R206: 222713.8626 | S206: 238303.833 | T206: 254985.1013 | U206: 272834.0584 | V206: 291932.4425 | W206: 312367.7134 | X206: 334233.4534 | Y206: 357629.7951 | Z206: 382663.8808
C207: Equity Attributable to Common Shares | H207: =H205-H206 -> 119127.1705 | I207: =I205-I206 -> 113310.7667 | J207: 129606.9909 | K207: 651905.4313 | L207: 766977.9226 | M207: 414274.9367 | N207: 859077.206 | O207: 633175.494 | P207: 473429.578 | Q207: 821640.1474 | R207: 798465.9215 | S207: 854358.536 | T207: 914163.6335 | U207: 978155.0879 | V207: 1046625.944 | W207: 1119889.76 | X207: 1198282.043 | Y207: 1282161.786 | Z207: 1371913.111
C209: Operating Income/Average Assets | F209: 0.03 | H209: =H190/AVERAGE(G195:H195) -> 0.05052212212 | I209: =I190/AVERAGE(H195:I195) -> 0.04971357034 | J209: 0.08045578163 | K209: 0.03364020317 | L209: 0.02396864895 | M209: 0.01903493535 | N209: 0.03171953936 | O209: 0.01610310535 | P209: 0.0210322694 | Q209: 0.0309035487 | R209: =$F$209 -> 0.03 | S209: =$F$209 -> 0.03 | T209: 0.03 | U209: 0.03 | V209: 0.03 | W209: 0.03 | X209: 0.03 | Y209: 0.03 | Z209: 0.03
C210: Operating Income/Average Equity | H210: =H190/AVERAGE(G200:H200) -> 0.1540446647 | I210: =I190/AVERAGE(H200:I200) -> 0.1483779059 | J210: 0.2293484847 | K210: 0.1415928701 | L210: 0.1059871116 | M210: 0.09959565881 | N210: 0.1565176747 | O210: 0.07336142551 | P210: 0.1278757846 | Q210: 0.1696436506 | R210: 0.1430180206 | S210: 0.15 | T210: 0.15 | U210: 0.15 | V210: 0.15 | W210: 0.15 | X210: 0.15 | Y210: 0.15 | Z210: 0.15
C211: Equity to Assets | F211: 0.2 | H211: ='Tab 5d Segment Hist and Proj'!L108 -> 0.3461071003 | I211: ='Tab 5d Segment Hist and Proj'!M108 -> 0.3594573795 | J211: ='Tab 5d Segment Hist and Proj'!N108 -> 0.3764681581 | K211: ='Tab 5d Segment Hist and Proj'!O108 -> 0.2435823057 | L211: ='Tab 5d Segment Hist and Proj'!P108 -> 0.2500503811 | M211: ='Tab 5d Segment Hist and Proj'!Q108 -> 0.1691718917 | N211: ='Tab 5d Segment Hist and Proj'!R108 -> 0.2693987874 | O211: ='Tab 5d Segment Hist and Proj'!S108 -> 0.210891159 | P211: ='Tab 5d Segment Hist and Proj'!T108 -> 0.163353 | Q211: ='Tab 5d Segment Hist and Proj'!U108 -> 0.2412556874 | R211: =$F$211 -> 0.2 | S211: =$F$211 -> 0.2 | T211: 0.2 | U211: 0.2 | V211: 0.2 | W211: 0.2 | X211: 0.2 | Y211: 0.2 | Z211: 0.2
C213: Cash Flow over Explicit Period | H213: =H204*-1*H180*(1-$F$206) -> 0 | I213: =I204*-1*I180*(1-$F$206) -> 0 | J213: 0 | K213: 0 | L213: 0 | M213: 0 | N213: 0 | O213: 0 | P213: 0 | Q213: 0 | R213: 139026.4075 | S213: 68069.21981 | T213: 72834.0652 | U213: 77932.44976 | V213: 83387.72124 | W213: 89224.86173 | X213: 0 | Y213: 0 | Z213: 0
C214: Exit Value with PE Multiple | F214: ='Tab 1 - Assumptions'!H369 -> 5.85 | H214: =H192*H179*$F$214 -> 0 | I214: =I192*I179*$F$214 -> 0 | J214: 0 | K214: 0 | L214: 0 | M214: 0 | N214: 0 | O214: 0 | P214: 0 | Q214: 0 | R214: 0 | S214: 0 | T214: 0 | U214: 0 | V214: 0 | W214: 761789.7065 | X214: 0 | Y214: 0 | Z214: 0
C215: Exit Value with PB Multiple | F215: =Price_to_Book -> 0.65 | H215: =$F$215*H207*H179 -> 0 | I215: =$F$215*I207*I179 -> 0 | J215: 0 | K215: 0 | L215: 0 | M215: 0 | N215: 0 | O215: 0 | P215: 0 | Q215: 0 | R215: 0 | S215: 0 | T215: 0 | U215: 0 | V215: 0 | W215: 727928.3441 | X215: 0 | Y215: 0 | Z215: 0
C217: Credit Impairment to Assets | H217: ='Tab 5d Segment Hist and Proj'!L110 -> 0 | I217: ='Tab 5d Segment Hist and Proj'!M110 -> 0 | J217: ='Tab 5d Segment Hist and Proj'!N110 -> 0 | K217: ='Tab 5d Segment Hist and Proj'!O110 -> 0 | L217: ='Tab 5d Segment Hist and Proj'!P110 -> 0 | M217: ='Tab 5d Segment Hist and Proj'!Q110 -> 0 | N217: ='Tab 5d Segment Hist and Proj'!R110 -> 0 | O217: ='Tab 5d Segment Hist and Proj'!S110 -> 0 | P217: ='Tab 5d Segment Hist and Proj'!T110 -> 0 | Q217: ='Tab 5d Segment Hist and Proj'!U110 -> 0 | R217: ='Tab 5d Segment Hist and Proj'!V110 -> 0 | S217: ='Tab 5d Segment Hist and Proj'!W110 -> 0 | T217: ='Tab 5d Segment Hist and Proj'!X110 -> 0 | U217: ='Tab 5d Segment Hist and Proj'!Y110 -> 0 | V217: ='Tab 5d Segment Hist and Proj'!Z110 -> 0 | W217: ='Tab 5d Segment Hist and Proj'!AA110 -> 0 | X217: ='Tab 5d Segment Hist and Proj'!AB110 -> 0 | Y217: ='Tab 5d Segment Hist and Proj'!AC110 -> 0 | Z217: ='Tab 5d Segment Hist and Proj'!AD110 -> 0
C219: Total Operating Costs Including Allocated Costs | H219: ='Tab 5d Segment Hist and Proj'!L112 -> 55904.02868 | I219: ='Tab 5d Segment Hist and Proj'!M112 -> 58397.29483 | J219: ='Tab 5d Segment Hist and Proj'!N112 -> 24550.8675 | K219: ='Tab 5d Segment Hist and Proj'!O112 -> 93945.24591 | L219: ='Tab 5d Segment Hist and Proj'!P112 -> 172727.9686 | M219: ='Tab 5d Segment Hist and Proj'!Q112 -> 193240.9091 | N219: ='Tab 5d Segment Hist and Proj'!R112 -> 219343.1623 | O219: ='Tab 5d Segment Hist and Proj'!S112 -> 114663.817 | P219: ='Tab 5d Segment Hist and Proj'!T112 -> 113258.0508 | Q219: ='Tab 5d Segment Hist and Proj'!U112 -> 86349.66749 | R219: ='Tab 5d Segment Hist and Proj'!V112 -> 0 | S219: ='Tab 5d Segment Hist and Proj'!W112 -> 0 | T219: ='Tab 5d Segment Hist and Proj'!X112 -> 0 | U219: ='Tab 5d Segment Hist and Proj'!Y112 -> 0 | V219: ='Tab 5d Segment Hist and Proj'!Z112 -> 0 | W219: ='Tab 5d Segment Hist and Proj'!AA112 -> 0 | X219: ='Tab 5d Segment Hist and Proj'!AB112 -> 0 | Y219: ='Tab 5d Segment Hist and Proj'!AC112 -> 0 | Z219: ='Tab 5d Segment Hist and Proj'!AD112 -> 0
C221: Cost to Income Without Allocated Cost | H221: ='Tab 5d Segment Hist and Proj'!L114 -> 0.5558942471 | I221: ='Tab 5d Segment Hist and Proj'!M114 -> 0.5627364159 | J221: ='Tab 5d Segment Hist and Proj'!N114 -> 0.236887622 | K221: ='Tab 5d Segment Hist and Proj'!O114 -> 0.3742385428 | L221: ='Tab 5d Segment Hist and Proj'!P114 -> 0.4472405981 | M221: ='Tab 5d Segment Hist and Proj'!Q114 -> 0.5364072233 | N221: ='Tab 5d Segment Hist and Proj'!R114 -> 0.4367061827 | O221: ='Tab 5d Segment Hist and Proj'!S114 -> 0.4245709125 | P221: ='Tab 5d Segment Hist and Proj'!T114 -> 0.3605348032 | Q221: ='Tab 5d Segment Hist and Proj'!U114 -> 0.2168334208 | R221: ='Tab 5d Segment Hist and Proj'!V114 -> 0 | S221: ='Tab 5d Segment Hist and Proj'!W114 -> 0 | T221: ='Tab 5d Segment Hist and Proj'!X114 -> 0 | U221: ='Tab 5d Segment Hist and Proj'!Y114 -> 0 | V221: ='Tab 5d Segment Hist and Proj'!Z114 -> 0 | W221: ='Tab 5d Segment Hist and Proj'!AA114 -> 0 | X221: ='Tab 5d Segment Hist and Proj'!AB114 -> 0 | Y221: ='Tab 5d Segment Hist and Proj'!AC114 -> 0 | Z221: ='Tab 5d Segment Hist and Proj'!AD114 -> 0
C222: Cost to Income With Allocated Cost | H222: ='Tab 5d Segment Hist and Proj'!L115 -> 0.5558942471 | I222: ='Tab 5d Segment Hist and Proj'!M115 -> 0.5627364159 | J222: ='Tab 5d Segment Hist and Proj'!N115 -> 0.236887622 | K222: ='Tab 5d Segment Hist and Proj'!O115 -> 0.3742385428 | L222: ='Tab 5d Segment Hist and Proj'!P115 -> 0.4472405981 | M222: ='Tab 5d Segment Hist and Proj'!Q115 -> 0.5364072233 | N222: ='Tab 5d Segment Hist and Proj'!R115 -> 0.4367061827 | O222: ='Tab 5d Segment Hist and Proj'!S115 -> 0.4245709125 | P222: ='Tab 5d Segment Hist and Proj'!T115 -> 0.3605348032 | Q222: ='Tab 5d Segment Hist and Proj'!U115 -> 0.2168334208 | R222: ='Tab 5d Segment Hist and Proj'!V115 -> 0 | S222: ='Tab 5d Segment Hist and Proj'!W115 -> 0 | T222: ='Tab 5d Segment Hist and Proj'!X115 -> 0 | U222: ='Tab 5d Segment Hist and Proj'!Y115 -> 0 | V222: ='Tab 5d Segment Hist and Proj'!Z115 -> 0 | W222: ='Tab 5d Segment Hist and Proj'!AA115 -> 0 | X222: ='Tab 5d Segment Hist and Proj'!AB115 -> 0 | Y222: ='Tab 5d Segment Hist and Proj'!AC115 -> 0 | Z222: ='Tab 5d Segment Hist and Proj'!AD115 -> 0
C224: Net Margin, Fee and Other Revenue | H224: ='Tab 5d Segment Hist and Proj'!L117 -> 100565.9421 | I224: ='Tab 5d Segment Hist and Proj'!M117 -> 103773.7974 | J224: ='Tab 5d Segment Hist and Proj'!N117 -> 103639.3007 | K224: ='Tab 5d Segment Hist and Proj'!O117 -> 251030.3862 | L224: ='Tab 5d Segment Hist and Proj'!P117 -> 386208.1602 | M224: ='Tab 5d Segment Hist and Proj'!Q117 -> 360250.3858 | N224: ='Tab 5d Segment Hist and Proj'!R117 -> 502267.1328 | O224: ='Tab 5d Segment Hist and Proj'!S117 -> 270069.8837 | P224: ='Tab 5d Segment Hist and Proj'!T117 -> 314139.023 | Q224: ='Tab 5d Segment Hist and Proj'!U117 -> 398230.435 | R224: ='Tab 5d Segment Hist and Proj'!V117 -> 0 | S224: ='Tab 5d Segment Hist and Proj'!W117 -> 0 | T224: ='Tab 5d Segment Hist and Proj'!X117 -> 0 | U224: ='Tab 5d Segment Hist and Proj'!Y117 -> 0 | V224: ='Tab 5d Segment Hist and Proj'!Z117 -> 0 | W224: ='Tab 5d Segment Hist and Proj'!AA117 -> 0 | X224: ='Tab 5d Segment Hist and Proj'!AB117 -> 0 | Y224: ='Tab 5d Segment Hist and Proj'!AC117 -> 0 | Z224: ='Tab 5d Segment Hist and Proj'!AD117 -> 0
C225: Growth in Net Margin, Fee and Other Revenue | I225: ='Tab 5d Segment Hist and Proj'!M118 -> 0.03189802871 | J225: ='Tab 5d Segment Hist and Proj'!N118 -> -0.001296056372 | K225: ='Tab 5d Segment Hist and Proj'!O118 -> 1.422154379 | L225: ='Tab 5d Segment Hist and Proj'!P118 -> 0.5384916788 | M225: ='Tab 5d Segment Hist and Proj'!Q118 -> -0.06721187457 | N225: ='Tab 5d Segment Hist and Proj'!R118 -> 0.3942167797 | O225: ='Tab 5d Segment Hist and Proj'!S118 -> -0.4622983149 | P225: ='Tab 5d Segment Hist and Proj'!T118 -> 0.1631767997 | Q225: ='Tab 5d Segment Hist and Proj'!U118 -> 0.2676885261 | R225: ='Tab 5d Segment Hist and Proj'!V118 -> 0 | S225: ='Tab 5d Segment Hist and Proj'!W118 -> 0 | T225: ='Tab 5d Segment Hist and Proj'!X118 -> 0 | U225: ='Tab 5d Segment Hist and Proj'!Y118 -> 0 | V225: ='Tab 5d Segment Hist and Proj'!Z118 -> 0 | W225: ='Tab 5d Segment Hist and Proj'!AA118 -> 0 | X225: ='Tab 5d Segment Hist and Proj'!AB118 -> 0 | Y225: ='Tab 5d Segment Hist and Proj'!AC118 -> 0 | Z225: ='Tab 5d Segment Hist and Proj'!AD118 -> 0
C226: Index of Income Growth | H226: ='Tab 5d Segment Hist and Proj'!L119 -> 1 | I226: ='Tab 5d Segment Hist and Proj'!M119 -> 1 | J226: ='Tab 5d Segment Hist and Proj'!N119 -> 1 | K226: ='Tab 5d Segment Hist and Proj'!O119 -> 1 | L226: ='Tab 5d Segment Hist and Proj'!P119 -> 1 | M226: ='Tab 5d Segment Hist and Proj'!Q119 -> 1 | N226: ='Tab 5d Segment Hist and Proj'!R119 -> 1 | O226: ='Tab 5d Segment Hist and Proj'!S119 -> 1 | P226: ='Tab 5d Segment Hist and Proj'!T119 -> 1 | Q226: ='Tab 5d Segment Hist and Proj'!U119 -> 1 | R226: ='Tab 5d Segment Hist and Proj'!V119 -> 0 | S226: ='Tab 5d Segment Hist and Proj'!W119 -> 0 | T226: ='Tab 5d Segment Hist and Proj'!X119 -> 0 | U226: ='Tab 5d Segment Hist and Proj'!Y119 -> 0 | V226: ='Tab 5d Segment Hist and Proj'!Z119 -> 0 | W226: ='Tab 5d Segment Hist and Proj'!AA119 -> 0 | X226: ='Tab 5d Segment Hist and Proj'!AB119 -> 0 | Y226: ='Tab 5d Segment Hist and Proj'!AC119 -> 0 | Z226: ='Tab 5d Segment Hist and Proj'!AD119 -> 0
C228: Total Operating Expense | H228: ='Tab 5d Segment Hist and Proj'!L121 -> 55904.02868 | I228: ='Tab 5d Segment Hist and Proj'!M121 -> 58397.29483 | J228: ='Tab 5d Segment Hist and Proj'!N121 -> 24550.8675 | K228: ='Tab 5d Segment Hist and Proj'!O121 -> 93945.24591 | L228: ='Tab 5d Segment Hist and Proj'!P121 -> 172727.9686 | M228: ='Tab 5d Segment Hist and Proj'!Q121 -> 193240.9091 | N228: ='Tab 5d Segment Hist and Proj'!R121 -> 219343.1623 | O228: ='Tab 5d Segment Hist and Proj'!S121 -> 114663.817 | P228: ='Tab 5d Segment Hist and Proj'!T121 -> 113258.0508 | Q228: ='Tab 5d Segment Hist and Proj'!U121 -> 86349.66749 | R228: ='Tab 5d Segment Hist and Proj'!V121 -> 0 | S228: ='Tab 5d Segment Hist and Proj'!W121 -> 0 | T228: ='Tab 5d Segment Hist and Proj'!X121 -> 0 | U228: ='Tab 5d Segment Hist and Proj'!Y121 -> 0 | V228: ='Tab 5d Segment Hist and Proj'!Z121 -> 0 | W228: ='Tab 5d Segment Hist and Proj'!AA121 -> 0 | X228: ='Tab 5d Segment Hist and Proj'!AB121 -> 0 | Y228: ='Tab 5d Segment Hist and Proj'!AC121 -> 0 | Z228: ='Tab 5d Segment Hist and Proj'!AD121 -> 0
C229: Growth Rate | H229: ='Tab 5d Segment Hist and Proj'!L122 -> FALSE | I229: ='Tab 5d Segment Hist and Proj'!M122 -> 0.04459904256 | J229: ='Tab 5d Segment Hist and Proj'!N122 -> -0.5795889592 | K229: ='Tab 5d Segment Hist and Proj'!O122 -> 2.826555046 | L229: ='Tab 5d Segment Hist and Proj'!P122 -> 0.8386025487 | M229: ='Tab 5d Segment Hist and Proj'!Q122 -> 0.1187586512 | N229: ='Tab 5d Segment Hist and Proj'!R122 -> 0.1350762281 | O229: ='Tab 5d Segment Hist and Proj'!S122 -> -0.4772400663 | P229: ='Tab 5d Segment Hist and Proj'!T122 -> -0.0122598931 | Q229: ='Tab 5d Segment Hist and Proj'!U122 -> -0.2375847291 | R229: ='Tab 5d Segment Hist and Proj'!V122 -> 0 | S229: ='Tab 5d Segment Hist and Proj'!W122 -> 0 | T229: ='Tab 5d Segment Hist and Proj'!X122 -> 0 | U229: ='Tab 5d Segment Hist and Proj'!Y122 -> 0 | V229: ='Tab 5d Segment Hist and Proj'!Z122 -> 0 | W229: ='Tab 5d Segment Hist and Proj'!AA122 -> 0 | X229: ='Tab 5d Segment Hist and Proj'!AB122 -> 0 | Y229: ='Tab 5d Segment Hist and Proj'!AC122 -> 0 | Z229: ='Tab 5d Segment Hist and Proj'!AD122 -> 0
C230: Index of Expense Growth | H230: ='Tab 5d Segment Hist and Proj'!L123 -> 0 | I230: ='Tab 5d Segment Hist and Proj'!M123 -> 0 | J230: ='Tab 5d Segment Hist and Proj'!N123 -> 0 | K230: ='Tab 5d Segment Hist and Proj'!O123 -> 0 | L230: ='Tab 5d Segment Hist and Proj'!P123 -> 0 | M230: ='Tab 5d Segment Hist and Proj'!Q123 -> 0 | N230: ='Tab 5d Segment Hist and Proj'!R123 -> 0 | O230: ='Tab 5d Segment Hist and Proj'!S123 -> 0 | P230: ='Tab 5d Segment Hist and Proj'!T123 -> 0 | Q230: ='Tab 5d Segment Hist and Proj'!U123 -> 0 | R230: ='Tab 5d Segment Hist and Proj'!V123 -> 0 | S230: ='Tab 5d Segment Hist and Proj'!W123 -> 0 | T230: ='Tab 5d Segment Hist and Proj'!X123 -> 0 | U230: ='Tab 5d Segment Hist and Proj'!Y123 -> 0 | V230: ='Tab 5d Segment Hist and Proj'!Z123 -> 0 | W230: ='Tab 5d Segment Hist and Proj'!AA123 -> 0 | X230: ='Tab 5d Segment Hist and Proj'!AB123 -> 0 | Y230: ='Tab 5d Segment Hist and Proj'!AC123 -> 0 | Z230: ='Tab 5d Segment Hist and Proj'!AD123 -> 0
B233: Total Cash Flow - All Segments
H235: =H178 -> 2016 | I235: =I178 -> 2017 | J235: 2018 | K235: 2019 | L235: 2020 | M235: 2021 | N235: 2022 | O235: 2023 | P235: 2024 | Q235: 2025 | R235: 2026 | S235: 2027 | T235: 2028 | U235: 2029 | V235: 2030 | W235: 2031 | X235: 2032 | Y235: 2033 | Z235: 2034
C236: Total Explicit Cash Flow | H236: =H88+H153+H213 -> 0 | I236: 0 | J236: 0 | K236: 0 | L236: 0 | M236: 0 | N236: 0 | O236: 0 | P236: 0 | Q236: 0 | R236: 83255.80686 | S236: 116952.0472 | T236: 124378.2025 | U236: 132289.4259 | V236: 140717.9121 | W236: 149698.0142 | X236: 0 | Y236: 0 | Z236: 0
C237: Cash Flow with PE Multiple | H237: =H89+H154+H214 -> 0 | I237: 0 | J237: 0 | K237: 0 | L237: 0 | M237: 0 | N237: 0 | O237: 0 | P237: 0 | Q237: 0 | R237: 0 | S237: 0 | T237: 0 | U237: 0 | V237: 0 | W237: 1329074.947 | X237: 0 | Y237: 0 | Z237: 0
C238: Cash Flow with PB Muliple | H238: =H215+H155+H90 -> 0 | I238: 0 | J238: 0 | K238: 0 | L238: 0 | M238: 0 | N238: 0 | O238: 0 | P238: 0 | Q238: 0 | R238: 0 | S238: 0 | T238: 0 | U238: 0 | V238: 0 | W238: 1178242.038 | X238: 0 | Y238: 0 | Z238: 0
C240: Total Equity Value | H240: =H84+H143+H199 -> 691916.6067 | I240: =I84+I143+I200 -> 707945.9867 | J240: 804006.9364 | K240: 1681432.549 | L240: 1694672.091 | M240: 1293906.922 | N240: 1696200.707 | O240: 1474571.128 | P240: 1207218.89 | Q240: 1684945.784 | R240: 1427371.799 | S240: 1523225.905 | T240: 1625546.083 | U240: 1734770.335 | V240: 1851366.447 | W240: 1975834.017 | X240: 2108706.633 | Y240: 2250554.186 | Z240: 2401985.353
C241: Total Operating Income | H241: =H63+H134+H190 -> 81519.14148 | I241: 97576.23737 | J241: 128787.8844 | K241: 165534.8727 | L241: 151165.4808 | M241: 172111.3164 | N241: 218193.6391 | O241: 143417.2333 | P241: 160087.3102 | Q241: 230802.0394 | R241: 239059.5139 | S241: 254289.3181 | T241: 270518.7641 | U241: 287814.5547 | V241: 306247.887 | W241: 325894.7572 | X241: 346836.2859 | Y241: 369159.0661 | Z241: 392955.5345
C243: Net Income from All Segments | H243: =H63+H134+H190 -> 81519.14148 | I243: 97576.23737 | J243: 128787.8844 | K243: 165534.8727 | L243: 151165.4808 | M243: 172111.3164 | N243: 218193.6391 | O243: 143417.2333 | P243: 160087.3102 | Q243: 230802.0394 | R243: 239059.5139 | S243: 254289.3181 | T243: 270518.7641 | U243: 287814.5547 | V243: 306247.887 | W243: 325894.7572 | X243: 346836.2859 | Y243: 369159.0661 | Z243: 392955.5345
C244: Equity Value from All Segments | H244: =H73+H144+H200 -> 623868.4328 | I244: 653746.7183 | J244: 745990.6701 | K244: 1607299.639 | L244: 1609109.296 | M244: 1201951.661 | N244: 1607259.919 | O244: 1379638.395 | P244: 1118408.259 | Q244: 1590192.341 | R244: 1722773.739 | S244: 1827489.903 | T244: 1938938.001 | U244: 2057564.011 | V244: 2183843.933 | W244: 2318285.828 | X244: 2461431.999 | Y244: 2613861.312 | Z244: 2776191.693
C245: Return on Equity | H245: =H243/AVERAGE(G244:H244) -> 0.1306672003 | I245: =I243/AVERAGE(H244:I244) -> 0.1527474644 | J245: 0.1840172099 | K245: 0.140683767 | L245: 0.09399643135 | M245: 0.1224529236 | N245: 0.1553415489 | O245: 0.09603087764 | P245: 0.1281699923 | Q245: 0.1704216114 | R245: 0.1443175137 | S245: 0.143250949 | T245: 0.1436473873 | U245: 0.1440332339 | V245: 0.1444085978 | W245: 0.1447735958 | X245: 0.1451283521 | Y245: 0.1454729977 | Z245: 0.1458076698
B247: Cash Flow Spread Out for IRR Calculation
I248: 2025-09-30 | J248: =EOMONTH(I248,1) -> 2025-10-31 | K248: =EOMONTH(J248,1) -> 2025-11-30 | L248: 2025-12-31 | M248: 2026-01-31 | N248: 2026-02-28 | O248: 2026-03-31 | P248: 2026-04-30 | Q248: 2026-05-31 | R248: 2026-06-30 | S248: 2026-07-31 | T248: 2026-08-31 | U248: 2026-09-30 | V248: 2026-10-31 | W248: 2026-11-30 | X248: 2026-12-31 | Y248: 2027-01-31 | Z248: 2027-02-28 | AA248: 2027-03-31 | AB248: 2027-04-30 | AC248: 2027-05-31 | AD248: 2027-06-30 | AE248: 2027-07-31 | AF248: 2027-08-31 | AG248: 2027-09-30 | AH248: 2027-10-31 | AI248: 2027-11-30 | AJ248: 2027-12-31 | AK248: 2028-01-31 | AL248: 2028-02-29 | AM248: 2028-03-31 | AN248: 2028-04-30 | AO248: 2028-05-31 | AP248: 2028-06-30 | AQ248: 2028-07-31 | AR248: 2028-08-31 | AS248: 2028-09-30 | AT248: 2028-10-31 | AU248: 2028-11-30 | AV248: 2028-12-31 | AW248: 2029-01-31 | AX248: 2029-02-28 | AY248: 2029-03-31 | AZ248: 2029-04-30 | BA248: 2029-05-31 | BB248: 2029-06-30 | BC248: 2029-07-31 | BD248: 2029-08-31 | BE248: 2029-09-30 | BF248: 2029-10-31 | BG248: 2029-11-30 | BH248: 2029-12-31 | BI248: 2030-01-31 | BJ248: 2030-02-28 | BK248: 2030-03-31 | BL248: 2030-04-30 | BM248: 2030-05-31 | BN248: 2030-06-30 | BO248: 2030-07-31 | BP248: 2030-08-31 | BQ248: 2030-09-30 | BR248: 2030-10-31 | BS248: 2030-11-30 | BT248: 2030-12-31 | BU248: 2031-01-31 | BV248: 2031-02-28 | BW248: =EOMONTH(BV248,1) -> 2031-03-31 | BX248: 2031-04-30 | BY248: 2031-05-31 | BZ248: 2031-06-30 | CA248: 2031-07-31 | CB248: 2031-08-31 | CC248: 2031-09-30 | CD248: 2031-10-31 | CE248: 2031-11-30 | CF248: 2031-12-31 | CG248: 2032-01-31 | CH248: 2032-02-29 | CI248: 2032-03-31 | CJ248: 2032-04-30 | CK248: 2032-05-31 | CL248: 2032-06-30 | CM248: 2032-07-31 | CN248: 2032-08-31 | CO248: 2032-09-30 | CP248: 2032-10-31 | CQ248: 2032-11-30 | CR248: 2032-12-31 | CS248: 2033-01-31 | CT248: 2033-02-28 | CU248: 2033-03-31 | CV248: 2033-04-30 | CW248: 2033-05-31 | CX248: 2033-06-30 | CY248: 2033-07-31 | CZ248: 2033-08-31 | DA248: 2033-09-30 | DB248: 2033-10-31 | DC248: 2033-11-30 | DD248: 2033-12-31 | DE248: 2034-01-31 | DF248: 2034-02-28 | DG248: 2034-03-31 | DH248: 2034-04-30 | DI248: 2034-05-31 | DJ248: 2034-06-30 | DK248: 2034-07-31 | DL248: 2034-08-31 | DM248: 2034-09-30 | DN248: 2034-10-31 | DO248: 2034-11-30 | DP248: 2034-12-31 | DQ248: 2035-01-31 | DR248: 2035-02-28 | DS248: 2035-03-31 | DT248: 2035-04-30 | DU248: 2035-05-31 | DV248: 2035-06-30 | DW248: 2035-07-31 | DX248: 2035-08-31 | DY248: 2035-09-30 | DZ248: 2035-10-31 | EA248: 2035-11-30 | EB248: 2035-12-31 | EC248: 2036-01-31 | ED248: 2036-02-29 | EE248: 2036-03-31 | EF248: 2036-04-30 | EG248: 2036-05-31 | EH248: 2036-06-30 | EI248: =EOMONTH(EH248,1) -> 2036-07-31 | EJ248: 2036-08-31 | EK248: 2036-09-30 | EL248: 2036-10-31 | EM248: 2036-11-30 | EN248: 2036-12-31 | EO248: 2037-01-31 | EP248: 2037-02-28 | EQ248: 2037-03-31 | ER248: 2037-04-30 | ES248: 2037-05-31 | ET248: 2037-06-30 | EU248: 2037-07-31 | EV248: 2037-08-31 | EW248: 2037-09-30 | EX248: 2037-10-31 | EY248: 2037-11-30 | EZ248: 2037-12-31 | FA248: 2038-01-31 | FB248: 2038-02-28 | FC248: 2038-03-31 | FD248: 2038-04-30 | FE248: 2038-05-31 | FF248: 2038-06-30 | FG248: 2038-07-31 | FH248: 2038-08-31 | FI248: 2038-09-30 | FJ248: 2038-10-31 | FK248: 2038-11-30 | FL248: 2038-12-31 | FM248: 2039-01-31 | FN248: 2039-02-28 | FO248: 2039-03-31 | FP248: 2039-04-30 | FQ248: 2039-05-31 | FR248: 2039-06-30 | FS248: 2039-07-31 | FT248: 2039-08-31 | FU248: 2039-09-30 | FV248: 2039-10-31 | FW248: 2039-11-30 | FX248: 2039-12-31 | FY248: 2040-01-31 | FZ248: 2040-02-29 | GA248: 2040-03-31 | GB248: 2040-04-30 | GC248: 2040-05-31
C249: Start | E249: ='Tab 1 - Assumptions'!F29 -> 2026-07-31 | I249: =(I248>=$E$249)*1 -> 0 | J249: =(J248>=$E$249)*1 -> 0 | K249: 0 | L249: 0 | M249: 0 | N249: 0 | O249: 0 | P249: 0 | Q249: 0 | R249: 0 | S249: 1 | T249: 1 | U249: 1 | V249: 1 | W249: 1 | X249: 1 | Y249: 1 | Z249: 1 | AA249: 1 | AB249: 1 | AC249: 1 | AD249: 1 | AE249: 1 | AF249: 1 | AG249: 1 | AH249: 1 | AI249: 1 | AJ249: 1 | AK249: 1 | AL249: 1 | AM249: 1 | AN249: 1 | AO249: 1 | AP249: 1 | AQ249: 1 | AR249: 1 | AS249: 1 | AT249: 1 | AU249: 1 | AV249: 1 | AW249: 1 | AX249: 1 | AY249: 1 | AZ249: 1 | BA249: 1 | BB249: 1 | BC249: 1 | BD249: 1 | BE249: 1 | BF249: 1 | BG249: 1 | BH249: 1 | BI249: 1 | BJ249: 1 | BK249: 1 | BL249: 1 | BM249: 1 | BN249: 1 | BO249: 1 | BP249: 1 | BQ249: 1 | BR249: 1 | BS249: 1 | BT249: 1 | BU249: 1 | BV249: =(BV248>=$E$249)*1 -> 1 | BW249: 1 | BX249: 1 | BY249: 1 | BZ249: 1 | CA249: 1 | CB249: 1 | CC249: 1 | CD249: 1 | CE249: 1 | CF249: 1 | CG249: 1 | CH249: 1 | CI249: 1 | CJ249: 1 | CK249: 1 | CL249: 1 | CM249: 1 | CN249: 1 | CO249: 1 | CP249: 1 | CQ249: 1 | CR249: 1 | CS249: 1 | CT249: 1 | CU249: 1 | CV249: 1 | CW249: 1 | CX249: 1 | CY249: 1 | CZ249: 1 | DA249: 1 | DB249: 1 | DC249: 1 | DD249: 1 | DE249: 1 | DF249: 1 | DG249: 1 | DH249: 1 | DI249: 1 | DJ249: 1 | DK249: 1 | DL249: 1 | DM249: 1 | DN249: 1 | DO249: 1 | DP249: 1 | DQ249: 1 | DR249: 1 | DS249: 1 | DT249: 1 | DU249: 1 | DV249: 1 | DW249: 1 | DX249: 1 | DY249: 1 | DZ249: 1 | EA249: 1 | EB249: 1 | EC249: 1 | ED249: 1 | EE249: 1 | EF249: 1 | EG249: 1 | EH249: =(EH248>=$E$249)*1 -> 1 | EI249: 1 | EJ249: 1 | EK249: 1 | EL249: 1 | EM249: 1 | EN249: 1 | EO249: 1 | EP249: 1 | EQ249: 1 | ER249: 1 | ES249: 1 | ET249: 1 | EU249: 1 | EV249: 1 | EW249: 1 | EX249: 1 | EY249: 1 | EZ249: 1 | FA249: 1 | FB249: 1 | FC249: 1 | FD249: 1 | FE249: 1 | FF249: 1 | FG249: 1 | FH249: 1 | FI249: 1 | FJ249: 1 | FK249: 1 | FL249: 1 | FM249: 1 | FN249: 1 | FO249: 1 | FP249: 1 | FQ249: 1 | FR249: 1 | FS249: 1 | FT249: 1 | FU249: 1 | FV249: 1 | FW249: 1 | FX249: 1 | FY249: 1 | FZ249: 1 | GA249: 1 | GB249: 1 | GC249: 1
C250: Year | I250: =YEAR(I248) -> 2025 | J250: =YEAR(J248) -> 2025 | K250: 2025 | L250: 2025 | M250: 2026 | N250: 2026 | O250: 2026 | P250: 2026 | Q250: 2026 | R250: 2026 | S250: 2026 | T250: 2026 | U250: 2026 | V250: 2026 | W250: 2026 | X250: 2026 | Y250: 2027 | Z250: 2027 | AA250: 2027 | AB250: 2027 | AC250: 2027 | AD250: 2027 | AE250: 2027 | AF250: 2027 | AG250: 2027 | AH250: 2027 | AI250: 2027 | AJ250: 2027 | AK250: 2028 | AL250: 2028 | AM250: 2028 | AN250: 2028 | AO250: 2028 | AP250: 2028 | AQ250: 2028 | AR250: 2028 | AS250: 2028 | AT250: 2028 | AU250: 2028 | AV250: 2028 | AW250: 2029 | AX250: 2029 | AY250: 2029 | AZ250: 2029 | BA250: 2029 | BB250: 2029 | BC250: 2029 | BD250: 2029 | BE250: 2029 | BF250: 2029 | BG250: 2029 | BH250: 2029 | BI250: 2030 | BJ250: 2030 | BK250: 2030 | BL250: 2030 | BM250: 2030 | BN250: 2030 | BO250: 2030 | BP250: 2030 | BQ250: 2030 | BR250: 2030 | BS250: 2030 | BT250: 2030 | BU250: 2031 | BV250: =YEAR(BV248) -> 2031 | BW250: 2031 | BX250: 2031 | BY250: 2031 | BZ250: 2031 | CA250: 2031 | CB250: 2031 | CC250: 2031 | CD250: 2031 | CE250: 2031 | CF250: 2031 | CG250: 2032 | CH250: 2032 | CI250: 2032 | CJ250: 2032 | CK250: 2032 | CL250: 2032 | CM250: 2032 | CN250: 2032 | CO250: 2032 | CP250: 2032 | CQ250: 2032 | CR250: 2032 | CS250: 2033 | CT250: 2033 | CU250: 2033 | CV250: 2033 | CW250: 2033 | CX250: 2033 | CY250: 2033 | CZ250: 2033 | DA250: 2033 | DB250: 2033 | DC250: 2033 | DD250: 2033 | DE250: 2034 | DF250: 2034 | DG250: 2034 | DH250: 2034 | DI250: 2034 | DJ250: 2034 | DK250: 2034 | DL250: 2034 | DM250: 2034 | DN250: 2034 | DO250: 2034 | DP250: 2034 | DQ250: 2035 | DR250: 2035 | DS250: 2035 | DT250: 2035 | DU250: 2035 | DV250: 2035 | DW250: 2035 | DX250: 2035 | DY250: 2035 | DZ250: 2035 | EA250: 2035 | EB250: 2035 | EC250: 2036 | ED250: 2036 | EE250: 2036 | EF250: 2036 | EG250: 2036 | EH250: =YEAR(EH248) -> 2036 | EI250: 2036 | EJ250: 2036 | EK250: 2036 | EL250: 2036 | EM250: 2036 | EN250: 2036 | EO250: 2037 | EP250: 2037 | EQ250: 2037 | ER250: 2037 | ES250: 2037 | ET250: 2037 | EU250: 2037 | EV250: 2037 | EW250: 2037 | EX250: 2037 | EY250: 2037 | EZ250: 2037 | FA250: 2038 | FB250: 2038 | FC250: 2038 | FD250: 2038 | FE250: 2038 | FF250: 2038 | FG250: 2038 | FH250: 2038 | FI250: 2038 | FJ250: 2038 | FK250: 2038 | FL250: 2038 | FM250: 2039 | FN250: 2039 | FO250: 2039 | FP250: 2039 | FQ250: 2039 | FR250: 2039 | FS250: 2039 | FT250: 2039 | FU250: 2039 | FV250: 2039 | FW250: 2039 | FX250: 2039 | FY250: 2040 | FZ250: 2040 | GA250: 2040 | GB250: 2040 | GC250: 2040
C251: Terminal Period | E251: ='Tab 1 - Assumptions'!F44 -> 2031-07-31 | I251: =(I248=$E$251)*1 -> 0 | J251: =(J248=$E$251)*1 -> 0 | K251: 0 | L251: 0 | M251: 0 | N251: 0 | O251: 0 | P251: 0 | Q251: 0 | R251: 0 | S251: 0 | T251: 0 | U251: 0 | V251: 0 | W251: 0 | X251: 0 | Y251: 0 | Z251: 0 | AA251: 0 | AB251: 0 | AC251: 0 | AD251: 0 | AE251: 0 | AF251: 0 | AG251: 0 | AH251: 0 | AI251: 0 | AJ251: 0 | AK251: 0 | AL251: 0 | AM251: 0 | AN251: 0 | AO251: 0 | AP251: 0 | AQ251: 0 | AR251: 0 | AS251: 0 | AT251: 0 | AU251: 0 | AV251: 0 | AW251: 0 | AX251: 0 | AY251: 0 | AZ251: 0 | BA251: 0 | BB251: 0 | BC251: 0 | BD251: 0 | BE251: 0 | BF251: 0 | BG251: 0 | BH251: 0 | BI251: 0 | BJ251: 0 | BK251: 0 | BL251: 0 | BM251: 0 | BN251: 0 | BO251: 0 | BP251: 0 | BQ251: 0 | BR251: 0 | BS251: 0 | BT251: 0 | BU251: 0 | BV251: =(BV248=$E$251)*1 -> 0 | BW251: 0 | BX251: 0 | BY251: 0 | BZ251: 0 | CA251: 1 | CB251: 0 | CC251: 0 | CD251: 0 | CE251: 0 | CF251: 0 | CG251: 0 | CH251: 0 | CI251: 0 | CJ251: 0 | CK251: 0 | CL251: 0 | CM251: 0 | CN251: 0 | CO251: 0 | CP251: 0 | CQ251: 0 | CR251: 0 | CS251: 0 | CT251: 0 | CU251: 0 | CV251: 0 | CW251: 0 | CX251: 0 | CY251: 0 | CZ251: 0 | DA251: 0 | DB251: 0 | DC251: 0 | DD251: 0 | DE251: 0 | DF251: 0 | DG251: 0 | DH251: 0 | DI251: 0 | DJ251: 0 | DK251: 0 | DL251: 0 | DM251: 0 | DN251: 0 | DO251: 0 | DP251: 0 | DQ251: 0 | DR251: 0 | DS251: 0 | DT251: 0 | DU251: 0 | DV251: 0 | DW251: 0 | DX251: 0 | DY251: 0 | DZ251: 0 | EA251: 0 | EB251: 0 | EC251: 0 | ED251: 0 | EE251: 0 | EF251: 0 | EG251: 0 | EH251: =(EH248=$E$251)*1 -> 0 | EI251: 0 | EJ251: 0 | EK251: 0 | EL251: 0 | EM251: 0 | EN251: 0 | EO251: 0 | EP251: 0 | EQ251: 0 | ER251: 0 | ES251: 0 | ET251: 0 | EU251: 0 | EV251: 0 | EW251: 0 | EX251: 0 | EY251: 0 | EZ251: 0 | FA251: 0 | FB251: 0 | FC251: 0 | FD251: 0 | FE251: 0 | FF251: 0 | FG251: 0 | FH251: 0 | FI251: 0 | FJ251: 0 | FK251: 0 | FL251: 0 | FM251: 0 | FN251: 0 | FO251: 0 | FP251: 0 | FQ251: 0 | FR251: 0 | FS251: 0 | FT251: 0 | FU251: 0 | FV251: 0 | FW251: 0 | FX251: 0 | FY251: 0 | FZ251: 0 | GA251: 0 | GB251: 0 | GC251: 0
C252: Terminal Cash Flow - PE Multiple | E252: =SUM(H237:Z237) -> 1329074.947 | I252: =I251*$E$252 -> 0 | J252: =J251*$E$252 -> 0 | K252: 0 | L252: 0 | M252: 0 | N252: 0 | O252: 0 | P252: 0 | Q252: 0 | R252: 0 | S252: 0 | T252: 0 | U252: 0 | V252: 0 | W252: 0 | X252: 0 | Y252: 0 | Z252: 0 | AA252: 0 | AB252: 0 | AC252: 0 | AD252: 0 | AE252: 0 | AF252: 0 | AG252: 0 | AH252: 0 | AI252: 0 | AJ252: 0 | AK252: 0 | AL252: 0 | AM252: 0 | AN252: 0 | AO252: 0 | AP252: 0 | AQ252: 0 | AR252: 0 | AS252: 0 | AT252: 0 | AU252: 0 | AV252: 0 | AW252: 0 | AX252: 0 | AY252: 0 | AZ252: 0 | BA252: 0 | BB252: 0 | BC252: 0 | BD252: 0 | BE252: 0 | BF252: 0 | BG252: 0 | BH252: 0 | BI252: 0 | BJ252: 0 | BK252: 0 | BL252: 0 | BM252: 0 | BN252: 0 | BO252: 0 | BP252: 0 | BQ252: 0 | BR252: 0 | BS252: 0 | BT252: 0 | BU252: 0 | BV252: =BV251*$E$252 -> 0 | BW252: 0 | BX252: 0 | BY252: 0 | BZ252: 0 | CA252: 1329074.947 | CB252: 0 | CC252: 0 | CD252: 0 | CE252: 0 | CF252: 0 | CG252: 0 | CH252: 0 | CI252: 0 | CJ252: 0 | CK252: 0 | CL252: 0 | CM252: 0 | CN252: 0 | CO252: 0 | CP252: 0 | CQ252: 0 | CR252: 0 | CS252: 0 | CT252: 0 | CU252: 0 | CV252: 0 | CW252: 0 | CX252: 0 | CY252: 0 | CZ252: 0 | DA252: 0 | DB252: 0 | DC252: 0 | DD252: 0 | DE252: 0 | DF252: 0 | DG252: 0 | DH252: 0 | DI252: 0 | DJ252: 0 | DK252: 0 | DL252: 0 | DM252: 0 | DN252: 0 | DO252: 0 | DP252: 0 | DQ252: 0 | DR252: 0 | DS252: 0 | DT252: 0 | DU252: 0 | DV252: 0 | DW252: 0 | DX252: 0 | DY252: 0 | DZ252: 0 | EA252: 0 | EB252: 0 | EC252: 0 | ED252: 0 | EE252: 0 | EF252: 0 | EG252: 0 | EH252: =EH251*$E$252 -> 0 | EI252: 0 | EJ252: 0 | EK252: 0 | EL252: 0 | EM252: 0 | EN252: 0 | EO252: 0 | EP252: 0 | EQ252: 0 | ER252: 0 | ES252: 0 | ET252: 0 | EU252: 0 | EV252: 0 | EW252: 0 | EX252: 0 | EY252: 0 | EZ252: 0 | FA252: 0 | FB252: 0 | FC252: 0 | FD252: 0 | FE252: 0 | FF252: 0 | FG252: 0 | FH252: 0 | FI252: 0 | FJ252: 0 | FK252: 0 | FL252: 0 | FM252: 0 | FN252: 0 | FO252: 0 | FP252: 0 | FQ252: 0 | FR252: 0 | FS252: 0 | FT252: 0 | FU252: 0 | FV252: 0 | FW252: 0 | FX252: 0 | FY252: 0 | FZ252: 0 | GA252: 0 | GB252: 0 | GC252: 0
... 19 more rows

Sheet Reconciliation
Q1: J to USD | R1: ='Segment Time Series USD'!O3 -> 0.006252345
R2: Bank | S2: J $ | T2: USD | U2: EX Check | V2: Check | X2: Wealth | Y2: J $ | Z2: USD | AA2: EX Check | AC2: Insurance | AD2: J $ | AE2: USD | AF2: EX Check
U3: ='Segment Time Series USD'!O3 -> 0.006252345 | AA3: =U3 -> 0.006252345 | AF3: =AA3 -> 0.006252345
Q4: Consumer | R4: 1609495 | S4: ='Segment Time Series J$'!O73 -> 1609495 | T4: ='Segment Time Series USD'!O73 -> 10063.11802 | U4: =S4*$U$3 -> 10063.11802 | V4: =U4=T4 -> TRUE
Q5: Payment | R5: 4697270 | S5: ='Segment Time Series J$'!O192 -> 4697270 | T5: ='Segment Time Series USD'!O191 -> 29368.9526 | U5: =S5*$U$3 -> 29368.9526 | V5: =U5=T5 -> TRUE
Q6: Corporate | R6: 5025018 | S6: ='Segment Time Series J$'!O311 -> 5025018 | T6: ='Segment Time Series USD'!O310 -> 31418.14617 | U6: =S6*$U$3 -> 31418.14617 | V6: TRUE | AB6: Life | AC6: 38482918 | AD6: ='Segment Time Series J$'!O790 -> 38482918 | AE6: ='Segment Time Series USD'!O790 -> 240608.4799 | AF6: =AC6*AF3 -> 240608.4799
Q7: Treasury | R7: 13732329 | S7: ='Segment Time Series J$'!O430 -> 13732329 | T7: ='Segment Time Series USD'!O429 -> 85859.25856 | U7: =S7*$U$3 -> 85859.25856 | V7: TRUE | X7: 7001748 | Y7: ='Segment Time Series J$'!O670 -> 7001748 | Z7: ='Segment Time Series USD'!O670 -> 43777.3441 | AA7: =AA3*X7 -> 43777.3441 | AB7: General | AC7: 11399289 | AD7: ='Segment Time Series J$'!O910 -> 11399289 | AE7: ='Segment Time Series USD'!O910 -> 71272.28758 | AF7: =AF3*AC7 -> 71272.28758
Q8: Total | R8: =SUM(R4:R7) -> 25064112 | S8: ='Segment Time Series J$'!O549 -> 25064112 | T8: ='Segment Time Series USD'!O549 -> 156709.4753 | U8: =S8*$U$3 -> 156709.4753 | W8: Wealth | X8: =X7 -> 7001748 | Y8: =Y7 -> 7001748 | Z8: 43777.3441 | AA8: 43777.3441 | AB8: Insurance | AC8: =SUM(AC6:AC7) -> 49882207 | AD8: ='Segment Time Series J$'!O995 -> 49882207 | AE8: =SUM(AE6:AE7) -> 311880.7675 | AF8: =AF3*AC8 -> 311880.7675
Q11: Profit Before Tax -- Segments
R12: Bank | S12: Wealth | T12: Insurance | U12: Subtotal | V12: Adjustment | W12: Adjusted
R13: =R8 -> 25064112 | S13: =X8 -> 7001748 | T13: =AC8 -> 49882207 | U13: =SUM(R13:T13) -> 81948067 | V13: -24601031 | W13: =U13+V13 -> 57347036
Q15: Other Corp | V15: -12440462 | W15: =V15 -> -12440462
Q16: Assoc | V16: 599731 | W16: =V16 -> 599731
Q17: Profit Before Tax | T17: Year | U17: 45506305 | W17: =W13+W15+W16 -> 45506305 | X17: =W17*U3 -> 284521.1185
Q18: Adjustment | T18: Adjustment | U18: =U13-U17 -> 36441762 | W18: =W13-W17 -> 11840731
T19: Factor | U19: =U18/U13 -> 0.444693369
R20: =R12 -> Bank | S20: =S12 -> Wealth | T20: Insurance | V20: =U3 -> 0.006252345
Q21: Adjustment | R21: =V96 -> 31259537.74 | S21: =W96 -> 2618394.443 | T21: =Z96 -> 2563829.82
Q22: Percent | R22: =$U$19 -> 0.444693369 | S22: =$U$19 -> 0.444693369 | T22: 0.444693369
Q23: Adjustment | R23: =R22*R13 -> 11145844.41 | S23: =S22*S13 -> 3113630.907 | T23: 22182286.69 | U23: =SUM(R23:T23) -> 36441762
Q24: Adjusted | R24: =R13-R23 -> 13918267.59 | S24: =S13-S23 -> 3888117.093 | T24: =T13-T23 -> 27699920.31 | U24: =T24+S24+R24 -> 45506305
Q25: Assets | R25: Bank | S25: Wealth | X25: Liabilities | AB25: Equity
Q26: Consumer | R26: 610372126 | T26: 742930397 | V26: =$V$20*R26*1000 -> 3816257110 | X26: =TRANSPOSE(E36:H36) -> 529360557 | Z26: =J36 -> 585293383
Q27: Payment | R27: 60442645 | T27: 100749900 | V27: =$V$20*R27*1000 -> 377908269.3 | X27: 40922114 | Z27: =K36 -> 54844224
Q28: Corporate | R28: 222910325 | V28: 1393712256 | X28: 164094988
Q29: Treasury | R29: 461292652 | V29: 2884160806 | X29: 529900637
Q30: Total | R30: =SUM(R26:R29) -> 1355017748 | S30: 460970258 | T30: =SUM(T26:T29) -> 843680297 | U30: =R30+S30+T30 -> 2659668303 | V30: =U30*V20*1000 -> 1.662916382e+10 | X30: =SUM(_xlfn.ANCHORARRAY(X26)) -> 1264278296 | Y30: =I36 -> 409911106 | Z30: =SUM(_xlfn.ANCHORARRAY(Z26)) -> 585293383 | AB30: =R30*R39-X30*X39 -> 50363250.66
R33: After Adj | T33: Before Adj | U33: =T34-U30 -> 0 | X33: After Adj | Z33: Before Adj
Q34: Assets | R34: 2360392797 | S34: -299275506 | T34: =R34-S34 -> 2659668303 | X34: 2143759186 | Y34: -170567843 | Z34: =X34-Y34 -> 2314327029
Q35: Assoc | R35: 10130334 | X35: 0
E36: 529360557 | F36: 40922114 | G36: 164094988 | H36: 529900637 | I36: 409911106 | J36: 585293383 | K36: 54844224 | Q36: Unalloc | R36: 35473816 | X36: 7902413
Q37: Total | R37: =R34+R35+R36 -> 2405996947 | V37: =R37*$V$20 -> 15043122.98 | X37: =X34+X35+X36 -> 2151661599 | AA37: =R37-X37 -> 254335348
Q38: Segments | R38: =U30 -> 2659668303 | V38: =R38*$V$20 -> 16629163.82 | X38: =Z34 -> 2314327029 | AA38: =R38-X38 -> 345341274
Q39: Adjustment Factor | R39: =R37/R38 -> 0.9046229352 | X39: =X37/X38 -> 0.9297137233
Q51: Banking NIM | R51: 78266655
Q53: Fee | R53: 30756871
R64: 144290345
R72: 45506574
P75: Inc to Stockholders | R75: 23131672 | T75: =R75*$R$1 -> 144627.1938
P76: Income to Non Cntl | R76: 13782805 | T76: =R76*$R$1 -> 86174.85193
P77: Total Income | R77: =SUM(R75:R76) -> 36914477 | T77: 230802.0457
P79: Return on Total Equity | R79: =R77/AVERAGE(U143:V143) -> 0.158688622
P80: Return on Non cntl | R80: =R76/AVERAGE(U142:V142) -> 0.2936498655
P81: Return on Shareholders | R81: =R75/AVERAGE(U143:V143) -> 0.09943885034
R91: Consumer | S91: Payment | T91: Corporate | U91: Treasury | V91: Total Bank | W91: Wealth | X91: Life Ins | Y91: General | Z91: Insurance | AA91: Total
R92: 46727203 | S92: 38723560 | T92: 15678151 | U92: 24012397 | V92: =SUM(R92:U92) -> 125141311 | W92: 26294617 | X92: 134437730 | Y92: 76883856 | Z92: =X92+Y92 -> 211321586 | AA92: =V92+W92+Z92 -> 362757514
R93: 19344891 | S93: 261827 | T93: 8227433 | U93: 32300414 | V93: =SUM(R93:U93) -> 60134565 | W93: 5037055 | X93: 4479200 | Y93: 452888 | Z93: =X93+Y93 -> 4932088 | AA93: =V93+W93+Z93 -> 70103708
Q94: % of Rev | V94: =V93/V92 -> 0.4805332829 | W94: =W93/W92 -> 0.1915622121 | Z94: =Z93/Z92 -> 0.02333925319
Q95: % of Total | V95: =V93/$AA$93 -> 0.8577943552 | W95: =W93/$AA$93 -> 0.07185147753 | Z95: =Z93/$AA$93 -> 0.07035416729
Q96: Adjustment Factor | V96: =V95*AA96 -> 31259537.74 | W96: =W95*AA96 -> 2618394.443 | Z96: =Z95*AA96 -> 2563829.82 | AA96: =U18 -> 36441762
R97: 32619126 | S97: 8000367 | T97: 8120706 | U97: 8484121 | V97: =SUM(R97:U97) -> 57224320 | W97: 6973894 | X97: 29935086 | Y97: 1808878 | Z97: =X97+Y97 -> 31743964 | AA97: =V97+W97+Z97 -> 95942178
W138: 37
T139: Total Liabilities | U139: 2151661599 | V139: 2105268037
Z140: =Z141/U141 -> 0.006252345
T141: Equity to Holders | U141: 199077280 | V141: 172294502 | Y141: =U141*$AA$3 -> 1244699.836 | Z141: =Summary!DD54 -> 1244699.836 | AA141: ='Financial Highlights'!CY14 -> 1244699.836
T142: Non-Control | U142: 55528068 | V142: 38344306 | Y142: =U142*$AA$3 -> 347180.6383
T143: Total Equity | U143: =SUM(U141:U142) -> 254605348 | V143: =SUM(V141:V142) -> 210638808 | Y143: =U143*$AA$3 -> 1591880.475 | AA143: ='Financial Highlights'!CY16 -> 1590192.341
U144: =U142/U143 -> 0.2180946647 | V144: =V142/V143 -> 0.1820381836
T145: Total Assets | U145: 2405996947 | V145: 2316010845 | Y145: =U145*AA3 -> 15043122.98
T147: Equity and Lia | U147: =U143+U139 -> 2406266947 | V147: =V143+V139 -> 2315906845

Sheet Tab 1 - Assumptions
F1: FALSE | I1: ='Tab 9 Partner Returns'!F53 -> 0.2498782098
B2: Scenario | E2: 1
H3: 1 | I3: 2 | J3: 3 | K3: 4 | L3: 5 | M3: 6 | N3: 7 | O3: 8 | P3: 9 | Q3: 10 | R3: 11 | S3: 12 | T3: 13 | U3: 14 | V3: 15 | W3: 16
E4: Unit | F4: =INDEX(H4:Z4,$E$2) -> Base | H4: Base | I4: Delayed Execution Time | J4: Short Enforcement Execution | K4: Long Accumulation | L4: Short Accumulation | M4: Low Segment Valuation | N4: High Segment Valuation | O4: Other | P4: Base Case Mid-Debt | Q4: Base Case Low Debt | R4: Base Case High Debt | S4: High Transaction Cost | T4: Low Transaction Cost | U4: Low Transaction Cost | V4: Low Enforcement Cost | W4: High Enforcement Cost
B5: Timing and Dates
C7: Model Start Date | E7: Date | F7: =INDEX(H7:AZ7,$E$2) -> 2025-12-26 | H7: 2025-12-26 | I7: 2025-12-26 | J7: 2025-12-26 | K7: 2025-12-26 | L7: 2025-12-26 | M7: 2025-12-26 | N7: 2025-12-26 | O7: 2025-12-26 | P7: 2025-12-26 | Q7: 2025-12-26 | R7: 2025-12-26 | S7: 2025-12-26 | T7: 2025-12-26 | U7: 2025-12-26 | V7: 2025-12-26 | W7: 2025-12-26
C8: Final Debt Purchase Date | E8: Date | F8: =INDEX(H8:AZ8,$E$2) -> 2025-12-31 | H8: 2025-12-31 | I8: 2025-12-31 | J8: 2025-12-31 | K8: 2025-12-31 | L8: 2025-12-31 | M8: 2025-12-31 | N8: 2025-12-31 | O8: 2025-12-31 | P8: 2025-12-31 | Q8: 2025-12-31 | R8: 2025-12-31 | S8: 2025-12-31 | T8: 2025-12-31 | U8: 2025-12-31 | V8: 2025-12-31 | W8: 2025-12-31
C9: Enforcement Start from Debt Purchase | E9: Months | F9: =INDEX(H9:AZ9,$E$2) -> 1.5 | H9: 1.5 | I9: 3 | J9: 6 | K9: 1 | L9: 1 | M9: 1 | N9: 1 | O9: 1 | P9: 1 | Q9: 1 | R9: 1 | S9: 1 | T9: 1 | U9: 6 | V9: 6 | W9: 6
C11: Enforcement Execution Time - Short | E11: Months | F11: =INDEX(H11:AZ11,$E$2) -> 0 | H11: 0 | I11: 12 | J11: 2 | K11: 6 | L11: 6 | M11: 6 | N11: 6 | O11: 6 | P11: 6 | Q11: 6 | R11: 6 | S11: 6 | T11: 6 | U11: 6 | V11: 6 | W11: 6
C12: Enforcement Execution Time - Long | E12: Months | F12: =INDEX(H12:AZ12,$E$2) -> 12 | H12: 12 | I12: 12 | J12: 2 | K12: 12 | L12: 12 | M12: 12 | N12: 12 | O12: 12 | P12: 12 | Q12: 12 | R12: 12 | S12: 12 | T12: 12 | U12: 12 | V12: 12 | W12: 12
C13: Enforcement Execution - Applied | E13: Months | F13: =INDEX(H13:AZ13,$E$2) -> 0 | H13: 0 | I13: =MEDIAN(I11:I12) -> 12 | J13: =MEDIAN(J11:J12) -> 2 | K13: =MEDIAN(K11:K12) -> 9 | L13: =MEDIAN(L11:L12) -> 9 | M13: =MEDIAN(M11:M12) -> 9 | N13: =MEDIAN(N11:N12) -> 9 | O13: =MEDIAN(O11:O12) -> 9 | P13: 9 | Q13: 9 | R13: 9 | S13: 9 | T13: 9 | U13: 9 | V13: 9 | W13: 9
C14: Enforcement Begin Date for Pledge | E14: Date | F14: =INDEX(H14:AZ14,$E$2) -> 2026-02-28 | H14: =EOMONTH(H$8,ROUNDUP(H9,0)) -> 2026-02-28 | I14: =EOMONTH(I$8,I9) -> 2026-03-31 | J14: 2026-06-30 | K14: 2026-01-31 | L14: 2026-01-31 | M14: 2026-01-31 | N14: 2026-01-31 | O14: 2026-01-31 | P14: 2026-01-31 | Q14: 2026-01-31 | R14: 2026-01-31 | S14: 2026-01-31 | T14: 2026-01-31 | U14: 2026-06-30 | V14: 2026-06-30 | W14: 2026-06-30
C15: Enforcement End Date | E15: Date | F15: =INDEX(H15:AZ15,$E$2) -> 2026-02-28 | H15: =EOMONTH(H$14,H13) -> 2026-02-28 | I15: =EOMONTH(I$8,I13) -> 2026-12-31 | J15: =EOMONTH(J$8,J13) -> 2026-02-28 | K15: 2026-09-30 | L15: 2026-09-30 | M15: 2026-09-30 | N15: 2026-09-30 | O15: 2026-09-30 | P15: 2026-09-30 | Q15: 2026-09-30 | R15: 2026-09-30 | S15: 2026-09-30 | T15: 2026-09-30 | U15: =EOMONTH(U$8,U13) -> 2026-09-30 | V15: =EOMONTH(V$8,V13) -> 2026-09-30 | W15: =EOMONTH(W$8,W13) -> 2026-09-30
C17: Months Between Enformcement and Accumulation | E17: Months | F17: =INDEX(H17:AZ17,$E$2) -> 0 | H17: 0 | I17: 0 | J17: 0 | K17: 0 | L17: 0 | M17: 0 | N17: 0 | O17: 0 | P17: 0 | Q17: 0 | R17: 0 | S17: 0 | T17: 0 | U17: 0 | V17: 0 | W17: 0
C19: Accumulation Code for Scenario | E19: Code | F19: 1
C21: Accumulation Date Start | E21: Date | F21: =INDEX(H21:AZ21,$E$2) -> 2026-02-28 | H21: =EOMONTH(H15,H17) -> 2026-02-28 | I21: =EOMONTH(I15,I17) -> 2026-12-31 | J21: 2026-02-28 | K21: 2026-09-30 | L21: 2026-09-30 | M21: 2026-09-30 | N21: 2026-09-30 | O21: 2026-09-30 | P21: 2026-09-30 | Q21: 2026-09-30 | R21: 2026-09-30 | S21: 2026-09-30 | T21: 2026-09-30 | U21: 2026-09-30 | V21: 2026-09-30 | W21: 2026-09-30
C22: Accumulation period Low Case | E22: Months | F22: =INDEX(H22:AZ22,$E$2) -> 3 | H22: 3 | I22: 3 | J22: 3 | K22: 9 | L22: 2 | M22: 3 | N22: 3 | O22: 3 | P22: 3 | Q22: 3 | R22: 3 | S22: 3 | T22: 3 | U22: 3 | V22: 3 | W22: 3
C23: Accumulation period High Case | E23: Months | F23: =INDEX(H23:AZ23,$E$2) -> 6 | H23: 6 | I23: 6 | J23: 6 | K23: 6 | L23: 3 | M23: 6 | N23: 6 | O23: 6 | P23: 6 | Q23: 6 | R23: 6 | S23: 6 | T23: 6 | U23: 6 | V23: 6 | W23: 6
C24: Accumulation period Midpoint | E24: Months | F24: =INDEX(H24:AZ24,$E$2) -> 5 | H24: =ROUNDUP(AVERAGE(H22:H23),0) -> 5 | I24: =ROUNDUP(AVERAGE(I22:I23),0) -> 5 | J24: 5 | K24: =ROUNDUP(AVERAGE(K22:K23),0) -> 8 | L24: =ROUNDUP(AVERAGE(L22:L23),0) -> 3 | M24: =ROUNDUP(AVERAGE(M22:M23),0) -> 5 | N24: =ROUNDUP(AVERAGE(N22:N23),0) -> 5 | O24: =ROUNDUP(AVERAGE(O22:O23),0) -> 5 | P24: 5 | Q24: 5 | R24: 5 | S24: 5 | T24: 5 | U24: 5 | V24: 5 | W24: 5
C25: Accumulation period Applied Case | E25: Months | F25: =INDEX(H25:AZ25,$E$2) -> 5 | H25: =ROUNDUP(AVERAGE(H22:H23),0) -> 5 | I25: =ROUNDUP(AVERAGE(I22:I23),0) -> 5 | J25: =ROUNDUP(AVERAGE(J22:J23),0) -> 5 | K25: 8 | L25: 3 | M25: 5 | N25: 5 | O25: 5 | P25: 5 | Q25: 5 | R25: 5 | S25: 5 | T25: 5 | U25: 5 | V25: 5 | W25: 5
C26: Accumulation End Date | E26: Date | F26: =INDEX(H26:AZ26,$E$2) -> 2026-07-31 | H26: =EOMONTH(H21,H25) -> 2026-07-31 | I26: =EOMONTH(I21,I25) -> 2027-05-31 | J26: =EOMONTH(J21,J25) -> 2026-07-31 | K26: 2027-05-31 | L26: 2026-12-31 | M26: 2027-02-28 | N26: 2027-02-28 | O26: 2027-02-28 | P26: 2027-02-28 | Q26: 2027-02-28 | R26: 2027-02-28 | S26: 2027-02-28 | T26: 2027-02-28 | U26: 2027-02-28 | V26: 2027-02-28 | W26: 2027-02-28
C28: Months Between Accumulation End and Final Purchase | E28: Months | F28: =INDEX(H28:AZ28,$E$2) -> 0 | H28: 0 | I28: 0 | J28: 0 | K28: 0 | L28: 0 | M28: 0 | N28: 0 | O28: 0 | P28: 0 | Q28: 0 | R28: 0 | S28: 0 | T28: 0 | U28: 0 | V28: 0 | W28: 0.1
C29: Acquisition of Company | E29: Date | F29: =INDEX(H29:AZ29,$E$2) -> 2026-07-31 | H29: =EOMONTH(H26,H28) -> 2026-07-31 | I29: =EOMONTH(I26,I28) -> 2027-05-31 | J29: =EOMONTH(J26,J28) -> 2026-07-31 | K29: 2027-05-31 | L29: 2026-12-31 | M29: 2027-02-28 | N29: 2027-02-28 | O29: 2027-02-28 | P29: 2027-02-28 | Q29: 2027-02-28 | R29: 2027-02-28 | S29: 2027-02-28 | T29: 2027-02-28 | U29: 2027-02-28 | V29: 2027-02-28 | W29: 2027-02-28
C31: Start of Historic Analysis for Consolidated Model | E31: Date | F31: =INDEX(H31:AZ31,$E$2) -> 2002-09-30 | H31: 2002-09-30 | I31: 2002-09-30 | J31: 2002-09-30 | K31: 2002-09-30 | L31: 2002-09-30 | M31: 2002-09-30 | N31: 2002-09-30 | O31: 2002-09-30 | P31: 2002-09-30 | Q31: 2002-09-30 | R31: 2002-09-30 | S31: 2002-09-30 | T31: 2002-09-30 | U31: 2002-09-30 | V31: 2002-09-30 | W31: 2002-09-30
C32: Start of Historic Analysis for Consolidated Model | E32: Date | F32: =INDEX(H32:AZ32,$E$2) -> 2016-09-30 | H32: 2016-09-30 | I32: 2016-09-30 | J32: 2016-09-30 | K32: 2016-09-30 | L32: 2016-09-30 | M32: 2016-09-30 | N32: 2016-09-30 | O32: 2016-09-30 | P32: 2016-09-30 | Q32: 2016-09-30 | R32: 2016-09-30 | S32: 2016-09-30 | T32: 2016-09-30 | U32: 2016-09-30 | V32: 2016-09-30 | W32: 2016-09-30
C34: Holding/Explicit Period Total NCB | E34: Years | F34: 5 | G34: =INDEX(H34:W34,scenario) -> 5 | H34: =HOLDING_PERIOD -> 5 | I34: 5 | J34: 5 | K34: 5 | L34: 5 | M34: 5 | N34: 5 | O34: 5 | P34: 5 | Q34: 5 | R34: 5 | S34: 5 | T34: 5 | U34: 5 | V34: 5 | W34: 5
C35: Exit/Terminal Period for Valuation | E35: Date | F35: =EOMONTH($H29,F34*Months_in_year) -> 2031-07-31 | H35: =EOMONTH($H29,H34*Months_in_year) -> 2031-07-31 | I35: =EOMONTH(I29,I34*Months_in_year) -> 2032-05-31 | J35: 2031-07-31 | K35: =EOMONTH(K29,K34*Months_in_year) -> 2032-05-31 | L35: =EOMONTH(L29,L34*Months_in_year) -> 2031-12-31 | M35: 2032-02-29 | N35: 2032-02-29 | O35: 2032-02-29 | P35: 2032-02-29 | Q35: 2032-02-29 | R35: 2032-02-29 | S35: 2032-02-29 | T35: 2032-02-29 | U35: 2032-02-29 | V35: 2032-02-29 | W35: 2032-02-29
C37: Start of Segment Historic Analysis | E37: Date | F37: =INDEX(H37:AZ37,$E$2) -> 2015-12-31 | H37: 2015-12-31 | I37: 2015-12-31 | J37: 2015-12-31 | K37: 2015-12-31 | L37: 2015-12-31 | M37: 2015-12-31 | N37: 2015-12-31 | O37: 2015-12-31 | P37: 2015-12-31 | Q37: 2015-12-31 | R37: 2015-12-31 | S37: 2015-12-31 | T37: 2015-12-31 | U37: 2015-12-31 | V37: 2015-12-31 | W37: 2015-12-31
C39: Holding/Explicit Period - Bank Segment | E39: Years | F39: =HOLDING_PERIOD -> 5 | H39: =$F$39 -> 5 | I39: =$F$39 -> 5 | J39: 5 | K39: 5 | L39: 5 | M39: 5 | N39: 5 | O39: 5 | P39: 5 | Q39: 5 | R39: 5 | S39: 5 | T39: 5 | U39: 5 | V39: 5 | W39: 5
C40: Holding/Explicit Period - Wealth/Investment Advisory | E40: Years | F40: =HOLDING_PERIOD -> 5 | H40: =$F$40 -> 5 | I40: =$F$40 -> 5 | J40: 5 | K40: 5 | L40: 5 | M40: 5 | N40: 5 | O40: 5 | P40: 5 | Q40: 5 | R40: 5 | S40: 5 | T40: 5 | U40: 5 | V40: 5 | W40: 5
C41: Holding/Explicit Period - Asset Management | E41: Years | F41: =HOLDING_PERIOD -> 5 | H41: =$F$41 -> 5 | I41: =$F$41 -> 5 | J41: 5 | K41: 5 | L41: 5 | M41: 5 | N41: 5 | O41: 5 | P41: 5 | Q41: 5 | R41: 5 | S41: 5 | T41: 5 | U41: 5 | V41: 5 | W41: 5
C42: Holding/Explicit Period - Insurance | E42: Years | F42: =HOLDING_PERIOD -> 5 | H42: =$F$42 -> 5 | I42: =$F$42 -> 5 | J42: 5 | K42: 5 | L42: 5 | M42: 5 | N42: 5 | O42: 5 | P42: 5 | Q42: 5 | R42: 5 | S42: 5 | T42: 5 | U42: 5 | V42: 5 | W42: 5
F43: =INDEX(H43:AZ43,$E$2) -> 0
C44: Exit/Terminal Period for Valuation - Bank Segment | E44: Date | F44: =INDEX(H44:AZ44,$E$2) -> 2031-07-31 | H44: =EOMONTH($H29,H39*Months_in_year) -> 2031-07-31 | I44: 2031-07-31 | J44: 2031-07-31 | K44: 2031-07-31 | L44: 2031-07-31 | M44: 2031-07-31 | N44: 2031-07-31 | O44: 2031-07-31 | P44: 2031-07-31 | Q44: 2031-07-31 | R44: 2031-07-31 | S44: 2031-07-31 | T44: 2031-07-31 | U44: 2031-07-31 | V44: 2031-07-31 | W44: 2031-07-31
C45: Exit/Terminal Period for Valuation - Wealth/Advisory | E45: Date | F45: =INDEX(H45:AZ45,$E$2) -> 2031-07-31 | H45: =EOMONTH($H29,H40*Months_in_year) -> 2031-07-31 | I45: 2031-07-31 | J45: 2031-07-31 | K45: 2031-07-31 | L45: 2031-07-31 | M45: 2031-07-31 | N45: 2031-07-31 | O45: 2031-07-31 | P45: 2031-07-31 | Q45: 2031-07-31 | R45: 2031-07-31 | S45: 2031-07-31 | T45: 2031-07-31 | U45: 2031-07-31 | V45: 2031-07-31 | W45: 2031-07-31
C46: Exit/Terminal Period for Valuation - Asset Management | E46: Date | F46: =INDEX(H46:AZ46,$E$2) -> 2031-07-31 | H46: =EOMONTH($H29,H41*Months_in_year) -> 2031-07-31 | I46: 2031-07-31 | J46: 2031-07-31 | K46: 2031-07-31 | L46: 2031-07-31 | M46: 2031-07-31 | N46: 2031-07-31 | O46: 2031-07-31 | P46: 2031-07-31 | Q46: 2031-07-31 | R46: 2031-07-31 | S46: 2031-07-31 | T46: 2031-07-31 | U46: 2031-07-31 | V46: 2031-07-31 | W46: 2031-07-31
C47: Exit/Terminal Period for Valuation - Insurance | E47: Date | F47: =INDEX(H47:AZ47,$E$2) -> 2031-07-31 | H47: =EOMONTH($H29,H42*Months_in_year) -> 2031-07-31 | I47: 2031-07-31 | J47: 2031-07-31 | K47: 2031-07-31 | L47: 2031-07-31 | M47: 2031-07-31 | N47: 2031-07-31 | O47: 2031-07-31 | P47: 2031-07-31 | Q47: 2031-07-31 | R47: 2031-07-31 | S47: 2031-07-31 | T47: 2031-07-31 | U47: 2031-07-31 | V47: 2031-07-31 | W47: 2031-07-31
C49: Last Historic Data for Financials | E49: Date | F49: =INDEX(H49:AZ49,$E$2) -> 2025-09-30 | H49: 2025-09-30 | I49: 2025-09-30 | J49: 2025-09-30 | K49: 2025-09-30 | L49: 2025-09-30 | M49: 2025-09-30 | N49: 2025-09-30 | O49: 2025-09-30 | P49: 2025-09-30 | Q49: 2025-09-30 | R49: 2025-09-30 | S49: 2025-09-30 | T49: 2025-09-30 | U49: 2025-09-30 | V49: 2025-09-30 | W49: 2025-09-30
B52: Debt and Enforcement
C54: Code Number for Debt | E54: Code | F54: 2 | H54: =$F$54 -> 2 | I54: =$F$54 -> 2 | J54: 2 | K54: 2 | L54: 2 | M54: 2 | N54: 2 | O54: 2 | P54: 2 | Q54: 2 | R54: 2 | S54: 2 | T54: 2 | U54: 2 | V54: 2 | W54: 2
C56: Nominal Amount of Debt - Midpoint | E56: USD | F56: =INDEX(H56:AZ56,$E$2) -> 375000000 | H56: 375000000 | I56: 375000000 | J56: 375000000 | K56: 375000000 | L56: 375000000 | M56: 375000000 | N56: 375000000 | O56: 375000000 | P56: 375000000 | Q56: 375000000 | R56: 375000000 | S56: 375000000 | T56: 375000000 | U56: 375000000 | V56: 375000000 | W56: 375000000
C57: Nominal Amount of Debt - Low Range | E57: USD | F57: =INDEX(H57:AZ57,$E$2) -> 360000000 | H57: 360000000 | I57: 360000000 | J57: 360000000 | K57: 360000000 | L57: 360000000 | M57: 360000000 | N57: 360000000 | O57: 360000000 | P57: 360000000 | Q57: 360000000 | R57: 360000000 | S57: 360000000 | T57: 360000000 | U57: 360000000 | V57: 360000000 | W57: 360000000
C58: Nominal Amount of Debt - Highpoint | E58: USD | F58: =INDEX(H58:AZ58,$E$2) -> 380000000 | H58: 380000000 | I58: 380000000 | J58: 380000000 | K58: 380000000 | L58: 380000000 | M58: 380000000 | N58: 380000000 | O58: 380000000 | P58: 380000000 | Q58: 380000000 | R58: 380000000 | S58: 380000000 | T58: 380000000 | U58: 380000000 | V58: 380000000 | W58: 380000000
C59: Nominal Debt Applied | E59: Code | F59: =INDEX(H59:AZ59,$E$2) -> 360000000 | H59: =INDEX(H56:H58,H54) -> 360000000 | I59: =INDEX(I56:I58,I54) -> 360000000 | J59: =INDEX(J56:J58,J54) -> 360000000 | K59: =INDEX(K56:K58,K54) -> 360000000 | L59: =INDEX(L56:L58,L54) -> 360000000 | M59: =INDEX(M56:M58,M54) -> 360000000 | N59: =INDEX(N56:N58,N54) -> 360000000 | O59: =INDEX(O56:O58,O54) -> 360000000 | P59: =INDEX(P56:P58,P54) -> 360000000 | Q59: =INDEX(Q56:Q58,Q54) -> 360000000 | R59: =INDEX(R56:R58,R54) -> 360000000 | S59: =INDEX(S56:S58,S54) -> 360000000 | T59: =INDEX(T56:T58,T54) -> 360000000 | U59: =INDEX(U56:U58,U54) -> 360000000 | V59: =INDEX(V56:V58,V54) -> 360000000 | W59: =INDEX(W56:W58,W54) -> 360000000
C61: Minimum Debt purchase 1st date of debt purchase | E61: % | F61: =INDEX(H61:AZ61,$E$2) -> 0.15 | H61: 0.15 | I61: 0.15 | J61: 0.15 | K61: 0.15 | L61: 0.15 | M61: 0.15 | N61: 0.15 | O61: 0.15 | P61: 0.15 | Q61: 0.15 | R61: 0.15 | S61: 0.15 | T61: 0.15 | U61: 0.15 | V61: 0.15 | W61: 0.15
C62: Daily purchase % of debt on average | E62: % | F62: =INDEX(H62:AZ62,$E$2) -> 0.17 | H62: =(100%-H61)/(H8-H7) -> 0.17 | I62: =(100%-I61)/(I8-I7) -> 0.17 | J62: 0.17 | K62: 0.17 | L62: 0.17 | M62: 0.17 | N62: 0.17 | O62: 0.17 | P62: 0.17 | Q62: 0.17 | R62: 0.17 | S62: 0.17 | T62: 0.17 | U62: 0.17 | V62: 0.17 | W62: 0.17
C64: Cents on Dollar Code | E64: Code | F64: 2 | H64: =$F$64 -> 2 | I64: =$F$64 -> 2 | J64: 2 | K64: 2 | L64: 2 | M64: 2 | N64: 2 | O64: 2 | P64: 2 | Q64: 2 | R64: 2 | S64: 2 | T64: 2 | U64: 2 | V64: 2 | W64: 2
C66: Pricing of Debt - Low | E66: Cents on Dollar | F66: =INDEX(H66:AZ66,$E$2) -> 60 | H66: 60 | I66: 60 | J66: 60 | K66: 60 | L66: 60 | M66: 60 | N66: 60 | O66: 60 | P66: 60 | Q66: 60 | R66: 60 | S66: 60 | T66: 60 | U66: 60 | V66: 60 | W66: 60
C67: Pricing of Debt - High | E67: Cents on Dollar | F67: =INDEX(H67:AZ67,$E$2) -> 70 | H67: 70 | I67: 70 | J67: 70 | K67: 70 | L67: 70 | M67: 70 | N67: 70 | O67: 70 | P67: 70 | Q67: 70 | R67: 70 | S67: 70 | T67: 70 | U67: 70 | V67: 70 | W67: 70
C68: Pricing of Debt - Mid | E68: Cents on Dollar | F68: =INDEX(H68:AZ68,$E$2) -> 65 | H68: 65 | I68: 65 | J68: 65 | K68: 65 | L68: 65 | M68: 65 | N68: 65 | O68: 65 | P68: 65 | Q68: 65 | R68: 65 | S68: 65 | T68: 65 | U68: 65 | V68: 65 | W68: 65
C69: Pricing of Debt - Applied | E69: Cents on Dollar | F69: =INDEX(H69:AZ69,$E$2) -> 70 | H69: =INDEX(H66:H68,H64) -> 70 | I69: =INDEX(I66:I68,I64) -> 70 | J69: =INDEX(J66:J68,J64) -> 70 | K69: =INDEX(K66:K68,K64) -> 70 | L69: =INDEX(L66:L68,L64) -> 70 | M69: =INDEX(M66:M68,M64) -> 70 | N69: =INDEX(N66:N68,N64) -> 70 | O69: =INDEX(O66:O68,O64) -> 70 | P69: =INDEX(P66:P68,P64) -> 70 | Q69: =INDEX(Q66:Q68,Q64) -> 70 | R69: =INDEX(R66:R68,R64) -> 70 | S69: =INDEX(S66:S68,S64) -> 70 | T69: =INDEX(T66:T68,T64) -> 70 | U69: =INDEX(U66:U68,U64) -> 70 | V69: =INDEX(V66:V68,V64) -> 70 | W69: =INDEX(W66:W68,W64) -> 70
C71: Payment for Debt | E71: USD | F71: =INDEX(H71:AZ71,$E$2) -> 252000000 | H71: =H59*H69/100 -> 252000000 | I71: 252000000 | J71: 252000000 | K71: 252000000 | L71: 252000000 | M71: 252000000 | N71: 252000000 | O71: 252000000 | P71: 252000000 | Q71: 252000000 | R71: 252000000 | S71: 252000000 | T71: 252000000 | U71: 252000000 | V71: 252000000 | W71: 252000000
C73: Nominlal Interest Rate (6-9%) | E73: % p.a | F73: =INDEX(H73:AZ73,$E$2) -> 0.075 | H73: 0.075 | I73: 0.075 | J73: 0.075 | K73: 0.075 | L73: 0.075 | M73: 0.075 | N73: 0.075 | O73: 0.075 | P73: 0.075 | Q73: 0.075 | R73: 0.075 | S73: 0.075 | T73: 0.075 | U73: 0.075 | V73: 0.075 | W73: 0.075
C74: Flag for Interest Payment (1-pay; 0-accrue as PIK) | E74: flag | F74: =INDEX(H74:AZ74,$E$2) -> 0 | H74: 0 | I74: 0 | J74: 0 | K74: 0 | L74: 0 | M74: 0 | N74: 0 | O74: 0 | P74: 0 | Q74: 0 | R74: 0 | S74: 0 | T74: 0 | U74: 0 | V74: 0 | W74: 0
C76: Enforcement Fee Payable % of Nominal Debt | E76: % | F76: =INDEX(H76:AZ76,$E$2) -> 0.05 | H76: 0.05 | I76: 0.05 | J76: 0.05 | K76: 0.05 | L76: 0.05 | M76: 0.05 | N76: 0.05 | O76: 0.05 | P76: 0.05 | Q76: 0.05 | R76: 0.05 | S76: 0.05 | T76: 0.05 | U76: 0.05 | V76: 0.05 | W76: 0.05
C77: Enforcement Fee Applied (At Beginning) | E77: USD | F77: =INDEX(H77:AZ77,$E$2) -> 18000000 | H77: =H59*H76 -> 18000000 | I77: =I59*I76 -> 18000000 | J77: =J59*J76 -> 18000000 | K77: 18000000 | L77: 18000000 | M77: 18000000 | N77: 18000000 | O77: 18000000 | P77: 18000000 | Q77: 18000000 | R77: 18000000 | S77: 18000000 | T77: 18000000 | U77: =U59*U76 -> 18000000 | V77: =V59*V76 -> 18000000 | W77: =W59*W76 -> 18000000
F78: =INDEX(H78:AZ78,$E$2) -> 0
C79: Enforcement Legal - Low | E79: USD | F79: =INDEX(H79:AZ79,$E$2) -> 1500000 | H79: 1500000 | I79: 1500000 | J79: 1500000 | K79: 1500000 | L79: 1500000 | M79: 1500000 | N79: 1500000 | O79: 1500000 | P79: 1500000 | Q79: 1500000 | R79: 1500000 | S79: 1500000 | T79: 1500000 | U79: 1500000 | V79: 1500000 | W79: 1500000
C80: Enforcement Legal - High | E80: USD | F80: =INDEX(H80:AZ80,$E$2) -> 2500000 | H80: 2500000 | I80: 2500000 | J80: 2500000 | K80: 2500000 | L80: 2500000 | M80: 2500000 | N80: 2500000 | O80: 2500000 | P80: 2500000 | Q80: 2500000 | R80: 2500000 | S80: 2500000 | T80: 2500000 | U80: 2500000 | V80: 2500000 | W80: 2500000
C81: Enforcement Legal - Midpoint (At Beginning) | E81: USD | F81: =INDEX(H81:AZ81,$E$2) -> 2000000 | H81: =AVERAGE(H79:H80) -> 2000000 | I81: =AVERAGE(I79:I80) -> 2000000 | J81: =AVERAGE(J79:J80) -> 2000000 | K81: 2000000 | L81: 2000000 | M81: 2000000 | N81: 2000000 | O81: 2000000 | P81: 2000000 | Q81: 2000000 | R81: 2000000 | S81: 2000000 | T81: 2000000 | U81: 2000000 | V81: =V79 -> 1500000 | W81: =W80 -> 2500000
C84: Tax Leakage - Low | E84: % | F84: =INDEX(H84:AZ84,$E$2) -> 0.03 | H84: 0.03 | I84: 0.03 | J84: 0.03 | K84: 0.03 | L84: 0.03 | M84: 0.03 | N84: 0.03 | O84: 0.03 | P84: 0.03 | Q84: 0.03 | R84: 0.03 | S84: 0.03 | T84: 0.03 | U84: 0.03 | V84: 0.03 | W84: 0.03
C85: Tax Leakage - High | E85: % | F85: =INDEX(H85:AZ85,$E$2) -> 0.06 | H85: 0.06 | I85: 0.06 | J85: 0.06 | K85: 0.06 | L85: 0.06 | M85: 0.06 | N85: 0.06 | O85: 0.06 | P85: 0.06 | Q85: 0.06 | R85: 0.06 | S85: 0.06 | T85: 0.06 | U85: 0.06 | V85: 0.06 | W85: 0.06
C86: Tax Leakage - Mid-Point | E86: % | F86: =INDEX(H86:AZ86,$E$2) -> 0.045 | H86: 0.045 | I86: 0.045 | J86: 0.045 | K86: 0.045 | L86: 0.045 | M86: 0.045 | N86: 0.045 | O86: 0.045 | P86: 0.045 | Q86: 0.045 | R86: 0.045 | S86: 0.045 | T86: 0.045 | U86: 0.045 | V86: =V84 -> 0.03 | W86: =W85 -> 0.06
C87: Total Tax Leakage | E87: USD | F87: =INDEX(H87:AZ87,$E$2) -> 3402000 | H87: =H86*H71*(100-H69)/100 -> 3402000 | I87: =I86*I71*(100-I69)/100 -> 3402000 | J87: 3402000 | K87: 3402000 | L87: 3402000 | M87: 3402000 | N87: 3402000 | O87: 3402000 | P87: 3402000 | Q87: 3402000 | R87: 3402000 | S87: 3402000 | T87: 3402000 | U87: 3402000 | V87: 2268000 | W87: 4536000
B90: General Economic Variables
C92: Current Spot Exchange Rate | E92: J $/USD | F92: =INDEX(H92:AZ92,$E$2) -> 0.0062 | H92: ='Tab 1a - Benchmarks'!$E$74 -> 0.0062 | I92: ='Tab 1a - Benchmarks'!$E$74 -> 0.0062 | J92: ='Tab 1a - Benchmarks'!$E$74 -> 0.0062 | K92: ='Tab 1a - Benchmarks'!$E$74 -> 0.0062 | L92: ='Tab 1a - Benchmarks'!$E$74 -> 0.0062 | M92: ='Tab 1a - Benchmarks'!$E$74 -> 0.0062 | N92: ='Tab 1a - Benchmarks'!$E$74 -> 0.0062 | O92: ='Tab 1a - Benchmarks'!$E$74 -> 0.0062 | P92: ='Tab 1a - Benchmarks'!$E$74 -> 0.0062 | Q92: ='Tab 1a - Benchmarks'!$E$74 -> 0.0062 | R92: ='Tab 1a - Benchmarks'!$E$74 -> 0.0062 | S92: ='Tab 1a - Benchmarks'!$E$74 -> 0.0062 | T92: ='Tab 1a - Benchmarks'!$E$74 -> 0.0062 | U92: ='Tab 1a - Benchmarks'!$E$74 -> 0.0062 | V92: ='Tab 1a - Benchmarks'!$E$74 -> 0.0062 | W92: ='Tab 1a - Benchmarks'!$E$74 -> 0.0062
C93: Jamican Inflation Rate | E93: % p.a.
C94: USD Inflation Rate | E94: % p.a. | F94: =INDEX(H94:AZ94,$E$2) -> 0.02 | H94: 0.02 | I94: 0.02 | J94: 0.02 | K94: 0.02 | L94: 0.02 | M94: 0.02 | N94: 0.02 | O94: 0.02 | P94: 0.02 | Q94: 0.02 | R94: 0.02 | S94: 0.02 | T94: 0.02 | U94: 0.02 | V94: 0.02 | W94: 0.02
C96: Jamican Short-term Interest Rate | E96: % p.a. | F96: =INDEX(H96:AZ96,$E$2) -> 0
C97: USD 6-month Treasury Rate | E97: % p.a. | F97: =INDEX(H97:AZ97,$E$2) -> 0
C99: Discount Rate for Equity Cash Flow USD | E99: % p.a | F99: =INDEX(H99:AZ99,$E$2) -> 0
C100: Discount Rate for Equity Cash Flow J $ | E100: % p.a | F100: =INDEX(H100:AZ100,$E$2) -> 0
C102: Discount Rate for Enforcement | E102: % p.a. | F102: =INDEX(H102:AZ102,$E$2) -> 0.12 | H102: 0.12 | I102: 0.12 | J102: 0.12 | K102: 0.12 | L102: 0.12 | M102: 0.12 | N102: 0.12 | O102: 0.12 | P102: 0.12 | Q102: 0.12 | R102: 0.12 | S102: 0.12 | T102: 0.12 | U102: 0.12 | V102: 0.12 | W102: 0.12
B104: NCB Valuation and Transaction
C106: Current Shares of NCB | E106: Shares | F106: =INDEX(H106:AZ106,$E$2) -> 2418501109 | H106: ='Tab 1a - Benchmarks'!$E$57 -> 2418501109 | I106: ='Tab 1a - Benchmarks'!$E$57 -> 2418501109 | J106: ='Tab 1a - Benchmarks'!$E$57 -> 2418501109 | K106: ='Tab 1a - Benchmarks'!$E$57 -> 2418501109 | L106: ='Tab 1a - Benchmarks'!$E$57 -> 2418501109 | M106: ='Tab 1a - Benchmarks'!$E$57 -> 2418501109 | N106: ='Tab 1a - Benchmarks'!$E$57 -> 2418501109 | O106: ='Tab 1a - Benchmarks'!$E$57 -> 2418501109 | P106: ='Tab 1a - Benchmarks'!$E$57 -> 2418501109 | Q106: ='Tab 1a - Benchmarks'!$E$57 -> 2418501109 | R106: ='Tab 1a - Benchmarks'!$E$57 -> 2418501109 | S106: ='Tab 1a - Benchmarks'!$E$57 -> 2418501109 | T106: ='Tab 1a - Benchmarks'!$E$57 -> 2418501109 | U106: ='Tab 1a - Benchmarks'!$E$57 -> 2418501109 | V106: ='Tab 1a - Benchmarks'!$E$57 -> 2418501109 | W106: ='Tab 1a - Benchmarks'!$E$57 -> 2418501109
C107: Current Share Price of NCB | E107: USD/Share | F107: =INDEX(H107:AZ107,$E$2) -> 0.26 | H107: 0.26 | I107: 0.26 | J107: 0.26 | K107: 0.26 | L107: 0.26 | M107: 0.26 | N107: 0.26 | O107: 0.26 | P107: 0.26 | Q107: 0.26 | R107: 0.26 | S107: 0.26 | T107: 0.26 | U107: 0.26 | V107: 0.26 | W107: 0.26
C108: Market Capitalization of NCB | E108: USD | F108: =INDEX(H108:AZ108,$E$2) -> 628810288.3 | H108: =H106*H107 -> 628810288.3 | I108: 628810288.3 | J108: 628810288.3 | K108: =K106*K107 -> 628810288.3 | L108: =L106*L107 -> 628810288.3 | M108: 628810288.3 | N108: 628810288.3 | O108: 628810288.3 | P108: 628810288.3 | Q108: 628810288.3 | R108: 628810288.3 | S108: 628810288.3 | T108: 628810288.3 | U108: 628810288.3 | V108: 628810288.3 | W108: 628810288.3
E109: JMD | F109: =INDEX(H109:AZ109,$E$2) -> 1.014210142e+11 | H109: =H106/H92*H107 -> 1.014210142e+11 | I109: =I106/I92*I107 -> 1.014210142e+11 | J109: 1.014210142e+11 | K109: 1.014210142e+11 | L109: 1.014210142e+11 | M109: 1.014210142e+11 | N109: 1.014210142e+11 | O109: 1.014210142e+11 | P109: 1.014210142e+11 | Q109: 1.014210142e+11 | R109: 1.014210142e+11 | S109: 1.014210142e+11 | T109: 1.014210142e+11 | U109: 1.014210142e+11 | V109: 1.014210142e+11 | W109: 1.014210142e+11
C111: Percent of Shares Purchased with Pledge from Debt | E111: % | F111: =INDEX(H111:AZ111,$E$2) -> 0.43 | H111: 0.43 | I111: 0.43 | J111: 0.43 | K111: 0.43 | L111: 0.43 | M111: 0.43 | N111: 0.43 | O111: 0.43 | P111: 0.43 | Q111: 0.43 | R111: 0.43 | S111: 0.43 | T111: 0.43 | U111: 0.43 | V111: 0.43 | W111: 0.43
C112: Shares Received from Enforcemnent of Pledge | E112: Shares | F112: =INDEX(H112:AZ112,$E$2) -> 1039955477 | H112: =H106*H111 -> 1039955477 | I112: 1039955477 | J112: 1039955477 | K112: =K106*K111 -> 1039955477 | L112: =L106*L111 -> 1039955477 | M112: 1039955477 | N112: 1039955477 | O112: 1039955477 | P112: 1039955477 | Q112: 1039955477 | R112: 1039955477 | S112: 1039955477 | T112: 1039955477 | U112: 1039955477 | V112: 1039955477 | W112: 1039955477
C113: Current Market Cap from Purchased Shares | E113: USD | F113: =INDEX(H113:AZ113,$E$2) -> 270388424 | H113: =H112*H107 -> 270388424 | I113: =I112*I107 -> 270388424 | J113: =J112*J107 -> 270388424 | K113: 270388424 | L113: 270388424 | M113: 270388424 | N113: 270388424 | O113: 270388424 | P113: 270388424 | Q113: 270388424 | R113: 270388424 | S113: 270388424 | T113: 270388424 | U113: 270388424 | V113: 270388424 | W113: 270388424
C115: Control Threshold in Accumulation Period: 75% (base) | E115: % | F115: =INDEX(H115:AZ115,$E$2) -> 0.51 | H115: 0.51 | I115: 0.51 | J115: 0.51 | K115: 0.51 | L115: 0.51 | M115: 0.51 | N115: 0.51 | O115: 0.51 | P115: 0.51 | Q115: 0.51 | R115: 0.51 | S115: 0.51 | T115: 0.51 | U115: 0.51 | V115: 0.51 | W115: 0.51
C116: Control Threshold Low : 60–75% | E116: % | F116: =INDEX(H116:AZ116,$E$2) -> 0.6 | H116: 0.6 | I116: 0.6 | J116: 0.6 | K116: 0.6 | L116: 0.6 | M116: 0.6 | N116: 0.6 | O116: 0.6 | P116: 0.6 | Q116: 0.6 | R116: 0.6 | S116: 0.6 | T116: 0.6 | U116: 0.6 | V116: 0.6 | W116: 0.6
C117: Control Threshold Applied | E117: % | F117: =INDEX(H117:AZ117,$E$2) -> 0.51 | H117: =H115 -> 0.51 | I117: =I115 -> 0.51 | J117: =J115 -> 0.51 | K117: 0.51 | L117: 0.51 | M117: 0.51 | N117: 0.51 | O117: 0.51 | P117: 0.51 | Q117: 0.51 | R117: 0.51 | S117: 0.51 | T117: 0.51 | U117: 0.51 | V117: 0.51 | W117: 0.51
C118: Added Shares in Accumulation Period | E118: % | F118: =INDEX(H118:AZ118,$E$2) -> 0.08 | H118: =H117-H111 -> 0.08 | I118: =I117-I111 -> 0.08 | J118: =J117-J111 -> 0.08 | K118: 0.08 | L118: 0.08 | M118: 0.08 | N118: 0.08 | O118: 0.08 | P118: 0.08 | Q118: 0.08 | R118: 0.08 | S118: 0.08 | T118: 0.08 | U118: 0.08 | V118: 0.08 | W118: 0.08
C120: Added Shares Purchased | E120: Shares | F120: =INDEX(H120:AZ120,$E$2) -> 193480088.7 | H120: =H118*H106 -> 193480088.7 | I120: =I118*I106 -> 193480088.7 | J120: =J118*J106 -> 193480088.7 | K120: 193480088.7 | L120: 193480088.7 | M120: 193480088.7 | N120: 193480088.7 | O120: 193480088.7 | P120: 193480088.7 | Q120: 193480088.7 | R120: 193480088.7 | S120: 193480088.7 | T120: 193480088.7 | U120: 193480088.7 | V120: 193480088.7 | W120: 193480088.7
C121: Total Shares Acquired | E121: Shares | F121: =INDEX(H121:AZ121,$E$2) -> 1233435566 | H121: =H120+H112 -> 1233435566 | I121: =I120+I112 -> 1233435566 | J121: =J120+J112 -> 1233435566 | K121: 1233435566 | L121: 1233435566 | M121: 1233435566 | N121: 1233435566 | O121: 1233435566 | P121: 1233435566 | Q121: 1233435566 | R121: 1233435566 | S121: 1233435566 | T121: 1233435566 | U121: 1233435566 | V121: 1233435566 | W121: 1233435566
C122: Cost of Added Shares at Current Share Price | E122: USD | F122: =INDEX(H122:AZ122,$E$2) -> 50304823.07 | H122: =H120*H107 -> 50304823.07 | I122: 50304823.07 | J122: =J120*J107 -> 50304823.07 | K122: 50304823.07 | L122: 50304823.07 | M122: 50304823.07 | N122: 50304823.07 | O122: 50304823.07 | P122: 50304823.07 | Q122: 50304823.07 | R122: 50304823.07 | S122: 50304823.07 | T122: 50304823.07 | U122: 50304823.07 | V122: 50304823.07 | W122: 50304823.07
C123: Premium Paid for Shares to Control | E123: % | F123: =INDEX(H123:AZ123,$E$2) -> 0 | H123: 0 | I123: 0 | J123: 0 | K123: 0 | L123: 0 | M123: 0 | N123: 0 | O123: 0 | P123: 0 | Q123: 0 | R123: 0 | S123: 0 | T123: 0 | U123: 0 | V123: 0 | W123: 0
C124: Cost of Added Shares with Premium | E124: USD | F124: =INDEX(H124:AZ124,$E$2) -> 50304823.07 | H124: =H122*(1+H123) -> 50304823.07 | I124: =I122*(1+I123) -> 50304823.07 | J124: =J122*(1+J123) -> 50304823.07 | K124: 50304823.07 | L124: 50304823.07 | M124: 50304823.07 | N124: 50304823.07 | O124: 50304823.07 | P124: 50304823.07 | Q124: 50304823.07 | R124: 50304823.07 | S124: 50304823.07 | T124: 50304823.07 | U124: 50304823.07 | V124: 50304823.07 | W124: 50304823.07
C126: Equity Value at 9/30/2025 (Capital IQ) | E126: USD | F126: =INDEX(H126:AZ126,$E$2) -> 1244699836 | H126: ='Tab 5 Historic Projected NCB'!F17*1000 -> 1244699836 | I126: =H126 -> 1244699836 | J126: =I126 -> 1244699836 | K126: 1244699836 | L126: 1244699836 | M126: 1244699836 | N126: 1244699836 | O126: 1244699836 | P126: 1244699836 | Q126: 1244699836 | R126: 1244699836 | S126: 1244699836 | T126: 1244699836 | U126: 1244699836 | V126: 1244699836 | W126: 1244699836
C127: Equity Value at 9/30/2025 (Annual Report) | E127: J $ 000 | F127: =INDEX(H127:AZ127,$E$2) -> 199077280 | H127: ='Tab 1a - Benchmarks'!$E$166 -> 199077280 | I127: ='Tab 1a - Benchmarks'!$E$166 -> 199077280 | J127: ='Tab 1a - Benchmarks'!$E$166 -> 199077280 | K127: ='Tab 1a - Benchmarks'!$E$166 -> 199077280 | L127: ='Tab 1a - Benchmarks'!$E$166 -> 199077280 | M127: ='Tab 1a - Benchmarks'!$E$166 -> 199077280 | N127: ='Tab 1a - Benchmarks'!$E$166 -> 199077280 | O127: ='Tab 1a - Benchmarks'!$E$166 -> 199077280 | P127: ='Tab 1a - Benchmarks'!$E$166 -> 199077280 | Q127: ='Tab 1a - Benchmarks'!$E$166 -> 199077280 | R127: ='Tab 1a - Benchmarks'!$E$166 -> 199077280 | S127: ='Tab 1a - Benchmarks'!$E$166 -> 199077280 | T127: ='Tab 1a - Benchmarks'!$E$166 -> 199077280 | U127: ='Tab 1a - Benchmarks'!$E$166 -> 199077280 | V127: ='Tab 1a - Benchmarks'!$E$166 -> 199077280 | W127: ='Tab 1a - Benchmarks'!$E$166 -> 199077280
C128: Equity Value at 9/30/2025 (Annual Report) | E128: USD | F128: =INDEX(H128:AZ128,$E$2) -> 1234279136 | H128: =H127*1000*H92 -> 1234279136 | I128: 1234279136 | J128: 1234279136 | K128: 1234279136 | L128: 1234279136 | M128: 1234279136 | N128: 1234279136 | O128: 1234279136 | P128: 1234279136 | Q128: 1234279136 | R128: 1234279136 | S128: 1234279136 | T128: 1234279136 | U128: 1234279136 | V128: 1234279136 | W128: 1234279136
C130: TTM Net Income (Annual Report) | E130: J $ 000 | F130: =INDEX(H130:AZ130,$E$2) -> 23131671 | H130: ='Tab 1a - Benchmarks'!$G$207 -> 23131671 | I130: ='Tab 1a - Benchmarks'!$G$207 -> 23131671 | J130: ='Tab 1a - Benchmarks'!$G$207 -> 23131671 | K130: ='Tab 1a - Benchmarks'!$G$207 -> 23131671 | L130: ='Tab 1a - Benchmarks'!$G$207 -> 23131671 | M130: ='Tab 1a - Benchmarks'!$G$207 -> 23131671 | N130: ='Tab 1a - Benchmarks'!$G$207 -> 23131671 | O130: ='Tab 1a - Benchmarks'!$G$207 -> 23131671 | P130: ='Tab 1a - Benchmarks'!$G$207 -> 23131671 | Q130: ='Tab 1a - Benchmarks'!$G$207 -> 23131671 | R130: ='Tab 1a - Benchmarks'!$G$207 -> 23131671 | S130: ='Tab 1a - Benchmarks'!$G$207 -> 23131671 | T130: ='Tab 1a - Benchmarks'!$G$207 -> 23131671 | U130: ='Tab 1a - Benchmarks'!$G$207 -> 23131671 | V130: ='Tab 1a - Benchmarks'!$G$207 -> 23131671 | W130: ='Tab 1a - Benchmarks'!$G$207 -> 23131671
C131: TTM Net Income (Annual Report) | E131: USD | F131: =INDEX(H131:AZ131,$E$2) -> 143416360.2 | H131: =H130*H92*1000 -> 143416360.2 | I131: 143416360.2 | J131: 143416360.2 | K131: 143416360.2 | L131: 143416360.2 | M131: 143416360.2 | N131: 143416360.2 | O131: 143416360.2 | P131: 143416360.2 | Q131: 143416360.2 | R131: 143416360.2 | S131: 143416360.2 | T131: 143416360.2 | U131: 143416360.2 | V131: 143416360.2 | W131: 143416360.2
C133: Current Price to Book Ratio | E133: x | F133: =INDEX(H133:AZ133,$E$2) -> 0.5094554951 | H133: =H108/H128 -> 0.5094554951 | I133: =I108/I128 -> 0.5094554951 | J133: =J108/J128 -> 0.5094554951 | K133: 0.5094554951 | L133: 0.5094554951 | M133: 0.5094554951 | N133: 0.5094554951 | O133: 0.5094554951 | P133: 0.5094554951 | Q133: 0.5094554951 | R133: 0.5094554951 | S133: 0.5094554951 | T133: 0.5094554951 | U133: 0.5094554951 | V133: 0.5094554951 | W133: 0.5094554951
C134: Current P/E from TTM | E134: x | F134: =INDEX(H134:AZ134,$E$2) -> 4.384508765 | H134: =H108/H131 -> 4.384508765 | I134: 4.384508765 | J134: 4.384508765 | K134: 4.384508765 | L134: 4.384508765 | M134: 4.384508765 | N134: 4.384508765 | O134: 4.384508765 | P134: 4.384508765 | Q134: 4.384508765 | R134: 4.384508765 | S134: 4.384508765 | T134: 4.384508765 | U134: 4.384508765 | V134: 4.384508765 | W134: 4.384508765
C135: Applied P/E from Peers for Indicative Valuation | E135: x | F135: =INDEX(H135:AZ135,$E$2) -> 7.630528 | H135: ='Tab 1a - Benchmarks'!$R$175 -> 7.630528 | I135: ='Tab 1a - Benchmarks'!$R$175 -> 7.630528 | J135: ='Tab 1a - Benchmarks'!$R$175 -> 7.630528 | K135: ='Tab 1a - Benchmarks'!$R$175 -> 7.630528 | L135: ='Tab 1a - Benchmarks'!$R$175 -> 7.630528 | M135: ='Tab 1a - Benchmarks'!$R$175 -> 7.630528 | N135: ='Tab 1a - Benchmarks'!$R$175 -> 7.630528 | O135: ='Tab 1a - Benchmarks'!$R$175 -> 7.630528 | P135: ='Tab 1a - Benchmarks'!$R$175 -> 7.630528 | Q135: ='Tab 1a - Benchmarks'!$R$175 -> 7.630528 | R135: ='Tab 1a - Benchmarks'!$R$175 -> 7.630528 | S135: ='Tab 1a - Benchmarks'!$R$175 -> 7.630528 | T135: ='Tab 1a - Benchmarks'!$R$175 -> 7.630528 | U135: ='Tab 1a - Benchmarks'!$R$175 -> 7.630528 | V135: ='Tab 1a - Benchmarks'!$R$175 -> 7.630528 | W135: ='Tab 1a - Benchmarks'!$R$175 -> 7.630528
C137: Current Valuation | E137: USD | F137: =INDEX(H137:AZ137,$E$2) -> 628810288.3 | H137: =H108 -> 628810288.3 | I137: 628810288.3 | J137: 628810288.3 | K137: 628810288.3 | L137: 628810288.3 | M137: 628810288.3 | N137: 628810288.3 | O137: 628810288.3 | P137: 628810288.3 | Q137: 628810288.3 | R137: 628810288.3 | S137: 628810288.3 | T137: 628810288.3 | U137: 628810288.3 | V137: 628810288.3 | W137: 628810288.3
C138: Valuation of NCB with Peer P/B | E138: USD | F138: =INDEX(H138:AZ138,$E$2) -> 1542848920 | H138: =H318*H128 -> 1542848920 | I138: 1481134963 | J138: 1481134963 | K138: 1481134963 | L138: 1481134963 | M138: 1481134963 | N138: 1481134963 | O138: 1481134963 | P138: 1481134963 | Q138: 1481134963 | R138: 1481134963 | S138: 1481134963 | T138: 1481134963 | U138: 1481134963 | V138: 1481134963 | W138: 1481134963
C139: Valuation of NCB with Peer P/E | E139: USD | F139: =INDEX(H139:AZ139,$E$2) -> 1094342552 | H139: =H135*H131 -> 1094342552 | I139: 1094342552 | J139: 1094342552 | K139: 1094342552 | L139: 1094342552 | M139: 1094342552 | N139: 1094342552 | O139: 1094342552 | P139: 1094342552 | Q139: 1094342552 | R139: 1094342552 | S139: 1094342552 | T139: 1094342552 | U139: 1094342552 | V139: 1094342552 | W139: 1094342552
C140: Indicative Valuation Applied | E140: USD | F140: =INDEX(H140:AZ140,$E$2) -> 1094342552 | H140: =MIN(H138:H139) -> 1094342552 | I140: =MIN(I138:I139) -> 1094342552 | J140: =MIN(J138:J139) -> 1094342552 | K140: 1094342552 | L140: 1094342552 | M140: 1094342552 | N140: 1094342552 | O140: 1094342552 | P140: 1094342552 | Q140: 1094342552 | R140: 1094342552 | S140: 1094342552 | T140: 1094342552 | U140: 1094342552 | V140: 1094342552 | W140: 1094342552
C142: Code Number for NCB Valuation | E142: Code | F142: 1 | H142: =$F$142 -> 1 | I142: =$F$142 -> 1 | J142: 1 | K142: 1 | L142: 1 | M142: 1 | N142: 1 | O142: 1 | P142: 1 | Q142: 1 | R142: 1 | S142: 1 | T142: 1 | U142: 1 | V142: 1 | W142: 1
C143: Applied Valuation | E143: USD | F143: =INDEX(H143:AZ143,$E$2) -> 628810288.3 | H143: =INDEX(H137:H140,$F$142) -> 628810288.3 | I143: =INDEX(I137:I140,$F$142) -> 628810288.3 | J143: =INDEX(J137:J140,$F$142) -> 628810288.3 | K143: =INDEX(K137:K140,$F$142) -> 628810288.3 | L143: =INDEX(L137:L140,$F$142) -> 628810288.3 | M143: =INDEX(M137:M140,$F$142) -> 628810288.3 | N143: =INDEX(N137:N140,$F$142) -> 628810288.3 | O143: =INDEX(O137:O140,$F$142) -> 628810288.3 | P143: =INDEX(P137:P140,$F$142) -> 628810288.3 | Q143: =INDEX(Q137:Q140,$F$142) -> 628810288.3 | R143: =INDEX(R137:R140,$F$142) -> 628810288.3 | S143: =INDEX(S137:S140,$F$142) -> 628810288.3 | T143: =INDEX(T137:T140,$F$142) -> 628810288.3 | U143: =INDEX(U137:U140,$F$142) -> 628810288.3 | V143: =INDEX(V137:V140,$F$142) -> 628810288.3 | W143: =INDEX(W137:W140,$F$142) -> 628810288.3
C145: Transaction legal: Low | E145: USD | F145: =INDEX(H145:AZ145,$E$2) -> 1000000 | H145: 1000000 | I145: 1000000 | J145: 1000000 | K145: 1000000 | L145: 1000000 | M145: 1000000 | N145: 1000000 | O145: 1000000 | P145: 1000000 | Q145: 1000000 | R145: 1000000 | S145: 1000000 | T145: 1000000 | U145: 1000000 | V145: 1000000 | W145: 1000000
C146: Transaction legal: High | E146: USD | F146: =INDEX(H146:AZ146,$E$2) -> 1500000 | H146: 1500000 | I146: 1500000 | J146: 1500000 | K146: 1500000 | L146: 1500000 | M146: 1500000 | N146: 1500000 | O146: 1500000 | P146: 1500000 | Q146: 1500000 | R146: 1500000 | S146: 1500000 | T146: 1500000 | U146: 1500000 | V146: 1500000 | W146: 1500000
C147: Transaction legal: Midpoint | E147: USD | F147: =INDEX(H147:AZ147,$E$2) -> 1250000 | H147: =AVERAGE(H145:H146) -> 1250000 | I147: =AVERAGE(I145:I146) -> 1250000 | J147: 1250000 | K147: 1250000 | L147: 1250000 | M147: 1250000 | N147: 1250000 | O147: 1250000 | P147: 1250000 | Q147: 1250000 | R147: 1250000 | S147: 1250000 | T147: 1250000 | U147: 1250000 | V147: 1250000 | W147: 1250000
C149: Advisory: Low | E149: USD | F149: =INDEX(H149:AZ149,$E$2) -> 200000 | H149: 200000 | I149: 200000 | J149: 200000 | K149: 200000 | L149: 200000 | M149: 200000 | N149: 200000 | O149: 200000 | P149: 200000 | Q149: 200000 | R149: 200000 | S149: 200000 | T149: 200000 | U149: 200000 | V149: 200000 | W149: 200000
C150: Advisory: High | E150: USD | F150: =INDEX(H150:AZ150,$E$2) -> 350000 | H150: 350000 | I150: 350000 | J150: 350000 | K150: 350000 | L150: 350000 | M150: 350000 | N150: 350000 | O150: 350000 | P150: 350000 | Q150: 350000 | R150: 350000 | S150: 350000 | T150: 350000 | U150: 350000 | V150: 350000 | W150: 350000
C151: Advisory: Midpoint | E151: USD | F151: =INDEX(H151:AZ151,$E$2) -> 275000 | H151: =AVERAGE(H149:H150) -> 275000 | I151: =AVERAGE(I149:I150) -> 275000 | J151: 275000 | K151: 275000 | L151: 275000 | M151: 275000 | N151: 275000 | O151: 275000 | P151: 275000 | Q151: 275000 | R151: 275000 | S151: 275000 | T151: 275000 | U151: 275000 | V151: 275000 | W151: 275000
C153: Tax structuring: Low | E153: USD | F153: =INDEX(H153:AZ153,$E$2) -> 750000 | H153: 750000 | I153: 750000 | J153: 750000 | K153: 750000 | L153: 750000 | M153: 750000 | N153: 750000 | O153: 750000 | P153: 750000 | Q153: 750000 | R153: 750000 | S153: 750000 | T153: 750000 | U153: 750000 | V153: 750000 | W153: 750000
C154: Tax structuring: High | E154: USD | F154: =INDEX(H154:AZ154,$E$2) -> 1200000 | H154: 1200000 | I154: 1200000 | J154: 1200000 | K154: 1200000 | L154: 1200000 | M154: 1200000 | N154: 1200000 | O154: 1200000 | P154: 1200000 | Q154: 1200000 | R154: 1200000 | S154: 1200000 | T154: 1200000 | U154: 1200000 | V154: 1200000 | W154: 1200000
C155: Tax structuring: Midpoint | E155: USD | F155: =INDEX(H155:AZ155,$E$2) -> 975000 | H155: =AVERAGE(H153:H154) -> 975000 | I155: =AVERAGE(I153:I154) -> 975000 | J155: 975000 | K155: 975000 | L155: 975000 | M155: 975000 | N155: 975000 | O155: 975000 | P155: 975000 | Q155: 975000 | R155: 975000 | S155: 975000 | T155: 975000 | U155: 975000 | V155: 975000 | W155: 975000
C157: Annual tax compliance: Low | E157: USD | F157: =INDEX(H157:AZ157,$E$2) -> 250000 | H157: 250000 | I157: 250000 | J157: 250000 | K157: 250000 | L157: 250000 | M157: 250000 | N157: 250000 | O157: 250000 | P157: 250000 | Q157: 250000 | R157: 250000 | S157: 250000 | T157: 250000 | U157: 250000 | V157: 250000 | W157: 250000
C158: Annual tax compliance: High | E158: USD | F158: =INDEX(H158:AZ158,$E$2) -> 400000 | H158: 400000 | I158: 400000 | J158: 400000 | K158: 400000 | L158: 400000 | M158: 400000 | N158: 400000 | O158: 400000 | P158: 400000 | Q158: 400000 | R158: 400000 | S158: 400000 | T158: 400000 | U158: 400000 | V158: 400000 | W158: 400000
C159: Annual tax compliance: US$250–400K | E159: USD | F159: =INDEX(H159:AZ159,$E$2) -> 325000 | H159: =AVERAGE(H157:H158) -> 325000 | I159: =AVERAGE(I157:I158) -> 325000 | J159: 325000 | K159: 325000 | L159: 325000 | M159: 325000 | N159: 325000 | O159: 325000 | P159: 325000 | Q159: 325000 | R159: 325000 | S159: 325000 | T159: 325000 | U159: 325000 | V159: 325000 | W159: 325000
C161: SPVs: Low | E161: USD | F161: =INDEX(H161:AZ161,$E$2) -> 150000 | H161: 150000 | I161: 150000 | J161: 150000 | K161: 150000 | L161: 150000 | M161: 150000 | N161: 150000 | O161: 150000 | P161: 150000 | Q161: 150000 | R161: 150000 | S161: 150000 | T161: 150000 | U161: 150000 | V161: 150000 | W161: 150000
C162: SPVs: High | E162: USD | F162: =INDEX(H162:AZ162,$E$2) -> 300000 | H162: 300000 | I162: 300000 | J162: 300000 | K162: 300000 | L162: 300000 | M162: 300000 | N162: 300000 | O162: 300000 | P162: 300000 | Q162: 300000 | R162: 300000 | S162: 300000 | T162: 300000 | U162: 300000 | V162: 300000 | W162: 300000
C163: SPVs: US$150–300K | E163: USD | F163: =INDEX(H163:AZ163,$E$2) -> 225000 | H163: =AVERAGE(H161:H162) -> 225000 | I163: =AVERAGE(I161:I162) -> 225000 | J163: 225000 | K163: 225000 | L163: 225000 | M163: 225000 | N163: 225000 | O163: 225000 | P163: 225000 | Q163: 225000 | R163: 225000 | S163: 225000 | T163: 225000 | U163: 225000 | V163: 225000 | W163: 225000
C165: Stabilization: Low | E165: USD | F165: =INDEX(H165:AZ165,$E$2) -> 750000 | H165: 750000 | I165: 750000 | J165: 750000 | K165: 750000 | L165: 750000 | M165: 750000 | N165: 750000 | O165: 750000 | P165: 750000 | Q165: 750000 | R165: 750000 | S165: 750000 | T165: 750000 | U165: 750000 | V165: 750000 | W165: 750000
C166: Stabilization: High | E166: USD | F166: =INDEX(H166:AZ166,$E$2) -> 1500000 | H166: 1500000 | I166: 1500000 | J166: 1500000 | K166: 1500000 | L166: 1500000 | M166: 1500000 | N166: 1500000 | O166: 1500000 | P166: 1500000 | Q166: 1500000 | R166: 1500000 | S166: 1500000 | T166: 1500000 | U166: 1500000 | V166: 1500000 | W166: 1500000
C167: Stabilization: US$750K–1.5M | E167: USD | F167: =INDEX(H167:AZ167,$E$2) -> 1125000 | H167: =AVERAGE(H165:H166) -> 1125000 | I167: =AVERAGE(I165:I166) -> 1125000 | J167: 1125000 | K167: 1125000 | L167: 1125000 | M167: 1125000 | N167: 1125000 | O167: 1125000 | P167: 1125000 | Q167: 1125000 | R167: 1125000 | S167: 1125000 | T167: 1125000 | U167: 1125000 | V167: 1125000 | W167: 1125000
C169: Carve-outs: Low | E169: USD | F169: =INDEX(H169:AZ169,$E$2) -> 3000000 | H169: 3000000 | I169: 3000000 | J169: 3000000 | K169: 3000000 | L169: 3000000 | M169: 3000000 | N169: 3000000 | O169: 3000000 | P169: 3000000 | Q169: 3000000 | R169: 3000000 | S169: 3000000 | T169: 3000000 | U169: 3000000 | V169: 3000000 | W169: 3000000
C170: Carve-outs: High | E170: USD | F170: =INDEX(H170:AZ170,$E$2) -> 7500000 | H170: 7500000 | I170: 7500000 | J170: 7500000 | K170: 7500000 | L170: 7500000 | M170: 7500000 | N170: 7500000 | O170: 7500000 | P170: 7500000 | Q170: 7500000 | R170: 7500000 | S170: 7500000 | T170: 7500000 | U170: 7500000 | V170: 7500000 | W170: 7500000
C171: Carve-outs: US$3.0–7.5M | E171: USD | F171: =INDEX(H171:AZ171,$E$2) -> 5250000 | H171: =AVERAGE(H169:H170) -> 5250000 | I171: =AVERAGE(I169:I170) -> 5250000 | J171: 5250000 | K171: 5250000 | L171: 5250000 | M171: 5250000 | N171: 5250000 | O171: 5250000 | P171: 5250000 | Q171: 5250000 | R171: 5250000 | S171: 5250000 | T171: 5250000 | U171: 5250000 | V171: 5250000 | W171: 5250000
C173: Contingency: Low | E173: USD | F173: =INDEX(H173:AZ173,$E$2) -> 300000 | H173: 300000 | I173: 300000 | J173: 300000 | K173: 300000 | L173: 300000 | M173: 300000 | N173: 300000 | O173: 300000 | P173: 300000 | Q173: 300000 | R173: 300000 | S173: 300000 | T173: 300000 | U173: 300000 | V173: 300000 | W173: 300000
C174: Contingency: High | E174: USD | F174: =INDEX(H174:AZ174,$E$2) -> 500000 | H174: 500000 | I174: 500000 | J174: 500000 | K174: 500000 | L174: 500000 | M174: 500000 | N174: 500000 | O174: 500000 | P174: 500000 | Q174: 500000 | R174: 500000 | S174: 500000 | T174: 500000 | U174: 500000 | V174: 500000 | W174: 500000
C175: Contingency: US$300–500K | E175: USD | F175: =INDEX(H175:AZ175,$E$2) -> 400000 | H175: =AVERAGE(H173:H174) -> 400000 | I175: =AVERAGE(I173:I174) -> 400000 | J175: 400000 | K175: 400000 | L175: 400000 | M175: 400000 | N175: 400000 | O175: 400000 | P175: 400000 | Q175: 400000 | R175: 400000 | S175: 400000 | T175: 400000 | U175: 400000 | V175: 400000 | W175: 400000
B177: Segment Valuation and Sale Proceeds
C179: Indicative Value - Bank; Low | E179: USD | F179: =INDEX(H179:AZ179,$E$2) -> 120000000 | H179: 120000000 | I179: 120000000 | J179: 120000000 | K179: 120000000 | L179: 120000000 | M179: 120000000 | N179: 120000000 | O179: 120000000 | P179: 120000000 | Q179: 120000000 | R179: 120000000 | S179: 120000000 | T179: 120000000 | U179: 120000000 | V179: 120000000 | W179: 120000000
C180: Indicative Value - Bank; High | E180: USD | F180: =INDEX(H180:AZ180,$E$2) -> 160000000 | H180: 160000000 | I180: 160000000 | J180: 160000000 | K180: 160000000 | L180: 160000000 | M180: 160000000 | N180: 160000000 | O180: 160000000 | P180: 160000000 | Q180: 160000000 | R180: 160000000 | S180: 160000000 | T180: 160000000 | U180: 160000000 | V180: 160000000 | W180: 160000000
C181: Indicative Value - Bank Midpoint | E181: USD | F181: =INDEX(H181:AZ181,$E$2) -> 140000000 | H181: 140000000 | I181: 140000000 | J181: 140000000 | K181: 140000000 | L181: 140000000 | M181: 140000000 | N181: 140000000 | O181: 140000000 | P181: 140000000 | Q181: 140000000 | R181: 140000000 | S181: 140000000 | T181: 140000000 | U181: 140000000 | V181: 140000000 | W181: 140000000
C183: Indicative Value - Wealth Management/Advisory - Low | E183: USD | F183: =INDEX(H183:AZ183,$E$2) -> 40000000 | H183: 40000000 | I183: 40000000 | J183: 40000000 | K183: 40000000 | L183: 40000000 | M183: 40000000 | N183: 40000000 | O183: 40000000 | P183: 40000000 | Q183: 40000000 | R183: 40000000 | S183: 40000000 | T183: 40000000 | U183: 40000000 | V183: 40000000 | W183: 40000000
C184: Indicative Value - Wealth Management/Advisory - High | E184: USD | F184: =INDEX(H184:AZ184,$E$2) -> 60000000 | H184: 60000000 | I184: 60000000 | J184: 60000000 | K184: 60000000 | L184: 60000000 | M184: 60000000 | N184: 60000000 | O184: 60000000 | P184: 60000000 | Q184: 60000000 | R184: 60000000 | S184: 60000000 | T184: 60000000 | U184: 60000000 | V184: 60000000 | W184: 60000000
C185: Indicative Value - Wealth Management/Advisory - Mid | E185: USD | F185: =INDEX(H185:AZ185,$E$2) -> 50000000 | H185: 50000000 | I185: 50000000 | J185: 50000000 | K185: 50000000 | L185: 50000000 | M185: 50000000 | N185: 50000000 | O185: 50000000 | P185: 50000000 | Q185: 50000000 | R185: 50000000 | S185: 50000000 | T185: 50000000 | U185: 50000000 | V185: 50000000 | W185: 50000000
C187: Indicative Value - Asset Management - Low | E187: USD | F187: =INDEX(H187:AZ187,$E$2) -> 30000000 | H187: 30000000 | I187: 30000000 | J187: 30000000 | K187: 30000000 | L187: 30000000 | M187: 30000000 | N187: 30000000 | O187: 30000000 | P187: 30000000 | Q187: 30000000 | R187: 30000000 | S187: 30000000 | T187: 30000000 | U187: 30000000 | V187: 30000000 | W187: 30000000
C188: Indicative Value - Asset Management - High | E188: USD | F188: =INDEX(H188:AZ188,$E$2) -> 50000000 | H188: 50000000 | I188: 50000000 | J188: 50000000 | K188: 50000000 | L188: 50000000 | M188: 50000000 | N188: 50000000 | O188: 50000000 | P188: 50000000 | Q188: 50000000 | R188: 50000000 | S188: 50000000 | T188: 50000000 | U188: 50000000 | V188: 50000000 | W188: 50000000
C189: Indicative Value - Asset Management - Mid | E189: USD | F189: =INDEX(H189:AZ189,$E$2) -> 40000000 | H189: 40000000 | I189: 40000000 | J189: 40000000 | K189: 40000000 | L189: 40000000 | M189: 40000000 | N189: 40000000 | O189: 40000000 | P189: 40000000 | Q189: 40000000 | R189: 40000000 | S189: 40000000 | T189: 40000000 | U189: 40000000 | V189: 40000000 | W189: 40000000
C191: Indicative Value - Insurance - Low | E191: USD | F191: =INDEX(H191:AZ191,$E$2) -> 25000000 | H191: 25000000 | I191: 25000000 | J191: 25000000 | K191: 25000000 | L191: 25000000 | M191: 25000000 | N191: 25000000 | O191: 25000000 | P191: 25000000 | Q191: 25000000 | R191: 25000000 | S191: 25000000 | T191: 25000000 | U191: 25000000 | V191: 25000000 | W191: 25000000
C192: Indicative Value - Insurance - High | E192: USD | F192: =INDEX(H192:AZ192,$E$2) -> 40000000 | H192: 40000000 | I192: 40000000 | J192: 40000000 | K192: 40000000 | L192: 40000000 | M192: 40000000 | N192: 40000000 | O192: 40000000 | P192: 40000000 | Q192: 40000000 | R192: 40000000 | S192: 40000000 | T192: 40000000 | U192: 40000000 | V192: 40000000 | W192: 40000000
C193: Indicative Value - Insurance - Mid | E193: USD | F193: =INDEX(H193:AZ193,$E$2) -> 32000000 | H193: 32000000 | I193: 32000000 | J193: 32000000 | K193: 32000000 | L193: 32000000 | M193: 32000000 | N193: 32000000 | O193: 32000000 | P193: 32000000 | Q193: 32000000 | R193: 32000000 | S193: 32000000 | T193: 32000000 | U193: 32000000 | V193: 32000000 | W193: 32000000
C195: Total Indicative Value - Low | E195: USD | F195: =INDEX(H195:AZ195,$E$2) -> 215000000 | H195: =H179+H183+H187+H191 -> 215000000 | I195: =I179+I183+I187+I191 -> 215000000 | J195: 215000000 | K195: 215000000 | L195: 215000000 | M195: 215000000 | N195: 215000000 | O195: 215000000 | P195: 215000000 | Q195: 215000000 | R195: 215000000 | S195: 215000000 | T195: 215000000 | U195: 215000000 | V195: 215000000 | W195: 215000000
C196: Total Indicative Value - High | E196: USD | F196: =INDEX(H196:AZ196,$E$2) -> 310000000 | H196: =H180+H184+H188+H192 -> 310000000 | I196: 310000000 | J196: 310000000 | K196: 310000000 | L196: 310000000 | M196: 310000000 | N196: 310000000 | O196: 310000000 | P196: 310000000 | Q196: 310000000 | R196: 310000000 | S196: 310000000 | T196: 310000000 | U196: 310000000 | V196: 310000000 | W196: 310000000
C197: Total Indicative Value - Mid | E197: USD | F197: =INDEX(H197:AZ197,$E$2) -> 262000000 | H197: 262000000 | I197: 262000000 | J197: 262000000 | K197: 262000000 | L197: 262000000 | M197: 262000000 | N197: 262000000 | O197: 262000000 | P197: 262000000 | Q197: 262000000 | R197: 262000000 | S197: 262000000 | T197: 262000000 | U197: 262000000 | V197: 262000000 | W197: 262000000
C198: Value assuming it is for 1/2 of NCB | E198: USD | F198: =F197*2 -> 524000000
C200: Separation costs: US$1.5–2.5M per unit | E200: USD | F200: =INDEX(H200:AZ200,$E$2) -> 1500000 | H200: 1500000 | I200: 1500000 | J200: 1500000 | K200: 1500000 | L200: 1500000 | M200: 1500000 | N200: 1500000 | O200: 1500000 | P200: 1500000 | Q200: 1500000 | R200: 1500000 | S200: 1500000 | T200: 1500000 | U200: 1500000 | V200: 1500000 | W200: 1500000
C201: Separation costs: US$1.5–2.5M per unit | E201: USD | F201: =INDEX(H201:AZ201,$E$2) -> 2500000 | H201: 2500000 | I201: 2500000 | J201: 2500000 | K201: 2500000 | L201: 2500000 | M201: 2500000 | N201: 2500000 | O201: 2500000 | P201: 2500000 | Q201: 2500000 | R201: 2500000 | S201: 2500000 | T201: 2500000 | U201: 2500000 | V201: 2500000 | W201: 2500000
C202: Separation costs: US$1.5–2.5M per unit | E202: USD | F202: =INDEX(H202:AZ202,$E$2) -> 2000000 | H202: =AVERAGE(H200:H201) -> 2000000 | I202: =AVERAGE(I200:I201) -> 2000000 | J202: 2000000 | K202: 2000000 | L202: 2000000 | M202: 2000000 | N202: 2000000 | O202: 2000000 | P202: 2000000 | Q202: 2000000 | R202: 2000000 | S202: 2000000 | T202: 2000000 | U202: 2000000 | V202: 2000000 | W202: 2000000
C204: Income Tax rate | E204: % | F204: =INDEX(H204:AZ204,$E$2) -> 0.1888052436 | H204: ='2025 by Segment'!$AB$50 -> 0.1888052436 | I204: ='2025 by Segment'!$AB$50 -> 0.1888052436 | J204: ='2025 by Segment'!$AB$50 -> 0.1888052436 | K204: ='2025 by Segment'!$AB$50 -> 0.1888052436 | L204: ='2025 by Segment'!$AB$50 -> 0.1888052436 | M204: ='2025 by Segment'!$AB$50 -> 0.1888052436 | N204: ='2025 by Segment'!$AB$50 -> 0.1888052436 | O204: ='2025 by Segment'!$AB$50 -> 0.1888052436 | P204: ='2025 by Segment'!$AB$50 -> 0.1888052436 | Q204: ='2025 by Segment'!$AB$50 -> 0.1888052436 | R204: ='2025 by Segment'!$AB$50 -> 0.1888052436 | S204: ='2025 by Segment'!$AB$50 -> 0.1888052436 | T204: ='2025 by Segment'!$AB$50 -> 0.1888052436 | U204: ='2025 by Segment'!$AB$50 -> 0.1888052436 | V204: ='2025 by Segment'!$AB$50 -> 0.1888052436 | W204: ='2025 by Segment'!$AB$50 -> 0.1888052436
C205: Consolidation Adjustments | E205: % | F205: =INDEX(H205:AZ205,$E$2) -> 0.444693369 | H205: =Reconciliation!$U$19 -> 0.444693369 | I205: =Reconciliation!$U$19 -> 0.444693369 | J205: =Reconciliation!$U$19 -> 0.444693369 | K205: =Reconciliation!$U$19 -> 0.444693369 | L205: =Reconciliation!$U$19 -> 0.444693369 | M205: =Reconciliation!$U$19 -> 0.444693369 | N205: =Reconciliation!$U$19 -> 0.444693369 | O205: =Reconciliation!$U$19 -> 0.444693369 | P205: =Reconciliation!$U$19 -> 0.444693369 | Q205: =Reconciliation!$U$19 -> 0.444693369 | R205: =Reconciliation!$U$19 -> 0.444693369 | S205: =Reconciliation!$U$19 -> 0.444693369 | T205: =Reconciliation!$U$19 -> 0.444693369 | U205: =Reconciliation!$U$19 -> 0.444693369 | V205: =Reconciliation!$U$19 -> 0.444693369 | W205: =Reconciliation!$U$19 -> 0.444693369
C206: Asset Adjustment | E206: % | F206: =INDEX(H206:AZ206,$E$2) -> 0.9046229352 | H206: =Reconciliation!$R$39 -> 0.9046229352 | I206: =Reconciliation!$R$39 -> 0.9046229352 | J206: =Reconciliation!$R$39 -> 0.9046229352 | K206: =Reconciliation!$R$39 -> 0.9046229352 | L206: =Reconciliation!$R$39 -> 0.9046229352 | M206: =Reconciliation!$R$39 -> 0.9046229352 | N206: =Reconciliation!$R$39 -> 0.9046229352 | O206: =Reconciliation!$R$39 -> 0.9046229352 | P206: =Reconciliation!$R$39 -> 0.9046229352 | Q206: =Reconciliation!$R$39 -> 0.9046229352 | R206: =Reconciliation!$R$39 -> 0.9046229352 | S206: =Reconciliation!$R$39 -> 0.9046229352 | T206: =Reconciliation!$R$39 -> 0.9046229352 | U206: =Reconciliation!$R$39 -> 0.9046229352 | V206: =Reconciliation!$R$39 -> 0.9046229352 | W206: =Reconciliation!$R$39 -> 0.9046229352
C207: Liability Adjustment | E207: % | F207: =INDEX(H207:AZ207,$E$2) -> 0.9297137233 | H207: =Reconciliation!$X$39 -> 0.9297137233 | I207: =Reconciliation!$X$39 -> 0.9297137233 | J207: =Reconciliation!$X$39 -> 0.9297137233 | K207: =Reconciliation!$X$39 -> 0.9297137233 | L207: =Reconciliation!$X$39 -> 0.9297137233 | M207: =Reconciliation!$X$39 -> 0.9297137233 | N207: =Reconciliation!$X$39 -> 0.9297137233 | O207: =Reconciliation!$X$39 -> 0.9297137233 | P207: =Reconciliation!$X$39 -> 0.9297137233 | Q207: =Reconciliation!$X$39 -> 0.9297137233 | R207: =Reconciliation!$X$39 -> 0.9297137233 | S207: =Reconciliation!$X$39 -> 0.9297137233 | T207: =Reconciliation!$X$39 -> 0.9297137233 | U207: =Reconciliation!$X$39 -> 0.9297137233 | V207: =Reconciliation!$X$39 -> 0.9297137233 | W207: =Reconciliation!$X$39 -> 0.9297137233
C208: Non-Controlling Income Percent of Income | E208: % | F208: =INDEX(H208:AZ208,$E$2) -> 0.3733712657 | H208: =Reconciliation!T76/Reconciliation!$T$77 -> 0.3733712657 | I208: =H208 -> 0.3733712657 | J208: =I208 -> 0.3733712657 | K208: 0.3733712657 | L208: 0.3733712657 | M208: 0.3733712657 | N208: 0.3733712657 | O208: 0.3733712657 | P208: 0.3733712657 | Q208: 0.3733712657 | R208: 0.3733712657 | S208: 0.3733712657 | T208: 0.3733712657 | U208: 0.3733712657 | V208: 0.3733712657 | W208: 0.3733712657
C209: Non-Controlling Equity Percent | E209: % | F209: =INDEX(H209:AZ209,$E$2) -> 0.2180946647 | H209: =Reconciliation!Y142/Reconciliation!Y143 -> 0.2180946647 | I209: =H209 -> 0.2180946647 | J209: =I209 -> 0.2180946647 | K209: 0.2180946647 | L209: 0.2180946647 | M209: 0.2180946647 | N209: 0.2180946647 | O209: 0.2180946647 | P209: 0.2180946647 | Q209: 0.2180946647 | R209: 0.2180946647 | S209: 0.2180946647 | T209: 0.2180946647 | U209: 0.2180946647 | V209: 0.2180946647 | W209: 0.2180946647
B212: Assumptions for Segment and Overall DCF Model
C214: Bank normalized ROE: Low | E214: % | F214: =INDEX(H214:AZ214,$E$2) -> 0.1 | H214: 0.1 | I214: 0.1 | J214: 0.1 | K214: 0.1 | L214: 0.1 | M214: 0.1 | N214: 0.1 | O214: 0.1 | P214: 0.1 | Q214: 0.1 | R214: 0.1 | S214: 0.1 | T214: 0.1 | U214: 0.1 | V214: 0.1 | W214: 0.1
C215: Bank normalized ROE: High | E215: % | F215: =INDEX(H215:AZ215,$E$2) -> 0.14 | H215: 0.14 | I215: 0.14 | J215: 0.14 | K215: 0.14 | L215: 0.14 | M215: 0.14 | N215: 0.14 | O215: 0.14 | P215: 0.14 | Q215: 0.14 | R215: 0.14 | S215: 0.14 | T215: 0.14 | U215: 0.14 | V215: 0.14 | W215: 0.14
C216: Bank normalized ROE: 10–14% | E216: % | F216: =INDEX(H216:AZ216,$E$2) -> 0.12 | H216: =AVERAGE(H214:H215) -> 0.12 | I216: =AVERAGE(I214:I215) -> 0.12 | J216: 0.12 | K216: 0.12 | L216: 0.12 | M216: 0.12 | N216: 0.12 | O216: 0.12 | P216: 0.12 | Q216: 0.12 | R216: 0.12 | S216: 0.12 | T216: 0.12 | U216: 0.12 | V216: 0.12 | W216: 0.12
C218: NIM baseline: Low | E218: % | F218: =INDEX(H218:AZ218,$E$2) -> 0.035 | H218: 0.035 | I218: 0.035 | J218: 0.035 | K218: 0.035 | L218: 0.035 | M218: 0.035 | N218: 0.035 | O218: 0.035 | P218: 0.035 | Q218: 0.035 | R218: 0.035 | S218: 0.035 | T218: 0.035 | U218: 0.035 | V218: 0.035 | W218: 0.035
C219: NIM baseline: High | E219: % | F219: =INDEX(H219:AZ219,$E$2) -> 0.05 | H219: 0.05 | I219: 0.05 | J219: 0.05 | K219: 0.05 | L219: 0.05 | M219: 0.05 | N219: 0.05 | O219: 0.05 | P219: 0.05 | Q219: 0.05 | R219: 0.05 | S219: 0.05 | T219: 0.05 | U219: 0.05 | V219: 0.05 | W219: 0.05
C220: NIM baseline: 3.5–5.0% | E220: % | F220: =INDEX(H220:AZ220,$E$2) -> 0.0425 | H220: =AVERAGE(H218:H219) -> 0.0425 | I220: =AVERAGE(I218:I219) -> 0.0425 | J220: 0.0425 | K220: 0.0425 | L220: 0.0425 | M220: 0.0425 | N220: 0.0425 | O220: 0.0425 | P220: 0.0425 | Q220: 0.0425 | R220: 0.0425 | S220: 0.0425 | T220: 0.0425 | U220: 0.0425 | V220: 0.0425 | W220: 0.0425
C222: Cost-to-income: Low | E222: % | F222: =INDEX(H222:AZ222,$E$2) -> 0.55 | H222: 0.55 | I222: 0.55 | J222: 0.55 | K222: 0.55 | L222: 0.55 | M222: 0.55 | N222: 0.55 | O222: 0.55 | P222: 0.55 | Q222: 0.55 | R222: 0.55 | S222: 0.55 | T222: 0.55 | U222: 0.55 | V222: 0.55 | W222: 0.55
C223: Cost-to-income: High | E223: % | F223: =INDEX(H223:AZ223,$E$2) -> 0.7 | H223: 0.7 | I223: 0.7 | J223: 0.7 | K223: 0.7 | L223: 0.7 | M223: 0.7 | N223: 0.7 | O223: 0.7 | P223: 0.7 | Q223: 0.7 | R223: 0.7 | S223: 0.7 | T223: 0.7 | U223: 0.7 | V223: 0.7 | W223: 0.7
C224: Cost-to-income: 55–70% | E224: % | F224: =INDEX(H224:AZ224,$E$2) -> 0.625 | H224: =AVERAGE(H222:H223) -> 0.625 | I224: =AVERAGE(I222:I223) -> 0.625 | J224: 0.625 | K224: 0.625 | L224: 0.625 | M224: 0.625 | N224: 0.625 | O224: 0.625 | P224: 0.625 | Q224: 0.625 | R224: 0.625 | S224: 0.625 | T224: 0.625 | U224: 0.625 | V224: 0.625 | W224: 0.625
C226: Wealth Operating Income margin: Low | E226: % | F226: =INDEX(H226:AZ226,$E$2) -> 0.2 | H226: 0.2 | I226: 0.2 | J226: 0.2 | K226: 0.2 | L226: 0.2 | M226: 0.2 | N226: 0.2 | O226: 0.2 | P226: 0.2 | Q226: 0.2 | R226: 0.2 | S226: 0.2 | T226: 0.2 | U226: 0.2 | V226: 0.2 | W226: 0.2
C227: Wealth Operating Income margin: High | E227: % | F227: =INDEX(H227:AZ227,$E$2) -> 0.3 | H227: 0.3 | I227: 0.3 | J227: 0.3 | K227: 0.3 | L227: 0.3 | M227: 0.3 | N227: 0.3 | O227: 0.3 | P227: 0.3 | Q227: 0.3 | R227: 0.3 | S227: 0.3 | T227: 0.3 | U227: 0.3 | V227: 0.3 | W227: 0.3
C228: Wealth Operating margin: 20–30% | E228: % | F228: =INDEX(H228:AZ228,$E$2) -> 0.25 | H228: =AVERAGE(H226:H227) -> 0.25 | I228: =AVERAGE(I226:I227) -> 0.25 | J228: 0.25 | K228: 0.25 | L228: 0.25 | M228: 0.25 | N228: 0.25 | O228: 0.25 | P228: 0.25 | Q228: 0.25 | R228: 0.25 | S228: 0.25 | T228: 0.25 | U228: 0.25 | V228: 0.25 | W228: 0.25
C230: Asset Managment Operating margin: Low | E230: % | F230: =INDEX(H230:AZ230,$E$2) -> 0.25 | H230: 0.25 | I230: 0.25 | J230: 0.25 | K230: 0.25 | L230: 0.25 | M230: 0.25 | N230: 0.25 | O230: 0.25 | P230: 0.25 | Q230: 0.25 | R230: 0.25 | S230: 0.25 | T230: 0.25 | U230: 0.25 | V230: 0.25 | W230: 0.25
C231: Asset Managment Operating margin: High | E231: % | F231: =INDEX(H231:AZ231,$E$2) -> 0.4 | H231: 0.4 | I231: 0.4 | J231: 0.4 | K231: 0.4 | L231: 0.4 | M231: 0.4 | N231: 0.4 | O231: 0.4 | P231: 0.4 | Q231: 0.4 | R231: 0.4 | S231: 0.4 | T231: 0.4 | U231: 0.4 | V231: 0.4 | W231: 0.4
C232: Asset Managment Operating margin: 25–40% | E232: % | F232: =INDEX(H232:AZ232,$E$2) -> 0.325 | H232: =AVERAGE(H230:H231) -> 0.325 | I232: =AVERAGE(I230:I231) -> 0.325 | J232: 0.325 | K232: 0.325 | L232: 0.325 | M232: 0.325 | N232: 0.325 | O232: 0.325 | P232: 0.325 | Q232: 0.325 | R232: 0.325 | S232: 0.325 | T232: 0.325 | U232: 0.325 | V232: 0.325 | W232: 0.325
B235: Limited Partner Targets and Hurdles
C237: Assumed Targets:
D238: Preferred Return | E238: % | F238: =INDEX(H238:AZ238,$E$2) -> 0.15 | H238: 0.15 | I238: 0.15 | J238: 0.15 | K238: 0.15 | L238: 0.15 | M238: 0.15 | N238: 0.15 | O238: 0.15 | P238: 0.15 | Q238: 0.15 | R238: 0.15 | S238: 0.15 | T238: 0.15 | U238: 0.15 | V238: 0.15 | W238: 0.15
C240: Gross IRR: 20–30% | E240: % | F240: =INDEX(H240:AZ240,$E$2) -> 0.2 | H240: 0.2 | I240: 0.2 | J240: 0.2 | K240: 0.2 | L240: 0.2 | M240: 0.2 | N240: 0.2 | O240: 0.2 | P240: 0.2 | Q240: 0.2 | R240: 0.2 | S240: 0.2 | T240: 0.2 | U240: 0.2 | V240: 0.2 | W240: 0.2
C241: Net IRR: 15–22% | E241: % | F241: =INDEX(H241:AZ241,$E$2) -> 0.15 | H241: 0.15 | I241: 0.15 | J241: 0.15 | K241: 0.15 | L241: 0.15 | M241: 0.15 | N241: 0.15 | O241: 0.15 | P241: 0.15 | Q241: 0.15 | R241: 0.15 | S241: 0.15 | T241: 0.15 | U241: 0.15 | V241: 0.15 | W241: 0.15
C242: MOIC: 1.4×–2.0× | E242: x | F242: =INDEX(H242:AZ242,$E$2) -> 1.4 | H242: 1.4 | I242: 1.4 | J242: 1.4 | K242: 1.4 | L242: 1.4 | M242: 1.4 | N242: 1.4 | O242: 1.4 | P242: 1.4 | Q242: 1.4 | R242: 1.4 | S242: 1.4 | T242: 1.4 | U242: 1.4 | V242: 1.4 | W242: 1.4
C243: Payback: 2.5–4 years | E243: Years | F243: =INDEX(H243:AZ243,$E$2) -> 4 | H243: 4 | I243: 4 | J243: 4 | K243: 4 | L243: 4 | M243: 4 | N243: 4 | O243: 4 | P243: 4 | Q243: 4 | R243: 4 | S243: 4 | T243: 4 | U243: 4 | V243: 4 | W243: 4
C245: Distribution To Partners | F245: =INDEX(H245:AZ245,$E$2) -> IRR Hurdle | H245: IRR Hurdle | I245: % Before Hurdle | M245: IRR Hurdle | N245: IRR Hurdle | O245: IRR Hurdle | P245: % After Hurdle
C246: Partner 1 | F246: =INDEX(H246:AZ246,$E$2) -> 0.1 | H246: 0.1 | I246: 0.65 | M246: 0.1 | N246: 0.1 | O246: 0.1 | P246: 0.02
C247: Partner 2 | F247: =INDEX(H247:AZ247,$E$2) -> 0 | I247: =1-I246 -> 0.35 | P247: 0.5
C248: Partner 3 | F248: =INDEX(H248:AZ248,$E$2) -> 0 | P248: =1-P246-P247 -> 0.48
C250: Partner 1 % | E250: % | F250: =INDEX(H250:AZ250,$E$2) -> 0.3333333333 | H250: =1/3 -> 0.3333333333 | I250: =1/3 -> 0.3333333333 | J250: 0.3333333333 | K250: 0.3333333333 | L250: 0.3333333333 | M250: 0.3333333333 | N250: 0.3333333333 | O250: 0.3333333333 | P250: 0.3333333333 | Q250: 0.5 | R250: 0.5 | S250: 0.5 | T250: 0.5 | U250: 0.5 | V250: 0.5 | W250: 0.5
C251: Partner 2 % | E251: % | F251: =INDEX(H251:AZ251,$E$2) -> 0.3333333333 | H251: =1/3 -> 0.3333333333 | I251: 0.3333333333 | J251: 0.3333333333 | K251: 0.3333333333 | L251: 0.3333333333 | M251: 0.3333333333 | N251: 0.3333333333 | O251: 0.3333333333 | P251: 0.3333333333 | Q251: 0.35 | R251: 0.35 | S251: 0.35 | T251: 0.35 | U251: 0.35 | V251: 0.35 | W251: 0.35
C252: Partner 2 % | E252: % | F252: =INDEX(H252:AZ252,$E$2) -> 0.3333333333 | H252: 0.3333333333 | I252: 0.3333333333 | J252: 0.3333333333 | K252: 0.3333333333 | L252: 0.3333333333 | M252: 0.3333333333 | N252: 0.3333333333 | O252: 0.3333333333 | P252: 0.3333333333 | Q252: =1-Q250-Q251 -> 0.15 | R252: 0.15 | S252: 0.15 | T252: 0.15 | U252: 0.15 | V252: 0.15 | W252: 0.15
B254: Mayberry
C256: Platform Value | E256: USD | F256: =INDEX(H256:AZ256,$E$2) -> 628810288.3 | H256: =H108 -> 628810288.3 | I256: 628810288.3 | J256: 628810288.3 | K256: 628810288.3 | L256: 628810288.3 | M256: 628810288.3 | N256: 628810288.3 | O256: 628810288.3 | P256: 628810288.3 | Q256: 628810288.3 | R256: 628810288.3 | S256: 628810288.3 | T256: 628810288.3 | U256: 628810288.3 | V256: 628810288.3 | W256: 628810288.3
C257: Mayberry Management Fee - Total | E257: USD | F257: =INDEX(H257:AZ257,$E$2) -> 6288102.883 | H257: =H256*H262 -> 6288102.883 | I257: =I256*I262 -> 6288102.883 | J257: 6288102.883 | K257: 31440514.42 | L257: 31440514.42 | M257: 31440514.42 | N257: 31440514.42 | O257: 31440514.42 | P257: 31440514.42 | Q257: 31440514.42 | R257: 31440514.42 | S257: 31440514.42 | T257: 31440514.42 | U257: 31440514.42 | V257: 31440514.42 | W257: 31440514.42
C259: Start of Fee Payment | E259: Date | F259: =INDEX(H259:AZ259,$E$2) -> 2026-02-28 | H259: =H14 -> 2026-02-28 | I259: 2026-03-31 | J259: 2026-06-30 | K259: 2026-01-31 | L259: 2026-01-31 | M259: 2026-01-31 | N259: 2026-01-31 | O259: 2026-01-31 | P259: 2026-01-31 | Q259: 2026-01-31 | R259: 2026-01-31 | S259: 2026-01-31 | T259: 2026-01-31 | U259: 2026-06-30 | V259: 2026-06-30 | W259: 2026-06-30
C260: Length of Spreading Fee Payment | E260: Months | F260: =INDEX(H260:AZ260,$E$2) -> 30 | H260: 30 | I260: 30 | J260: 30 | K260: 30 | L260: 30 | M260: 30 | N260: 30 | O260: 30 | P260: 30 | Q260: 30 | R260: 30 | S260: 30 | T260: 30 | U260: 30 | V260: 30 | W260: 30
C261: Ending Date for Fee Payment | E261: Date | F261: =INDEX(H261:AZ261,$E$2) -> 2028-08-31 | H261: =EOMONTH(H259,H260) -> 2028-08-31 | I261: =EOMONTH(I259,I260) -> 2028-09-30 | J261: 2028-12-31 | K261: 2028-07-31 | L261: 2028-07-31 | M261: 2028-07-31 | N261: 2028-07-31 | O261: 2028-07-31 | P261: 2028-07-31 | Q261: 2028-07-31 | R261: 2028-07-31 | S261: 2028-07-31 | T261: 2028-07-31 | U261: 2028-12-31 | V261: 2028-12-31 | W261: 2028-12-31
C262: Management Fee Payable Percent | E262: % | F262: =INDEX(H262:AZ262,$E$2) -> 0.01 | H262: 0.01 | I262: 0.01 | J262: 0.01 | K262: 0.05 | L262: 0.05 | M262: 0.05 | N262: 0.05 | O262: 0.05 | P262: 0.05 | Q262: 0.05 | R262: 0.05 | S262: 0.05 | T262: 0.05 | U262: 0.05 | V262: 0.05 | W262: 0.05
C264: Base: 2 carve-outs → US$105M | F264: =INDEX(H264:AZ264,$E$2) -> 105000000 | H264: 105000000 | I264: 105000000 | J264: 105000000 | K264: 105000000 | L264: 105000000 | M264: 105000000 | N264: 105000000 | O264: 105000000 | P264: 105000000 | Q264: 105000000 | R264: 105000000 | S264: 105000000 | T264: 105000000 | U264: 105000000 | V264: 105000000 | W264: 105000000
C265: Bull: 3 carve-outs → US$175M | F265: =INDEX(H265:AZ265,$E$2) -> 175000000 | H265: 175000000 | I265: 175000000 | J265: 175000000 | K265: 175000000 | L265: 175000000 | M265: 175000000 | N265: 175000000 | O265: 175000000 | P265: 175000000 | Q265: 175000000 | R265: 175000000 | S265: 175000000 | T265: 175000000 | U265: 175000000 | V265: 175000000 | W265: 175000000
C266: Bear: 1 carve-out → US$50M | F266: =INDEX(H266:AZ266,$E$2) -> 50000000 | H266: 50000000 | I266: 50000000 | J266: 50000000 | K266: 50000000 | L266: 50000000 | M266: 50000000 | N266: 50000000 | O266: 50000000 | P266: 50000000 | Q266: 50000000 | R266: 50000000 | S266: 50000000 | T266: 50000000 | U266: 50000000 | V266: 50000000 | W266: 50000000
C267: Tax leakage: 3–6%
C269: Select segments for carve out
D270: Retail SME banking | E270: 1=Yes/0=No | F270: =INDEX(H270:AZ270,$E$2) -> 1 | H270: 1 | I270: =NOT(H270)*1 -> 0 | J270: 1 | K270: =NOT(J270)*1 -> 0 | L270: 0 | M270: =NOT(L270)*1 -> 1 | N270: 0 | O270: 0 | P270: 0 | Q270: 0 | R270: 0 | S270: 0 | T270: 0 | U270: 0 | V270: 0 | W270: 0
D271: Payment services | E271: 1=Yes/0=No | F271: =INDEX(H271:AZ271,$E$2) -> 1 | H271: 1 | I271: =NOT(H271)*1 -> 0 | J271: 0 | K271: =NOT(J271)*1 -> 1 | L271: 0 | M271: =NOT(L271)*1 -> 1 | N271: 0 | O271: 0 | P271: 0 | Q271: 0 | R271: 0 | S271: 0 | T271: 0 | U271: 0 | V271: 0 | W271: 0
D272: Corporate and commercial banking | E272: 1=Yes/0=No | F272: =INDEX(H272:AZ272,$E$2) -> 0 | H272: 0 | I272: 1 | J272: 0 | K272: 1 | L272: 1 | M272: 0 | N272: 0 | O272: 0 | P272: 0 | Q272: 0 | R272: 0 | S272: 0 | T272: 0 | U272: 0 | V272: 0 | W272: 0
D273: Treasury and correspondent banking | E273: 1=Yes/0=No | F273: =INDEX(H273:AZ273,$E$2) -> 0 | H273: 0 | I273: 1 | J273: 0 | K273: 1 | L273: 0 | M273: 1 | N273: 0 | O273: 0 | P273: 0 | Q273: 0 | R273: 0 | S273: 0 | T273: 0 | U273: 0 | V273: 0 | W273: 0
... 107 more rows

Sheet Tab 1a - Benchmarks
B2: . | E2: SP TOTAL ASSETS | F2: SP MARKETCAP | G2: SP ROA | H2: SP ROE | I2: SNL ASSET GROWTH | J2: SNL DEPOSIT GROWTH | K2: SP TOTAL CAPITAL RATIO | L2: SNL IMPAIRED LOAN TO TANG EQUITY AND RESV | M2: SP TIER 1 COMMON RATIO | N2: SNL PROBLEM LOANS TO CUSTOMER LOANS | O2: SNL LEVERAGE RATIO | P2: SP TIER 1 RATIO | Q2: SNL RETURN ON CAPITAL | R2: SP ENTITY ID | S2: SP AMORT LOANS TO DEPOSITS | T2: SNL LIQUID ASSETS TO ASSETS | U2: SNL LLR PROBLEM LOANS | V2: SP NIM | W2: SNL COST TO INC | X2: 356632 | Y2: SP TIER 1 COMMON RATIO | Z2: SNL IMPAIRED PD LOAN TO LOAN | AA2: SNL NET CUSTOMER LOANS TO DEPOSITS | AB2: SNL TANG COMMON EQUITY TO TANG ASSETS | AC2: SP ROE | AD2: SNL EFFICIENCY RATIO | AE2: SNL NPA TO ASSETS | AF2: SP NIM | AG2: SNL EFFICIENCY RATIO | AH2: SNL NONINT INC TO AVG ASSETS | AI2: SNL NONINT EXP TO AVG ASSETS | AJ2: SNL YLD TOTAL LOAN | AK2: SNL YLD INT EARNING ASSETS BANKS | AL2: SNL COST OF FUNDS | AM2: SNL NET LOAN RECV GROWTH | AN2: SP NET INC GROWTH | AO2: SP TOTAL CAPITAL RATIO | AP2: SNL RWA TO ASSETS | AQ2: SNL NPL TO LOAN | AR2: SNL NPA TO ASSETS | AS2: SNL NPA 90PLUS PD TO ASSETS | AT2: SNL NPA LOAN 90PLUS PD TO TANG EQUITY LLR | AU2: SNL NACCR 90PLUS PD OREO TO ASSETS | AV2: SNL RESV TO NPL | AW2: SNL LLR TO GROSS LOAN | AX2: SNL LLR PROBLEM LOANS | AY2: AVG LIQUIDITY COV RATIO | AZ2: SNL NET STABLE FUNDING RATIO | BA2: 278503 | BB2: SNL DILUT EPS AFTER EXTRA | BC2: SP BVPS | BD2: SNL PBV PERIOD END X | BE2: SNL PTBV PERIOD END X | BF2: SNL PAYOUT RATIO | BG2: SP PE FWD | BH2: IQ TEV EBITDA | BI2: IQ TEV TOTAL REV | BJ2: IQ TEV EBIT | BK2: IQ PE | BL2: IQ PTBV X | BM2: SP PE FWD | BN2: SP PNAVPS FWD | BO2: SP TEV TOTAL REV FWD | BP2: SP TEV EBITDA FWD | BQ2: SP TEV EBIT FWD | BR2: SP PBV FWD
E3: FQ0 | G3: LTM | H3: LTM | I3: LTM | J3: LTM | K3: FY0 | L3: FY0 | M3: FQ0 | N3: FQ0 | O3: FQ0 | P3: FQ0 | Q3: LTM | S3: FY0 | T3: FY0 | U3: FY0 | V3: FY0 | W3: FY0 | X3: FY0 | Y3: FY0 | Z3: FY0 | AA3: FY0 | AB3: FQ0 | AC3: LTM | AD3: LTM | AE3: FQ0 | AF3: LTM | AG3: LTM | AH3: LTM | AI3: LTM | AJ3: LTM | AK3: LTM | AL3: LTM | AM3: LTM | AN3: LTM | AO3: FQ0 | AP3: FQ0 | AQ3: FQ0 | AR3: FQ0 | AS3: FQ0 | AT3: FQ0 | AU3: FQ0 | AV3: FQ0 | AW3: FQ0 | AX3: FQ0 | AY3: FQ0 | AZ3: FQ0 | BA3: FQ0 | BB3: LTM | BC3: FQ0 | BD3: FY0 | BE3: FY0 | BF3: FY0 | BG3: FY2026 | BH3: LTM | BI3: LTM | BJ3: LTM | BK3: LTM | BL3: LTM | BR3: FY+1
D5: Republic Financial Holdings Limited (TTSE:RFHL) | E5: 3000090767 | F5: 398913.8118 | G5: 1.950104256 | H5: 15.33102136 | I5: 7.248186266 | J5: 7.010296174 | K5: 14.88 | L5: 20.33466505 | M5: NA | N5: 4.640898579 | O5: NA | P5: NA | Q5: 11.45745577 | R5: 4395506 | S5: 73.36817723 | T5: 12.90155114 | U5: 44.33371298 | V5: 4.641568038 | W5: 55.53111657 | X5: NA | Y5: NA | Z5: NA | AA5: 73.36817723 | AB5: 11.38520525 | AC5: 15.33102136 | AD5: 55.53111657 | AE5: NA | AF5: 4.641568038 | AG5: 55.53111657 | AH5: 1.805917626 | AI5: 3.419055339 | AJ5: 7.043159942 | AK5: 5.553395666 | AL5: 1.014061479 | AM5: 10.13239424 | AN5: 7.746478873 | AO5: 14.88 | AP5: NA | AQ5: 4.640898579 | AR5: NA | AS5: NA | AT5: NA | AU5: NA | AV5: 44.33371298 | AW5: 2.057482656 | AX5: 44.33371298 | AY5: NA | AZ5: NA | BA5: NA | BB5: 318.3285279 | BC5: 2218.313376 | BD5: 1.134214762 | BE5: 1.205083455 | BF5: 44.47901947 | BG5: NA | BH5: NA | BI5: NA | BJ5: NA | BK5: 7.630528 | BL5: 1.176202 | BM5: NA | BN5: NA | BO5: NA | BP5: NA | BQ5: NA | BR5: NA
D6: Inter & Co, Inc. (NASDAQGS:INTR) | E6: 2699781797 | F6: 589165.3405 | G6: 1.595 | H6: 13.814 | I6: NA | J6: NA | K6: 15.18543453 | L6: 21.37563344 | M6: 13.33843131 | N6: 5.805381427 | O6: NA | P6: 13.33843131 | Q6: NA | R6: 4403916 | S6: 77.86177767 | T6: 45.61392511 | U6: 111.6716007 | V6: 2.994972005 | W6: 53.02983814 | X6: 8.2 | Y6: 15.18543453 | Z6: NA | AA6: 77.86177767 | AB6: 8.544556492 | AC6: 13.814 | AD6: NA | AE6: NA | AF6: NA | AG6: NA | AH6: NA | AI6: NA | AJ6: NA | AK6: NA | AL6: NA | AM6: NA | AN6: 54.972 | AO6: 14.63402749 | AP6: 44.88243617 | AQ6: NA | AR6: NA | AS6: NA | AT6: NA | AU6: NA | AV6: NA | AW6: 6.172186301 | AX6: 106.3183596 | AY6: NA | AZ6: NA | BA6: 5 | BB6: NA | BC6: 646.6655138 | BD6: 1.290176121 | BE6: 1.625746428 | BF6: 22.3142029 | BG6: 10.18009065 | BH6: NA | BI6: NA | BJ6: NA | BK6: 16.338307 | BL6: 2.373394 | BM6: 10.94747817 | BN6: NA | BO6: NA | BP6: NA | BQ6: NA | BR6: 1.982146523
D7: Regional S.A.B. de C.V. (BMV:R A) | E7: 2391463797 | F7: 411829.4374 | G7: 2.536752313 | H7: 19.27872369 | I7: 10.95672571 | J7: -36.06108859 | K7: 14.33462106 | L7: 6.729364788 | M7: NA | N7: 1.622803998 | O7: NA | P7: 14.6 | Q7: 10.07429671 | R7: 4400311 | S7: 100.7863477 | T7: 22.41764327 | U7: 163.4586141 | V7: 7.495812089 | W7: 40.61916959 | X7: NA | Y7: NA | Z7: NA | AA7: 100.7863477 | AB7: 12.292148 | AC7: 19.27872369 | AD7: 40.50695215 | AE7: NA | AF7: 6.356633222 | AG7: 40.50695215 | AH7: 1.023254459 | AI7: 2.820553124 | AJ7: NA | AK7: 12.88668801 | AL7: 7.339631991 | AM7: 9.985753548 | AN7: 0.7388352467 | AO7: NA | AP7: NA | AQ7: 1.622803998 | AR7: NA | AS7: NA | AT7: NA | AU7: NA | AV7: 130.2219321 | AW7: 2.11324672 | AX7: 130.2219321 | AY7: NA | AZ7: NA | BA7: NA | BB7: 174.8700249 | BC7: 967.2881682 | BD7: 1.184507232 | BE7: 1.290187814 | BF7: NA | BG7: 6.678957037 | BH7: NA | BI7: NA | BJ7: NA | BK7: NA | BL7: NA | BM7: 6.739236501 | BN7: NA | BO7: NA | BP7: NA | BQ7: NA | BR7: 1.290902004
D8: BRB - Banco de Brasília S.A. (BOVESPA:BSLI4) | E8: 2191069857 | F8: 100228.768 | G8: 1.277 | H8: 25.134 | I8: 40.54901893 | J8: 28.51754832 | K8: 12.94030845 | L8: 18.95135547 | M8: 8.07 | N8: 1.66347701 | O8: NA | P8: 9.44 | Q8: NA | R8: 4396805 | S8: 119.3352699 | T8: 17.86961055 | U8: 110.7566352 | V8: 6.967269278 | W8: 80.08106691 | X8: 7 | Y8: 7.125484182 | Z8: NA | AA8: 119.3352699 | AB8: 5.056988956 | AC8: 25.134 | AD8: NA | AE8: NA | AF8: NA | AG8: NA | AH8: NA | AI8: NA | AJ8: 19.43814517 | AK8: 17.62502406 | AL8: NA | AM8: 52.26027674 | AN8: 377.315 | AO8: 13.91 | AP8: 57.59960612 | AQ8: NA | AR8: NA | AS8: NA | AT8: NA | AU8: NA | AV8: NA | AW8: 1.631011926 | AX8: 98.0483599 | AY8: NA | AZ8: NA | BA8: 4.68 | BB8: NA | BC8: 241.0170047 | BD8: 1.015566121 | BE8: 1.096930467 | BF8: 17.82308455 | BG8: NA | BH8: NA | BI8: NA | BJ8: NA | BK8: 3.76 | BL8: 0.985187 | BM8: NA | BN8: NA | BO8: NA | BP8: NA | BQ8: NA | BR8: NA
D9: Banco BBVA Argentina S.A. (BASE:BBAR) | E9: NA | F9: 575266.6439 | G9: 1.113 | H9: 7.193 | I9: 10.62980955 | J9: 25.29477819 | K9: 21.43761605 | L9: 4.170053125 | M9: NA | N9: NA | O9: NA | P9: NA | Q9: 11.75137886 | R9: 4135282 | S9: 75.91958851 | T9: 37.29464343 | U9: 140.7950333 | V9: 35.63117625 | W9: 69.46446709 | X9: 8 | Y9: NA | Z9: NA | AA9: 75.91958851 | AB9: NA | AC9: 7.193 | AD9: 69.46446709 | AE9: NA | AF9: NA | AG9: 69.46446709 | AH9: -4.677591581 | AI9: 13.78585541 | AJ9: 47.59 | AK9: 57.13 | AL9: 29.74 | AM9: 75.23829093 | AN9: -62.901 | AO9: NA | AP9: NA | AQ9: NA | AR9: NA | AS9: NA | AT9: NA | AU9: NA | AV9: NA | AW9: NA | AX9: NA | AY9: NA | AZ9: NA | BA9: NA | BB9: 65.08764273 | BC9: NA | BD9: 1.799736246 | BE9: 1.849483634 | BF9: 2.809955237 | BG9: 3.282872151 | BH9: NA | BI9: NA | BJ9: NA | BK9: 29.068473 | BL9: 1.780245 | BM9: 3.73765577 | BN9: NA | BO9: NA | BP9: NA | BQ9: NA | BR9: 0.5753140699
D10: Banco del Bajío, S.A., Institución de Banca Múltiple (BMV:BBAJIO O) | E10: 3382790072 | F10: 525711.2274 | G10: 2.56455901 | H10: 20.63793835 | I10: 10.44648296 | J10: 13.65480392 | K10: 15.21343118 | L10: 7.838937919 | M10: 15.88716073 | N10: 1.982605008 | O10: NA | P10: 15.88716073 | Q10: 17.45854692 | R10: 4252002 | S10: 105.0223765 | T10: 10.83765624 | U10: 137.2106569 | V10: 6.923855531 | W10: 35.62116999 | X10: 7 | Y10: 14.93852096 | Z10: NA | AA10: 105.0223765 | AB10: 12.13338175 | AC10: 20.63793835 | AD10: 39.21658229 | AE10: NA | AF10: 6.274912143 | AG10: 39.21658229 | AH10: 0.826081434 | AI10: 2.652408365 | AJ10: 12.15042214 | AK10: 11.67915606 | AL10: 6.006434297 | AM10: 5.124415173 | AN10: -13.45558553 | AO10: 15.88716073 | AP10: 67.98120055 | AQ10: 1.982605008 | AR10: NA | AS10: NA | AT10: NA | AU10: NA | AV10: 115.7463135 | AW10: 2.294792208 | AX10: 115.7463135 | AY10: 135.1 | AZ10: 120.11 | BA10: 10.67 | BB10: 70.20209102 | BC10: 349.4599346 | BD10: 1.09142862 | BE10: 1.110853499 | BF10: NA | BG10: 6.727322338 | BH10: NA | BI10: NA | BJ10: NA | BK10: 6.292431 | BL10: 1.283136 | BM10: 6.791874177 | BN10: NA | BO10: NA | BP10: NA | BQ10: NA | BR10: 1.238095851
D11: Banco Macro S.A. (BASE:BMA) | E11: 2275337880 | F11: 925240.7179 | G11: 1.322 | H11: 5.473 | I11: -0.9391459442 | J11: 14.76392329 | K11: 32.36525438 | L11: 1.654630536 | M11: NA | N11: NA | O11: NA | P11: NA | Q11: 6.533477052 | R11: 4121886 | S11: 68.88119926 | T11: 27.61005466 | U11: 185.147032 | V11: 12.55957315 | W11: 80.04402892 | X11: 8 | Y11: 31.64955272 | Z11: 3.169273506 | AA11: 68.88119926 | AB11: NA | AC11: 5.473 | AD11: 80.04402892 | AE11: NA | AF11: NA | AG11: 80.04402892 | AH11: 5.379079032 | AI11: 13.88211145 | AJ11: 51.25979642 | AK11: 51.73 | AL11: 22.08036994 | AM11: 45.2943387 | AN11: -82.162 | AO11: NA | AP11: NA | AQ11: NA | AR11: NA | AS11: NA | AT11: NA | AU11: NA | AV11: NA | AW11: NA | AX11: NA | AY11: NA | AZ11: NA | BA11: NA | BB11: 56.32930417 | BC11: 823.1960306 | BD11: 1.808133689 | BE11: 1.8764789 | BF11: NA | BG11: 11.89470406 | BH11: NA | BI11: NA | BJ11: NA | BK11: 36.795053 | BL11: 1.83441 | BM11: 14.04172689 | BN11: NA | BO11: NA | BP11: NA | BQ11: NA | BR11: 0.1754056706
D12: Banco da Amazônia S.A. (BOVESPA:BAZA3) | E12: 1776110327 | F12: 123488.2317 | G12: 1.89458458 | H12: 15.73145782 | I12: 14.89694127 | J12: 2.90388074 | K12: 13.7230725 | L12: NA | M12: 14.23306682 | N12: NA | O12: NA | P12: 14.23306682 | Q12: 12.94036615 | R12: 4356826 | S12: 246.9120438 | T12: 38.38636894 | U12: 158.6534742 | V12: -1.301896213 | W12: 50.37834677 | X12: 7 | Y12: 13.7230725 | Z12: NA | AA12: 246.9120438 | AB12: 11.86594324 | AC12: 15.73145782 | AD12: 52.05407399 | AE12: NA | AF12: -1.74866605 | AG12: 52.05407399 | AH12: 10.27304287 | AI12: 4.471489153 | AJ12: 9.415789353 | AK12: 5.892166677 | AL12: 28.42255376 | AM12: 23.84229562 | AN12: -17.69513753 | AO12: 14.23306682 | AP12: 85.63439335 | AQ12: NA | AR12: NA | AS12: NA | AT12: NA | AU12: NA | AV12: NA | AW12: 6.577454357 | AX12: NA | AY12: NA | AZ12: NA | BA12: 10.08 | BB12: 563.1015316 | BC12: 3820.488769 | BD12: 0.7377346563 | BE12: 0.7492677815 | BF12: NA | BG12: NA | BH12: NA | BI12: NA | BJ12: NA | BK12: NA | BL12: NA | BM12: NA | BN12: NA | BO12: NA | BP12: NA | BQ12: NA | BR12: NA
D13: Itaúsa S.A. (BOVESPA:ITSA4) | E13: 3335333052 | F13: 3815252.693 | G13: 0.191 | H13: 17.063 | I13: NA | J13: NA | K13: NA | L13: NA | M13: NA | N13: NA | O13: NA | P13: NA | Q13: NA | R13: 4183842 | S13: NA | T13: NA | U13: NA | V13: NA | W13: NA | X13: NA | Y13: NA | Z13: NA | AA13: NA | AB13: NA | AC13: 17.063 | AD13: NA | AE13: NA | AF13: NA | AG13: NA | AH13: NA | AI13: NA | AJ13: NA | AK13: NA | AL13: NA | AM13: NA | AN13: 13.312 | AO13: NA | AP13: NA | AQ13: NA | AR13: NA | AS13: NA | AT13: NA | AU13: NA | AV13: NA | AW13: NA | AX13: NA | AY13: NA | AZ13: NA | BA13: NA | BB13: NA | BC13: 247.2512171 | BD13: NA | BE13: NA | BF13: NA | BG13: 6.935294118 | BH13: 7.597851 | BI13: 16.998065 | BJ13: 8.144163 | BK13: 8.338048 | BL13: 1.415196 | BM13: 7.36875 | BN13: NA | BO13: 7.989966152 | BP13: NA | BQ13: 7.764171789 | BR13: 1.375729288
D14: Banco BMG S.A. (BOVESPA:BMGB4) | E14: 1419031343 | F14: 75999.66071 | G14: 0.8444731734 | H14: 9.155010312 | I14: 7.086427607 | J14: -11.64507573 | K14: 13.2104508 | L14: 34.71144039 | M14: 9.456405361 | N14: 6.365506147 | O14: NA | P14: 9.867176307 | Q14: 2.051182157 | R14: 4272272 | S14: 96.3838807 | T14: 17.19182239 | U14: 134.2070221 | V14: 12.41327335 | W14: 51.71745034 | X14: 7 | Y14: 9.687340948 | Z14: NA | AA14: 96.3838807 | AB14: 6.155571824 | AC14: 9.155010312 | AD14: 52.62717755 | AE14: NA | AF14: 8.997304964 | AG14: 52.62717755 | AH14: 0.161033086 | AI14: 4.021165232 | AJ14: 30.07804002 | AK14: 22.74409172 | AL14: 13.52085953 | AM14: -4.900419577 | AN14: 3.895669027 | AO14: 13.13224319 | AP14: 58.79850803 | AQ14: NA | AR14: NA | AS14: NA | AT14: NA | AU14: NA | AV14: NA | AW14: 7.822277786 | AX14: 122.8854015 | AY14: NA | AZ14: NA | BA14: 5.94 | BB14: 19.99226644 | BC14: 231.9958288 | BD14: 0.4971980896 | BE14: 0.7965567766 | BF14: NA | BG14: 4.852777231 | BH14: NA | BI14: NA | BJ14: NA | BK14: 6.519824 | BL14: 0.576025 | BM14: 4.907704211 | BN14: NA | BO14: NA | BP14: NA | BQ14: NA | BR14: 0.6693975271
D15: NCB Financial Group Limited (JMSE:NCBFG) | E15: 2405996947 | F15: 99158.54547 | G15: 1.571275572 | H15: 16.20611989 | I15: 3.885392082 | J15: 3.245297287 | K15: NA | L15: 13.6105537 | M15: NA | N15: 4.514727075 | O15: NA | P15: NA | Q15: 5.186421314 | R15: 4888099 | S15: 76.39344513 | T15: 46.67321496 | U15: 67.97523611 | V15: 3.739632692 | W15: 70.95345466 | X15: NA | Y15: NA | Z15: NA | AA15: 76.39344513 | AB15: 6.385941691 | AC15: 16.20611989 | AD15: 70.95345466 | AE15: NA | AF15: 3.739632692 | AG15: 70.95345466 | AH15: 2.630633661 | AI15: 4.230299561 | AJ15: 9.844524894 | AK15: 5.967442767 | AL15: 3.592578154 | AM15: -1.262214136 | AN15: 71.14179648 | AO15: NA | AP15: NA | AQ15: 4.514727075 | AR15: NA | AS15: NA | AT15: NA | AU15: NA | AV15: 67.97523611 | AW15: 3.068896389 | AX15: 67.97523611 | AY15: NA | AZ15: NA | BA15: NA | BB15: 9.59 | BC15: 72.38381321 | BD15: 0.5802402241 | BE15: 0.7672892787 | BF15: 15.64129301 | BG15: NA | BH15: NA | BI15: NA | BJ15: NA | BK15: 4.274841 | BL15: 0.658624 | BM15: NA | BN15: NA | BO15: NA | BP15: NA | BQ15: NA | BR15: NA
D17: Minimum | E17: 1419031343 | F17: 75999.66 | G17: 0.19 | H17: 5.47 | I17: -0.94 | J17: -36.06 | K17: 12.94 | L17: 1.65 | M17: 8.07 | N17: 1.62 | O17: NA | P17: 9.44 | Q17: 2.05 | S17: 68.88 | T17: 10.84 | U17: 44.33 | V17: -1.3 | W17: 35.62 | X17: 7 | Y17: 7.13 | Z17: 3.17 | AA17: 68.88 | AB17: 5.06 | AC17: 5.47 | AD17: 39.22 | AE17: NA | AF17: -1.75 | AG17: 39.22 | AH17: -4.68 | AI17: 2.65 | AJ17: 7.04 | AK17: 5.55 | AL17: 1.01 | AM17: -4.9 | AN17: -82.16 | AO17: 13.13 | AP17: 44.88 | AQ17: 1.62 | AR17: NA | AS17: NA | AT17: NA | AU17: NA | AV17: 44.33 | AW17: 1.63 | AX17: 44.33 | AY17: 135.1 | AZ17: 120.11 | BA17: 4.68 | BB17: 19.99 | BC17: 232 | BD17: 0.5 | BE17: 0.75 | BF17: 2.81 | BG17: 3.3 | BH17: 7.6 | BI17: 17 | BJ17: 8.14 | BK17: 3.76 | BL17: 0.58 | BM17: 3.7 | BN17: NA | BO17: 7.99 | BP17: NA | BQ17: 7.76 | BR17: 0.2
D18: Median | E18: 2391463797 | F18: 468770.33 | G18: 1.46 | H18: 15.53 | I18: 10.54 | J18: 10.33 | K18: 14.88 | L18: 13.4 | M18: 13.34 | N18: 3.31 | O18: NA | P18: 13.79 | Q18: 11.46 | S18: 96.38 | T18: 22.42 | U18: 137.21 | V18: 6.97 | W18: 53.03 | X18: 7 | Y18: 14.33 | Z18: 3.17 | AA18: 96.38 | AB18: 11.39 | AC18: 15.53 | AD18: 52.63 | AE18: NA | AF18: 6.27 | AG18: 52.63 | AH18: 1.02 | AI18: 4.02 | AJ18: 19.44 | AK18: 15.26 | AL18: 13.52 | AM18: 16.99 | AN18: 2.32 | AO18: 14.43 | AP18: 58.8 | AQ18: 1.98 | AR18: NA | AS18: NA | AT18: NA | AU18: NA | AV18: 115.75 | AW18: 2.29 | AX18: 111.03 | AY18: 135.1 | AZ18: 120.11 | BA18: 5.94 | BB18: 70.2 | BC18: 646.67 | BD18: 1.13 | BE18: 1.21 | BF18: 20.07 | BG18: 6.7 | BH18: 7.6 | BI18: 17 | BJ18: 8.14 | BK18: 7.98 | BL18: 1.35 | BM18: 6.8 | BN18: NA | BO18: 7.99 | BP18: NA | BQ18: 7.76 | BR18: 1.2
D19: Average | E19: 2496778766 | F19: 754109.65 | G19: 1.53 | H19: 14.88 | I19: 12.61 | J19: 5.55 | K19: 17.03 | L19: 14.47 | M19: 12.2 | N19: 3.68 | O19: NA | P19: 12.9 | Q19: 10.32 | S19: 107.16 | T19: 25.57 | U19: 131.8 | V19: 9.81 | W19: 57.39 | X19: 7.46 | Y19: 15.39 | Z19: 3.17 | AA19: 107.16 | AB19: 9.63 | AC19: 14.88 | AD19: 55.63 | AE19: NA | AF19: 4.9 | AG19: 55.63 | AH19: 2.11 | AI19: 6.44 | AJ19: 25.28 | AK19: 23.16 | AL19: 15.45 | AM19: 27.12 | AN19: 28.18 | AO19: 14.45 | AP19: 62.98 | AQ19: 2.75 | AR19: NA | AS19: NA | AT19: NA | AU19: NA | AV19: 96.77 | AW19: 4.09 | AX19: 102.93 | AY19: 135.1 | AZ19: 120.11 | BA19: 7.27 | BB19: 181.13 | BC19: 1060.63 | BD19: 1.17 | BE19: 1.29 | BF19: 21.86 | BG19: 7.2 | BH19: 7.6 | BI19: 17 | BJ19: 8.14 | BK19: 14.34 | BL19: 1.43 | BM19: 7.8 | BN19: NA | BO19: 7.99 | BP19: NA | BQ19: 7.76 | BR19: 1.1
D20: Maximum | E20: 3382790072 | F20: 3815252.69 | G20: 2.56 | H20: 25.13 | I20: 40.55 | J20: 28.52 | K20: 32.37 | L20: 34.71 | M20: 15.89 | N20: 6.37 | O20: NA | P20: 15.89 | Q20: 17.46 | S20: 246.91 | T20: 45.61 | U20: 185.15 | V20: 35.63 | W20: 80.08 | X20: 8.2 | Y20: 31.65 | Z20: 3.17 | AA20: 246.91 | AB20: 12.29 | AC20: 25.13 | AD20: 80.04 | AE20: NA | AF20: 9 | AG20: 80.04 | AH20: 10.27 | AI20: 13.88 | AJ20: 51.26 | AK20: 57.13 | AL20: 29.74 | AM20: 75.24 | AN20: 377.32 | AO20: 15.89 | AP20: 85.63 | AQ20: 4.64 | AR20: NA | AS20: NA | AT20: NA | AU20: NA | AV20: 130.22 | AW20: 7.82 | AX20: 130.22 | AY20: 135.1 | AZ20: 120.11 | BA20: 10.67 | BB20: 563.1 | BC20: 3820.49 | BD20: 1.81 | BE20: 1.88 | BF20: 44.48 | BG20: 11.9 | BH20: 7.6 | BI20: 17 | BJ20: 8.14 | BK20: 36.8 | BL20: 2.37 | BM20: 14 | BN20: NA | BO20: 7.99 | BP20: NA | BQ20: 7.76 | BR20: 2
B22: Multiples for Segments
F36: Format
C42: Market multiples (Market Cap/Revenue, P/E, P/BV)
D43: P/B Ratio
D51: P/E Ratio
D57: Market Cap/Revenue | E57: 2418501109
E58: 0.26
E59: =E57*E58 -> 628810288.3
C61: ROE/ROA benchmarks
D62: ROE
D69: ROAA
E74: 0.0062
E75: =E59/E74 -> 1.014210142e+11
E77: 210742808000 | AC77: Stockholders' equity 210,742,808
E78: =E74 -> 0.0062
C79: NIM (Net Interest Margin) benchmarks | E79: =E77*E78 -> 1306605410
D80: NIM/Loand
C89: Cost-to-income ratio norms
B95: Valuation Scenario | R95: 1
B98: Timing Sensitivity Assumptions | S98: =INDEX(U98:AD98,$R$95) -> Base | U98: Base | V98: High | W98: Low | X98: Case 3
C100: Period First Segment Sale | R100: Months After Tranaction | S100: =INDEX(U100:AD100,$R$95) -> 6 | U100: 6 | V100: 6 | W100: 6 | X100: 6
C101: Second Sale Period | R101: Months After Tranaction | S101: =INDEX(U101:AD101,$R$95) -> 12 | U101: 12 | V101: 12 | W101: 12 | X101: 12
C102: Final Sale Period | R102: Months After Tranaction | S102: =INDEX(U102:AD102,$R$95) -> 15 | U102: 15 | V102: 15 | W102: 15 | X102: 15
C104: Period First Segment Sale | R104: Date | S104: =INDEX(U104:AD104,$R$95) -> 2026-06-30 | U104: 2026-06-30 | V104: 2026-06-30 | W104: 2026-06-30 | X104: 2026-06-30
C105: Second Sale Period | R105: Date | S105: =INDEX(U105:AD105,$R$95) -> 2026-12-31 | U105: 2026-12-31 | V105: 2026-12-31 | W105: 2026-12-31 | X105: 2026-12-31
C106: Final Sale Period | R106: Date | S106: =INDEX(U106:AD106,$R$95) -> 2027-03-31 | U106: 2027-03-31 | V106: 2027-03-31 | W106: 2027-03-31 | X106: 2027-03-31
B108: Cash Flow and Income Assumtions - with Holding Period
C110: Base Case
D111: How much Spead | R111: J $ 000/Month | S111: =INDEX(U111:AD111,$R$95) -> 50 | U111: 50 | V111: 50 | W111: 50 | X111: 50
D112: Spreads | R112: J $ 000/Month | S112: =INDEX(U112:AD112,$R$95) -> 60 | U112: 60 | V112: 60 | W112: 60 | X112: 60
D113: Fees | R113: J $ 000/Month | S113: =INDEX(U113:AD113,$R$95) -> 10 | U113: 10 | V113: 10 | W113: 10 | X113: 10
C115: Low Case
D116: How much Spead
D117: Spreads
D118: Fees
C120: High Case
D121: How much Spead
D122: Spreads
D123: Fees
B125: Exit Multiples
C126: P/B Ratio - Segment 1 | R126: x | S126: =INDEX(U126:AD126,$R$95) -> 1.6 | U126: 1.6 | V126: 1.7 | W126: 1.3 | X126: 1.6
C127: P/B Ratio - Segment 2 | R127: x | S127: =INDEX(U127:AD127,$R$95) -> 1.5 | U127: 1.5 | V127: 1.6 | W127: 1.3 | X127: 1.5
C128: P/B Ratio - Segment 3 | R128: x | S128: =INDEX(U128:AD128,$R$95) -> 1.3 | U128: 1.3 | V128: 1.4 | W128: 1.2 | X128: 1.3
C130: P/E Ratio - Segment 1 | R130: x | S130: =INDEX(U130:AD130,$R$95) -> 15 | U130: 15 | V130: 18 | W130: 13 | X130: 15
C131: P/E Ratio - Segment 2 | R131: x | S131: =INDEX(U131:AD131,$R$95) -> 15 | U131: 15 | V131: 18 | W131: 13 | X131: 15
C132: P/E Ratio - Segment 3 | R132: x | S132: =INDEX(U132:AD132,$R$95) -> 15 | U132: 15 | V132: 18 | W132: 13 | X132: 15
D135: =TRANSPOSE(U98:X98) -> Base
D136: High
D137: Low
D138: Case 3
B144: Price to Book Ratio
R145: Price to Book Ratio
D146: Republic Financial Holdings Limited (TTSE:RFHL) | R146: 1.134214762
D147: Inter & Co, Inc. (NASDAQGS:INTR) | R147: 1.290176121
D148: Regional S.A.B. de C.V. (BMV:R A) | R148: 1.184507232
D149: BRB - Banco de Brasília S.A. (BOVESPA:BSLI4) | R149: 1.015566121
D150: Banco BBVA Argentina S.A. (BASE:BBAR) | R150: 1.799736246
D151: Banco del Bajío, S.A., Institución de Banca Múltiple (BMV:BBAJIO O) | R151: 1.09142862
D152: Banco Macro S.A. (BASE:BMA) | R152: 1.808133689
D153: Banco da Amazônia S.A. (BOVESPA:BAZA3) | R153: 0.7377346563
D154: Itaúsa S.A. (BOVESPA:ITSA4) | R154: NA
D155: Banco BMG S.A. (BOVESPA:BMGB4) | R155: 0.4971980896
D156: NCB Financial Group Limited (JMSE:NCBFG) | R156: 0.5802402241
D158: Median | R158: =MEDIAN(R146:R156) -> 1.112821691
D162: Republic Financial Holdings Limited (TTSE:RFHL) | R162: 7.630528
D163: Inter & Co, Inc. (NASDAQGS:INTR) | R163: 16.338307
D164: Regional S.A.B. de C.V. (BMV:R A) | R164: NA
D165: BRB - Banco de Brasília S.A. (BOVESPA:BSLI4) | R165: 3.76
D166: Banco BBVA Argentina S.A. (BASE:BBAR) | E166: 199077280 | R166: 29.068473 | AD166: Equity to Stockholders
D167: Banco del Bajío, S.A., Institución de Banca Múltiple (BMV:BBAJIO O) | E167: =E166*1000 -> 199077280000 | R167: 6.292431 | AD167: Equity to Stockholders
D168: Banco Macro S.A. (BASE:BMA) | R168: 36.795053
D169: Banco da Amazônia S.A. (BOVESPA:BAZA3) | R169: NA
D170: Itaúsa S.A. (BOVESPA:ITSA4) | R170: 8.338048
D171: Banco BMG S.A. (BOVESPA:BMGB4) | R171: 6.519824
D172: NCB Financial Group Limited (JMSE:NCBFG) | R172: 4.274841
D174: Minimum
D175: Median | R175: 7.630528
D176: Average | R176: 13.22416722
E207: J 000 | G207: 23131671
E208: J $ | G208: =G207*1000 -> 23131671000

Sheet Tab 2 Debt Stack Reconstruction
B1: Timeline
C2: Period | F2: Driver | G2: Driver | H2: Sum | J2: =_xlfn.SEQUENCE(,50) -> 1 | K2: 2 | L2: 3 | M2: 4 | N2: 5 | O2: 6 | P2: 7 | Q2: 8 | R2: 9 | S2: 10 | T2: 11 | U2: 12 | V2: 13 | W2: 14 | X2: 15 | Y2: 16 | Z2: 17 | AA2: 18 | AB2: 19 | AC2: 20 | AD2: 21 | AE2: 22 | AF2: 23 | AG2: 24 | AH2: 25 | AI2: 26 | AJ2: 27 | AK2: 28 | AL2: 29 | AM2: 30 | AN2: 31 | AO2: 32 | AP2: 33 | AQ2: 34 | AR2: 35 | AS2: 36 | AT2: 37 | AU2: 38 | AV2: 39 | AW2: 40 | AX2: 41 | AY2: 42 | AZ2: 43 | BA2: 44 | BB2: 45 | BC2: 46 | BD2: 47 | BE2: 48 | BF2: 49 | BG2: 50
C3: Date | E3: date | J3: ='Tab 1 - Assumptions'!F8 -> 2025-12-31 | K3: =EOMONTH(J3,1) -> 2026-01-31 | L3: =EOMONTH(K3,1) -> 2026-02-28 | M3: 2026-03-31 | N3: 2026-04-30 | O3: 2026-05-31 | P3: 2026-06-30 | Q3: 2026-07-31 | R3: 2026-08-31 | S3: 2026-09-30 | T3: 2026-10-31 | U3: 2026-11-30 | V3: 2026-12-31 | W3: 2027-01-31 | X3: 2027-02-28 | Y3: 2027-03-31 | Z3: 2027-04-30 | AA3: 2027-05-31 | AB3: 2027-06-30 | AC3: 2027-07-31 | AD3: 2027-08-31 | AE3: 2027-09-30 | AF3: 2027-10-31 | AG3: 2027-11-30 | AH3: 2027-12-31 | AI3: 2028-01-31 | AJ3: 2028-02-29 | AK3: 2028-03-31 | AL3: 2028-04-30 | AM3: 2028-05-31 | AN3: =EOMONTH(AM3,1) -> 2028-06-30 | AO3: 2028-07-31 | AP3: 2028-08-31 | AQ3: 2028-09-30 | AR3: 2028-10-31 | AS3: 2028-11-30 | AT3: 2028-12-31 | AU3: 2029-01-31 | AV3: 2029-02-28 | AW3: 2029-03-31 | AX3: 2029-04-30 | AY3: 2029-05-31 | AZ3: 2029-06-30 | BA3: 2029-07-31 | BB3: 2029-08-31 | BC3: 2029-09-30 | BD3: 2029-10-31 | BE3: 2029-11-30 | BF3: 2029-12-31 | BG3: 2030-01-31 | BH3: 2030-02-28 | BI3: 2030-03-31 | BJ3: 2030-04-30 | BK3: 2030-05-31 | BL3: 2030-06-30 | BM3: 2030-07-31 | BN3: 2030-08-31 | BO3: 2030-09-30 | BP3: 2030-10-31 | BQ3: 2030-11-30 | BR3: 2030-12-31 | BS3: 2031-01-31 | BT3: =EOMONTH(BS3,1) -> 2031-02-28 | BU3: 2031-03-31 | BV3: 2031-04-30 | BW3: 2031-05-31 | BX3: 2031-06-30 | BY3: 2031-07-31 | BZ3: 2031-08-31 | CA3: 2031-09-30 | CB3: 2031-10-31 | CC3: 2031-11-30 | CD3: 2031-12-31 | CE3: 2032-01-31 | CF3: 2032-02-29 | CG3: 2032-03-31 | CH3: 2032-04-30 | CI3: 2032-05-31 | CJ3: 2032-06-30 | CK3: 2032-07-31 | CL3: 2032-08-31 | CM3: 2032-09-30 | CN3: 2032-10-31 | CO3: 2032-11-30 | CP3: 2032-12-31 | CQ3: 2033-01-31 | CR3: 2033-02-28 | CS3: 2033-03-31 | CT3: 2033-04-30 | CU3: 2033-05-31 | CV3: 2033-06-30 | CW3: 2033-07-31 | CX3: 2033-08-31 | CY3: 2033-09-30 | CZ3: =EOMONTH(CY3,1) -> 2033-10-31 | DA3: 2033-11-30 | DB3: 2033-12-31 | DC3: 2034-01-31 | DD3: 2034-02-28 | DE3: 2034-03-31 | DF3: 2034-04-30 | DG3: 2034-05-31 | DH3: 2034-06-30 | DI3: 2034-07-31 | DJ3: 2034-08-31 | DK3: 2034-09-30 | DL3: 2034-10-31 | DM3: 2034-11-30 | DN3: 2034-12-31 | DO3: 2035-01-31 | DP3: 2035-02-28 | DQ3: 2035-03-31 | DR3: 2035-04-30 | DS3: 2035-05-31
C4: Debt Acquisition | E4: Flag | F4: ='Tab 1 - Assumptions'!$F$8 -> 2025-12-31 | H4: =SUM(J4:XFD4) -> 1 | J4: =(J3=$F$4)*1 -> 1 | K4: =(K3=$F$4)*1 -> 0 | L4: 0 | M4: 0 | N4: 0 | O4: 0 | P4: 0 | Q4: 0 | R4: 0 | S4: 0 | T4: 0 | U4: 0 | V4: 0 | W4: 0 | X4: 0 | Y4: 0 | Z4: 0 | AA4: 0 | AB4: 0 | AC4: 0 | AD4: 0 | AE4: 0 | AF4: 0 | AG4: 0 | AH4: 0 | AI4: 0 | AJ4: 0 | AK4: 0 | AL4: 0 | AM4: 0 | AN4: 0 | AO4: 0 | AP4: 0 | AQ4: 0 | AR4: 0 | AS4: 0 | AT4: 0 | AU4: 0 | AV4: 0 | AW4: 0 | AX4: 0 | AY4: 0 | AZ4: 0 | BA4: 0 | BB4: 0 | BC4: 0 | BD4: 0 | BE4: 0 | BF4: 0 | BG4: 0 | BH4: =(BH3=$F$4)*1 -> 0 | BI4: 0 | BJ4: 0 | BK4: 0 | BL4: 0 | BM4: 0 | BN4: 0 | BO4: 0 | BP4: 0 | BQ4: 0 | BR4: 0 | BS4: 0 | BT4: 0 | BU4: 0 | BV4: 0 | BW4: 0 | BX4: 0 | BY4: 0 | BZ4: 0 | CA4: 0 | CB4: =(CB3=$F$4)*1 -> 0 | CC4: 0 | CD4: 0 | CE4: 0 | CF4: 0 | CG4: 0 | CH4: 0 | CI4: 0 | CJ4: 0 | CK4: 0 | CL4: 0 | CM4: 0 | CN4: 0 | CO4: 0 | CP4: 0 | CQ4: 0 | CR4: 0 | CS4: 0 | CT4: 0 | CU4: 0 | CV4: 0 | CW4: 0 | CX4: 0 | CY4: 0 | CZ4: 0 | DA4: 0 | DB4: 0 | DC4: 0 | DD4: 0 | DE4: 0 | DF4: 0 | DG4: 0 | DH4: 0 | DI4: 0 | DJ4: 0 | DK4: 0 | DL4: 0 | DM4: 0 | DN4: 0 | DO4: 0 | DP4: 0 | DQ4: 0 | DR4: 0 | DS4: 0
C5: Enforcement Period | E5: Flag | F5: ='Tab 1 - Assumptions'!$F$14 -> 2026-02-28 | G5: ='Tab 1 - Assumptions'!$F$15 -> 2026-02-28 | H5: =SUM(J5:XFD5) -> 1 | J5: =(AND(J$3>=$F5,J$3<=$G5))*1 -> 0 | K5: =(AND(K3>=$F$5,K3<=$G$5))*1 -> 0 | L5: 1 | M5: 0 | N5: 0 | O5: 0 | P5: 0 | Q5: 0 | R5: 0 | S5: 0 | T5: 0 | U5: 0 | V5: 0 | W5: 0 | X5: 0 | Y5: 0 | Z5: 0 | AA5: 0 | AB5: 0 | AC5: 0 | AD5: 0 | AE5: 0 | AF5: 0 | AG5: 0 | AH5: 0 | AI5: 0 | AJ5: 0 | AK5: 0 | AL5: 0 | AM5: 0 | AN5: 0 | AO5: 0 | AP5: 0 | AQ5: 0 | AR5: 0 | AS5: 0 | AT5: 0 | AU5: 0 | AV5: 0 | AW5: 0 | AX5: 0 | AY5: 0 | AZ5: 0 | BA5: 0 | BB5: 0 | BC5: 0 | BD5: 0 | BE5: 0 | BF5: 0 | BG5: 0 | BH5: =(AND(BH3>=$F$5,BH3<=$G$5))*1 -> 0 | BI5: 0 | BJ5: 0 | BK5: 0 | BL5: 0 | BM5: 0 | BN5: 0 | BO5: 0 | BP5: 0 | BQ5: 0 | BR5: 0 | BS5: 0 | BT5: 0 | BU5: 0 | BV5: 0 | BW5: 0 | BX5: 0 | BY5: 0 | BZ5: 0 | CA5: 0 | CB5: =(AND(CB3>=$F$5,CB3<=$G$5))*1 -> 0 | CC5: 0 | CD5: 0 | CE5: 0 | CF5: 0 | CG5: 0 | CH5: 0 | CI5: 0 | CJ5: 0 | CK5: 0 | CL5: 0 | CM5: 0 | CN5: 0 | CO5: 0 | CP5: 0 | CQ5: 0 | CR5: 0 | CS5: 0 | CT5: 0 | CU5: 0 | CV5: 0 | CW5: 0 | CX5: 0 | CY5: 0 | CZ5: 0 | DA5: 0 | DB5: 0 | DC5: 0 | DD5: 0 | DE5: 0 | DF5: 0 | DG5: 0 | DH5: 0 | DI5: 0 | DJ5: 0 | DK5: 0 | DL5: 0 | DM5: 0 | DN5: 0 | DO5: 0 | DP5: 0 | DQ5: 0 | DR5: 0 | DS5: 0
C6: Accumulate Period | E6: Flag | F6: ='Tab 1 - Assumptions'!$F$21 -> 2026-02-28 | G6: ='Tab 1 - Assumptions'!F26 -> 2026-07-31 | H6: =SUM(J6:XFD6) -> 6 | J6: =(AND(J$3>=$F6,J$3<=$G6))*1 -> 0 | K6: =(AND(K$3>=$F6,K$3<=$G6))*1 -> 0 | L6: 1 | M6: 1 | N6: 1 | O6: 1 | P6: 1 | Q6: 1 | R6: 0 | S6: 0 | T6: 0 | U6: 0 | V6: 0 | W6: 0 | X6: 0 | Y6: 0 | Z6: 0 | AA6: 0 | AB6: 0 | AC6: 0 | AD6: 0 | AE6: 0 | AF6: 0 | AG6: 0 | AH6: 0 | AI6: 0 | AJ6: 0 | AK6: 0 | AL6: 0 | AM6: 0 | AN6: 0 | AO6: =(AND(AO$3>=$F6,AO$3<=$G6))*1 -> 0 | AP6: 0 | AQ6: 0 | AR6: 0 | AS6: 0 | AT6: 0 | AU6: 0 | AV6: 0 | AW6: 0 | AX6: 0 | AY6: 0 | AZ6: 0 | BA6: 0 | BB6: 0 | BC6: 0 | BD6: 0 | BE6: 0 | BF6: 0 | BG6: 0 | BH6: 0 | BI6: =(AND(BI$3>=$F6,BI$3<=$G6))*1 -> 0 | BJ6: 0 | BK6: 0 | BL6: 0 | BM6: 0 | BN6: 0 | BO6: 0 | BP6: 0 | BQ6: 0 | BR6: 0 | BS6: 0 | BT6: 0 | BU6: 0 | BV6: 0 | BW6: 0 | BX6: 0 | BY6: 0 | BZ6: 0 | CA6: 0 | CB6: 0 | CC6: =(AND(CC$3>=$F6,CC$3<=$G6))*1 -> 0 | CD6: 0 | CE6: 0 | CF6: 0 | CG6: 0 | CH6: 0 | CI6: 0 | CJ6: 0 | CK6: 0 | CL6: 0 | CM6: 0 | CN6: 0 | CO6: 0 | CP6: 0 | CQ6: 0 | CR6: 0 | CS6: 0 | CT6: 0 | CU6: 0 | CV6: 0 | CW6: 0 | CX6: 0 | CY6: 0 | CZ6: 0 | DA6: 0 | DB6: 0 | DC6: 0 | DD6: 0 | DE6: 0 | DF6: 0 | DG6: 0 | DH6: 0 | DI6: 0 | DJ6: 0 | DK6: 0 | DL6: 0 | DM6: 0 | DN6: 0 | DO6: 0 | DP6: 0 | DQ6: 0 | DR6: 0 | DS6: 0
C7: NCB Holding/Explicit Period | E7: Flag | F7: ='Tab 1 - Assumptions'!$F$29 -> 2026-07-31 | G7: ='Tab 1 - Assumptions'!$F$35 -> 2031-07-31 | H7: =SUM(J7:XFD7) -> 61 | J7: =(AND(J$3>=$F7,J$3<=$G7))*1 -> 0 | K7: 0 | L7: 0 | M7: 0 | N7: 0 | O7: 0 | P7: 0 | Q7: 1 | R7: 1 | S7: 1 | T7: 1 | U7: 1 | V7: 1 | W7: 1 | X7: 1 | Y7: 1 | Z7: 1 | AA7: 1 | AB7: 1 | AC7: 1 | AD7: 1 | AE7: 1 | AF7: 1 | AG7: 1 | AH7: 1 | AI7: 1 | AJ7: 1 | AK7: 1 | AL7: 1 | AM7: 1 | AN7: 1 | AO7: 1 | AP7: 1 | AQ7: 1 | AR7: 1 | AS7: 1 | AT7: 1 | AU7: 1 | AV7: 1 | AW7: 1 | AX7: 1 | AY7: 1 | AZ7: 1 | BA7: 1 | BB7: 1 | BC7: 1 | BD7: 1 | BE7: 1 | BF7: 1 | BG7: 1 | BH7: 1 | BI7: 1 | BJ7: 1 | BK7: 1 | BL7: 1 | BM7: 1 | BN7: 1 | BO7: 1 | BP7: 1 | BQ7: 1 | BR7: 1 | BS7: 1 | BT7: 1 | BU7: 1 | BV7: 1 | BW7: 1 | BX7: 1 | BY7: 1 | BZ7: 0 | CA7: 0 | CB7: 0 | CC7: 0 | CD7: 0 | CE7: 0 | CF7: 0 | CG7: 0 | CH7: 0 | CI7: 0 | CJ7: 0 | CK7: 0 | CL7: 0 | CM7: 0 | CN7: 0 | CO7: 0 | CP7: 0 | CQ7: 0 | CR7: 0 | CS7: 0 | CT7: 0 | CU7: 0 | CV7: 0 | CW7: 0 | CX7: 0 | CY7: 0 | CZ7: 0 | DA7: 0 | DB7: 0 | DC7: 0 | DD7: 0 | DE7: 0 | DF7: 0 | DG7: 0 | DH7: 0 | DI7: 0 | DJ7: 0 | DK7: 0 | DL7: 0 | DM7: 0 | DN7: 0 | DO7: 0 | DP7: 0 | DQ7: 0 | DR7: 0 | DS7: 0
C8: NCB Exit/Terminal Period | E8: Flag | F8: ='Tab 1 - Assumptions'!F35 -> 2031-07-31 | J8: =(J$3=$F8)*1 -> 0 | K8: =(K$3=$F8)*1 -> 0 | L8: 0 | M8: 0 | N8: 0 | O8: 0 | P8: 0 | Q8: 0 | R8: 0 | S8: 0 | T8: 0 | U8: 0 | V8: 0 | W8: 0 | X8: 0 | Y8: 0 | Z8: 0 | AA8: 0 | AB8: 0 | AC8: 0 | AD8: 0 | AE8: 0 | AF8: 0 | AG8: 0 | AH8: 0 | AI8: 0 | AJ8: 0 | AK8: 0 | AL8: 0 | AM8: 0 | AN8: 0 | AO8: 0 | AP8: 0 | AQ8: 0 | AR8: 0 | AS8: 0 | AT8: 0 | AU8: 0 | AV8: 0 | AW8: 0 | AX8: 0 | AY8: 0 | AZ8: 0 | BA8: 0 | BB8: 0 | BC8: 0 | BD8: 0 | BE8: 0 | BF8: 0 | BG8: 0 | BH8: 0 | BI8: 0 | BJ8: 0 | BK8: 0 | BL8: 0 | BM8: 0 | BN8: 0 | BO8: 0 | BP8: 0 | BQ8: 0 | BR8: 0 | BS8: 0 | BT8: 0 | BU8: 0 | BV8: 0 | BW8: =(BW$3=$F8)*1 -> 0 | BX8: 0 | BY8: 1 | BZ8: 0 | CA8: 0 | CB8: 0 | CC8: 0 | CD8: 0 | CE8: 0 | CF8: 0 | CG8: 0 | CH8: 0 | CI8: 0 | CJ8: 0 | CK8: 0 | CL8: 0 | CM8: 0 | CN8: 0 | CO8: 0 | CP8: 0 | CQ8: 0 | CR8: 0 | CS8: 0 | CT8: 0 | CU8: 0 | CV8: 0 | CW8: 0 | CX8: 0 | CY8: 0 | CZ8: 0 | DA8: 0 | DB8: 0 | DC8: 0 | DD8: 0 | DE8: 0 | DF8: 0 | DG8: 0 | DH8: 0 | DI8: 0 | DJ8: 0 | DK8: 0 | DL8: 0 | DM8: 0 | DN8: 0 | DO8: 0 | DP8: 0 | DQ8: 0 | DR8: 0 | DS8: 0
C9: Mayberry Management Fee Period | E9: Flag | F9: =G6 -> 2026-07-31 | G9: =EOMONTH(F9,12) -> 2027-07-31 | J9: =(AND(J3>=$F$9,J3<$G$9))*1 -> 0 | K9: =(AND(K3>=$F$9,K3<$G$9))*1 -> 0 | L9: 0 | M9: 0 | N9: 0 | O9: 0 | P9: 0 | Q9: 1 | R9: 1 | S9: 1 | T9: 1 | U9: 1 | V9: 1 | W9: 1 | X9: 1 | Y9: 1 | Z9: 1 | AA9: 1 | AB9: 1 | AC9: 0 | AD9: 0 | AE9: 0 | AF9: 0 | AG9: 0 | AH9: 0 | AI9: 0 | AJ9: 0 | AK9: 0 | AL9: 0 | AM9: 0 | AN9: 0 | AO9: 0 | AP9: 0 | AQ9: 0 | AR9: 0 | AS9: 0 | AT9: 0 | AU9: 0 | AV9: 0 | AW9: 0 | AX9: 0 | AY9: 0 | AZ9: 0 | BA9: 0 | BB9: 0 | BC9: 0 | BD9: 0 | BE9: 0 | BF9: 0 | BG9: 0 | BH9: 0 | BI9: 0 | BJ9: 0 | BK9: 0 | BL9: 0 | BM9: 0 | BN9: 0 | BO9: 0 | BP9: 0 | BQ9: 0 | BR9: 0 | BS9: 0 | BT9: 0 | BU9: 0 | BV9: 0 | BW9: =(AND(BW3>=$F$9,BW3<$G$9))*1 -> 0 | BX9: 0 | BY9: 0 | BZ9: 0 | CA9: 0 | CB9: 0 | CC9: 0 | CD9: 0 | CE9: 0 | CF9: 0 | CG9: 0 | CH9: 0 | CI9: 0 | CJ9: 0 | CK9: 0 | CL9: 0 | CM9: 0 | CN9: 0 | CO9: 0 | CP9: 0 | CQ9: 0 | CR9: 0 | CS9: 0 | CT9: 0 | CU9: 0 | CV9: 0 | CW9: 0 | CX9: 0 | CY9: 0 | CZ9: 0 | DA9: 0 | DB9: 0 | DC9: 0 | DD9: 0 | DE9: 0 | DF9: 0 | DG9: 0 | DH9: 0 | DI9: 0 | DJ9: 0 | DK9: 0 | DL9: 0 | DM9: 0 | DN9: 0 | DO9: 0 | DP9: 0 | DQ9: 0 | DR9: 0 | DS9: 0
B11: Debt Balance
C13: Nominal Amount Outstanding | E13: USD | F13: ='Tab 1 - Assumptions'!F59 -> 360000000
C14: Purchase Discount | E14: % | F14: ='Tab 1 - Assumptions'!F69/100 -> 0.7
C15: Debt Purchased | E15: USD | F15: =F13*F14 -> 252000000
C16: Interest Rate on Nominal Amount | E16: % p.a. | F16: ='Tab 1 - Assumptions'!F73 -> 0.075
C17: Monthly Interest | E17: % p.a. | F17: =F16/12 -> 0.00625
C18: Percent Purchased | E18: % | F18: 1
C20: Opening Balance | J20: =I24 -> 0 | K20: =J24 -> 360000000 | L20: 362250000 | M20: 364514062.5 | N20: 366792275.4 | O20: 369084727.1 | P20: 371391506.7 | Q20: 373712703.6 | R20: 376048408 | S20: 378398710.5 | T20: 380763702.5 | U20: 383143475.6 | V20: 385538122.3 | W20: 387947735.6 | X20: 390372408.9 | Y20: 392812236.5 | Z20: 395267313 | AA20: 397737733.7 | AB20: 400223594.5 | AC20: 402724992 | AD20: 405242023.2 | AE20: 407774785.8 | AF20: 410323378.2 | AG20: 412887899.3 | AH20: 415468448.7 | AI20: 418065126.5 | AJ20: 420678033.6 | AK20: 423307271.3 | AL20: 425952941.7 | AM20: 428615147.6 | AN20: 431293992.3 | AO20: 433989579.7 | AP20: 436702014.6 | AQ20: 439431402.2 | AR20: 442177848.5 | AS20: 444941460 | AT20: 447722344.1 | AU20: 450520608.8 | AV20: 453336362.6 | AW20: 456169714.9 | AX20: 459020775.6 | AY20: 461889655.4 | AZ20: 464776465.8 | BA20: 467681318.7 | BB20: 470604326.9 | BC20: 473545604 | BD20: 476505264 | BE20: 479483421.9 | BF20: 482480193.3 | BG20: 485495694.5 | BH20: 488530042.6 | BI20: 491583355.3 | BJ20: 494655751.3 | BK20: 497747349.8 | BL20: 500858270.7 | BM20: 503988634.9 | BN20: 507138563.9 | BO20: 510308179.9 | BP20: 513497606 | BQ20: 516706966 | BR20: 519936384.6 | BS20: 523185987 | BT20: 526455899.4 | BU20: 529746248.8 | BV20: 533057162.8 | BW20: =BV24 -> 536388770.1 | BX20: 539741199.9 | BY20: 543114582.4 | BZ20: 546509048.5 | CA20: 549924730.1 | CB20: 553361759.7 | CC20: 556820270.7 | CD20: 560300397.4 | CE20: 563802274.8 | CF20: 567326039.1 | CG20: 570871826.8 | CH20: 574439775.7 | CI20: 578030024.3 | CJ20: 581642712 | CK20: 585277978.9 | CL20: 588935966.3 | CM20: 592616816.1 | CN20: 596320671.2 | CO20: 600047675.4 | CP20: 603797973.3 | CQ20: 607571710.7 | CR20: 611369033.9 | CS20: 615190090.3 | CT20: 619035028.4 | CU20: 622903997.3 | CV20: 626797147.3 | CW20: 630714629.5 | CX20: 634656595.9 | CY20: 638623199.6 | CZ20: 642614594.6 | DA20: 646630935.8 | DB20: 650672379.2 | DC20: 654739081.6 | DD20: 658831200.8 | DE20: 662948895.8 | DF20: 667092326.4 | DG20: 671261653.5 | DH20: 675457038.8 | DI20: 679678645.3 | DJ20: 683926636.8 | DK20: 688201178.3 | DL20: 692502435.7 | DM20: 696830575.9 | DN20: 701185767 | DO20: 705568178 | DP20: 709977979.1 | DQ20: 714415341.5 | DR20: 718880437.4 | DS20: 723373440.1
C21: Add: Nominal Amount Purchase | E21: USD | F21: =F13*F18 -> 360000000 | H21: =SUM(J21:XFD21) -> 360000000 | J21: =$F21*J4 -> 360000000 | K21: =$F21*K4 -> 0 | L21: 0 | M21: 0 | N21: 0 | O21: 0 | P21: 0 | Q21: 0 | R21: 0 | S21: 0 | T21: 0 | U21: 0 | V21: 0 | W21: 0 | X21: 0 | Y21: 0 | Z21: 0 | AA21: 0 | AB21: 0 | AC21: 0 | AD21: 0 | AE21: 0 | AF21: 0 | AG21: 0 | AH21: 0 | AI21: 0 | AJ21: 0 | AK21: 0 | AL21: 0 | AM21: 0 | AN21: 0 | AO21: 0 | AP21: 0 | AQ21: 0 | AR21: 0 | AS21: 0 | AT21: 0 | AU21: 0 | AV21: 0 | AW21: 0 | AX21: 0 | AY21: 0 | AZ21: 0 | BA21: 0 | BB21: 0 | BC21: 0 | BD21: 0 | BE21: 0 | BF21: 0 | BG21: 0 | BH21: 0 | BI21: 0 | BJ21: 0 | BK21: 0 | BL21: 0 | BM21: 0 | BN21: 0 | BO21: 0 | BP21: 0 | BQ21: 0 | BR21: 0 | BS21: 0 | BT21: 0 | BU21: 0 | BV21: 0 | BW21: =$F21*BW4 -> 0 | BX21: 0 | BY21: 0 | BZ21: 0 | CA21: 0 | CB21: 0 | CC21: 0 | CD21: 0 | CE21: 0 | CF21: 0 | CG21: 0 | CH21: 0 | CI21: 0 | CJ21: 0 | CK21: 0 | CL21: 0 | CM21: 0 | CN21: 0 | CO21: 0 | CP21: 0 | CQ21: 0 | CR21: 0 | CS21: 0 | CT21: 0 | CU21: 0 | CV21: 0 | CW21: 0 | CX21: 0 | CY21: 0 | CZ21: 0 | DA21: 0 | DB21: 0 | DC21: 0 | DD21: 0 | DE21: 0 | DF21: 0 | DG21: 0 | DH21: 0 | DI21: 0 | DJ21: 0 | DK21: 0 | DL21: 0 | DM21: 0 | DN21: 0 | DO21: 0 | DP21: 0 | DQ21: 0 | DR21: 0 | DS21: 0
C22: Add: Interest PIK | E22: USD | H22: =SUM(J22:XFD22) -> 367894524.1 | J22: =J30 -> 0 | K22: =K30 -> 2250000 | L22: 2264062.5 | M22: 2278212.891 | N22: 2292451.721 | O22: 2306779.544 | P22: 2321196.917 | Q22: 2335704.397 | R22: 2350302.55 | S22: 2364991.941 | T22: 2379773.14 | U22: 2394646.723 | V22: 2409613.265 | W22: 2424673.347 | X22: 2439827.556 | Y22: 2455076.478 | Z22: 2470420.706 | AA22: 2485860.835 | AB22: 2501397.466 | AC22: 2517031.2 | AD22: 2532762.645 | AE22: 2548592.411 | AF22: 2564521.114 | AG22: 2580549.371 | AH22: 2596677.804 | AI22: 2612907.041 | AJ22: 2629237.71 | AK22: 2645670.445 | AL22: 2662205.886 | AM22: 2678844.673 | AN22: 2695587.452 | AO22: 2712434.873 | AP22: 2729387.591 | AQ22: 2746446.264 | AR22: 2763611.553 | AS22: 2780884.125 | AT22: 2798264.651 | AU22: 2815753.805 | AV22: 2833352.266 | AW22: 2851060.718 | AX22: 2868879.847 | AY22: 2886810.346 | AZ22: 2904852.911 | BA22: 2923008.242 | BB22: 2941277.043 | BC22: 2959660.025 | BD22: 2978157.9 | BE22: 2996771.387 | BF22: 3015501.208 | BG22: 3034348.091 | BH22: 3053312.766 | BI22: 3072395.971 | BJ22: 3091598.446 | BK22: 3110920.936 | BL22: 3130364.192 | BM22: 3149928.968 | BN22: 3169616.024 | BO22: 3189426.124 | BP22: 3209360.038 | BQ22: 3229418.538 | BR22: 3249602.404 | BS22: 3269912.419 | BT22: 3290349.371 | BU22: 3310914.055 | BV22: 3331607.268 | BW22: =BW30 -> 3352429.813 | BX22: 3373382.499 | BY22: 3394466.14 | BZ22: 3415681.553 | CA22: 3437029.563 | CB22: 3458510.998 | CC22: 3480126.692 | CD22: 3501877.483 | CE22: 3523764.218 | CF22: 3545787.744 | CG22: 3567948.917 | CH22: 3590248.598 | CI22: 3612687.652 | CJ22: 3635266.95 | CK22: 3657987.368 | CL22: 3680849.789 | CM22: 3703855.1 | CN22: 3727004.195 | CO22: 3750297.971 | CP22: 3773737.333 | CQ22: 3797323.192 | CR22: 3821056.462 | CS22: 3844938.065 | CT22: 3868968.927 | CU22: 3893149.983 | CV22: 3917482.171 | CW22: 3941966.434 | CX22: 3966603.724 | CY22: 3991394.998 | CZ22: 4016341.216 | DA22: 4041443.349 | DB22: 4066702.37 | DC22: 4092119.26 | DD22: 4117695.005 | DE22: 4143430.599 | DF22: 4169327.04 | DG22: 4195385.334 | DH22: 4221606.492 | DI22: 4247991.533 | DJ22: 4274541.48 | DK22: 4301257.364 | DL22: 4328140.223 | DM22: 4355191.099 | DN22: 4382411.044 | DO22: 4409801.113 | DP22: 4437362.37 | DQ22: 4465095.884 | DR22: 4493002.734 | DS22: 4521084.001
C23: Less: Debt Repayment | E23: USD | F23: 0
C24: Closing Balance | E24: USD | J24: =J20+J21+J22-J23 -> 360000000 | K24: =K20+K21+K22-K23 -> 362250000 | L24: 364514062.5 | M24: 366792275.4 | N24: 369084727.1 | O24: 371391506.7 | P24: 373712703.6 | Q24: 376048408 | R24: 378398710.5 | S24: 380763702.5 | T24: 383143475.6 | U24: 385538122.3 | V24: 387947735.6 | W24: 390372408.9 | X24: 392812236.5 | Y24: 395267313 | Z24: 397737733.7 | AA24: 400223594.5 | AB24: 402724992 | AC24: 405242023.2 | AD24: 407774785.8 | AE24: 410323378.2 | AF24: 412887899.3 | AG24: 415468448.7 | AH24: 418065126.5 | AI24: 420678033.6 | AJ24: 423307271.3 | AK24: 425952941.7 | AL24: 428615147.6 | AM24: 431293992.3 | AN24: =AN20+AN21+AN22-AN23 -> 433989579.7 | AO24: 436702014.6 | AP24: 439431402.2 | AQ24: 442177848.5 | AR24: 444941460 | AS24: 447722344.1 | AT24: 450520608.8 | AU24: 453336362.6 | AV24: 456169714.9 | AW24: 459020775.6 | AX24: 461889655.4 | AY24: 464776465.8 | AZ24: 467681318.7 | BA24: 470604326.9 | BB24: 473545604 | BC24: 476505264 | BD24: 479483421.9 | BE24: 482480193.3 | BF24: 485495694.5 | BG24: 488530042.6 | BH24: 491583355.3 | BI24: 494655751.3 | BJ24: 497747349.8 | BK24: 500858270.7 | BL24: 503988634.9 | BM24: 507138563.9 | BN24: 510308179.9 | BO24: 513497606 | BP24: 516706966 | BQ24: 519936384.6 | BR24: 523185987 | BS24: 526455899.4 | BT24: =BT20+BT21+BT22-BT23 -> 529746248.8 | BU24: 533057162.8 | BV24: 536388770.1 | BW24: 539741199.9 | BX24: 543114582.4 | BY24: 546509048.5 | BZ24: 549924730.1 | CA24: 553361759.7 | CB24: 556820270.7 | CC24: 560300397.4 | CD24: 563802274.8 | CE24: 567326039.1 | CF24: 570871826.8 | CG24: 574439775.7 | CH24: 578030024.3 | CI24: 581642712 | CJ24: 585277978.9 | CK24: 588935966.3 | CL24: 592616816.1 | CM24: 596320671.2 | CN24: 600047675.4 | CO24: 603797973.3 | CP24: 607571710.7 | CQ24: 611369033.9 | CR24: 615190090.3 | CS24: 619035028.4 | CT24: 622903997.3 | CU24: 626797147.3 | CV24: 630714629.5 | CW24: 634656595.9 | CX24: 638623199.6 | CY24: 642614594.6 | CZ24: =CZ20+CZ21+CZ22-CZ23 -> 646630935.8 | DA24: 650672379.2 | DB24: 654739081.6 | DC24: 658831200.8 | DD24: 662948895.8 | DE24: 667092326.4 | DF24: 671261653.5 | DG24: 675457038.8 | DH24: 679678645.3 | DI24: 683926636.8 | DJ24: 688201178.3 | DK24: 692502435.7 | DL24: 696830575.9 | DM24: 701185767 | DN24: 705568178 | DO24: 709977979.1 | DP24: 714415341.5 | DQ24: 718880437.4 | DR24: 723373440.1 | DS24: 727894524.1
C26: Interest Rate | E26: % p.p. | F26: =F16/12 -> 0.00625 | J26: =$F$26 -> 0.00625 | K26: =$F$26 -> 0.00625 | L26: 0.00625 | M26: 0.00625 | N26: 0.00625 | O26: 0.00625 | P26: 0.00625 | Q26: 0.00625 | R26: 0.00625 | S26: 0.00625 | T26: 0.00625 | U26: 0.00625 | V26: 0.00625 | W26: 0.00625 | X26: 0.00625 | Y26: 0.00625 | Z26: 0.00625 | AA26: 0.00625 | AB26: 0.00625 | AC26: 0.00625 | AD26: 0.00625 | AE26: 0.00625 | AF26: 0.00625 | AG26: 0.00625 | AH26: 0.00625 | AI26: 0.00625 | AJ26: 0.00625 | AK26: 0.00625 | AL26: 0.00625 | AM26: 0.00625 | AN26: 0.00625 | AO26: 0.00625 | AP26: 0.00625 | AQ26: 0.00625 | AR26: 0.00625 | AS26: 0.00625 | AT26: 0.00625 | AU26: 0.00625 | AV26: 0.00625 | AW26: 0.00625 | AX26: 0.00625 | AY26: 0.00625 | AZ26: 0.00625 | BA26: 0.00625 | BB26: 0.00625 | BC26: 0.00625 | BD26: 0.00625 | BE26: 0.00625 | BF26: 0.00625 | BG26: 0.00625 | BH26: 0.00625 | BI26: 0.00625 | BJ26: 0.00625 | BK26: 0.00625 | BL26: 0.00625 | BM26: 0.00625 | BN26: 0.00625 | BO26: 0.00625 | BP26: 0.00625 | BQ26: 0.00625 | BR26: 0.00625 | BS26: 0.00625 | BT26: 0.00625 | BU26: 0.00625 | BV26: 0.00625 | BW26: =$F$26 -> 0.00625 | BX26: 0.00625 | BY26: 0.00625 | BZ26: 0.00625 | CA26: 0.00625 | CB26: 0.00625 | CC26: 0.00625 | CD26: 0.00625 | CE26: 0.00625 | CF26: 0.00625 | CG26: 0.00625 | CH26: 0.00625 | CI26: 0.00625 | CJ26: 0.00625 | CK26: 0.00625 | CL26: 0.00625 | CM26: 0.00625 | CN26: 0.00625 | CO26: 0.00625 | CP26: 0.00625 | CQ26: 0.00625 | CR26: 0.00625 | CS26: 0.00625 | CT26: 0.00625 | CU26: 0.00625 | CV26: 0.00625 | CW26: 0.00625 | CX26: 0.00625 | CY26: 0.00625 | CZ26: 0.00625 | DA26: 0.00625 | DB26: 0.00625 | DC26: 0.00625 | DD26: 0.00625 | DE26: 0.00625 | DF26: 0.00625 | DG26: 0.00625 | DH26: 0.00625 | DI26: 0.00625 | DJ26: 0.00625 | DK26: 0.00625 | DL26: 0.00625 | DM26: 0.00625 | DN26: 0.00625 | DO26: 0.00625 | DP26: 0.00625 | DQ26: 0.00625 | DR26: 0.00625 | DS26: 0.00625
C27: Interest Recorded | E27: USD | H27: =SUM(J27:XFD27) -> 367894524.1 | J27: =J26*J20 -> 0 | K27: =K26*K20 -> 2250000 | L27: 2264062.5 | M27: 2278212.891 | N27: 2292451.721 | O27: 2306779.544 | P27: 2321196.917 | Q27: 2335704.397 | R27: 2350302.55 | S27: 2364991.941 | T27: 2379773.14 | U27: 2394646.723 | V27: 2409613.265 | W27: 2424673.347 | X27: 2439827.556 | Y27: 2455076.478 | Z27: 2470420.706 | AA27: 2485860.835 | AB27: 2501397.466 | AC27: 2517031.2 | AD27: 2532762.645 | AE27: 2548592.411 | AF27: 2564521.114 | AG27: 2580549.371 | AH27: 2596677.804 | AI27: 2612907.041 | AJ27: 2629237.71 | AK27: 2645670.445 | AL27: 2662205.886 | AM27: 2678844.673 | AN27: 2695587.452 | AO27: 2712434.873 | AP27: 2729387.591 | AQ27: 2746446.264 | AR27: 2763611.553 | AS27: 2780884.125 | AT27: 2798264.651 | AU27: 2815753.805 | AV27: 2833352.266 | AW27: 2851060.718 | AX27: 2868879.847 | AY27: 2886810.346 | AZ27: 2904852.911 | BA27: 2923008.242 | BB27: 2941277.043 | BC27: 2959660.025 | BD27: 2978157.9 | BE27: 2996771.387 | BF27: 3015501.208 | BG27: 3034348.091 | BH27: 3053312.766 | BI27: 3072395.971 | BJ27: 3091598.446 | BK27: 3110920.936 | BL27: 3130364.192 | BM27: 3149928.968 | BN27: 3169616.024 | BO27: 3189426.124 | BP27: 3209360.038 | BQ27: 3229418.538 | BR27: 3249602.404 | BS27: 3269912.419 | BT27: 3290349.371 | BU27: 3310914.055 | BV27: 3331607.268 | BW27: =BW26*BW20 -> 3352429.813 | BX27: 3373382.499 | BY27: 3394466.14 | BZ27: 3415681.553 | CA27: 3437029.563 | CB27: 3458510.998 | CC27: 3480126.692 | CD27: 3501877.483 | CE27: 3523764.218 | CF27: 3545787.744 | CG27: 3567948.917 | CH27: 3590248.598 | CI27: 3612687.652 | CJ27: 3635266.95 | CK27: 3657987.368 | CL27: 3680849.789 | CM27: 3703855.1 | CN27: 3727004.195 | CO27: 3750297.971 | CP27: 3773737.333 | CQ27: 3797323.192 | CR27: 3821056.462 | CS27: 3844938.065 | CT27: 3868968.927 | CU27: 3893149.983 | CV27: 3917482.171 | CW27: 3941966.434 | CX27: 3966603.724 | CY27: 3991394.998 | CZ27: 4016341.216 | DA27: 4041443.349 | DB27: 4066702.37 | DC27: 4092119.26 | DD27: 4117695.005 | DE27: 4143430.599 | DF27: 4169327.04 | DG27: 4195385.334 | DH27: 4221606.492 | DI27: 4247991.533 | DJ27: 4274541.48 | DK27: 4301257.364 | DL27: 4328140.223 | DM27: 4355191.099 | DN27: 4382411.044 | DO27: 4409801.113 | DP27: 4437362.37 | DQ27: 4465095.884 | DR27: 4493002.734 | DS27: 4521084.001
C28: Interest Paid Flag | E28: Flag | F28: ='Tab 1 - Assumptions'!F74 -> 0 | H28: =SUM(J28:XFD28) -> 0 | J28: =$F28 -> 0 | K28: =$F28 -> 0 | L28: 0 | M28: 0 | N28: 0 | O28: 0 | P28: 0 | Q28: 0 | R28: 0 | S28: 0 | T28: 0 | U28: 0 | V28: 0 | W28: 0 | X28: 0 | Y28: 0 | Z28: 0 | AA28: 0 | AB28: 0 | AC28: 0 | AD28: 0 | AE28: 0 | AF28: 0 | AG28: 0 | AH28: 0 | AI28: 0 | AJ28: 0 | AK28: 0 | AL28: 0 | AM28: 0 | AN28: 0 | AO28: 0 | AP28: 0 | AQ28: 0 | AR28: 0 | AS28: 0 | AT28: 0 | AU28: 0 | AV28: 0 | AW28: 0 | AX28: 0 | AY28: 0 | AZ28: 0 | BA28: 0 | BB28: 0 | BC28: 0 | BD28: 0 | BE28: 0 | BF28: 0 | BG28: 0 | BH28: 0 | BI28: 0 | BJ28: 0 | BK28: 0 | BL28: 0 | BM28: 0 | BN28: 0 | BO28: 0 | BP28: 0 | BQ28: 0 | BR28: 0 | BS28: 0 | BT28: 0 | BU28: 0 | BV28: 0 | BW28: =$F28 -> 0 | BX28: 0 | BY28: 0 | BZ28: 0 | CA28: 0 | CB28: 0 | CC28: 0 | CD28: 0 | CE28: 0 | CF28: 0 | CG28: 0 | CH28: 0 | CI28: 0 | CJ28: 0 | CK28: 0 | CL28: 0 | CM28: 0 | CN28: 0 | CO28: 0 | CP28: 0 | CQ28: 0 | CR28: 0 | CS28: 0 | CT28: 0 | CU28: 0 | CV28: 0 | CW28: 0 | CX28: 0 | CY28: 0 | CZ28: 0 | DA28: 0 | DB28: 0 | DC28: 0 | DD28: 0 | DE28: 0 | DF28: 0 | DG28: 0 | DH28: 0 | DI28: 0 | DJ28: 0 | DK28: 0 | DL28: 0 | DM28: 0 | DN28: 0 | DO28: 0 | DP28: 0 | DQ28: 0 | DR28: 0 | DS28: 0
C29: Interest Paid | E29: USD | H29: =SUM(J29:XFD29) -> 0 | J29: =J27*J28 -> 0 | K29: =K27*K28 -> 0 | L29: 0 | M29: 0 | N29: 0 | O29: 0 | P29: 0 | Q29: 0 | R29: 0 | S29: 0 | T29: 0 | U29: 0 | V29: 0 | W29: 0 | X29: 0 | Y29: 0 | Z29: 0 | AA29: 0 | AB29: 0 | AC29: 0 | AD29: 0 | AE29: 0 | AF29: 0 | AG29: 0 | AH29: 0 | AI29: 0 | AJ29: 0 | AK29: 0 | AL29: 0 | AM29: 0 | AN29: =AN27*AN28 -> 0 | AO29: 0 | AP29: 0 | AQ29: 0 | AR29: 0 | AS29: 0 | AT29: 0 | AU29: 0 | AV29: 0 | AW29: 0 | AX29: 0 | AY29: 0 | AZ29: 0 | BA29: 0 | BB29: 0 | BC29: 0 | BD29: 0 | BE29: 0 | BF29: 0 | BG29: 0 | BH29: 0 | BI29: 0 | BJ29: 0 | BK29: 0 | BL29: 0 | BM29: 0 | BN29: 0 | BO29: 0 | BP29: 0 | BQ29: 0 | BR29: 0 | BS29: 0 | BT29: =BT27*BT28 -> 0 | BU29: 0 | BV29: 0 | BW29: 0 | BX29: 0 | BY29: 0 | BZ29: 0 | CA29: 0 | CB29: 0 | CC29: 0 | CD29: 0 | CE29: 0 | CF29: 0 | CG29: 0 | CH29: 0 | CI29: 0 | CJ29: 0 | CK29: 0 | CL29: 0 | CM29: 0 | CN29: 0 | CO29: 0 | CP29: 0 | CQ29: 0 | CR29: 0 | CS29: 0 | CT29: 0 | CU29: 0 | CV29: 0 | CW29: 0 | CX29: 0 | CY29: 0 | CZ29: =CZ27*CZ28 -> 0 | DA29: 0 | DB29: 0 | DC29: 0 | DD29: 0 | DE29: 0 | DF29: 0 | DG29: 0 | DH29: 0 | DI29: 0 | DJ29: 0 | DK29: 0 | DL29: 0 | DM29: 0 | DN29: 0 | DO29: 0 | DP29: 0 | DQ29: 0 | DR29: 0 | DS29: 0
C30: Interest PIK | E30: USD | H30: =SUM(J30:XFD30) -> 367894524.1 | J30: =J27-J29 -> 0 | K30: =K27-K29 -> 2250000 | L30: 2264062.5 | M30: 2278212.891 | N30: 2292451.721 | O30: 2306779.544 | P30: 2321196.917 | Q30: 2335704.397 | R30: 2350302.55 | S30: 2364991.941 | T30: 2379773.14 | U30: 2394646.723 | V30: 2409613.265 | W30: 2424673.347 | X30: 2439827.556 | Y30: 2455076.478 | Z30: 2470420.706 | AA30: 2485860.835 | AB30: 2501397.466 | AC30: 2517031.2 | AD30: 2532762.645 | AE30: 2548592.411 | AF30: 2564521.114 | AG30: 2580549.371 | AH30: 2596677.804 | AI30: 2612907.041 | AJ30: 2629237.71 | AK30: 2645670.445 | AL30: 2662205.886 | AM30: 2678844.673 | AN30: =AN27-AN29 -> 2695587.452 | AO30: 2712434.873 | AP30: 2729387.591 | AQ30: 2746446.264 | AR30: 2763611.553 | AS30: 2780884.125 | AT30: 2798264.651 | AU30: 2815753.805 | AV30: 2833352.266 | AW30: 2851060.718 | AX30: 2868879.847 | AY30: 2886810.346 | AZ30: 2904852.911 | BA30: 2923008.242 | BB30: 2941277.043 | BC30: 2959660.025 | BD30: 2978157.9 | BE30: 2996771.387 | BF30: 3015501.208 | BG30: 3034348.091 | BH30: 3053312.766 | BI30: 3072395.971 | BJ30: 3091598.446 | BK30: 3110920.936 | BL30: 3130364.192 | BM30: 3149928.968 | BN30: 3169616.024 | BO30: 3189426.124 | BP30: 3209360.038 | BQ30: 3229418.538 | BR30: 3249602.404 | BS30: 3269912.419 | BT30: =BT27-BT29 -> 3290349.371 | BU30: 3310914.055 | BV30: 3331607.268 | BW30: 3352429.813 | BX30: 3373382.499 | BY30: 3394466.14 | BZ30: 3415681.553 | CA30: 3437029.563 | CB30: 3458510.998 | CC30: 3480126.692 | CD30: 3501877.483 | CE30: 3523764.218 | CF30: 3545787.744 | CG30: 3567948.917 | CH30: 3590248.598 | CI30: 3612687.652 | CJ30: 3635266.95 | CK30: 3657987.368 | CL30: 3680849.789 | CM30: 3703855.1 | CN30: 3727004.195 | CO30: 3750297.971 | CP30: 3773737.333 | CQ30: 3797323.192 | CR30: 3821056.462 | CS30: 3844938.065 | CT30: 3868968.927 | CU30: 3893149.983 | CV30: 3917482.171 | CW30: 3941966.434 | CX30: 3966603.724 | CY30: 3991394.998 | CZ30: =CZ27-CZ29 -> 4016341.216 | DA30: 4041443.349 | DB30: 4066702.37 | DC30: 4092119.26 | DD30: 4117695.005 | DE30: 4143430.599 | DF30: 4169327.04 | DG30: 4195385.334 | DH30: 4221606.492 | DI30: 4247991.533 | DJ30: 4274541.48 | DK30: 4301257.364 | DL30: 4328140.223 | DM30: 4355191.099 | DN30: 4382411.044 | DO30: 4409801.113 | DP30: 4437362.37 | DQ30: 4465095.884 | DR30: 4493002.734 | DS30: 4521084.001
B32: Cash Inflow and Outflow from Enforcement
J34: =IF(OR(J5,J4),J3,NA()) -> 2025-12-31 | K34: =IF(OR(K5,K4),K3,NA()) ->  | L34: =IF(OR(L5,L4),L3,NA()) -> 2026-02-28 | BW34: =IF(OR(BW5,BW4),BW3,NA()) -> 
C35: Enforcement Fee Applied | E35: USD | F35: ='Tab 1 - Assumptions'!$F$77 -> 18000000 | G35: =F35/H$5 -> 18000000 | H35: =SUM(J35:XFD35) -> 18000000 | J35: =$F$35*J4 -> 18000000 | K35: =$F$35*K4 -> 0 | L35: 0 | M35: 0 | N35: 0 | O35: 0 | P35: 0 | Q35: 0 | R35: 0 | S35: 0 | T35: 0 | U35: 0 | V35: 0 | W35: 0 | X35: 0 | Y35: 0 | Z35: 0 | AA35: 0 | AB35: 0 | AC35: 0 | AD35: 0 | AE35: 0 | AF35: 0 | AG35: 0 | AH35: 0 | AI35: 0 | AJ35: 0 | AK35: 0 | AL35: 0 | AM35: 0 | AN35: 0 | AO35: 0 | AP35: 0 | AQ35: 0 | AR35: 0 | AS35: 0 | AT35: 0 | AU35: 0 | AV35: 0 | AW35: 0 | AX35: 0 | AY35: 0 | AZ35: 0 | BA35: 0 | BB35: 0 | BC35: 0 | BD35: 0 | BE35: 0 | BF35: 0 | BG35: 0 | BH35: 0 | BI35: 0 | BJ35: 0 | BK35: 0 | BL35: 0 | BM35: 0 | BN35: 0 | BO35: 0 | BP35: 0 | BQ35: 0 | BR35: 0 | BS35: 0 | BT35: 0 | BU35: 0 | BV35: 0 | BW35: =$F$35*BW4 -> 0 | BX35: 0 | BY35: 0 | BZ35: 0 | CA35: 0 | CB35: 0 | CC35: 0 | CD35: 0 | CE35: 0 | CF35: 0 | CG35: 0 | CH35: 0 | CI35: 0 | CJ35: 0 | CK35: 0 | CL35: 0 | CM35: 0 | CN35: 0 | CO35: 0 | CP35: 0 | CQ35: 0 | CR35: 0 | CS35: 0 | CT35: 0 | CU35: 0 | CV35: 0 | CW35: 0 | CX35: 0 | CY35: 0 | CZ35: 0 | DA35: 0 | DB35: 0 | DC35: 0 | DD35: 0 | DE35: 0 | DF35: 0 | DG35: 0 | DH35: 0 | DI35: 0 | DJ35: 0 | DK35: 0 | DL35: 0 | DM35: 0 | DN35: 0 | DO35: 0 | DP35: 0 | DQ35: 0 | DR35: 0 | DS35: 0
C36: Enforcement Legal - Midpoint | E36: USD | F36: ='Tab 1 - Assumptions'!$F$81 -> 2000000 | G36: =F36/H$5 -> 2000000 | H36: =SUM(J36:XFD36) -> 2000000 | J36: =$F$36*J4 -> 2000000 | K36: =$F$36*K4 -> 0 | L36: 0 | M36: 0 | N36: 0 | O36: 0 | P36: 0 | Q36: 0 | R36: 0 | S36: 0 | T36: 0 | U36: 0 | V36: 0 | W36: 0 | X36: 0 | Y36: 0 | Z36: 0 | AA36: 0 | AB36: 0 | AC36: 0 | AD36: 0 | AE36: 0 | AF36: 0 | AG36: 0 | AH36: 0 | AI36: 0 | AJ36: 0 | AK36: 0 | AL36: 0 | AM36: 0 | AN36: 0 | AO36: 0 | AP36: 0 | AQ36: 0 | AR36: 0 | AS36: 0 | AT36: 0 | AU36: 0 | AV36: 0 | AW36: 0 | AX36: 0 | AY36: 0 | AZ36: 0 | BA36: 0 | BB36: 0 | BC36: 0 | BD36: 0 | BE36: 0 | BF36: 0 | BG36: 0 | BH36: 0 | BI36: 0 | BJ36: 0 | BK36: 0 | BL36: 0 | BM36: 0 | BN36: 0 | BO36: 0 | BP36: 0 | BQ36: 0 | BR36: 0 | BS36: 0 | BT36: 0 | BU36: 0 | BV36: 0 | BW36: =$F$36*BW4 -> 0 | BX36: 0 | BY36: 0 | BZ36: 0 | CA36: 0 | CB36: 0 | CC36: 0 | CD36: 0 | CE36: 0 | CF36: 0 | CG36: 0 | CH36: 0 | CI36: 0 | CJ36: 0 | CK36: 0 | CL36: 0 | CM36: 0 | CN36: 0 | CO36: 0 | CP36: 0 | CQ36: 0 | CR36: 0 | CS36: 0 | CT36: 0 | CU36: 0 | CV36: 0 | CW36: 0 | CX36: 0 | CY36: 0 | CZ36: 0 | DA36: 0 | DB36: 0 | DC36: 0 | DD36: 0 | DE36: 0 | DF36: 0 | DG36: 0 | DH36: 0 | DI36: 0 | DJ36: 0 | DK36: 0 | DL36: 0 | DM36: 0 | DN36: 0 | DO36: 0 | DP36: 0 | DQ36: 0 | DR36: 0 | DS36: 0
C37: Total Tax Leakage | E37: USD | F37: ='Tab 1 - Assumptions'!F87 -> 3402000 | H37: =SUM(J37:XFD37) -> 3402000 | J37: =$F$37*J4 -> 3402000 | K37: =$F$37*K4 -> 0 | L37: 0 | M37: 0 | N37: 0 | O37: 0 | P37: 0 | Q37: 0 | R37: 0 | S37: 0 | T37: 0 | U37: 0 | V37: 0 | W37: 0 | X37: 0 | Y37: 0 | Z37: 0 | AA37: 0 | AB37: 0 | AC37: 0 | AD37: 0 | AE37: 0 | AF37: 0 | AG37: 0 | AH37: 0 | AI37: 0 | AJ37: 0 | AK37: 0 | AL37: 0 | AM37: 0 | AN37: 0 | AO37: 0 | AP37: 0 | AQ37: 0 | AR37: 0 | AS37: 0 | AT37: 0 | AU37: 0 | AV37: 0 | AW37: 0 | AX37: 0 | AY37: 0 | AZ37: 0 | BA37: 0 | BB37: 0 | BC37: 0 | BD37: 0 | BE37: 0 | BF37: 0 | BG37: 0 | BH37: 0 | BI37: 0 | BJ37: 0 | BK37: 0 | BL37: 0 | BM37: 0 | BN37: 0 | BO37: 0 | BP37: 0 | BQ37: 0 | BR37: 0 | BS37: 0 | BT37: 0 | BU37: 0 | BV37: 0 | BW37: =$F$37*BW4 -> 0 | BX37: 0 | BY37: 0 | BZ37: 0 | CA37: 0 | CB37: 0 | CC37: 0 | CD37: 0 | CE37: 0 | CF37: 0 | CG37: 0 | CH37: 0 | CI37: 0 | CJ37: 0 | CK37: 0 | CL37: 0 | CM37: 0 | CN37: 0 | CO37: 0 | CP37: 0 | CQ37: 0 | CR37: 0 | CS37: 0 | CT37: 0 | CU37: 0 | CV37: 0 | CW37: 0 | CX37: 0 | CY37: 0 | CZ37: 0 | DA37: 0 | DB37: 0 | DC37: 0 | DD37: 0 | DE37: 0 | DF37: 0 | DG37: 0 | DH37: 0 | DI37: 0 | DJ37: 0 | DK37: 0 | DL37: 0 | DM37: 0 | DN37: 0 | DO37: 0 | DP37: 0 | DQ37: 0 | DR37: 0 | DS37: 0
C38: Mayberry Management Fee | E38: USD | F38: ='Tab 1 - Assumptions'!$F$257/Months_in_year -> 524008.5736 | G38: =F38/H$5 -> 524008.5736 | H38: =SUM(J38:XFD38) -> 6288102.883 | J38: =$F$38*J9 -> 0 | K38: =$F$38*K9 -> 0 | L38: 0 | M38: 0 | N38: 0 | O38: 0 | P38: 0 | Q38: 524008.5736 | R38: 524008.5736 | S38: 524008.5736 | T38: 524008.5736 | U38: 524008.5736 | V38: 524008.5736 | W38: 524008.5736 | X38: 524008.5736 | Y38: 524008.5736 | Z38: 524008.5736 | AA38: 524008.5736 | AB38: 524008.5736 | AC38: 0 | AD38: 0 | AE38: 0 | AF38: 0 | AG38: 0 | AH38: 0 | AI38: 0 | AJ38: 0 | AK38: 0 | AL38: 0 | AM38: 0 | AN38: 0 | AO38: 0 | AP38: 0 | AQ38: 0 | AR38: 0 | AS38: 0 | AT38: 0 | AU38: 0 | AV38: 0 | AW38: 0 | AX38: 0 | AY38: 0 | AZ38: 0 | BA38: 0 | BB38: 0 | BC38: 0 | BD38: 0 | BE38: 0 | BF38: 0 | BG38: 0 | BH38: 0 | BI38: 0 | BJ38: 0 | BK38: 0 | BL38: 0 | BM38: 0 | BN38: 0 | BO38: 0 | BP38: 0 | BQ38: 0 | BR38: 0 | BS38: 0 | BT38: 0 | BU38: 0 | BV38: 0 | BW38: =$F$38*BW9 -> 0 | BX38: 0 | BY38: 0 | BZ38: 0 | CA38: 0 | CB38: 0 | CC38: 0 | CD38: 0 | CE38: 0 | CF38: 0 | CG38: 0 | CH38: 0 | CI38: 0 | CJ38: 0 | CK38: 0 | CL38: 0 | CM38: 0 | CN38: 0 | CO38: 0 | CP38: 0 | CQ38: 0 | CR38: 0 | CS38: 0 | CT38: 0 | CU38: 0 | CV38: 0 | CW38: 0 | CX38: 0 | CY38: 0 | CZ38: 0 | DA38: 0 | DB38: 0 | DC38: 0 | DD38: 0 | DE38: 0 | DF38: 0 | DG38: 0 | DH38: 0 | DI38: 0 | DJ38: 0 | DK38: 0 | DL38: 0 | DM38: 0 | DN38: 0 | DO38: 0 | DP38: 0 | DQ38: 0 | DR38: 0 | DS38: 0
C39: Total Fees and Tax Leakage | E39: USD | H39: =SUM(J39:XFD39)-H38 -> 23402000 | J39: =SUM(J35:J38) -> 23402000 | K39: =SUM(K35:K38) -> 0 | L39: 0 | M39: 0 | N39: 0 | O39: 0 | P39: 0 | Q39: 524008.5736 | R39: 524008.5736 | S39: 524008.5736 | T39: 524008.5736 | U39: 524008.5736 | V39: 524008.5736 | W39: 524008.5736 | X39: 524008.5736 | Y39: 524008.5736 | Z39: 524008.5736 | AA39: 524008.5736 | AB39: 524008.5736 | AC39: 0 | AD39: 0 | AE39: 0 | AF39: 0 | AG39: 0 | AH39: 0 | AI39: 0 | AJ39: 0 | AK39: 0 | AL39: 0 | AM39: 0 | AN39: 0 | AO39: 0 | AP39: 0 | AQ39: 0 | AR39: 0 | AS39: 0 | AT39: 0 | AU39: 0 | AV39: 0 | AW39: 0 | AX39: 0 | AY39: 0 | AZ39: 0 | BA39: 0 | BB39: 0 | BC39: 0 | BD39: 0 | BE39: 0 | BF39: 0 | BG39: 0 | BH39: 0 | BI39: 0 | BJ39: 0 | BK39: 0 | BL39: 0 | BM39: 0 | BN39: 0 | BO39: 0 | BP39: 0 | BQ39: 0 | BR39: 0 | BS39: 0 | BT39: 0 | BU39: 0 | BV39: 0 | BW39: =SUM(BW35:BW38) -> 0 | BX39: 0 | BY39: 0 | BZ39: 0 | CA39: 0 | CB39: 0 | CC39: 0 | CD39: 0 | CE39: 0 | CF39: 0 | CG39: 0 | CH39: 0 | CI39: 0 | CJ39: 0 | CK39: 0 | CL39: 0 | CM39: 0 | CN39: 0 | CO39: 0 | CP39: 0 | CQ39: 0 | CR39: 0 | CS39: 0 | CT39: 0 | CU39: 0 | CV39: 0 | CW39: 0 | CX39: 0 | CY39: 0 | CZ39: 0 | DA39: 0 | DB39: 0 | DC39: 0 | DD39: 0 | DE39: 0 | DF39: 0 | DG39: 0 | DH39: 0 | DI39: 0 | DJ39: 0 | DK39: 0 | DL39: 0 | DM39: 0 | DN39: 0 | DO39: 0 | DP39: 0 | DQ39: 0 | DR39: 0 | DS39: 0
C41: Outflow for Debt Purchase | E41: USD | F41: =F15 -> 252000000 | J41: =$F41*J4 -> 252000000 | K41: =$F41*K4 -> 0 | L41: 0 | M41: 0 | N41: 0 | O41: 0 | P41: 0 | Q41: 0 | R41: 0 | S41: 0 | T41: 0 | U41: 0 | V41: 0 | W41: 0 | X41: 0 | Y41: 0 | Z41: 0 | AA41: 0 | AB41: 0 | AC41: 0 | AD41: 0 | AE41: 0 | AF41: 0 | AG41: 0 | AH41: 0 | AI41: 0 | AJ41: 0 | AK41: 0 | AL41: 0 | AM41: 0 | AN41: 0 | AO41: 0 | AP41: 0 | AQ41: 0 | AR41: 0 | AS41: 0 | AT41: 0 | AU41: 0 | AV41: 0 | AW41: 0 | AX41: 0 | AY41: 0 | AZ41: 0 | BA41: 0 | BB41: 0 | BC41: 0 | BD41: 0 | BE41: 0 | BF41: 0 | BG41: 0 | BH41: 0 | BI41: 0 | BJ41: 0 | BK41: 0 | BL41: 0 | BM41: 0 | BN41: 0 | BO41: 0 | BP41: 0 | BQ41: 0 | BR41: 0 | BS41: 0 | BT41: 0 | BU41: 0 | BV41: 0 | BW41: =$F41*BW4 -> 0 | BX41: 0 | BY41: 0 | BZ41: 0 | CA41: 0 | CB41: 0 | CC41: 0 | CD41: 0 | CE41: 0 | CF41: 0 | CG41: 0 | CH41: 0 | CI41: 0 | CJ41: 0 | CK41: 0 | CL41: 0 | CM41: 0 | CN41: 0 | CO41: 0 | CP41: 0 | CQ41: 0 | CR41: 0 | CS41: 0 | CT41: 0 | CU41: 0 | CV41: 0 | CW41: 0 | CX41: 0 | CY41: 0 | CZ41: 0 | DA41: 0 | DB41: 0 | DC41: 0 | DD41: 0 | DE41: 0 | DF41: 0 | DG41: 0 | DH41: 0 | DI41: 0 | DJ41: 0 | DK41: 0 | DL41: 0 | DM41: 0 | DN41: 0 | DO41: 0 | DP41: 0 | DQ41: 0 | DR41: 0 | DS41: 0
C43: Total Cash Outflow for Debt Purchase and Enforcement | E43: USD | H43: =SUM(J43:XFD43) -> 281690102.9 | J43: =J41+J39 -> 275402000 | K43: =K41+K39 -> 0 | L43: 0 | M43: 0 | N43: 0 | O43: 0 | P43: 0 | Q43: 524008.5736 | R43: 524008.5736 | S43: 524008.5736 | T43: 524008.5736 | U43: 524008.5736 | V43: 524008.5736 | W43: 524008.5736 | X43: 524008.5736 | Y43: 524008.5736 | Z43: 524008.5736 | AA43: 524008.5736 | AB43: 524008.5736 | AC43: 0 | AD43: 0 | AE43: 0 | AF43: 0 | AG43: 0 | AH43: 0 | AI43: 0 | AJ43: 0 | AK43: 0 | AL43: 0 | AM43: 0 | AN43: 0 | AO43: 0 | AP43: 0 | AQ43: 0 | AR43: 0 | AS43: 0 | AT43: 0 | AU43: 0 | AV43: 0 | AW43: 0 | AX43: 0 | AY43: 0 | AZ43: 0 | BA43: 0 | BB43: 0 | BC43: 0 | BD43: 0 | BE43: 0 | BF43: 0 | BG43: 0 | BH43: 0 | BI43: 0 | BJ43: 0 | BK43: 0 | BL43: 0 | BM43: 0 | BN43: 0 | BO43: 0 | BP43: 0 | BQ43: 0 | BR43: 0 | BS43: 0 | BT43: 0 | BU43: 0 | BV43: 0 | BW43: =BW41+BW39 -> 0 | BX43: 0 | BY43: 0 | BZ43: 0 | CA43: 0 | CB43: 0 | CC43: 0 | CD43: 0 | CE43: 0 | CF43: 0 | CG43: 0 | CH43: 0 | CI43: 0 | CJ43: 0 | CK43: 0 | CL43: 0 | CM43: 0 | CN43: 0 | CO43: 0 | CP43: 0 | CQ43: 0 | CR43: 0 | CS43: 0 | CT43: 0 | CU43: 0 | CV43: 0 | CW43: 0 | CX43: 0 | CY43: 0 | CZ43: 0 | DA43: 0 | DB43: 0 | DC43: 0 | DD43: 0 | DE43: 0 | DF43: 0 | DG43: 0 | DH43: 0 | DI43: 0 | DJ43: 0 | DK43: 0 | DL43: 0 | DM43: 0 | DN43: 0 | DO43: 0 | DP43: 0 | DQ43: 0 | DR43: 0 | DS43: 0
C45: NPV of Cash Outflow | E45: USD | F45: ='Tab 1 - Assumptions'!F102 -> 0.12 | H45: =XNPV(F45,J43:DS43,J3:DS3) -> 280994254.4

Sheet Tab 3a Accumulation CurveDebt
B1: Timeline
C2: Period | F2: Driver | G2: Driver | H2: Sum | J2: =_xlfn.SEQUENCE(,50) -> 1 | K2: 2 | L2: 3 | M2: 4 | N2: 5 | O2: 6 | P2: 7 | Q2: 8 | R2: 9 | S2: 10 | T2: 11 | U2: 12 | V2: 13 | W2: 14 | X2: 15 | Y2: 16 | Z2: 17 | AA2: 18 | AB2: 19 | AC2: 20 | AD2: 21 | AE2: 22 | AF2: 23 | AG2: 24 | AH2: 25 | AI2: 26 | AJ2: 27 | AK2: 28 | AL2: 29 | AM2: 30 | AN2: 31 | AO2: 32 | AP2: 33 | AQ2: 34 | AR2: 35 | AS2: 36 | AT2: 37 | AU2: 38 | AV2: 39 | AW2: 40 | AX2: 41 | AY2: 42 | AZ2: 43 | BA2: 44 | BB2: 45 | BC2: 46 | BD2: 47 | BE2: 48 | BF2: 49 | BG2: 50
C3: Date | E3: date | J3: ='Tab 1 - Assumptions'!F7 -> 2025-12-26 | K3: =J3+1 -> 2025-12-27 | L3: =K3+1 -> 2025-12-28 | M3: 2025-12-29 | N3: 2025-12-30 | O3: 2025-12-31 | P3: 2026-01-01 | Q3: 2026-01-02 | R3: 2026-01-03 | S3: 2026-01-04 | T3: 2026-01-05 | U3: 2026-01-06 | V3: 2026-01-07 | W3: 2026-01-08 | X3: 2026-01-09 | Y3: 2026-01-10 | Z3: 2026-01-11 | AA3: 2026-01-12 | AB3: 2026-01-13 | AC3: 2026-01-14 | AD3: 2026-01-15 | AE3: 2026-01-16 | AF3: 2026-01-17 | AG3: 2026-01-18 | AH3: 2026-01-19 | AI3: 2026-01-20 | AJ3: 2026-01-21 | AK3: 2026-01-22 | AL3: 2026-01-23 | AM3: 2026-01-24 | AN3: 2026-01-25 | AO3: 2026-01-26 | AP3: 2026-01-27 | AQ3: 2026-01-28 | AR3: 2026-01-29 | AS3: 2026-01-30 | AT3: 2026-01-31
C4: Debt Acquisition | E4: Flag | F4: ='Tab 1 - Assumptions'!$F$7 -> 2025-12-26 | G4: ='Tab 1 - Assumptions'!$F$8 -> 2025-12-31 | H4: =SUM(J4:XFD4) -> 6 | J4: =(AND(J$3>=$F4,J$3<=$G4))*1 -> 1 | K4: 1 | L4: 1 | M4: 1 | N4: 1 | O4: 1 | P4: 0 | Q4: 0 | R4: 0 | S4: 0 | T4: 0 | U4: 0 | V4: 0 | W4: 0 | X4: 0 | Y4: 0 | Z4: 0 | AA4: 0 | AB4: 0 | AC4: 0 | AD4: 0 | AE4: 0 | AF4: 0 | AG4: 0 | AH4: 0 | AI4: 0 | AJ4: 0 | AK4: 0 | AL4: 0 | AM4: 0 | AN4: 0 | AO4: 0 | AP4: 0 | AQ4: 0 | AR4: 0 | AS4: 0 | AT4: 0
B6: Accumulation Table | F6: Model Start | G6: Accumulation Start | H6: Accumulation End
C7: Accumulation Start and End | F7: ='Tab 1 - Assumptions'!$F$7 -> 2025-12-26 | G7: =F4 -> 2025-12-26 | H7: =G4 -> 2025-12-31
C8: Debt | E8: Number | F8: =G8 -> 54000000 | G8: ='Tab 1 - Assumptions'!F61*H8 -> 54000000 | H8: ='Tab 1 - Assumptions'!F59 -> 360000000
C9: Percent Purchased | E9: % | F9: ='Tab 1 - Assumptions'!F62 -> 0.17
J10: =IF(J3<=$H$7,J3,NA()) -> 2025-12-26 | K10: 2025-12-27 | L10: 2025-12-28 | M10: 2025-12-29 | N10: 2025-12-30 | O10: 2025-12-31
C11: Debt purchase | E11: Shares | J11: =I11+J13 -> 54000000 | K11: 115200000 | L11: 176400000 | M11: 237600000 | N11: 298800000 | O11: 360000000 | P11: 360000000 | Q11: 360000000 | R11: 360000000 | S11: 360000000 | T11: 360000000 | U11: 360000000 | V11: 360000000 | W11: 360000000 | X11: 360000000 | Y11: 360000000 | Z11: 360000000 | AA11: 360000000 | AB11: 360000000 | AC11: 360000000 | AD11: 360000000 | AE11: 360000000 | AF11: 360000000 | AG11: 360000000 | AH11: 360000000 | AI11: 360000000 | AJ11: 360000000 | AK11: 360000000 | AL11: 360000000 | AM11: 360000000 | AN11: 360000000 | AO11: 360000000 | AP11: 360000000 | AQ11: 360000000 | AR11: 360000000 | AS11: 360000000 | AT11: 360000000
C12: Price without Premium | E12: USD/Share | F12: ='Tab 1 - Assumptions'!F69/100 -> 0.7 | J12: =$F$12 -> 0.7 | K12: 0.7 | L12: 0.7 | M12: 0.7 | N12: 0.7 | O12: 0.7 | P12: 0.7 | Q12: 0.7 | R12: 0.7 | S12: 0.7 | T12: 0.7 | U12: 0.7 | V12: 0.7 | W12: 0.7 | X12: 0.7 | Y12: 0.7 | Z12: 0.7 | AA12: 0.7 | AB12: 0.7 | AC12: 0.7 | AD12: 0.7 | AE12: 0.7 | AF12: 0.7 | AG12: 0.7 | AH12: 0.7 | AI12: 0.7 | AJ12: 0.7 | AK12: 0.7 | AL12: 0.7 | AM12: 0.7 | AN12: 0.7 | AO12: 0.7 | AP12: 0.7 | AQ12: 0.7 | AR12: 0.7 | AS12: 0.7 | AT12: 0.7
C13: Increase in Debt for Accumulation Period | E13: Shares | J13: =IF(AND(J4,1-I4),$F$8,$H$8*$F$9)*J4 -> 54000000 | K13: 61200000 | L13: 61200000 | M13: 61200000 | N13: 61200000 | O13: 61200000 | P13: 0 | Q13: 0 | R13: 0 | S13: 0 | T13: 0 | U13: 0 | V13: 0 | W13: 0 | X13: 0 | Y13: 0 | Z13: 0 | AA13: 0 | AB13: 0 | AC13: 0 | AD13: 0 | AE13: 0 | AF13: 0 | AG13: 0 | AH13: 0 | AI13: 0 | AJ13: 0 | AK13: 0 | AL13: 0 | AM13: 0 | AN13: 0 | AO13: 0 | AP13: 0 | AQ13: 0 | AR13: 0 | AS13: 0 | AT13: 0
C14: Payment for Increased Shares | E14: USD | H14: =SUM(J14:XFD14) -> 252000000 | J14: =J13*J12 -> 37800000 | K14: 42840000 | L14: 42840000 | M14: 42840000 | N14: 42840000 | O14: 42840000 | P14: 0 | Q14: 0 | R14: 0 | S14: 0 | T14: 0 | U14: 0 | V14: 0 | W14: 0 | X14: 0 | Y14: 0 | Z14: 0 | AA14: 0 | AB14: 0 | AC14: 0 | AD14: 0 | AE14: 0 | AF14: 0 | AG14: 0 | AH14: 0 | AI14: 0 | AJ14: 0 | AK14: 0 | AL14: 0 | AM14: 0 | AN14: 0 | AO14: 0 | AP14: 0 | AQ14: 0 | AR14: 0 | AS14: 0 | AT14: 0
C15: Enforcement fee payment | E15: USD | F15: ='Tab 1 - Assumptions'!$F$77 -> 18000000 | J15: =$F$15*J13/$H$8 -> 2700000 | K15: =$F$15*K13/$H$8 -> 3060000 | L15: 3060000 | M15: 3060000 | N15: 3060000 | O15: 3060000 | P15: 0 | Q15: 0 | R15: 0 | S15: 0 | T15: 0 | U15: 0 | V15: 0 | W15: 0 | X15: 0 | Y15: 0 | Z15: 0 | AA15: 0 | AB15: 0 | AC15: 0 | AD15: 0 | AE15: 0 | AF15: 0 | AG15: 0 | AH15: 0 | AI15: 0 | AJ15: 0 | AK15: 0 | AL15: 0 | AM15: 0 | AN15: 0 | AO15: 0 | AP15: 0 | AQ15: 0 | AR15: 0 | AS15: 0 | AT15: 0
C16: Legal fees payment | E16: USD | F16: ='Tab 1 - Assumptions'!$F$81 -> 2000000 | J16: =$F$16*(J3=$H$7) -> 0 | K16: =$F$16*(K3=$H$7) -> 0 | L16: 0 | M16: 0 | N16: 0 | O16: 2000000 | P16: 0 | Q16: 0 | R16: 0 | S16: 0 | T16: 0 | U16: 0 | V16: 0 | W16: 0 | X16: 0 | Y16: 0 | Z16: 0 | AA16: 0 | AB16: 0 | AC16: 0 | AD16: 0 | AE16: 0 | AF16: 0 | AG16: 0 | AH16: 0 | AI16: 0 | AJ16: 0 | AK16: 0 | AL16: 0 | AM16: 0 | AN16: 0 | AO16: 0 | AP16: 0 | AQ16: 0 | AR16: 0 | AS16: 0 | AT16: 0
C17: Payment for Debt and Enforcement | E17: USD | H17: =SUM(J17:XFD17) -> 20000000 | J17: =SUM(J15:J16) -> 2700000 | K17: =SUM(K15:K16) -> 3060000 | L17: 3060000 | M17: 3060000 | N17: 3060000 | O17: 5060000 | P17: 0 | Q17: 0 | R17: 0 | S17: 0 | T17: 0 | U17: 0 | V17: 0 | W17: 0 | X17: 0 | Y17: 0 | Z17: 0 | AA17: 0 | AB17: 0 | AC17: 0 | AD17: 0 | AE17: 0 | AF17: 0 | AG17: 0 | AH17: 0 | AI17: 0 | AJ17: 0 | AK17: 0 | AL17: 0 | AM17: 0 | AN17: 0 | AO17: 0 | AP17: 0 | AQ17: 0 | AR17: 0 | AS17: 0 | AT17: 0
C18: Total Payment for Accumulation and Enforcement | E18: USD | H18: =SUM(J18:XFD18) -> 272000000 | J18: =J14+J17 -> 40500000 | K18: 45900000 | L18: 45900000 | M18: 45900000 | N18: 45900000 | O18: 47900000 | P18: 0 | Q18: 0 | R18: 0 | S18: 0 | T18: 0 | U18: 0 | V18: 0 | W18: 0 | X18: 0 | Y18: 0 | Z18: 0 | AA18: 0 | AB18: 0 | AC18: 0 | AD18: 0 | AE18: 0 | AF18: 0 | AG18: 0 | AH18: 0 | AI18: 0 | AJ18: 0 | AK18: 0 | AL18: 0 | AM18: 0 | AN18: 0 | AO18: 0 | AP18: 0 | AQ18: 0 | AR18: 0 | AS18: 0 | AT18: 0
J20: =IF(J4,J3,NA()) -> 2025-12-26 | K20: 2025-12-27 | L20: 2025-12-28 | M20: 2025-12-29 | N20: 2025-12-30 | O20: 2025-12-31
C21: Cost of Accumulation | E21: USD | J21: =I21+J14 -> 37800000 | K21: 80640000 | L21: 123480000 | M21: 166320000 | N21: 209160000 | O21: 252000000 | P21: 252000000 | Q21: 252000000 | R21: 252000000 | S21: 252000000 | T21: 252000000 | U21: 252000000 | V21: 252000000 | W21: 252000000 | X21: 252000000 | Y21: 252000000 | Z21: 252000000 | AA21: 252000000 | AB21: 252000000 | AC21: 252000000 | AD21: 252000000 | AE21: 252000000 | AF21: 252000000 | AG21: 252000000 | AH21: 252000000 | AI21: 252000000 | AJ21: 252000000 | AK21: 252000000 | AL21: 252000000 | AM21: 252000000 | AN21: 252000000 | AO21: 252000000 | AP21: 252000000 | AQ21: 252000000 | AR21: 252000000 | AS21: 252000000 | AT21: 252000000
H25: This sheet only has 6 days
H26: It does not go anywhere
B42: Gnatt Chart
D43: Dates
D45: Debt Acuisistion
D46: Enfocement
D47: Accumulation
D48: Purchase

Sheet Tab 3b Accumulation Curve
B1: Timeline
C2: Period | F2: Driver | G2: Driver | H2: Sum | J2: =_xlfn.SEQUENCE(,50) -> 1 | K2: 2 | L2: 3 | M2: 4 | N2: 5 | O2: 6 | P2: 7 | Q2: 8 | R2: 9 | S2: 10 | T2: 11 | U2: 12 | V2: 13 | W2: 14 | X2: 15 | Y2: 16 | Z2: 17 | AA2: 18 | AB2: 19 | AC2: 20 | AD2: 21 | AE2: 22 | AF2: 23 | AG2: 24 | AH2: 25 | AI2: 26 | AJ2: 27 | AK2: 28 | AL2: 29 | AM2: 30 | AN2: 31 | AO2: 32 | AP2: 33 | AQ2: 34 | AR2: 35 | AS2: 36 | AT2: 37 | AU2: 38 | AV2: 39 | AW2: 40 | AX2: 41 | AY2: 42 | AZ2: 43 | BA2: 44 | BB2: 45 | BC2: 46 | BD2: 47 | BE2: 48 | BF2: 49 | BG2: 50
C3: Date | E3: date | J3: ='Tab 1 - Assumptions'!F8 -> 2025-12-31 | K3: =EOMONTH(J3,1) -> 2026-01-31 | L3: =EOMONTH(K3,1) -> 2026-02-28 | M3: 2026-03-31 | N3: 2026-04-30 | O3: 2026-05-31 | P3: 2026-06-30 | Q3: 2026-07-31 | R3: 2026-08-31 | S3: 2026-09-30 | T3: 2026-10-31 | U3: 2026-11-30 | V3: 2026-12-31 | W3: 2027-01-31 | X3: 2027-02-28 | Y3: 2027-03-31 | Z3: 2027-04-30 | AA3: 2027-05-31 | AB3: 2027-06-30 | AC3: 2027-07-31 | AD3: 2027-08-31 | AE3: 2027-09-30 | AF3: 2027-10-31 | AG3: 2027-11-30 | AH3: 2027-12-31 | AI3: 2028-01-31 | AJ3: 2028-02-29 | AK3: 2028-03-31 | AL3: 2028-04-30 | AM3: 2028-05-31 | AN3: 2028-06-30 | AO3: 2028-07-31 | AP3: 2028-08-31 | AQ3: 2028-09-30 | AR3: 2028-10-31 | AS3: 2028-11-30 | AT3: 2028-12-31 | AU3: 2029-01-31 | AV3: 2029-02-28 | AW3: 2029-03-31 | AX3: 2029-04-30 | AY3: 2029-05-31 | AZ3: 2029-06-30 | BA3: 2029-07-31 | BB3: 2029-08-31 | BC3: 2029-09-30 | BD3: 2029-10-31 | BE3: 2029-11-30 | BF3: 2029-12-31 | BG3: 2030-01-31 | BH3: 2030-02-28 | BI3: 2030-03-31 | BJ3: 2030-04-30 | BK3: 2030-05-31 | BL3: 2030-06-30 | BM3: 2030-07-31 | BN3: 2030-08-31 | BO3: 2030-09-30 | BP3: 2030-10-31 | BQ3: 2030-11-30 | BR3: 2030-12-31 | BS3: 2031-01-31 | BT3: 2031-02-28 | BU3: 2031-03-31 | BV3: 2031-04-30 | BW3: 2031-05-31 | BX3: =EOMONTH(BW3,1) -> 2031-06-30 | BY3: 2031-07-31 | BZ3: 2031-08-31 | CA3: 2031-09-30 | CB3: 2031-10-31 | CC3: 2031-11-30 | CD3: 2031-12-31 | CE3: 2032-01-31 | CF3: 2032-02-29 | CG3: 2032-03-31 | CH3: 2032-04-30 | CI3: 2032-05-31 | CJ3: 2032-06-30 | CK3: 2032-07-31 | CL3: 2032-08-31 | CM3: 2032-09-30 | CN3: 2032-10-31 | CO3: 2032-11-30 | CP3: 2032-12-31 | CQ3: 2033-01-31 | CR3: 2033-02-28 | CS3: 2033-03-31 | CT3: 2033-04-30 | CU3: 2033-05-31 | CV3: 2033-06-30 | CW3: 2033-07-31 | CX3: 2033-08-31 | CY3: 2033-09-30 | CZ3: 2033-10-31 | DA3: 2033-11-30 | DB3: 2033-12-31 | DC3: 2034-01-31 | DD3: 2034-02-28 | DE3: 2034-03-31 | DF3: 2034-04-30 | DG3: 2034-05-31 | DH3: 2034-06-30 | DI3: 2034-07-31 | DJ3: 2034-08-31 | DK3: 2034-09-30 | DL3: 2034-10-31 | DM3: 2034-11-30 | DN3: 2034-12-31 | DO3: 2035-01-31 | DP3: 2035-02-28 | DQ3: 2035-03-31 | DR3: 2035-04-30 | DS3: 2035-05-31
C4: Debt Acquisition | E4: Flag | F4: ='Tab 1 - Assumptions'!$F$8 -> 2025-12-31 | H4: =SUM(J4:XFD4) -> 1 | J4: =(J3=$F$4)*1 -> 1 | K4: =(K3=$F$4)*1 -> 0 | L4: 0 | M4: 0 | N4: 0 | O4: 0 | P4: 0 | Q4: 0 | R4: 0 | S4: 0 | T4: 0 | U4: 0 | V4: 0 | W4: 0 | X4: 0 | Y4: 0 | Z4: 0 | AA4: 0 | AB4: 0 | AC4: 0 | AD4: 0 | AE4: 0 | AF4: 0 | AG4: 0 | AH4: 0 | AI4: 0 | AJ4: 0 | AK4: 0 | AL4: 0 | AM4: 0 | AN4: 0 | AO4: 0 | AP4: 0 | AQ4: 0 | AR4: 0 | AS4: 0 | AT4: 0 | AU4: 0 | AV4: 0 | AW4: 0 | AX4: 0 | AY4: 0 | AZ4: 0 | BA4: 0 | BB4: 0 | BC4: 0 | BD4: 0 | BE4: 0 | BF4: 0 | BG4: 0 | BH4: 0 | BI4: 0 | BJ4: 0 | BK4: 0 | BL4: 0 | BM4: 0 | BN4: 0 | BO4: 0 | BP4: 0 | BQ4: 0 | BR4: 0 | BS4: 0 | BT4: 0 | BU4: 0 | BV4: 0 | BW4: =(BW3=$F$4)*1 -> 0 | BX4: 0 | BY4: 0 | BZ4: 0 | CA4: 0 | CB4: 0 | CC4: 0 | CD4: 0 | CE4: 0 | CF4: 0 | CG4: 0 | CH4: 0 | CI4: 0 | CJ4: 0 | CK4: 0 | CL4: 0 | CM4: 0 | CN4: 0 | CO4: 0 | CP4: 0 | CQ4: 0 | CR4: 0 | CS4: 0 | CT4: 0 | CU4: 0 | CV4: 0 | CW4: 0 | CX4: 0 | CY4: 0 | CZ4: 0 | DA4: 0 | DB4: 0 | DC4: 0 | DD4: 0 | DE4: 0 | DF4: 0 | DG4: 0 | DH4: 0 | DI4: 0 | DJ4: 0 | DK4: 0 | DL4: 0 | DM4: 0 | DN4: 0 | DO4: 0 | DP4: 0 | DQ4: 0 | DR4: 0 | DS4: 0
C5: Enforcement Period | E5: Flag | F5: ='Tab 1 - Assumptions'!$F$14 -> 2026-02-28 | G5: ='Tab 1 - Assumptions'!$F$15 -> 2026-02-28 | H5: =SUM(J5:XFD5) -> 1 | J5: =(AND(J$3>=$F5,J$3<=$G5))*1 -> 0 | K5: =(AND(K3>=$F$5,K3<=$G$5))*1 -> 0 | L5: 1 | M5: 0 | N5: 0 | O5: 0 | P5: 0 | Q5: 0 | R5: 0 | S5: 0 | T5: 0 | U5: 0 | V5: 0 | W5: 0 | X5: 0 | Y5: 0 | Z5: 0 | AA5: 0 | AB5: 0 | AC5: 0 | AD5: 0 | AE5: 0 | AF5: 0 | AG5: 0 | AH5: 0 | AI5: 0 | AJ5: 0 | AK5: 0 | AL5: 0 | AM5: 0 | AN5: 0 | AO5: 0 | AP5: 0 | AQ5: 0 | AR5: 0 | AS5: 0 | AT5: 0 | AU5: 0 | AV5: 0 | AW5: 0 | AX5: 0 | AY5: 0 | AZ5: 0 | BA5: 0 | BB5: 0 | BC5: 0 | BD5: 0 | BE5: 0 | BF5: 0 | BG5: 0 | BH5: 0 | BI5: 0 | BJ5: 0 | BK5: 0 | BL5: 0 | BM5: 0 | BN5: 0 | BO5: 0 | BP5: 0 | BQ5: 0 | BR5: 0 | BS5: 0 | BT5: 0 | BU5: 0 | BV5: 0 | BW5: =(AND(BW3>=$F$5,BW3<=$G$5))*1 -> 0 | BX5: 0 | BY5: 0 | BZ5: 0 | CA5: 0 | CB5: 0 | CC5: 0 | CD5: 0 | CE5: 0 | CF5: 0 | CG5: 0 | CH5: 0 | CI5: 0 | CJ5: 0 | CK5: 0 | CL5: 0 | CM5: 0 | CN5: 0 | CO5: 0 | CP5: 0 | CQ5: 0 | CR5: 0 | CS5: 0 | CT5: 0 | CU5: 0 | CV5: 0 | CW5: 0 | CX5: 0 | CY5: 0 | CZ5: 0 | DA5: 0 | DB5: 0 | DC5: 0 | DD5: 0 | DE5: 0 | DF5: 0 | DG5: 0 | DH5: 0 | DI5: 0 | DJ5: 0 | DK5: 0 | DL5: 0 | DM5: 0 | DN5: 0 | DO5: 0 | DP5: 0 | DQ5: 0 | DR5: 0 | DS5: 0
C6: Accumulate Period | E6: Flag | F6: ='Tab 1 - Assumptions'!$F$21 -> 2026-02-28 | G6: ='Tab 1 - Assumptions'!F26 -> 2026-07-31 | H6: =SUM(J6:XFD6) -> 6 | J6: =(AND(J$3>=$F6,J$3<=$G6))*1 -> 0 | K6: =(AND(K$3>=$F6,K$3<=$G6))*1 -> 0 | L6: 1 | M6: 1 | N6: 1 | O6: 1 | P6: 1 | Q6: 1 | R6: 0 | S6: 0 | T6: 0 | U6: 0 | V6: 0 | W6: 0 | X6: 0 | Y6: 0 | Z6: 0 | AA6: 0 | AB6: 0 | AC6: 0 | AD6: 0 | AE6: 0 | AF6: 0 | AG6: 0 | AH6: 0 | AI6: 0 | AJ6: 0 | AK6: 0 | AL6: 0 | AM6: 0 | AN6: 0 | AO6: =(AND(AO$3>=$F6,AO$3<=$G6))*1 -> 0 | AP6: 0 | AQ6: 0 | AR6: 0 | AS6: 0 | AT6: 0 | AU6: 0 | AV6: 0 | AW6: 0 | AX6: 0 | AY6: 0 | AZ6: 0 | BA6: 0 | BB6: 0 | BC6: 0 | BD6: 0 | BE6: 0 | BF6: 0 | BG6: 0 | BH6: 0 | BI6: =(AND(BI$3>=$F6,BI$3<=$G6))*1 -> 0 | BJ6: 0 | BK6: 0 | BL6: 0 | BM6: 0 | BN6: 0 | BO6: 0 | BP6: 0 | BQ6: 0 | BR6: 0 | BS6: 0 | BT6: 0 | BU6: 0 | BV6: 0 | BW6: 0 | BX6: 0 | BY6: 0 | BZ6: 0 | CA6: 0 | CB6: 0 | CC6: 0 | CD6: =(AND(CD$3>=$F6,CD$3<=$G6))*1 -> 0 | CE6: 0 | CF6: 0 | CG6: 0 | CH6: 0 | CI6: 0 | CJ6: 0 | CK6: 0 | CL6: 0 | CM6: 0 | CN6: 0 | CO6: 0 | CP6: 0 | CQ6: 0 | CR6: 0 | CS6: 0 | CT6: 0 | CU6: 0 | CV6: 0 | CW6: 0 | CX6: 0 | CY6: 0 | CZ6: 0 | DA6: 0 | DB6: 0 | DC6: 0 | DD6: 0 | DE6: 0 | DF6: 0 | DG6: 0 | DH6: 0 | DI6: 0 | DJ6: 0 | DK6: 0 | DL6: 0 | DM6: 0 | DN6: 0 | DO6: 0 | DP6: 0 | DQ6: 0 | DR6: 0 | DS6: 0
C7: NCB Holding/Explicit Period | E7: Flag | F7: ='Tab 1 - Assumptions'!$F$29 -> 2026-07-31 | G7: ='Tab 1 - Assumptions'!$F$35 -> 2031-07-31 | H7: =SUM(J7:XFD7) -> 61 | J7: =(AND(J$3>=$F7,J$3<=$G7))*1 -> 0 | K7: 0 | L7: 0 | M7: 0 | N7: 0 | O7: 0 | P7: 0 | Q7: 1 | R7: 1 | S7: 1 | T7: 1 | U7: 1 | V7: 1 | W7: 1 | X7: 1 | Y7: 1 | Z7: 1 | AA7: 1 | AB7: 1 | AC7: 1 | AD7: 1 | AE7: 1 | AF7: 1 | AG7: 1 | AH7: 1 | AI7: 1 | AJ7: 1 | AK7: 1 | AL7: 1 | AM7: 1 | AN7: 1 | AO7: 1 | AP7: 1 | AQ7: 1 | AR7: 1 | AS7: 1 | AT7: 1 | AU7: 1 | AV7: 1 | AW7: 1 | AX7: 1 | AY7: 1 | AZ7: 1 | BA7: 1 | BB7: 1 | BC7: 1 | BD7: 1 | BE7: 1 | BF7: 1 | BG7: 1 | BH7: 1 | BI7: 1 | BJ7: 1 | BK7: 1 | BL7: 1 | BM7: 1 | BN7: 1 | BO7: 1 | BP7: 1 | BQ7: 1 | BR7: 1 | BS7: 1 | BT7: 1 | BU7: 1 | BV7: 1 | BW7: 1 | BX7: 1 | BY7: 1 | BZ7: 0 | CA7: 0 | CB7: 0 | CC7: 0 | CD7: 0 | CE7: 0 | CF7: 0 | CG7: 0 | CH7: 0 | CI7: 0 | CJ7: 0 | CK7: 0 | CL7: 0 | CM7: 0 | CN7: 0 | CO7: 0 | CP7: 0 | CQ7: 0 | CR7: 0 | CS7: 0 | CT7: 0 | CU7: 0 | CV7: 0 | CW7: 0 | CX7: 0 | CY7: 0 | CZ7: 0 | DA7: 0 | DB7: 0 | DC7: 0 | DD7: 0 | DE7: 0 | DF7: 0 | DG7: 0 | DH7: 0 | DI7: 0 | DJ7: 0 | DK7: 0 | DL7: 0 | DM7: 0 | DN7: 0 | DO7: 0 | DP7: 0 | DQ7: 0 | DR7: 0 | DS7: 0
C8: NCB Exit/Terminal Period | E8: Flag | F8: ='Tab 1 - Assumptions'!F35 -> 2031-07-31 | J8: =(J$3=$F8)*1 -> 0 | K8: =(K$3=$F8)*1 -> 0 | L8: 0 | M8: 0 | N8: 0 | O8: 0 | P8: 0 | Q8: 0 | R8: 0 | S8: 0 | T8: 0 | U8: 0 | V8: 0 | W8: 0 | X8: 0 | Y8: 0 | Z8: 0 | AA8: 0 | AB8: 0 | AC8: 0 | AD8: 0 | AE8: 0 | AF8: 0 | AG8: 0 | AH8: 0 | AI8: 0 | AJ8: 0 | AK8: 0 | AL8: 0 | AM8: 0 | AN8: 0 | AO8: 0 | AP8: 0 | AQ8: 0 | AR8: 0 | AS8: 0 | AT8: 0 | AU8: 0 | AV8: 0 | AW8: 0 | AX8: 0 | AY8: 0 | AZ8: 0 | BA8: 0 | BB8: 0 | BC8: 0 | BD8: 0 | BE8: 0 | BF8: 0 | BG8: 0 | BH8: 0 | BI8: 0 | BJ8: 0 | BK8: 0 | BL8: 0 | BM8: 0 | BN8: 0 | BO8: 0 | BP8: 0 | BQ8: 0 | BR8: 0 | BS8: 0 | BT8: 0 | BU8: 0 | BV8: 0 | BW8: =(BW$3=$F8)*1 -> 0 | BX8: 0 | BY8: 1 | BZ8: 0 | CA8: 0 | CB8: 0 | CC8: 0 | CD8: 0 | CE8: 0 | CF8: 0 | CG8: 0 | CH8: 0 | CI8: 0 | CJ8: 0 | CK8: 0 | CL8: 0 | CM8: 0 | CN8: 0 | CO8: 0 | CP8: 0 | CQ8: 0 | CR8: 0 | CS8: 0 | CT8: 0 | CU8: 0 | CV8: 0 | CW8: 0 | CX8: 0 | CY8: 0 | CZ8: 0 | DA8: 0 | DB8: 0 | DC8: 0 | DD8: 0 | DE8: 0 | DF8: 0 | DG8: 0 | DH8: 0 | DI8: 0 | DJ8: 0 | DK8: 0 | DL8: 0 | DM8: 0 | DN8: 0 | DO8: 0 | DP8: 0 | DQ8: 0 | DR8: 0 | DS8: 0
B10: Accumulation Table | F10: Model Start | G10: Accumulation Start | H10: Accumulation End
C11: Accumulation Start and End | F11: =F4 -> 2025-12-31 | G11: =F6 -> 2026-02-28 | H11: =G6 -> 2026-07-31
C12: Shares | E12: Number | F12: =G12 -> 1039955477 | G12: ='Tab 1 - Assumptions'!F112 -> 1039955477 | H12: ='Tab 1 - Assumptions'!F121 -> 1233435566
C13: Percent Purchased | E13: % | F13: ='Tab 1 - Assumptions'!F118 -> 0.08
C14: Percent Acquired with Debt Pledge | E14: % | F14: ='Tab 1 - Assumptions'!F111 -> 0.43
C15: Total Target for Full Control | E15: % | F15: ='Tab 1 - Assumptions'!F117 -> 0.51
J16: =IF(J3<=$H$11,J3,NA()) -> 2025-12-31 | K16: 2026-01-31 | L16: 2026-02-28 | M16: 2026-03-31 | N16: 2026-04-30 | O16: 2026-05-31 | P16: 2026-06-30 | Q16: 2026-07-31 | AP16: =IF(AP3<=$H$11,AP3,NA()) ->  | BV16: =IF(BV3<=$H$11,BV3,NA()) ->  | DB16: =IF(DB3<=$H$11,DB3,NA()) -> 
C17: Shares Interpolated | E17: Shares | J17: =interpolate_look_up(J3,11:11,12:12) -> 1039955477 | K17: =interpolate_look_up(K3,11:11,12:12) -> 1039955477 | L17: =interpolate_look_up(L3,11:11,12:12) -> 1039955477 | M17: =interpolate_look_up(M3,11:11,12:12) -> 1076536652 | N17: =interpolate_look_up(N3,11:11,12:12) -> 1113162506 | O17: =interpolate_look_up(O3,11:11,12:12) -> 1152318790 | P17: =interpolate_look_up(P3,11:11,12:12) -> 1191522898 | Q17: =interpolate_look_up(Q3,11:11,12:12) -> 1233435566 | R17: =interpolate_look_up(R3,11:11,12:12) -> 1233435566 | S17: =interpolate_look_up(S3,11:11,12:12) -> 1233435566 | T17: =interpolate_look_up(T3,11:11,12:12) -> 1233435566 | U17: =interpolate_look_up(U3,11:11,12:12) -> 1233435566 | V17: =interpolate_look_up(V3,11:11,12:12) -> 1233435566 | W17: =interpolate_look_up(W3,11:11,12:12) -> 1233435566 | X17: =interpolate_look_up(X3,11:11,12:12) -> 1233435566 | Y17: =interpolate_look_up(Y3,11:11,12:12) -> 1233435566 | Z17: =interpolate_look_up(Z3,11:11,12:12) -> 1233435566 | AA17: =interpolate_look_up(AA3,11:11,12:12) -> 1233435566 | AB17: =interpolate_look_up(AB3,11:11,12:12) -> 1233435566 | AC17: =interpolate_look_up(AC3,11:11,12:12) -> 1233435566 | AD17: =interpolate_look_up(AD3,11:11,12:12) -> 1233435566 | AE17: =interpolate_look_up(AE3,11:11,12:12) -> 1233435566 | AF17: =interpolate_look_up(AF3,11:11,12:12) -> 1233435566 | AG17: =interpolate_look_up(AG3,11:11,12:12) -> 1233435566 | AH17: =interpolate_look_up(AH3,11:11,12:12) -> 1233435566 | AI17: =interpolate_look_up(AI3,11:11,12:12) -> 1233435566 | AJ17: =interpolate_look_up(AJ3,11:11,12:12) -> 1233435566 | AK17: =interpolate_look_up(AK3,11:11,12:12) -> 1233435566 | AL17: =interpolate_look_up(AL3,11:11,12:12) -> 1233435566 | AM17: =interpolate_look_up(AM3,11:11,12:12) -> 1233435566 | AN17: =interpolate_look_up(AN3,11:11,12:12) -> 1233435566 | AO17: =interpolate_look_up(AO3,11:11,12:12) -> 1233435566 | AP17: =interpolate_look_up(AP3,11:11,12:12) -> 1233435566 | AQ17: =interpolate_look_up(AQ3,11:11,12:12) -> 1233435566 | AR17: =interpolate_look_up(AR3,11:11,12:12) -> 1233435566 | AS17: =interpolate_look_up(AS3,11:11,12:12) -> 1233435566 | AT17: =interpolate_look_up(AT3,11:11,12:12) -> 1233435566 | AU17: =interpolate_look_up(AU3,11:11,12:12) -> 1233435566 | AV17: =interpolate_look_up(AV3,11:11,12:12) -> 1233435566 | AW17: =interpolate_look_up(AW3,11:11,12:12) -> 1233435566 | AX17: =interpolate_look_up(AX3,11:11,12:12) -> 1233435566 | AY17: =interpolate_look_up(AY3,11:11,12:12) -> 1233435566 | AZ17: =interpolate_look_up(AZ3,11:11,12:12) -> 1233435566 | BA17: =interpolate_look_up(BA3,11:11,12:12) -> 1233435566 | BB17: =interpolate_look_up(BB3,11:11,12:12) -> 1233435566 | BC17: =interpolate_look_up(BC3,11:11,12:12) -> 1233435566 | BD17: =interpolate_look_up(BD3,11:11,12:12) -> 1233435566 | BE17: =interpolate_look_up(BE3,11:11,12:12) -> 1233435566 | BF17: =interpolate_look_up(BF3,11:11,12:12) -> 1233435566 | BG17: =interpolate_look_up(BG3,11:11,12:12) -> 1233435566 | BH17: =interpolate_look_up(BH3,11:11,12:12) -> 1233435566 | BI17: =interpolate_look_up(BI3,11:11,12:12) -> 1233435566 | BJ17: =interpolate_look_up(BJ3,11:11,12:12) -> 1233435566 | BK17: =interpolate_look_up(BK3,11:11,12:12) -> 1233435566 | BL17: =interpolate_look_up(BL3,11:11,12:12) -> 1233435566 | BM17: =interpolate_look_up(BM3,11:11,12:12) -> 1233435566 | BN17: =interpolate_look_up(BN3,11:11,12:12) -> 1233435566 | BO17: =interpolate_look_up(BO3,11:11,12:12) -> 1233435566 | BP17: =interpolate_look_up(BP3,11:11,12:12) -> 1233435566 | BQ17: =interpolate_look_up(BQ3,11:11,12:12) -> 1233435566 | BR17: =interpolate_look_up(BR3,11:11,12:12) -> 1233435566 | BS17: =interpolate_look_up(BS3,11:11,12:12) -> 1233435566 | BT17: =interpolate_look_up(BT3,11:11,12:12) -> 1233435566 | BU17: =interpolate_look_up(BU3,11:11,12:12) -> 1233435566 | BV17: =interpolate_look_up(BV3,11:11,12:12) -> 1233435566 | BW17: =interpolate_look_up(BW3,11:11,12:12) -> 1233435566 | BX17: =interpolate_look_up(BX3,11:11,12:12) -> 1233435566 | BY17: =interpolate_look_up(BY3,11:11,12:12) -> 1233435566 | BZ17: =interpolate_look_up(BZ3,11:11,12:12) -> 1233435566 | CA17: =interpolate_look_up(CA3,11:11,12:12) -> 1233435566 | CB17: =interpolate_look_up(CB3,11:11,12:12) -> 1233435566 | CC17: =interpolate_look_up(CC3,11:11,12:12) -> 1233435566 | CD17: =interpolate_look_up(CD3,11:11,12:12) -> 1233435566 | CE17: =interpolate_look_up(CE3,11:11,12:12) -> 1233435566 | CF17: =interpolate_look_up(CF3,11:11,12:12) -> 1233435566 | CG17: =interpolate_look_up(CG3,11:11,12:12) -> 1233435566 | CH17: =interpolate_look_up(CH3,11:11,12:12) -> 1233435566 | CI17: =interpolate_look_up(CI3,11:11,12:12) -> 1233435566 | CJ17: =interpolate_look_up(CJ3,11:11,12:12) -> 1233435566 | CK17: =interpolate_look_up(CK3,11:11,12:12) -> 1233435566 | CL17: =interpolate_look_up(CL3,11:11,12:12) -> 1233435566 | CM17: =interpolate_look_up(CM3,11:11,12:12) -> 1233435566 | CN17: =interpolate_look_up(CN3,11:11,12:12) -> 1233435566 | CO17: =interpolate_look_up(CO3,11:11,12:12) -> 1233435566 | CP17: =interpolate_look_up(CP3,11:11,12:12) -> 1233435566 | CQ17: =interpolate_look_up(CQ3,11:11,12:12) -> 1233435566 | CR17: =interpolate_look_up(CR3,11:11,12:12) -> 1233435566 | CS17: =interpolate_look_up(CS3,11:11,12:12) -> 1233435566 | CT17: =interpolate_look_up(CT3,11:11,12:12) -> 1233435566 | CU17: =interpolate_look_up(CU3,11:11,12:12) -> 1233435566 | CV17: =interpolate_look_up(CV3,11:11,12:12) -> 1233435566 | CW17: =interpolate_look_up(CW3,11:11,12:12) -> 1233435566 | CX17: =interpolate_look_up(CX3,11:11,12:12) -> 1233435566 | CY17: =interpolate_look_up(CY3,11:11,12:12) -> 1233435566 | CZ17: =interpolate_look_up(CZ3,11:11,12:12) -> 1233435566 | DA17: =interpolate_look_up(DA3,11:11,12:12) -> 1233435566 | DB17: =interpolate_look_up(DB3,11:11,12:12) -> 1233435566 | DC17: =interpolate_look_up(DC3,11:11,12:12) -> 1233435566 | DD17: =interpolate_look_up(DD3,11:11,12:12) -> 1233435566 | DE17: =interpolate_look_up(DE3,11:11,12:12) -> 1233435566 | DF17: =interpolate_look_up(DF3,11:11,12:12) -> 1233435566 | DG17: =interpolate_look_up(DG3,11:11,12:12) -> 1233435566 | DH17: =interpolate_look_up(DH3,11:11,12:12) -> 1233435566 | DI17: =interpolate_look_up(DI3,11:11,12:12) -> 1233435566 | DJ17: =interpolate_look_up(DJ3,11:11,12:12) -> 1233435566 | DK17: =interpolate_look_up(DK3,11:11,12:12) -> 1233435566 | DL17: =interpolate_look_up(DL3,11:11,12:12) -> 1233435566 | DM17: =interpolate_look_up(DM3,11:11,12:12) -> 1233435566 | DN17: =interpolate_look_up(DN3,11:11,12:12) -> 1233435566 | DO17: =interpolate_look_up(DO3,11:11,12:12) -> 1233435566 | DP17: =interpolate_look_up(DP3,11:11,12:12) -> 1233435566 | DQ17: =interpolate_look_up(DQ3,11:11,12:12) -> 1233435566 | DR17: =interpolate_look_up(DR3,11:11,12:12) -> 1233435566 | DS17: =interpolate_look_up(DS3,11:11,12:12) -> 1233435566
C18: Price without Premium | E18: USD/Share | F18: ='Tab 1 - Assumptions'!F107 -> 0.26 | J18: =$F$18 -> 0.26 | K18: =$F$18 -> 0.26 | L18: 0.26 | M18: 0.26 | N18: 0.26 | O18: 0.26 | P18: 0.26 | Q18: 0.26 | R18: 0.26 | S18: 0.26 | T18: 0.26 | U18: 0.26 | V18: 0.26 | W18: 0.26 | X18: 0.26 | Y18: 0.26 | Z18: 0.26 | AA18: 0.26 | AB18: 0.26 | AC18: 0.26 | AD18: 0.26 | AE18: 0.26 | AF18: 0.26 | AG18: 0.26 | AH18: 0.26 | AI18: 0.26 | AJ18: 0.26 | AK18: 0.26 | AL18: 0.26 | AM18: 0.26 | AN18: 0.26 | AO18: 0.26 | AP18: 0.26 | AQ18: 0.26 | AR18: 0.26 | AS18: 0.26 | AT18: 0.26 | AU18: 0.26 | AV18: 0.26 | AW18: 0.26 | AX18: 0.26 | AY18: 0.26 | AZ18: 0.26 | BA18: 0.26 | BB18: 0.26 | BC18: 0.26 | BD18: 0.26 | BE18: 0.26 | BF18: 0.26 | BG18: 0.26 | BH18: 0.26 | BI18: 0.26 | BJ18: 0.26 | BK18: 0.26 | BL18: 0.26 | BM18: 0.26 | BN18: 0.26 | BO18: 0.26 | BP18: 0.26 | BQ18: 0.26 | BR18: 0.26 | BS18: 0.26 | BT18: 0.26 | BU18: 0.26 | BV18: 0.26 | BW18: =$F$18 -> 0.26 | BX18: 0.26 | BY18: 0.26 | BZ18: 0.26 | CA18: 0.26 | CB18: 0.26 | CC18: 0.26 | CD18: 0.26 | CE18: 0.26 | CF18: 0.26 | CG18: 0.26 | CH18: 0.26 | CI18: 0.26 | CJ18: 0.26 | CK18: 0.26 | CL18: 0.26 | CM18: 0.26 | CN18: 0.26 | CO18: 0.26 | CP18: 0.26 | CQ18: 0.26 | CR18: 0.26 | CS18: 0.26 | CT18: 0.26 | CU18: 0.26 | CV18: 0.26 | CW18: 0.26 | CX18: 0.26 | CY18: 0.26 | CZ18: 0.26 | DA18: 0.26 | DB18: 0.26 | DC18: 0.26 | DD18: 0.26 | DE18: 0.26 | DF18: 0.26 | DG18: 0.26 | DH18: 0.26 | DI18: 0.26 | DJ18: 0.26 | DK18: 0.26 | DL18: 0.26 | DM18: 0.26 | DN18: 0.26 | DO18: 0.26 | DP18: 0.26 | DQ18: 0.26 | DR18: 0.26 | DS18: 0.26
C19: Price with Premium | E19: USD/Share | F19: ='Tab 1 - Assumptions'!F123 -> 0 | J19: =J18*(1+$F19) -> 0.26 | K19: =K18*(1+$F19) -> 0.26 | L19: 0.26 | M19: 0.26 | N19: 0.26 | O19: 0.26 | P19: 0.26 | Q19: 0.26 | R19: 0.26 | S19: 0.26 | T19: 0.26 | U19: 0.26 | V19: 0.26 | W19: 0.26 | X19: 0.26 | Y19: 0.26 | Z19: 0.26 | AA19: 0.26 | AB19: 0.26 | AC19: 0.26 | AD19: 0.26 | AE19: 0.26 | AF19: 0.26 | AG19: 0.26 | AH19: 0.26 | AI19: 0.26 | AJ19: 0.26 | AK19: 0.26 | AL19: 0.26 | AM19: 0.26 | AN19: 0.26 | AO19: 0.26 | AP19: 0.26 | AQ19: 0.26 | AR19: 0.26 | AS19: 0.26 | AT19: 0.26 | AU19: 0.26 | AV19: 0.26 | AW19: 0.26 | AX19: 0.26 | AY19: 0.26 | AZ19: 0.26 | BA19: 0.26 | BB19: 0.26 | BC19: 0.26 | BD19: 0.26 | BE19: 0.26 | BF19: 0.26 | BG19: 0.26 | BH19: 0.26 | BI19: 0.26 | BJ19: 0.26 | BK19: 0.26 | BL19: 0.26 | BM19: 0.26 | BN19: 0.26 | BO19: 0.26 | BP19: 0.26 | BQ19: 0.26 | BR19: 0.26 | BS19: 0.26 | BT19: 0.26 | BU19: 0.26 | BV19: 0.26 | BW19: =BW18*(1+$F19) -> 0.26 | BX19: 0.26 | BY19: 0.26 | BZ19: 0.26 | CA19: 0.26 | CB19: 0.26 | CC19: 0.26 | CD19: 0.26 | CE19: 0.26 | CF19: 0.26 | CG19: 0.26 | CH19: 0.26 | CI19: 0.26 | CJ19: 0.26 | CK19: 0.26 | CL19: 0.26 | CM19: 0.26 | CN19: 0.26 | CO19: 0.26 | CP19: 0.26 | CQ19: 0.26 | CR19: 0.26 | CS19: 0.26 | CT19: 0.26 | CU19: 0.26 | CV19: 0.26 | CW19: 0.26 | CX19: 0.26 | CY19: 0.26 | CZ19: 0.26 | DA19: 0.26 | DB19: 0.26 | DC19: 0.26 | DD19: 0.26 | DE19: 0.26 | DF19: 0.26 | DG19: 0.26 | DH19: 0.26 | DI19: 0.26 | DJ19: 0.26 | DK19: 0.26 | DL19: 0.26 | DM19: 0.26 | DN19: 0.26 | DO19: 0.26 | DP19: 0.26 | DQ19: 0.26 | DR19: 0.26 | DS19: 0.26
C20: Start of Accumulation Period | E20: Flag | F20: =F6 -> 2026-02-28 | J20: =(J3=$F$20)*1 -> 0 | K20: 0 | L20: 1 | M20: 0 | N20: 0 | O20: 0 | P20: 0 | Q20: 0 | R20: 0 | S20: 0 | T20: 0 | U20: 0 | V20: 0 | W20: 0 | X20: 0 | Y20: 0 | Z20: 0 | AA20: 0 | AB20: 0 | AC20: 0 | AD20: 0 | AE20: 0 | AF20: 0 | AG20: 0 | AH20: 0 | AI20: 0 | AJ20: 0 | AK20: 0 | AL20: 0 | AM20: 0 | AN20: 0 | AO20: 0 | AP20: =(AP3=$F$20)*1 -> 0 | AQ20: 0 | AR20: 0 | AS20: 0 | AT20: 0 | AU20: 0 | AV20: 0 | AW20: 0 | AX20: 0 | AY20: 0 | AZ20: 0 | BA20: 0 | BB20: 0 | BC20: 0 | BD20: 0 | BE20: 0 | BF20: 0 | BG20: 0 | BH20: 0 | BI20: 0 | BJ20: 0 | BK20: 0 | BL20: 0 | BM20: 0 | BN20: 0 | BO20: 0 | BP20: 0 | BQ20: 0 | BR20: 0 | BS20: 0 | BT20: 0 | BU20: 0 | BV20: =(BV3=$F$20)*1 -> 0 | BW20: 0 | BX20: 0 | BY20: 0 | BZ20: 0 | CA20: 0 | CB20: 0 | CC20: 0 | CD20: 0 | CE20: 0 | CF20: 0 | CG20: 0 | CH20: 0 | CI20: 0 | CJ20: 0 | CK20: 0 | CL20: 0 | CM20: 0 | CN20: 0 | CO20: 0 | CP20: 0 | CQ20: 0 | CR20: 0 | CS20: 0 | CT20: 0 | CU20: 0 | CV20: 0 | CW20: 0 | CX20: 0 | CY20: 0 | CZ20: 0 | DA20: 0 | DB20: =(DB3=$F$20)*1 -> 0 | DC20: 0 | DD20: 0 | DE20: 0 | DF20: 0 | DG20: 0 | DH20: 0 | DI20: 0 | DJ20: 0 | DK20: 0 | DL20: 0 | DM20: 0 | DN20: 0 | DO20: 0 | DP20: 0 | DQ20: 0 | DR20: 0 | DS20: 0
C21: Value at Start of Accumulation | E21: USD | J21: =J18*J17*J20 -> 0 | K21: =K18*K17*K20 -> 0 | L21: 270388424 | M21: 0 | N21: 0 | O21: 0 | P21: 0 | Q21: 0 | R21: 0 | S21: 0 | T21: 0 | U21: 0 | V21: 0 | W21: 0 | X21: 0 | Y21: 0 | Z21: 0 | AA21: 0 | AB21: 0 | AC21: 0 | AD21: 0 | AE21: 0 | AF21: 0 | AG21: 0 | AH21: 0 | AI21: 0 | AJ21: 0 | AK21: 0 | AL21: 0 | AM21: 0 | AN21: 0 | AO21: 0 | AP21: 0 | AQ21: 0 | AR21: 0 | AS21: 0 | AT21: 0 | AU21: 0 | AV21: 0 | AW21: 0 | AX21: 0 | AY21: 0 | AZ21: 0 | BA21: 0 | BB21: 0 | BC21: 0 | BD21: 0 | BE21: 0 | BF21: 0 | BG21: 0 | BH21: 0 | BI21: 0 | BJ21: 0 | BK21: 0 | BL21: 0 | BM21: 0 | BN21: 0 | BO21: 0 | BP21: 0 | BQ21: 0 | BR21: 0 | BS21: 0 | BT21: 0 | BU21: 0 | BV21: 0 | BW21: =BW18*BW17*BW20 -> 0 | BX21: 0 | BY21: 0 | BZ21: 0 | CA21: 0 | CB21: 0 | CC21: 0 | CD21: 0 | CE21: 0 | CF21: 0 | CG21: 0 | CH21: 0 | CI21: 0 | CJ21: 0 | CK21: 0 | CL21: 0 | CM21: 0 | CN21: 0 | CO21: 0 | CP21: 0 | CQ21: 0 | CR21: 0 | CS21: 0 | CT21: 0 | CU21: 0 | CV21: 0 | CW21: 0 | CX21: 0 | CY21: 0 | CZ21: 0 | DA21: 0 | DB21: 0 | DC21: 0 | DD21: 0 | DE21: 0 | DF21: 0 | DG21: 0 | DH21: 0 | DI21: 0 | DJ21: 0 | DK21: 0 | DL21: 0 | DM21: 0 | DN21: 0 | DO21: 0 | DP21: 0 | DQ21: 0 | DR21: 0 | DS21: 0
C22: Increase in Shares for Accumulation Period | E22: Shares | J22: =(IF(AND(NOT(J20),J6),J17-I17))*1 -> 0 | K22: 0 | L22: 0 | M22: 36581175.24 | N22: 36625853.48 | O22: 39156284.67 | P22: 39204108 | Q22: 41912667.34 | R22: 0 | S22: 0 | T22: 0 | U22: 0 | V22: 0 | W22: 0 | X22: 0 | Y22: 0 | Z22: 0 | AA22: 0 | AB22: 0 | AC22: 0 | AD22: 0 | AE22: 0 | AF22: 0 | AG22: 0 | AH22: 0 | AI22: 0 | AJ22: 0 | AK22: 0 | AL22: 0 | AM22: 0 | AN22: 0 | AO22: 0 | AP22: =(IF(AND(NOT(AP20),AP6),AP17-AO17))*1 -> 0 | AQ22: 0 | AR22: 0 | AS22: 0 | AT22: 0 | AU22: 0 | AV22: 0 | AW22: 0 | AX22: 0 | AY22: 0 | AZ22: 0 | BA22: 0 | BB22: 0 | BC22: 0 | BD22: 0 | BE22: 0 | BF22: 0 | BG22: 0 | BH22: 0 | BI22: 0 | BJ22: 0 | BK22: 0 | BL22: 0 | BM22: 0 | BN22: 0 | BO22: 0 | BP22: 0 | BQ22: 0 | BR22: 0 | BS22: 0 | BT22: 0 | BU22: 0 | BV22: =(IF(AND(NOT(BV20),BV6),BV17-BU17))*1 -> 0 | BW22: 0 | BX22: 0 | BY22: 0 | BZ22: 0 | CA22: 0 | CB22: 0 | CC22: 0 | CD22: 0 | CE22: 0 | CF22: 0 | CG22: 0 | CH22: 0 | CI22: 0 | CJ22: 0 | CK22: 0 | CL22: 0 | CM22: 0 | CN22: 0 | CO22: 0 | CP22: 0 | CQ22: 0 | CR22: 0 | CS22: 0 | CT22: 0 | CU22: 0 | CV22: 0 | CW22: 0 | CX22: 0 | CY22: 0 | CZ22: 0 | DA22: 0 | DB22: =(IF(AND(NOT(DB20),DB6),DB17-DA17))*1 -> 0 | DC22: 0 | DD22: 0 | DE22: 0 | DF22: 0 | DG22: 0 | DH22: 0 | DI22: 0 | DJ22: 0 | DK22: 0 | DL22: 0 | DM22: 0 | DN22: 0 | DO22: 0 | DP22: 0 | DQ22: 0 | DR22: 0 | DS22: 0
C23: Payment for Increased Shares | E23: USD | H23: =SUM(J23:XFD23) -> 50304823.07 | J23: =J22*J19 -> 0 | K23: =K22*K19 -> 0 | L23: 0 | M23: =M22*M19 -> 9511105.563 | N23: 9522721.904 | O23: 10180634.01 | P23: 10193068.08 | Q23: 10897293.51 | R23: 0 | S23: 0 | T23: 0 | U23: 0 | V23: 0 | W23: 0 | X23: 0 | Y23: 0 | Z23: 0 | AA23: 0 | AB23: 0 | AC23: 0 | AD23: 0 | AE23: 0 | AF23: 0 | AG23: 0 | AH23: 0 | AI23: 0 | AJ23: 0 | AK23: 0 | AL23: 0 | AM23: 0 | AN23: 0 | AO23: 0 | AP23: 0 | AQ23: 0 | AR23: 0 | AS23: 0 | AT23: 0 | AU23: 0 | AV23: 0 | AW23: 0 | AX23: 0 | AY23: 0 | AZ23: 0 | BA23: 0 | BB23: 0 | BC23: 0 | BD23: 0 | BE23: 0 | BF23: 0 | BG23: 0 | BH23: 0 | BI23: 0 | BJ23: 0 | BK23: 0 | BL23: 0 | BM23: 0 | BN23: 0 | BO23: 0 | BP23: 0 | BQ23: 0 | BR23: 0 | BS23: 0 | BT23: 0 | BU23: 0 | BV23: 0 | BW23: =BW22*BW19 -> 0 | BX23: 0 | BY23: 0 | BZ23: 0 | CA23: 0 | CB23: 0 | CC23: 0 | CD23: 0 | CE23: 0 | CF23: 0 | CG23: 0 | CH23: 0 | CI23: 0 | CJ23: 0 | CK23: 0 | CL23: 0 | CM23: 0 | CN23: 0 | CO23: 0 | CP23: 0 | CQ23: 0 | CR23: 0 | CS23: 0 | CT23: 0 | CU23: 0 | CV23: 0 | CW23: 0 | CX23: 0 | CY23: 0 | CZ23: 0 | DA23: 0 | DB23: 0 | DC23: 0 | DD23: 0 | DE23: 0 | DF23: 0 | DG23: 0 | DH23: 0 | DI23: 0 | DJ23: 0 | DK23: 0 | DL23: 0 | DM23: 0 | DN23: 0 | DO23: 0 | DP23: 0 | DQ23: 0 | DR23: 0 | DS23: 0
C24: Payment for Debt and Enforcement | E24: USD | H24: =SUM(J24:XFD24) -> 281690102.9 | J24: ='Tab 2 Debt Stack Reconstruction'!J43 -> 275402000 | K24: ='Tab 2 Debt Stack Reconstruction'!K43 -> 0 | L24: ='Tab 2 Debt Stack Reconstruction'!L43 -> 0 | M24: ='Tab 2 Debt Stack Reconstruction'!M43 -> 0 | N24: ='Tab 2 Debt Stack Reconstruction'!N43 -> 0 | O24: ='Tab 2 Debt Stack Reconstruction'!O43 -> 0 | P24: ='Tab 2 Debt Stack Reconstruction'!P43 -> 0 | Q24: ='Tab 2 Debt Stack Reconstruction'!Q43 -> 524008.5736 | R24: ='Tab 2 Debt Stack Reconstruction'!R43 -> 524008.5736 | S24: ='Tab 2 Debt Stack Reconstruction'!S43 -> 524008.5736 | T24: ='Tab 2 Debt Stack Reconstruction'!T43 -> 524008.5736 | U24: ='Tab 2 Debt Stack Reconstruction'!U43 -> 524008.5736 | V24: ='Tab 2 Debt Stack Reconstruction'!V43 -> 524008.5736 | W24: ='Tab 2 Debt Stack Reconstruction'!W43 -> 524008.5736 | X24: ='Tab 2 Debt Stack Reconstruction'!X43 -> 524008.5736 | Y24: ='Tab 2 Debt Stack Reconstruction'!Y43 -> 524008.5736 | Z24: ='Tab 2 Debt Stack Reconstruction'!Z43 -> 524008.5736 | AA24: ='Tab 2 Debt Stack Reconstruction'!AA43 -> 524008.5736 | AB24: ='Tab 2 Debt Stack Reconstruction'!AB43 -> 524008.5736 | AC24: ='Tab 2 Debt Stack Reconstruction'!AC43 -> 0 | AD24: ='Tab 2 Debt Stack Reconstruction'!AD43 -> 0 | AE24: ='Tab 2 Debt Stack Reconstruction'!AE43 -> 0 | AF24: ='Tab 2 Debt Stack Reconstruction'!AF43 -> 0 | AG24: ='Tab 2 Debt Stack Reconstruction'!AG43 -> 0 | AH24: ='Tab 2 Debt Stack Reconstruction'!AH43 -> 0 | AI24: ='Tab 2 Debt Stack Reconstruction'!AI43 -> 0 | AJ24: ='Tab 2 Debt Stack Reconstruction'!AJ43 -> 0 | AK24: ='Tab 2 Debt Stack Reconstruction'!AK43 -> 0 | AL24: ='Tab 2 Debt Stack Reconstruction'!AL43 -> 0 | AM24: ='Tab 2 Debt Stack Reconstruction'!AM43 -> 0 | AN24: ='Tab 2 Debt Stack Reconstruction'!AN43 -> 0 | AO24: ='Tab 2 Debt Stack Reconstruction'!AO43 -> 0 | AP24: ='Tab 2 Debt Stack Reconstruction'!AP43 -> 0 | AQ24: ='Tab 2 Debt Stack Reconstruction'!AQ43 -> 0 | AR24: ='Tab 2 Debt Stack Reconstruction'!AR43 -> 0 | AS24: ='Tab 2 Debt Stack Reconstruction'!AS43 -> 0 | AT24: ='Tab 2 Debt Stack Reconstruction'!AT43 -> 0 | AU24: ='Tab 2 Debt Stack Reconstruction'!AU43 -> 0 | AV24: ='Tab 2 Debt Stack Reconstruction'!AV43 -> 0 | AW24: ='Tab 2 Debt Stack Reconstruction'!AW43 -> 0 | AX24: ='Tab 2 Debt Stack Reconstruction'!AX43 -> 0 | AY24: ='Tab 2 Debt Stack Reconstruction'!AY43 -> 0 | AZ24: ='Tab 2 Debt Stack Reconstruction'!AZ43 -> 0 | BA24: ='Tab 2 Debt Stack Reconstruction'!BA43 -> 0 | BB24: ='Tab 2 Debt Stack Reconstruction'!BB43 -> 0 | BC24: ='Tab 2 Debt Stack Reconstruction'!BC43 -> 0 | BD24: ='Tab 2 Debt Stack Reconstruction'!BD43 -> 0 | BE24: ='Tab 2 Debt Stack Reconstruction'!BE43 -> 0 | BF24: ='Tab 2 Debt Stack Reconstruction'!BF43 -> 0 | BG24: ='Tab 2 Debt Stack Reconstruction'!BG43 -> 0 | BH24: ='Tab 2 Debt Stack Reconstruction'!BH43 -> 0 | BI24: ='Tab 2 Debt Stack Reconstruction'!BI43 -> 0 | BJ24: ='Tab 2 Debt Stack Reconstruction'!BJ43 -> 0 | BK24: ='Tab 2 Debt Stack Reconstruction'!BK43 -> 0 | BL24: ='Tab 2 Debt Stack Reconstruction'!BL43 -> 0 | BM24: ='Tab 2 Debt Stack Reconstruction'!BM43 -> 0 | BN24: ='Tab 2 Debt Stack Reconstruction'!BN43 -> 0 | BO24: ='Tab 2 Debt Stack Reconstruction'!BO43 -> 0 | BP24: ='Tab 2 Debt Stack Reconstruction'!BP43 -> 0 | BQ24: ='Tab 2 Debt Stack Reconstruction'!BQ43 -> 0 | BR24: ='Tab 2 Debt Stack Reconstruction'!BR43 -> 0 | BS24: ='Tab 2 Debt Stack Reconstruction'!BS43 -> 0 | BT24: ='Tab 2 Debt Stack Reconstruction'!BT43 -> 0 | BU24: ='Tab 2 Debt Stack Reconstruction'!BU43 -> 0 | BV24: ='Tab 2 Debt Stack Reconstruction'!BV43 -> 0 | BW24: ='Tab 2 Debt Stack Reconstruction'!BW43 -> 0 | BX24: ='Tab 2 Debt Stack Reconstruction'!BX43 -> 0 | BY24: ='Tab 2 Debt Stack Reconstruction'!BY43 -> 0 | BZ24: ='Tab 2 Debt Stack Reconstruction'!BZ43 -> 0 | CA24: ='Tab 2 Debt Stack Reconstruction'!CA43 -> 0 | CB24: ='Tab 2 Debt Stack Reconstruction'!CB43 -> 0 | CC24: ='Tab 2 Debt Stack Reconstruction'!CC43 -> 0 | CD24: ='Tab 2 Debt Stack Reconstruction'!CD43 -> 0 | CE24: ='Tab 2 Debt Stack Reconstruction'!CE43 -> 0 | CF24: ='Tab 2 Debt Stack Reconstruction'!CF43 -> 0 | CG24: ='Tab 2 Debt Stack Reconstruction'!CG43 -> 0 | CH24: ='Tab 2 Debt Stack Reconstruction'!CH43 -> 0 | CI24: ='Tab 2 Debt Stack Reconstruction'!CI43 -> 0 | CJ24: ='Tab 2 Debt Stack Reconstruction'!CJ43 -> 0 | CK24: ='Tab 2 Debt Stack Reconstruction'!CK43 -> 0 | CL24: ='Tab 2 Debt Stack Reconstruction'!CL43 -> 0 | CM24: ='Tab 2 Debt Stack Reconstruction'!CM43 -> 0 | CN24: ='Tab 2 Debt Stack Reconstruction'!CN43 -> 0 | CO24: ='Tab 2 Debt Stack Reconstruction'!CO43 -> 0 | CP24: ='Tab 2 Debt Stack Reconstruction'!CP43 -> 0 | CQ24: ='Tab 2 Debt Stack Reconstruction'!CQ43 -> 0 | CR24: ='Tab 2 Debt Stack Reconstruction'!CR43 -> 0 | CS24: ='Tab 2 Debt Stack Reconstruction'!CS43 -> 0 | CT24: ='Tab 2 Debt Stack Reconstruction'!CT43 -> 0 | CU24: ='Tab 2 Debt Stack Reconstruction'!CU43 -> 0 | CV24: ='Tab 2 Debt Stack Reconstruction'!CV43 -> 0 | CW24: ='Tab 2 Debt Stack Reconstruction'!CW43 -> 0 | CX24: ='Tab 2 Debt Stack Reconstruction'!CX43 -> 0 | CY24: ='Tab 2 Debt Stack Reconstruction'!CY43 -> 0 | CZ24: ='Tab 2 Debt Stack Reconstruction'!CZ43 -> 0 | DA24: ='Tab 2 Debt Stack Reconstruction'!DA43 -> 0 | DB24: ='Tab 2 Debt Stack Reconstruction'!DB43 -> 0 | DC24: ='Tab 2 Debt Stack Reconstruction'!DC43 -> 0 | DD24: ='Tab 2 Debt Stack Reconstruction'!DD43 -> 0 | DE24: ='Tab 2 Debt Stack Reconstruction'!DE43 -> 0 | DF24: ='Tab 2 Debt Stack Reconstruction'!DF43 -> 0 | DG24: ='Tab 2 Debt Stack Reconstruction'!DG43 -> 0 | DH24: ='Tab 2 Debt Stack Reconstruction'!DH43 -> 0 | DI24: ='Tab 2 Debt Stack Reconstruction'!DI43 -> 0 | DJ24: ='Tab 2 Debt Stack Reconstruction'!DJ43 -> 0 | DK24: ='Tab 2 Debt Stack Reconstruction'!DK43 -> 0 | DL24: ='Tab 2 Debt Stack Reconstruction'!DL43 -> 0 | DM24: ='Tab 2 Debt Stack Reconstruction'!DM43 -> 0 | DN24: ='Tab 2 Debt Stack Reconstruction'!DN43 -> 0 | DO24: ='Tab 2 Debt Stack Reconstruction'!DO43 -> 0 | DP24: ='Tab 2 Debt Stack Reconstruction'!DP43 -> 0 | DQ24: ='Tab 2 Debt Stack Reconstruction'!DQ43 -> 0 | DR24: ='Tab 2 Debt Stack Reconstruction'!DR43 -> 0 | DS24: ='Tab 2 Debt Stack Reconstruction'!DS43 -> 0
C25: Total Payment for Accumulation and Enforcement | E25: USD | H25: =SUM(J25:XFD25) -> 331994926 | J25: =J23+J24 -> 275402000 | K25: =K23+K24 -> 0 | L25: 0 | M25: 9511105.563 | N25: 9522721.904 | O25: 10180634.01 | P25: 10193068.08 | Q25: 11421302.08 | R25: 524008.5736 | S25: 524008.5736 | T25: 524008.5736 | U25: 524008.5736 | V25: 524008.5736 | W25: 524008.5736 | X25: 524008.5736 | Y25: 524008.5736 | Z25: 524008.5736 | AA25: 524008.5736 | AB25: 524008.5736 | AC25: 0 | AD25: 0 | AE25: 0 | AF25: 0 | AG25: 0 | AH25: 0 | AI25: 0 | AJ25: 0 | AK25: 0 | AL25: 0 | AM25: 0 | AN25: 0 | AO25: 0 | AP25: 0 | AQ25: 0 | AR25: 0 | AS25: 0 | AT25: 0 | AU25: 0 | AV25: 0 | AW25: 0 | AX25: 0 | AY25: 0 | AZ25: 0 | BA25: 0 | BB25: 0 | BC25: 0 | BD25: 0 | BE25: 0 | BF25: 0 | BG25: 0 | BH25: 0 | BI25: 0 | BJ25: 0 | BK25: 0 | BL25: 0 | BM25: 0 | BN25: 0 | BO25: 0 | BP25: 0 | BQ25: 0 | BR25: 0 | BS25: 0 | BT25: 0 | BU25: 0 | BV25: 0 | BW25: =BW23+BW24 -> 0 | BX25: 0 | BY25: 0 | BZ25: 0 | CA25: 0 | CB25: 0 | CC25: 0 | CD25: 0 | CE25: 0 | CF25: 0 | CG25: 0 | CH25: 0 | CI25: 0 | CJ25: 0 | CK25: 0 | CL25: 0 | CM25: 0 | CN25: 0 | CO25: 0 | CP25: 0 | CQ25: 0 | CR25: 0 | CS25: 0 | CT25: 0 | CU25: 0 | CV25: 0 | CW25: 0 | CX25: 0 | CY25: 0 | CZ25: 0 | DA25: 0 | DB25: 0 | DC25: 0 | DD25: 0 | DE25: 0 | DF25: 0 | DG25: 0 | DH25: 0 | DI25: 0 | DJ25: 0 | DK25: 0 | DL25: 0 | DM25: 0 | DN25: 0 | DO25: 0 | DP25: 0 | DQ25: 0 | DR25: 0 | DS25: 0
J27: =IF(J6,J3,NA()) ->  | L27: 2026-02-28 | M27: 2026-03-31 | N27: 2026-04-30 | O27: 2026-05-31 | P27: 2026-06-30 | Q27: 2026-07-31 | AP27: =IF(AP6,AP3,NA()) ->  | BV27: =IF(BV6,BV3,NA()) ->  | DB27: =IF(DB6,DB3,NA()) -> 
C28: Cost of Accumulation | E28: USD | J28: =I28+J23 -> 0 | K28: =J28+K23 -> 0 | L28: 0 | M28: 9511105.563 | N28: 19033827.47 | O28: 29214461.48 | P28: 39407529.56 | Q28: 50304823.07 | R28: 50304823.07 | S28: 50304823.07 | T28: 50304823.07 | U28: 50304823.07 | V28: 50304823.07 | W28: 50304823.07 | X28: 50304823.07 | Y28: 50304823.07 | Z28: 50304823.07 | AA28: 50304823.07 | AB28: 50304823.07 | AC28: 50304823.07 | AD28: 50304823.07 | AE28: 50304823.07 | AF28: 50304823.07 | AG28: 50304823.07 | AH28: 50304823.07 | AI28: 50304823.07 | AJ28: 50304823.07 | AK28: 50304823.07 | AL28: 50304823.07 | AM28: 50304823.07 | AN28: 50304823.07 | AO28: 50304823.07 | AP28: 50304823.07 | AQ28: 50304823.07 | AR28: 50304823.07 | AS28: 50304823.07 | AT28: 50304823.07 | AU28: 50304823.07 | AV28: 50304823.07 | AW28: 50304823.07 | AX28: 50304823.07 | AY28: 50304823.07 | AZ28: 50304823.07 | BA28: 50304823.07 | BB28: 50304823.07 | BC28: 50304823.07 | BD28: 50304823.07 | BE28: 50304823.07 | BF28: 50304823.07 | BG28: 50304823.07 | BH28: 50304823.07 | BI28: 50304823.07 | BJ28: 50304823.07 | BK28: 50304823.07 | BL28: 50304823.07 | BM28: 50304823.07 | BN28: 50304823.07 | BO28: 50304823.07 | BP28: 50304823.07 | BQ28: 50304823.07 | BR28: 50304823.07 | BS28: 50304823.07 | BT28: 50304823.07 | BU28: 50304823.07 | BV28: 50304823.07 | BW28: =BV28+BW23 -> 50304823.07 | BX28: 50304823.07 | BY28: 50304823.07 | BZ28: 50304823.07 | CA28: 50304823.07 | CB28: 50304823.07 | CC28: 50304823.07 | CD28: 50304823.07 | CE28: 50304823.07 | CF28: 50304823.07 | CG28: 50304823.07 | CH28: 50304823.07 | CI28: 50304823.07 | CJ28: 50304823.07 | CK28: 50304823.07 | CL28: 50304823.07 | CM28: 50304823.07 | CN28: 50304823.07 | CO28: 50304823.07 | CP28: 50304823.07 | CQ28: 50304823.07 | CR28: 50304823.07 | CS28: 50304823.07 | CT28: 50304823.07 | CU28: 50304823.07 | CV28: 50304823.07 | CW28: 50304823.07 | CX28: 50304823.07 | CY28: 50304823.07 | CZ28: 50304823.07 | DA28: 50304823.07 | DB28: 50304823.07 | DC28: 50304823.07 | DD28: 50304823.07 | DE28: 50304823.07 | DF28: 50304823.07 | DG28: 50304823.07 | DH28: 50304823.07 | DI28: 50304823.07 | DJ28: 50304823.07 | DK28: 50304823.07 | DL28: 50304823.07 | DM28: 50304823.07 | DN28: 50304823.07 | DO28: 50304823.07 | DP28: 50304823.07 | DQ28: 50304823.07 | DR28: 50304823.07 | DS28: 50304823.07
B49: Gnatt Chart
D50: Dates
D52: Debt Acuisistion
D53: Enfocement
D54: Accumulation
D55: Purchase

Sheet Tab 4 Enforcement Model
B1: Timeline
C2: Period | F2: Driver | G2: Driver | H2: Sum | J2: =_xlfn.SEQUENCE(,50) -> 1 | K2: 2 | L2: 3 | M2: 4 | N2: 5 | O2: 6 | P2: 7 | Q2: 8 | R2: 9 | S2: 10 | T2: 11 | U2: 12 | V2: 13 | W2: 14 | X2: 15 | Y2: 16 | Z2: 17 | AA2: 18 | AB2: 19 | AC2: 20 | AD2: 21 | AE2: 22 | AF2: 23 | AG2: 24 | AH2: 25 | AI2: 26 | AJ2: 27 | AK2: 28 | AL2: 29 | AM2: 30 | AN2: 31 | AO2: 32 | AP2: 33 | AQ2: 34 | AR2: 35 | AS2: 36 | AT2: 37 | AU2: 38 | AV2: 39 | AW2: 40 | AX2: 41 | AY2: 42 | AZ2: 43 | BA2: 44 | BB2: 45 | BC2: 46 | BD2: 47 | BE2: 48 | BF2: 49 | BG2: 50
C3: Date | E3: date | J3: ='Tab 1 - Assumptions'!F8 -> 2025-12-31 | K3: =EOMONTH(J3,1) -> 2026-01-31 | L3: =EOMONTH(K3,1) -> 2026-02-28 | M3: 2026-03-31 | N3: 2026-04-30 | O3: 2026-05-31 | P3: 2026-06-30 | Q3: 2026-07-31 | R3: 2026-08-31 | S3: 2026-09-30 | T3: 2026-10-31 | U3: 2026-11-30 | V3: 2026-12-31 | W3: 2027-01-31 | X3: 2027-02-28 | Y3: 2027-03-31 | Z3: 2027-04-30 | AA3: 2027-05-31 | AB3: 2027-06-30 | AC3: 2027-07-31 | AD3: 2027-08-31 | AE3: 2027-09-30 | AF3: 2027-10-31 | AG3: 2027-11-30 | AH3: 2027-12-31 | AI3: 2028-01-31 | AJ3: 2028-02-29 | AK3: 2028-03-31 | AL3: 2028-04-30 | AM3: 2028-05-31 | AN3: 2028-06-30 | AO3: 2028-07-31 | AP3: 2028-08-31 | AQ3: 2028-09-30 | AR3: 2028-10-31 | AS3: 2028-11-30 | AT3: 2028-12-31 | AU3: 2029-01-31 | AV3: 2029-02-28 | AW3: 2029-03-31 | AX3: 2029-04-30 | AY3: 2029-05-31 | AZ3: 2029-06-30 | BA3: 2029-07-31 | BB3: 2029-08-31 | BC3: 2029-09-30 | BD3: 2029-10-31 | BE3: 2029-11-30 | BF3: 2029-12-31 | BG3: 2030-01-31 | BH3: 2030-02-28 | BI3: 2030-03-31 | BJ3: 2030-04-30 | BK3: 2030-05-31 | BL3: 2030-06-30 | BM3: 2030-07-31 | BN3: 2030-08-31 | BO3: 2030-09-30 | BP3: 2030-10-31 | BQ3: 2030-11-30 | BR3: 2030-12-31 | BS3: 2031-01-31 | BT3: 2031-02-28 | BU3: 2031-03-31 | BV3: 2031-04-30 | BW3: 2031-05-31 | BX3: =EOMONTH(BW3,1) -> 2031-06-30 | BY3: 2031-07-31 | BZ3: 2031-08-31 | CA3: 2031-09-30 | CB3: 2031-10-31 | CC3: 2031-11-30 | CD3: 2031-12-31 | CE3: 2032-01-31 | CF3: 2032-02-29 | CG3: 2032-03-31 | CH3: 2032-04-30 | CI3: 2032-05-31 | CJ3: 2032-06-30 | CK3: 2032-07-31 | CL3: 2032-08-31 | CM3: 2032-09-30 | CN3: 2032-10-31 | CO3: 2032-11-30 | CP3: 2032-12-31 | CQ3: 2033-01-31 | CR3: 2033-02-28 | CS3: 2033-03-31 | CT3: 2033-04-30 | CU3: 2033-05-31 | CV3: 2033-06-30 | CW3: 2033-07-31 | CX3: 2033-08-31 | CY3: 2033-09-30 | CZ3: 2033-10-31 | DA3: 2033-11-30 | DB3: 2033-12-31 | DC3: 2034-01-31 | DD3: 2034-02-28 | DE3: 2034-03-31 | DF3: 2034-04-30 | DG3: 2034-05-31 | DH3: 2034-06-30 | DI3: 2034-07-31 | DJ3: 2034-08-31 | DK3: 2034-09-30 | DL3: 2034-10-31 | DM3: 2034-11-30 | DN3: 2034-12-31 | DO3: 2035-01-31 | DP3: 2035-02-28 | DQ3: 2035-03-31 | DR3: 2035-04-30 | DS3: 2035-05-31
C4: Debt Acquisition | E4: Flag | F4: ='Tab 1 - Assumptions'!$F$8 -> 2025-12-31 | H4: =SUM(J4:XFD4) -> 1 | J4: =(J3=$F$4)*1 -> 1 | K4: =(K3=$F$4)*1 -> 0 | L4: 0 | M4: 0 | N4: 0 | O4: 0 | P4: 0 | Q4: 0 | R4: 0 | S4: 0 | T4: 0 | U4: 0 | V4: 0 | W4: 0 | X4: 0 | Y4: 0 | Z4: 0 | AA4: 0 | AB4: 0 | AC4: 0 | AD4: 0 | AE4: 0 | AF4: 0 | AG4: 0 | AH4: 0 | AI4: 0 | AJ4: 0 | AK4: 0 | AL4: 0 | AM4: 0 | AN4: 0 | AO4: 0 | AP4: 0 | AQ4: 0 | AR4: 0 | AS4: 0 | AT4: 0 | AU4: 0 | AV4: 0 | AW4: 0 | AX4: 0 | AY4: 0 | AZ4: 0 | BA4: 0 | BB4: 0 | BC4: 0 | BD4: 0 | BE4: 0 | BF4: 0 | BG4: 0 | BH4: 0 | BI4: 0 | BJ4: 0 | BK4: 0 | BL4: 0 | BM4: 0 | BN4: 0 | BO4: 0 | BP4: 0 | BQ4: 0 | BR4: 0 | BS4: 0 | BT4: 0 | BU4: 0 | BV4: 0 | BW4: =(BW3=$F$4)*1 -> 0 | BX4: 0 | BY4: 0 | BZ4: 0 | CA4: 0 | CB4: 0 | CC4: 0 | CD4: 0 | CE4: 0 | CF4: 0 | CG4: 0 | CH4: 0 | CI4: 0 | CJ4: 0 | CK4: 0 | CL4: 0 | CM4: 0 | CN4: 0 | CO4: 0 | CP4: 0 | CQ4: 0 | CR4: 0 | CS4: 0 | CT4: 0 | CU4: 0 | CV4: 0 | CW4: 0 | CX4: 0 | CY4: 0 | CZ4: 0 | DA4: 0 | DB4: 0 | DC4: 0 | DD4: 0 | DE4: 0 | DF4: 0 | DG4: 0 | DH4: 0 | DI4: 0 | DJ4: 0 | DK4: 0 | DL4: 0 | DM4: 0 | DN4: 0 | DO4: 0 | DP4: 0 | DQ4: 0 | DR4: 0 | DS4: 0
C5: Enforcement Period | E5: Flag | F5: ='Tab 1 - Assumptions'!$F$14 -> 2026-02-28 | G5: ='Tab 1 - Assumptions'!$F$15 -> 2026-02-28 | H5: =SUM(J5:XFD5) -> 1 | J5: =(AND(J$3>=$F5,J$3<=$G5))*1 -> 0 | K5: =(AND(K3>=$F$5,K3<=$G$5))*1 -> 0 | L5: 1 | M5: 0 | N5: 0 | O5: 0 | P5: 0 | Q5: 0 | R5: 0 | S5: 0 | T5: 0 | U5: 0 | V5: 0 | W5: 0 | X5: 0 | Y5: 0 | Z5: 0 | AA5: 0 | AB5: 0 | AC5: 0 | AD5: 0 | AE5: 0 | AF5: 0 | AG5: 0 | AH5: 0 | AI5: 0 | AJ5: 0 | AK5: 0 | AL5: 0 | AM5: 0 | AN5: 0 | AO5: 0 | AP5: 0 | AQ5: 0 | AR5: 0 | AS5: 0 | AT5: 0 | AU5: 0 | AV5: 0 | AW5: 0 | AX5: 0 | AY5: 0 | AZ5: 0 | BA5: 0 | BB5: 0 | BC5: 0 | BD5: 0 | BE5: 0 | BF5: 0 | BG5: 0 | BH5: 0 | BI5: 0 | BJ5: 0 | BK5: 0 | BL5: 0 | BM5: 0 | BN5: 0 | BO5: 0 | BP5: 0 | BQ5: 0 | BR5: 0 | BS5: 0 | BT5: 0 | BU5: 0 | BV5: 0 | BW5: =(AND(BW3>=$F$5,BW3<=$G$5))*1 -> 0 | BX5: 0 | BY5: 0 | BZ5: 0 | CA5: 0 | CB5: 0 | CC5: 0 | CD5: 0 | CE5: 0 | CF5: 0 | CG5: 0 | CH5: 0 | CI5: 0 | CJ5: 0 | CK5: 0 | CL5: 0 | CM5: 0 | CN5: 0 | CO5: 0 | CP5: 0 | CQ5: 0 | CR5: 0 | CS5: 0 | CT5: 0 | CU5: 0 | CV5: 0 | CW5: 0 | CX5: 0 | CY5: 0 | CZ5: 0 | DA5: 0 | DB5: 0 | DC5: 0 | DD5: 0 | DE5: 0 | DF5: 0 | DG5: 0 | DH5: 0 | DI5: 0 | DJ5: 0 | DK5: 0 | DL5: 0 | DM5: 0 | DN5: 0 | DO5: 0 | DP5: 0 | DQ5: 0 | DR5: 0 | DS5: 0
C6: Accumulate Period | E6: Flag | F6: ='Tab 1 - Assumptions'!$F$21 -> 2026-02-28 | G6: ='Tab 1 - Assumptions'!F26 -> 2026-07-31 | H6: =SUM(J6:XFD6) -> 6 | J6: =(AND(J$3>=$F6,J$3<=$G6))*1 -> 0 | K6: =(AND(K$3>=$F6,K$3<=$G6))*1 -> 0 | L6: 1 | M6: 1 | N6: 1 | O6: 1 | P6: 1 | Q6: 1 | R6: 0 | S6: 0 | T6: 0 | U6: 0 | V6: 0 | W6: 0 | X6: 0 | Y6: 0 | Z6: 0 | AA6: 0 | AB6: 0 | AC6: 0 | AD6: 0 | AE6: 0 | AF6: 0 | AG6: 0 | AH6: 0 | AI6: 0 | AJ6: 0 | AK6: 0 | AL6: 0 | AM6: 0 | AN6: 0 | AO6: =(AND(AO$3>=$F6,AO$3<=$G6))*1 -> 0 | AP6: 0 | AQ6: 0 | AR6: 0 | AS6: 0 | AT6: 0 | AU6: 0 | AV6: 0 | AW6: 0 | AX6: 0 | AY6: 0 | AZ6: 0 | BA6: 0 | BB6: 0 | BC6: 0 | BD6: 0 | BE6: 0 | BF6: 0 | BG6: 0 | BH6: 0 | BI6: =(AND(BI$3>=$F6,BI$3<=$G6))*1 -> 0 | BJ6: 0 | BK6: 0 | BL6: 0 | BM6: 0 | BN6: 0 | BO6: 0 | BP6: 0 | BQ6: 0 | BR6: 0 | BS6: 0 | BT6: 0 | BU6: 0 | BV6: 0 | BW6: 0 | BX6: 0 | BY6: 0 | BZ6: 0 | CA6: 0 | CB6: 0 | CC6: 0 | CD6: =(AND(CD$3>=$F6,CD$3<=$G6))*1 -> 0 | CE6: 0 | CF6: 0 | CG6: 0 | CH6: 0 | CI6: 0 | CJ6: 0 | CK6: 0 | CL6: 0 | CM6: 0 | CN6: 0 | CO6: 0 | CP6: 0 | CQ6: 0 | CR6: 0 | CS6: 0 | CT6: 0 | CU6: 0 | CV6: 0 | CW6: 0 | CX6: 0 | CY6: 0 | CZ6: 0 | DA6: 0 | DB6: 0 | DC6: 0 | DD6: 0 | DE6: 0 | DF6: 0 | DG6: 0 | DH6: 0 | DI6: 0 | DJ6: 0 | DK6: 0 | DL6: 0 | DM6: 0 | DN6: 0 | DO6: 0 | DP6: 0 | DQ6: 0 | DR6: 0 | DS6: 0
